Workbook

Sheet Introduction
A1: Federal Highway Administration (FHWA)
A2: Safety Performance for Intersection Control Evaluation Tool
A3: Introduction | B3: Overview
A4: The Safety Performance for Intersection Control Evaluation (SPICE) Tool was developed to provide an easy-to-use tool that automates the predictive safety analysis of intersections. This tool will allow analysts conducting Intersection Control Evaluations (ICE) to be equipped with necessary safety information during the decision-making process, without having to research a myriad of crash modification factors (CMFs) and Safety Performance Functions (SPFs) in multiple sources. The SPICE tool will perform a comparative predictive safety analysis of different intersection control strategies. The results – crash frequency and severity for each alternative – will then enable safety performance of alternatives to be considered quantitatively like traffic operations, construction cost, maintenance cost, or other factors. | B4: The SPICE Tool performs safety analysis of at-grade intersection forms/control types and ramp terminal intersections of diamond interchanges. This user-friendly tool requires only data inputs that are readily available to the analyst. In addition, the SPICE tool has an option to conduct planning level analysis, where the tool assumes default values for data inputs that are challenging to obtain in the early stages of a project and/or have a very minor impact on the results. The SPICE tool assumes that certain attributes of the intersection – AADT, facility type, and number of legs – are the same for all alternatives. If they are not, users will be required to use the tool twice to get results. The tool will not allow simultaneous evaluation of at-grade intersections and ramp terminal intersections. For projects where analysis of both intersections and interchanges is needed, users are required to use the tool twice to get results.
A5: Worksheets
A6: Project Information: Provide general project information for reference purposes only.
A7: Definitions: Reference sheet with additional information related to inputs for the SPICE tool.
A8: Control Strategy Selection: Choose between At-Grade or Ramp Terminal intersection types to be included in the SPICE analysis.
A9: At-Grade Inputs: SPF and Part C CMF inputs for At-Grade intersections (hidden if Ramp Terminals are being analyzed).
A10: Ramp Terminal Inputs: SPF and Part C CMF inputs for Ramp Terminal intersections (hidden if At-Grade intersections are being analyzed).
A11: Calibration: Input optional override values for SPF calibration factors from locally-developed or updated information.
A12: Results: Summary of opening year and (if applicable) design year and total project life cycle crash frequency and crash severity.
A14: Additional Worksheets: Additional worksheets to support the underlying Macros. Not to be updated by users unless updating future tool versions.
A15: Maintenance | B15: Input Legend
A16: Version: SPICE Tool 4.1 [Changelog] | C16: Required data entry field
A17: Maintained By: TBD | C17: Optional data entry field
A18: Contact Information: TBD | C18: Planning-Level Default Input
A19: Disclaimer | C19: Data entry field not used
A20: Disclaimers may be added, if needed.

Sheet Project Information
A1: Project Information
A2: Provide general project information for reference purposes only.
A3: Project Name:
A4: Intersection:
A5: Agency:
A6: Project Reference:
A7: City:
A8: State:
A9: Date:
A10: Analyst:
A11: Use this button to clear all inputs/outputs and reset the tool to its initial defaults

Sheet Definitions
A1: Definitions | I1: At-Grade AADT Ranges for Traffic Signals and Minor Stops | O1: At-Grade AADT 1 and 2 Lane Roundabouts
A2: Definitions of values and variables required for SPICE analysis. | I2: Rural Two-Lane Highway | O2: Intersection Type | P2: Major Road AADT | R2: Minor Road AADT
A3: User Input Variable | B3: Units | C3: Definition | D3: Applicable Ranges | I3: Intersection Type | J3: Major Road AADT | L3: Minor Road AADT | O3: 1 Circulating Lane | P3: Min | Q3: Max | R3: Min | S3: Max
D4: Range for: | E4: Lower Limit | F4: Upper Limit | J4: Min | K4: Max | L4: Min | M4: Max | O4: 3Leg | P4: 675 | Q4: 17369 | R4: 409 | S4: 14000
A5: Control Strategy Selection | I5: 3ST | J5: 0 | K5: 19500 | L5: 0 | M5: 4300 | O5: 4Leg | P5: 1000 | Q5: 19733 | R5: 280 | S5: 11239
A6: Number of Major Street Lanes | B6: lanes | C6: Number of lanes on the major street (both directions - does not include turn lanes) | D6: - | E6: - | F6: - | I6: 4ST | J6: 0 | K6: 14700 | L6: 0 | M6: 3500 | O6: 2 Circulating Lanes | P6: Min | Q6: Max | R6: Min | S6: Max
A7: At-Grade Intersection Inputs | I7: 3SG | J7: 0 | K7: 23591 | L7: 0 | M7: 23320 | O7: 3Leg | P7: 1000 | Q7: 22050 | R7: 476 | S7: 15108
A8: Major/Minor Road AADT | B8: veh/day | C8: Average annual daily traffic (AADT) volume for the major and minor street approaches (see table for ranges). | D8: See table starting in column I (to the right). | I8: 4SG | J8: 0 | K8: 25200 | L8: 0 | M8: 12500 | O8: 4Leg | P8: 1000 | Q8: 28333 | R8: 390 | S8: 19371
A9: Skew Angle | B9: degrees | C9: Intersecting angle between major street and minor street approaches (hover cursor for graphical representation) | D9: - | E9: - | F9: - | I9: 3AWSC | J9: -- | K9: -- | L9: -- | M9: --
A10: Number of Major Street Through Lanes | B10: lanes | C10: Number of through lanes on the major street (both directions - includes shared through lanes) | D10: - | E10: - | F10: - | I10: 4AWSC | J10: 0 | K10: 12983 | L10: 0 | M10: 9985
A11: Number of Minor Street Lanes | B11: lanes | C11: Number of lanes on the minor street (both directions - does not include turn lanes) | D11: - | E11: - | F11: - | I11: Rural Multilane Highway
A12: Right-turn Channelization | B12: - | C12: An approach is considered to have right-turn channelization when a marked or raised-curb island is present separating the turn from the adjacent movements. A standard exclusive right-turn lane (bay) that does not have this separation is not considered channelized. | D12: - | E12: - | F12: - | I12: Intersection Type | J12: Major Road AADT | L12: Minor Road AADT
A13: Inscribed Circle Diameter | B13: ft | D13: Roundabout | E13: 90 | F13: 160 | J13: Min | K13: Max | L13: Min | M13: Max
A14: Opening Year Entering AADT | B14: veh/day | D14: Roundabout | E14: See Table in Column O
A15: Leg has Right-Turn Bypass | B15: yes/no | D15: Roundabout | E15: - | F15: - | I15: 3ST | J15: 0 | K15: 78300 | L15: 0 | M15: 23000
A16: Access Point within 250' of Yield Line | B16: - | D16: Roundabout | E16: 0 | F16: 8 | I16: 4ST | J16: 0 | K16: 78300 | L16: 0 | M16: 7400
A17: Entering Width | B17: ft | D17: Roundabout | E17: 24 | F17: 34 | I17: 3SG | J17: 0 | K17: 56000 | L17: 0 | M17: 27000 | O17: At-Grade AADT Ranges for Restricted Crossing U-Turn (RCUT)
A18: Number of Entering Lanes | B18: lanes | C18: Number of lanes entering a leg of the roundabout (hover cursor for graphical representation). | D18: Roundabout | E18: 1 | F18: 2 | I18: 4SG | J18: 0 | K18: 43500 | L18: 0 | M18: 18500
A19: Number of Circulating Lanes | B19: lanes | C19: Number of lanes circulating a leg of the roundabout (hover cursor for graphical representation). | D19: Roundabout | E19: 1 | F19: 2 | I19: 3AWSC | J19: -- | K19: -- | L19: -- | M19: -- | O19: Intersection Type | P19: Major Road AADT | R19: Minor Road AADT
A20: Number of U-Turns | B20: - | C20: Number of U-turns of the RCUT intersection, either 1 or 2. | D20: Signalized RCUT | E20: 1 | F20: 2 | I20: 4AWSC | J20: -- | K20: -- | L20: -- | M20: -- | P20: Min | Q20: Max | R20: Min | S20: Max
D21: Unsignalized RCUT | E21: 1 | F21: 2 | I21: Urban and Suburban Arterials | O21: Signalized (3 & 4-leg) | P21: 9700 | Q21: 65500 | R21: 1000 | S21: 18218
A22: Number of Major Road Lanes | B22: lanes | C22: Number of lanes on the major approach of the RCUT. The highest number across both approaches was chosen (e.g. if one approach has 1 lane, and the other has 2, then 2 is chosen as the number of lanes). | D22: Signalized RCUT | E22: 2 | F22: 3 | I22: Intersection Type | J22: Major Road AADT | L22: Minor Road AADT | O22: Unsignalized (3 & 4-leg) | P22: 2950 | Q22: 47722 | R22: 40 | S22: 11500
D23: Unsignalized RCUT | E23: - | F23: - | I23: 2x2 5 or Fewer Lanes | J23: Min | K23: Max | L23: Min | M23: Max
A24: Number of Minor Road Lanes | B24: lanes | C24: Number of lanes on the minor approach of the RCUT. If the RCUT has two minor approaches, the highest number across both approaches is chosen. | D24: Signalized RCUT | E24: 1 | F24: 3 | I24: 3ST | J24: 0 | K24: 45700 | L24: 0 | M24: 9300
D25: Unsignalized RCUT | E25: - | F25: - | I25: 4ST | J25: 0 | K25: 46800 | L25: 0 | M25: 5900
A26: Total Offset Distance | B26: ft | C26: The total distance between the center of the intersetion and the U-turn locations (e.g. if one approach has 800 ft. offset and the other one has 600 ft., then the total offset distance is 1400 ft.). | D26: Signalized RCUT | E26: 650 | F26: 2675 | I26: 3SG | J26: 0 | K26: 58100 | L26: 0 | M26: 16400
D27: Unsignalized RCUT | E27: 600 | F27: 5575 | I27: 4SG | J27: 0 | K27: 67700 | L27: 0 | M27: 33400
A28: Number of Driveways | B28: - | C28: The number of driveways within the whole footprint (including intersection center, U-turns, and segment between intersection center and U-turns) of the RCUT intersection. | D28: Signalized RCUT | E28: 0 | F28: 10 | I28: 3AWSC | J28: 0 | K28: 20131 | L28: 0 | M28: 11000
D29: Unsignalized RCUT | E29: 0 | F29: 6 | I29: 4AWSC | J29: 0 | K29: 12955 | L29: 0 | M29: 11982
A30: Total Deceleration Lane Length | B30: ft | C30: The total length of the deceleration lanes before U-turn locations (e.g. if one approach has 400 ft. deceleration lane and the other one has 250 ft., then total deceleration lane length is 650 ft.). | D30: Signalized RCUT | E30: 300 | F30: 2300 | I30: 2x2 6+ Lanes | J30: Min | K30: Max | L30: Min | M30: Max
D31: Unsignalized RCUT | E31: 0 | F31: 1525 | I31: 3ST | J31: 0 | K31: 66800 | L31: 0 | M31: 8600
A32: Total Acceleration Lane Length | B32: ft | C32: The maximum length of the acceleration lanes before U-turn locations (e.g. if one approach has 400 ft. acceleration lane and the other one has 250 ft., then 400 ft. is chosen as maximum acceleration lane length). | D32: Signalized RCUT | E32: - | F32: - | I32: 4ST | J32: 0 | K32: 54600 | L32: 0 | M32: 4600
D33: Unsignalized RCUT | E33: 1 | F33: 1600 | I33: 3SG | J33: 0 | K33: 94000 | L33: 0 | M33: 31000
A34: Total Median Width | B34: ft | C34: The total median width of the major approaches (e.g. if one approach has 40 ft. median and the other one has 25 ft., then total median width is 65 ft.). | D34: Signalized RCUT | E34: 0 | F34: 145 | I34: 4SG | J34: 0 | K34: 137600 | L34: 0 | M34: 68400
D35: Unsignalized RCUT | E35: - | F35: - | I35: 3AWSC | J35: -- | K35: -- | L35: -- | M35: --
A36: Maximum Median Width | B36: ft | C36: The maximum median width of the major approaches (e.g. if one approach has 40 ft. median and the other one has 25 ft., then 40 ft. is chosen as maximum median width). | D36: Signalized RCUT | E36: - | F36: - | I36: 4AWSC | J36: -- | K36: -- | L36: -- | M36: --
D37: Unsignalized RCUT | E37: 0 | F37: 150 | I37: Intersection Type | J37: Major Road AADT | L37: Minor Road AADT
A38: Number of Left-Turn Lanes From Major Road | B38: lanes | C38: The maximum number of left turn lanes from major approach to minor approach. | D38: Signalized RCUT | E38: 1 | F38: 3 | I38: 1x2 | J38: Min | K38: Max | L38: Min | M38: Max
A39: Major Road Speed Limit | B39: mph | C39: Major approach speed limit. | D39: Signalized RCUT | E39: 35 | F39: 70 | I39: 3ST | J39: 0 | K39: 42700 | L39: 0 | M39: 13400
A40: Ramp Terminal Intersection Inputs | I40: 4ST | J40: 0 | K40: 23400 | L40: 0 | M40: 19200
A41: Crossroad | B41: - | C41: References the major street of the ramp terminal intersection (i.e., the non-ramp terminal legs) | D41: - | E41: - | F41: - | I41: 3SG | J41: 0 | K41: 43800 | L41: 0 | M41: 58800
A42: Crossroad AADT - Inside Leg | B42: veh/day | C42: AADT volume of the crossroad leg located between the two ramp terminals of the interchange | D42: Stop-Controlled | E42: 0 | F42: 14000 | I42: 4SG | J42: 0 | K42: 77000 | L42: 0 | M42: 98900
D43: Signalized | E43: 14000 | F43: 60000 | I43: 3AWSC | J43: -- | K43: -- | L43: -- | M43: --
A44: Crossroad AADT - Outside Leg | B44: veh/day | C44: AADT volume of the crossroad leg located outside of the interchange | D44: Stop-Controlled | E44: 0 | F44: 14000 | I44: 4AWSC | J44: -- | K44: -- | L44: -- | M44: --
D45: Signalized | E45: 14000 | F45: 60000 | I45: 1x1 | J45: Min | K45: Max | L45: Min | M45: Max
A46: Ramp AADT - Exit | B46: veh/day | C46: AADT volume of the exit ramp | D46: Stop-Controlled | E46: 0 | F46: 10000 | I46: 3ST | J46: 0 | K46: 16900 | L46: 0 | M46: 11100
D47: Signalized | E47: 0 | F47: 31000 | I47: 4ST | J47: 0 | K47: 11000 | L47: 0 | M47: 6800
A48: Ramp AADT - Entrance | B48: veh/day | C48: AADT volume of the entrance ramp | D48: Stop-Controlled | E48: 0 | F48: 10000 | I48: 3SG | J48: 0 | K48: 20100 | L48: 0 | M48: 7500
D49: Signalized | E49: 0 | F49: 31000 | I49: 4SG | J49: 0 | K49: 24300 | L49: 0 | M49: 16900
A50: Exit Ramp Skew Angle | B50: degrees | C50: Skew angle equals 90 minus the intersection angle (in degrees) (hover cursor for graphical representation). | D50: Stop-Controlled | E50: 0 | F50: 70 | I50: 3AWSC | J50: -- | K50: -- | L50: -- | M50: --
A51: Presence of Non-Ramp Public Street Leg | B51: yes/no | C51: Any ramp that has a fourth leg that: (1) is a public street serving two-way traffic and (2) intersects with the crossroad at the terminal. At most ramp terminals, the public street leg will be on the opposite side of the crossroad from the exit ramp. | D51: - | E51: - | F51: - | I51: 4AWSC | J51: -- | K51: -- | L51: -- | M51: --
A52: Effective number of lanes serving exit ramp | B52: lanes | C52: Varies depending on exit ramp configuration (hover cursor for graphical representation of nex,eff) | D52: Stop-Controlled | E52: 1 | F52: 2 | I52: Intersection Type | J52: Major Road AADT | L52: Minor Road AADT
D53: Signalized | E53: 1 | F53: 4 | I53: High Speed (55+ mph) | J53: Min | K53: Max | L53: Min | M53: Max
A54: Median Width | B54: ft | C54: Width of crossroad median measured from near edges of traveled way in both travel directions (hover cursor for graphical representation) | D54: All | E54: 0 | F54: 50 | I54: 3ST | J54: 0 | K54: 58594 | L54: 0 | M54: 11335
A55: Left-turn lane (bay) Width for crossroad leg | B55: ft | C55: Width of crossroad left-turn lane (hover cursor for graphical representation) | D55: All | E55: 0 | F55: 26 | I55: 4ST | J55: 0 | K55: 59000 | L55: 0 | M55: 29800
A56: Number of through traffic lanes that oppose the left-turn movement on the inside crossroad leg | B56: lanes | C56: Number of through lanes on crossroad outside leg that oppose crossroad inside leg left-turn movement | D56: - | E56: - | F56: - | I56: 3SG | J56: 0 | K56: 47200 | L56: 0 | M56: 11282
A57: ='Ramp Terminal Inputs'!A30 -> Distance (mi) to the adjacent ramp terminal | B57: miles | C57: Distance between subject ramp terminal and adjacent ramp terminal; measured along the crossroad from terminal center to terminal center (mi). | D57: - | E57: - | F57: - | I57: 4SG | J57: 0 | K57: 59800 | L57: 0 | M57: 30029
A58: ='Ramp Terminal Inputs'!A31 -> Distance (mi) to the next public street intersection on the outside crossroad leg | B58: miles | C58: Distance between subject ramp terminal and nearest public road intersection in a direction away form freeway; measured along the crossroad form terminal center to intersection center (mi). | D58: - | E58: - | F58: - | I58: 3AWSC | J58: -- | K58: -- | L58: -- | M58: --
A59: Protected operation for crossroad leg | B59: yes/no | C59: "Yes" if a crossroad leg (inside or outside) has protected left-turn operation. "No" if the crossroad leg has permissive or permissive-protected operation | I59: 4AWSC | J59: -- | K59: -- | L59: -- | M59: --
A60: Crossroad AADT - Single Point Diamond | B60: veh/day | C60: AADT volume for the crossroad. Not a required direct input of the SPICE tool, but is determined automatically as the maximum of the outside leg AADT values. | D60: - | E60: 14000 | F60: 70000
A61: Ramp AADT - Single Point Diamond | B61: veh/day | C61: Sum of AADT volumes for all four ramps. Not a required direct input of the SPICE tool, this summation is done automatically. | D61: - | E61: 14000 | F61: 80000

Sheet Control Strategy Selection
A1: Control Strategy Selection and Inputs
A2: Specify the Facility Level Inputs and the Control Strategies to be included in the SPICE Analysis.
A3: Intersection Type | D3: At-Grade Intersection
A4: Analysis Year | D4: Opening and Design Year
A5: Opening Year | D5: 2025 | E5: =IF(NOT(ISNUMBER(Input_OpenYear)),"Please specify a valid Opening Year","") -> 
A6: Design Year | D6: 2045 | E6: =IF(Input_AnalysisYearType=Label_AnalysisYearType_OpenAndDesign,IF(NOT(ISNUMBER(Input_DesignYear)),"Please specify a valid Design Year",IF(Input_OpenYear>=Input_DesignYear,"The Design Year must be later than the Opening Year","")),"") -> 
A8: Facility Type | D8: On Urban and Suburban Arterial | E8: For more information on how to determine these values, see the "Definitions" worksheet
A9: Number of Legs | D9: 4-leg
A10: 1-Way/2-Way | D10: 2-way Intersecting 2-way
A11: # of Major Street Lanes (both directions) | D11: 5 or fewer
A12: Major Street Approach Speed | D12: Less than 55 mph
A13: Opening Year - Major Road AADT | D13: 18000 | E13: =IF(Input_Base_OAADTMajor="", "Please specify a non-zero AADT value","") -> 
A14: Opening Year - Minor Road AADT | D14: 8000 | E14: =IF(Input_Base_OAADTMinor="", "Please specify a non-zero AADT value","") -> 
A15: Design Year - Major Road AADT | D15: 20000 | E15: =IF(AND(Input_AnalysisYearType=Label_AnalysisYearType_OpenAndDesign,Input_Base_DAADTMajor=""), "Please specify a non-zero AADT value","") -> 
A16: Design Year - Minor Road AADT | D16: 10000 | E16: =IF(AND(Input_AnalysisYearType=Label_AnalysisYearType_OpenAndDesign,Input_Base_DAADTMinor=""), "Please specify a non-zero AADT value","") -> 
O17: AADT Within Range?
A18: Control Strategy | B18: Include | D18: Base Intersection | O18: Opening | P18: Design
A19: Traffic Signal | B19: Yes | D19: -- | E19: =IF(NOT(ISNUMBER(K19)),"No SPF Available",IF(O19,"","Opening Year AADT Outside of SPF Development Range")) ->  | G19: =IF(NOT(ISNUMBER(M19)),"No SPF",IF(Input_AnalysisYearType=Label_AnalysisYearType_OpenAndDesign,IF(P19,"","Design Year AADT Outside of SPF Development Range"),"")) ->  | I19: =IF(Input_FacilityType=FacilityType_Label_Rural2Ln,1,IF(Input_FacilityType=FacilityType_Label_RuralMultiLn,2,IF(Input_FacilityType=FacilityType_Label_Urban,IF(Input_1Way2Way=Notes!$A$54,IF(Input_MajorApproachSpeed=Notes!$A$67,7,IF(Input_NumMajorLanes=Notes!$A$60,3,4)),IF(Input_1Way2Way=Notes!$A$55,5,6))))) -> 3 | J19: =IF(Input_NumLegs=Notes!$A$49,"4","3")&"SG" -> 4SG | K19: =VLOOKUP($J19,IF($I19=7,Range_USA_HS,IF($I19=6,Range_USA_1x1,IF($I19=5,Range_USA_1x2,IF($I19=4,Range_USA_2x2_6P,IF($I19=3,Range_USA_2x2_5F,IF($I19=2,Range_RML, Range_R2L)))))),2,FALSE) -> 0 | L19: =VLOOKUP($J19,IF($I19=7,Range_USA_HS,IF($I19=6,Range_USA_1x1,IF($I19=5,Range_USA_1x2,IF($I19=4,Range_USA_2x2_6P,IF($I19=3,Range_USA_2x2_5F,IF($I19=2,Range_RML, Range_R2L)))))),3,FALSE) -> 67700 | M19: =VLOOKUP($J19,IF($I19=7,Range_USA_HS,IF($I19=6,Range_USA_1x1,IF($I19=5,Range_USA_1x2,IF($I19=4,Range_USA_2x2_6P,IF($I19=3,Range_USA_2x2_5F,IF($I19=2,Range_RML, Range_R2L)))))),4,FALSE) -> 0 | N19: =VLOOKUP($J19,IF($I19=7,Range_USA_HS,IF($I19=6,Range_USA_1x1,IF($I19=5,Range_USA_1x2,IF($I19=4,Range_USA_2x2_6P,IF($I19=3,Range_USA_2x2_5F,IF($I19=2,Range_RML, Range_R2L)))))),5,FALSE) -> 33400 | O19: =AND(Input_Base_OAADTMajor>=K19,Input_Base_OAADTMajor<=L19,Input_Base_OAADTMinor>=M19,Input_Base_OAADTMinor<=N19) -> TRUE | P19: =AND(Input_Base_DAADTMajor>=K19,Input_Base_DAADTMajor<=L19,Input_Base_DAADTMinor>=M19,Input_Base_DAADTMinor<=N19) -> TRUE
A20: Traffic Signal (Alternative Configuration) | B20: No | D20: -- | I20: =IF(Input_FacilityType=FacilityType_Label_Rural2Ln,1,IF(Input_FacilityType=FacilityType_Label_RuralMultiLn,2,IF(Input_FacilityType=FacilityType_Label_Urban,IF(Input_1Way2Way=Notes!$A$54,IF(Input_MajorApproachSpeed=Notes!$A$67,7,IF(Input_NumMajorLanes=Notes!$A$60,3,4)),IF(Input_1Way2Way=Notes!$A$55,5,6))))) -> 3 | J20: =IF(Input_NumLegs=Notes!$A$49,"4","3")&"SG" -> 4SG | K20: =VLOOKUP($J20,IF($I20=7,Range_USA_HS,IF($I20=6,Range_USA_1x1,IF($I20=5,Range_USA_1x2,IF($I20=4,Range_USA_2x2_6P,IF($I20=3,Range_USA_2x2_5F,IF($I20=2,Range_RML, Range_R2L)))))),2,FALSE) -> 0 | L20: =VLOOKUP($J20,IF($I20=7,Range_USA_HS,IF($I20=6,Range_USA_1x1,IF($I20=5,Range_USA_1x2,IF($I20=4,Range_USA_2x2_6P,IF($I20=3,Range_USA_2x2_5F,IF($I20=2,Range_RML, Range_R2L)))))),3,FALSE) -> 67700 | M20: =VLOOKUP($J20,IF($I20=7,Range_USA_HS,IF($I20=6,Range_USA_1x1,IF($I20=5,Range_USA_1x2,IF($I20=4,Range_USA_2x2_6P,IF($I20=3,Range_USA_2x2_5F,IF($I20=2,Range_RML, Range_R2L)))))),4,FALSE) -> 0 | N20: =VLOOKUP($J20,IF($I20=7,Range_USA_HS,IF($I20=6,Range_USA_1x1,IF($I20=5,Range_USA_1x2,IF($I20=4,Range_USA_2x2_6P,IF($I20=3,Range_USA_2x2_5F,IF($I20=2,Range_RML, Range_R2L)))))),5,FALSE) -> 33400 | O20: TRUE | P20: TRUE
A21: Minor Road Stop | B21: Yes | D21: -- | E21: Opening Year AADT Outside of SPF Development Range | G21: Design Year AADT Outside of SPF Development Range | I21: =IF(Input_FacilityType=FacilityType_Label_Rural2Ln,1,IF(Input_FacilityType=FacilityType_Label_RuralMultiLn,2,IF(Input_FacilityType=FacilityType_Label_Urban,IF(Input_1Way2Way=Notes!$A$54,IF(Input_MajorApproachSpeed=Notes!$A$67,7,IF(Input_NumMajorLanes=Notes!$A$60,3,4)),IF(Input_1Way2Way=Notes!$A$55,5,6))))) -> 3 | J21: =IF(Input_NumLegs=Notes!$A$49,"4","3")&"ST" -> 4ST | K21: =VLOOKUP($J21,IF($I21=7,Range_USA_HS,IF($I21=6,Range_USA_1x1,IF($I21=5,Range_USA_1x2,IF($I21=4,Range_USA_2x2_6P,IF($I21=3,Range_USA_2x2_5F,IF($I21=2,Range_RML, Range_R2L)))))),2,FALSE) -> 0 | L21: =VLOOKUP($J21,IF($I21=7,Range_USA_HS,IF($I21=6,Range_USA_1x1,IF($I21=5,Range_USA_1x2,IF($I21=4,Range_USA_2x2_6P,IF($I21=3,Range_USA_2x2_5F,IF($I21=2,Range_RML, Range_R2L)))))),3,FALSE) -> 46800 | M21: =VLOOKUP($J21,IF($I21=7,Range_USA_HS,IF($I21=6,Range_USA_1x1,IF($I21=5,Range_USA_1x2,IF($I21=4,Range_USA_2x2_6P,IF($I21=3,Range_USA_2x2_5F,IF($I21=2,Range_RML, Range_R2L)))))),4,FALSE) -> 0 | N21: =VLOOKUP($J21,IF($I21=7,Range_USA_HS,IF($I21=6,Range_USA_1x1,IF($I21=5,Range_USA_1x2,IF($I21=4,Range_USA_2x2_6P,IF($I21=3,Range_USA_2x2_5F,IF($I21=2,Range_RML, Range_R2L)))))),5,FALSE) -> 5900 | O21: FALSE | P21: FALSE
A22: All Way Stop | B22: Yes | D22: -- | E22: Opening Year AADT Outside of SPF Development Range | G22: Design Year AADT Outside of SPF Development Range | I22: =IF(Input_FacilityType=FacilityType_Label_Rural2Ln,1,IF(Input_FacilityType=FacilityType_Label_RuralMultiLn,2,IF(Input_FacilityType=FacilityType_Label_Urban,IF(Input_1Way2Way=Notes!$A$54,IF(Input_MajorApproachSpeed=Notes!$A$67,7,IF(Input_NumMajorLanes=Notes!$A$60,3,4)),IF(Input_1Way2Way=Notes!$A$55,5,6))))) -> 3 | J22: =IF(Input_NumLegs=Notes!$A$49,"4","3")&"AWSC" -> 4AWSC | K22: =VLOOKUP($J22,IF($I22=7,Range_USA_HS,IF($I22=6,Range_USA_1x1,IF($I22=5,Range_USA_1x2,IF($I22=4,Range_USA_2x2_6P,IF($I22=3,Range_USA_2x2_5F,IF($I22=2,Range_RML, Range_R2L)))))),2,FALSE) -> 0 | L22: =VLOOKUP($J22,IF($I22=7,Range_USA_HS,IF($I22=6,Range_USA_1x1,IF($I22=5,Range_USA_1x2,IF($I22=4,Range_USA_2x2_6P,IF($I22=3,Range_USA_2x2_5F,IF($I22=2,Range_RML, Range_R2L)))))),3,FALSE) -> 12955 | M22: =VLOOKUP($J22,IF($I22=7,Range_USA_HS,IF($I22=6,Range_USA_1x1,IF($I22=5,Range_USA_1x2,IF($I22=4,Range_USA_2x2_6P,IF($I22=3,Range_USA_2x2_5F,IF($I22=2,Range_RML, Range_R2L)))))),4,FALSE) -> 0 | N22: =VLOOKUP($J22,IF($I22=7,Range_USA_HS,IF($I22=6,Range_USA_1x1,IF($I22=5,Range_USA_1x2,IF($I22=4,Range_USA_2x2_6P,IF($I22=3,Range_USA_2x2_5F,IF($I22=2,Range_RML, Range_R2L)))))),5,FALSE) -> 11982 | O22: FALSE | P22: FALSE
A23: 1-Lane Roundabout | B23: Yes | D23: -- | G23: Design Year AADT Outside of SPF Development Range | I23: =IF(Input_FacilityType=FacilityType_Label_Rural2Ln,1,IF(Input_FacilityType=FacilityType_Label_RuralMultiLn,2,IF(Input_FacilityType=FacilityType_Label_Urban,IF(Input_1Way2Way=Notes!$A$54,IF(Input_MajorApproachSpeed=Notes!$A$67,7,IF(Input_NumMajorLanes=Notes!$A$60,3,4)),IF(Input_1Way2Way=Notes!$A$55,5,6))))) -> 3 | J23: =IF(Input_NumLegs=Notes!$A$49,"4","3")&"Leg" -> 4Leg | K23: =VLOOKUP($J23,Range_RAB1,2,FALSE) -> 1000 | L23: =VLOOKUP($J23,Range_RAB1,3,FALSE) -> 19733 | M23: =VLOOKUP($J23,Range_RAB1,4,FALSE) -> 280 | N23: =VLOOKUP($J23,Range_RAB1,5,FALSE) -> 11239 | O23: TRUE | P23: FALSE
A24: 2-Lane Roundabout | B24: Yes | D24: -- | I24: =IF(Input_FacilityType=FacilityType_Label_Rural2Ln,1,IF(Input_FacilityType=FacilityType_Label_RuralMultiLn,2,IF(Input_FacilityType=FacilityType_Label_Urban,IF(Input_1Way2Way=Notes!$A$54,IF(Input_MajorApproachSpeed=Notes!$A$67,7,IF(Input_NumMajorLanes=Notes!$A$60,3,4)),IF(Input_1Way2Way=Notes!$A$55,5,6))))) -> 3 | J24: =IF(Input_NumLegs=Notes!$A$49,"4","3")&"Leg" -> 4Leg | K24: =VLOOKUP($J24,Range_RAB2,2,FALSE) -> 1000 | L24: =VLOOKUP($J24,Range_RAB2,3,FALSE) -> 28333 | M24: =VLOOKUP($J24,Range_RAB2,4,FALSE) -> 390 | N24: =VLOOKUP($J24,Range_RAB2,5,FALSE) -> 19371 | O24: TRUE | P24: TRUE
A25: Displaced Left Turn (DLT) | B25: Yes | D25: Traffic Signal
A26: Median U-Turn (MUT) | B26: Yes | D26: Traffic Signal
A27: Signalized Restricted Crossing U-Turn (RCUT) | B27: Yes | D27: -- | E27: =IF(NOT(ISNUMBER(K27)),"No SPF Available",IF(NOT(O27),"Opening Year AADT Outside of SPF Development Range", IF(NOT(AND(Range_SRCUT_OAADT_Ratio)),"Open Major/Minor AADT Ratio Outside of SPF Development Range",""))) ->  | G27: =IF(NOT(ISNUMBER(M27)),"No SPF",IF(Input_AnalysisYearType=Label_AnalysisYearType_OpenAndDesign,IF(NOT(P27),"Design Year AADT Outside of SPF Development Range",IF(NOT(AND(Range_SRCUT_DAADT_Ratio)),"Design Major/Minor AADT Ratio Outside of SPF Development Range","")),"")) ->  | K27: =Definitions!P21 -> 9700 | L27: =Definitions!Q21 -> 65500 | M27: =Definitions!R21 -> 1000 | N27: =Definitions!S21 -> 18218 | O27: =AND(Input_Base_OAADTMajor>=K27,Input_Base_OAADTMajor<=L27,Input_Base_OAADTMinor>=M27,Input_Base_OAADTMinor<=N27) -> TRUE | P27: =AND(Input_Base_DAADTMajor>=K27,Input_Base_DAADTMajor<=L27,Input_Base_DAADTMinor>=M27,Input_Base_DAADTMinor<=N27) -> TRUE
A28: Unsignalized Restricted Crossing U-Turn (RCUT) | B28: Yes | D28: -- | E28: =IF(NOT(ISNUMBER(K28)),"No SPF Available",IF(O28,"","Opening Year AADT Outside of SPF Development Range")) ->  | G28: =IF(NOT(ISNUMBER(M28)),"No SPF",IF(Input_AnalysisYearType=Label_AnalysisYearType_OpenAndDesign,IF(P28,"","Design Year AADT Outside of SPF Development Range"),"")) ->  | K28: =Definitions!P22 -> 2950 | L28: =Definitions!Q22 -> 47722 | M28: =Definitions!R22 -> 40 | N28: =Definitions!S22 -> 11500 | O28: =AND(Input_Base_OAADTMajor>=K28,Input_Base_OAADTMajor<=L28,Input_Base_OAADTMinor>=M28,Input_Base_OAADTMinor<=N28) -> TRUE | P28: =AND(Input_Base_DAADTMajor>=K28,Input_Base_DAADTMajor<=L28,Input_Base_DAADTMinor>=M28,Input_Base_DAADTMinor<=N28) -> TRUE
A29: Signalized Thru-Cut* | B29: No | D29: -- | E29: *SSI Only, No Crash Prediction Available
A30: Unsignalized Thru-Cut* | B30: No | D30: -- | E30: *SSI Only, No Crash Prediction Available
A31: Bowtie* | B31: No | D31: -- | E31: *SSI Only, No Crash Prediction Available
A32: Continuous Green-T Intersection | B32: No | D32: Traffic Signal
A33: Jughandle | B33: Yes | D33: Traffic Signal
A34: Other 1* | B34: No | D34: Traffic Signal | E34: *Please Select
A35: Other 2* | B35: No | D35: Minor Road Stop | E35: *Please Select
C36: =IF(OR(Input_Include_R2="Yes",Input_Include_DLT="Yes",Input_Include_MUT="Yes",Input_Include_SRCUT="Yes",Input_Include_URCUT="Yes",Input_Include_SigThruCut="Yes",Input_Include_UnsigThruCut="Yes",Input_Include_CGT="Yes"),"TRUE","FALSE") -> TRUE
A45: Freeway Orientation | D45: North-South
A46: Area Type | D46: Urban
A48: Opening Year AADT | D48: =IF($D$45=Notes!$J$26,"NB","EB") & " Ramp Terminal" -> NB Ramp Terminal | E48: =IF($D$45=Notes!$J$26,"SB","WB") & " Ramp Terminal" -> SB Ramp Terminal
A49: Crossroad - Inside Leg | D49: 12000 | E49: 15000
A50: Crossroad - Outside Leg | D50: 10000 | E50: 15000
A51: Exit Ramp | D51: 4500 | E51: 4500
A52: Entrance Ramp | D52: 3000 | E52: 3000
A53: Design Year AADT | D53: =IF($D$45=Notes!$J$26,"NB","EB") & " Ramp Terminal" -> NB Ramp Terminal | E53: =IF($D$45=Notes!$J$26,"SB","WB") & " Ramp Terminal" -> SB Ramp Terminal
A54: Crossroad - Inside Leg | D54: 30000 | E54: 30000
A55: Crossroad - Outside Leg | D55: 31000 | E55: 29000
A56: Exit Ramp | D56: 5000 | E56: 5000
A57: Entrance Ramp | D57: 3250 | E57: 3250
A60: Ramp Terminal Intersections | K60: XRD IN | M60: XRD Out | O60: EXIT | Q60: ENTR | S60: Terminal 1 | U60: Terminal 2 | W60: AADT Within Range?
A61: Traffic Control (both intersections) | B61: Include | D61: Base Intersection | K61: Min | L61: Max | M61: Min | N61: Max | O61: Min | P61: Max | Q61: Min | R61: Max | S61: Opening | T61: Design | U61: Opening | V61: Design | W61: Opening | X61: Design
A62: Signalized Diamond | B62: Yes | D62: -- | E62: =IF(NOT(ISNUMBER(K62)),"No SPF Available",IF(OR(NOT(IsChecked_RTI_D4TS),W62),"","Opening Year AADT Outside of SPF Development Range")) -> Opening Year AADT Outside of SPF Development Range | G62: =IF(NOT(ISNUMBER(L62)),"No SPF Available",IF(OR(NOT(Input_AnalysisYearType=Label_AnalysisYearType_OpenAndDesign),NOT(IsChecked_RTI_D4TS),X62),"","Design Year AADT Outside of SPF Development Range")) ->  | K62: =Definitions!E43 -> 14000 | L62: =Definitions!F43 -> 60000 | M62: =Definitions!E45 -> 14000 | N62: =Definitions!F45 -> 60000 | O62: =Definitions!E47 -> 0 | P62: =Definitions!F47 -> 31000 | Q62: =Definitions!E49 -> 0 | R62: =Definitions!F49 -> 31000 | S62: =AND(Input_RTI_OAADTIn1>=K62,Input_RTI_OAADTIn1<=L62,Input_RTI_OAADTOut1>=M62,Input_RTI_OAADTOut1<=N62,Input_RTI_OAADTEx1>=O62,Input_RTI_OAADTEx1<=P62,Input_RTI_OAADTEn1>=Q62,Input_RTI_OAADTEn1<=R62) -> FALSE | T62: =AND(Input_RTI_DAADTIn1>=K62,Input_RTI_DAADTIn1<=L62,Input_RTI_DAADTOut1>=M62,Input_RTI_DAADTOut1<=N62,Input_RTI_DAADTEx1>=O62,Input_RTI_DAADTEx1<=P62,Input_RTI_DAADTEn1>=Q62,Input_RTI_DAADTEn1<=R62) -> TRUE | U62: =AND(Input_RTI_OAADTIn2>=K62,Input_RTI_OAADTIn2<=L62,Input_RTI_OAADTOut2>=M62,Input_RTI_OAADTOut2<=N62,Input_RTI_OAADTEx2>=O62,Input_RTI_OAADTEx2<=P62,Input_RTI_OAADTEn2>=Q62,Input_RTI_OAADTEn2<=R62) -> TRUE | V62: =AND(Input_RTI_DAADTIn2>=K62,Input_RTI_DAADTIn2<=L62,Input_RTI_DAADTOut2>=M62,Input_RTI_DAADTOut2<=N62,Input_RTI_DAADTEx2>=O62,Input_RTI_DAADTEx2<=P62,Input_RTI_DAADTEn2>=Q62,Input_RTI_DAADTEn2<=R62) -> TRUE | W62: =AND(S62,U62) -> FALSE | X62: =AND(T62,V62) -> TRUE
A63: Signalized Diamond (Alt) | B63: Yes | D63: -- | E63: =IF(NOT(ISNUMBER(K63)),"No SPF Available",IF(OR(NOT(IsChecked_RTI_D4TSA),W63),"","Opening Year AADT Outside of SPF Development Range")) -> Opening Year AADT Outside of SPF Development Range | G63: =IF(NOT(ISNUMBER(L63)),"No SPF Available",IF(OR(NOT(Input_AnalysisYearType=Label_AnalysisYearType_OpenAndDesign),NOT(IsChecked_RTI_D4TSA),X63),"","Design Year AADT Outside of SPF Development Range")) ->  | K63: =K62 -> 14000 | L63: =L62 -> 60000 | M63: 14000 | N63: 60000 | O63: 0 | P63: 31000 | Q63: 0 | R63: 31000 | S63: =S62 -> FALSE | T63: =T62 -> TRUE | U63: =U62 -> TRUE | V63: =V62 -> TRUE | W63: =W62 -> FALSE | X63: =X62 -> TRUE
A64: Diverging Diamond | B64: No | D64: --
A65: Single-Point Diamond | B65: Yes | D65: -- | E65: =IF(NOT(ISNUMBER(K65)),"No SPF Available",IF(OR(NOT(IsChecked_RTI_D4MS),W65),"","Opening Year AADT Outside of SPF Development Range")) ->  | G65: =IF(NOT(ISNUMBER(L65)),"No SPF Available",IF(OR(NOT(Input_AnalysisYearType=Label_AnalysisYearType_OpenAndDesign),NOT(IsChecked_RTI_D4MS),X65),"","Design Year AADT Outside of SPF Development Range")) ->  | K65: 14000 | L65: 70000 | M65: 14000 | N65: 70000 | O65: 14000 | P65: 80000 | Q65: 14000 | R65: 80000 | S65: *14k<=Xrd<=70k, 14k<=sum all ramp <=80000 | W65: =AND(MAX(D50:E50) >= 14000, MAX(D50:E50) <= 70000, SUM(D51:E52)>=14000, SUM(D51:E52)<=80000) -> TRUE | X65: =AND(MAX(D55:E55) <= 70000,SUM(D56:E57)<=80000) -> TRUE
A66: Unsignalized Diamond | B66: Yes | D66: -- | E66: =IF(NOT(ISNUMBER(K66)),"No SPF Available",IF(OR(NOT(IsChecked_RTI_D4MS),W66),"","Opening Year AADT Outside of SPF Development Range")) -> Opening Year AADT Outside of SPF Development Range | G66: =IF(NOT(ISNUMBER(L66)),"No SPF Available",IF(OR(NOT(Input_AnalysisYearType=Label_AnalysisYearType_OpenAndDesign),NOT(IsChecked_RTI_D4MS),X66),"","Design Year AADT Outside of SPF Development Range")) -> Design Year AADT Outside of SPF Development Range | K66: =Definitions!E42 -> 0 | L66: =Definitions!F42 -> 14000 | M66: =Definitions!E44 -> 0 | N66: =Definitions!F44 -> 14000 | O66: =Definitions!E46 -> 0 | P66: =Definitions!F46 -> 10000 | Q66: =Definitions!E48 -> 0 | R66: =Definitions!F48 -> 10000 | S66: =AND(Input_RTI_OAADTIn1>=K66,Input_RTI_OAADTIn1<=L66,Input_RTI_OAADTOut1>=M66,Input_RTI_OAADTOut1<=N66,Input_RTI_OAADTEx1>=O66,Input_RTI_OAADTEx1<=P66,Input_RTI_OAADTEn1>=Q66,Input_RTI_OAADTEn1<=R66) -> TRUE | T66: =AND(Input_RTI_DAADTIn1>=K66,Input_RTI_DAADTIn1<=L66,Input_RTI_DAADTOut1>=M66,Input_RTI_DAADTOut1<=N66,Input_RTI_DAADTEx1>=O66,Input_RTI_DAADTEx1<=P66,Input_RTI_DAADTEn1>=Q66,Input_RTI_DAADTEn1<=R66) -> FALSE | U66: =AND(Input_RTI_OAADTIn2>=K66,Input_RTI_OAADTIn2<=L66,Input_RTI_OAADTOut2>=M66,Input_RTI_OAADTOut2<=N66,Input_RTI_OAADTEx2>=O66,Input_RTI_OAADTEx2<=P66,Input_RTI_OAADTEn2>=Q66,Input_RTI_OAADTEn2<=R66) -> FALSE | V66: =AND(Input_RTI_DAADTIn2>=K66,Input_RTI_DAADTIn2<=L66,Input_RTI_DAADTOut2>=M66,Input_RTI_DAADTOut2<=N66,Input_RTI_DAADTEx2>=O66,Input_RTI_DAADTEx2<=P66,Input_RTI_DAADTEn2>=Q66,Input_RTI_DAADTEn2<=R66) -> FALSE | W66: =AND(S66,U66) -> FALSE | X66: FALSE
A67: 1-lane Roundabout | B67: Yes | D67: -- | E67: =IF(NOT(ISNUMBER(K67)),"No SPF Available",IF(OR(NOT(IsChecked_RTI_D4MS),W67),"","Opening Year AADT Outside of SPF Development Range")) ->  | G67: =IF(NOT(ISNUMBER(L67)),"No SPF Available",IF(OR(NOT(Input_AnalysisYearType=Label_AnalysisYearType_OpenAndDesign),NOT(IsChecked_RTI_D4MS),X67),"","Design Year AADT Outside of SPF Development Range")) -> Design Year AADT Outside of SPF Development Range | K67: =Definitions!$P$5 -> 1000 | L67: =Definitions!$Q$5 -> 19733 | M67: =Definitions!$P$5 -> 1000 | N67: =Definitions!$Q$5 -> 19733 | O67: =Definitions!$R$5 -> 280 | P67: =Definitions!$S$5 -> 11239 | Q67: =Definitions!$R$5 -> 280 | R67: =Definitions!$S$5 -> 11239 | S67: =AND(Input_RTI_OAADTIn1>=K67,Input_RTI_OAADTIn1<=L67,Input_RTI_OAADTOut1>=M67,Input_RTI_OAADTOut1<=N67,Input_RTI_OAADTEx1>=O67,Input_RTI_OAADTEx1<=P67,Input_RTI_OAADTEn1>=Q67,Input_RTI_OAADTEn1<=R67) -> TRUE | T67: =AND(Input_RTI_DAADTIn1>=K67,Input_RTI_DAADTIn1<=L67,Input_RTI_DAADTOut1>=M67,Input_RTI_DAADTOut1<=N67,Input_RTI_DAADTEx1>=O67,Input_RTI_DAADTEx1<=P67,Input_RTI_DAADTEn1>=Q67,Input_RTI_DAADTEn1<=R67) -> FALSE | U67: =AND(Input_RTI_OAADTIn2>=K67,Input_RTI_OAADTIn2<=L67,Input_RTI_OAADTOut2>=M67,Input_RTI_OAADTOut2<=N67,Input_RTI_OAADTEx2>=O67,Input_RTI_OAADTEx2<=P67,Input_RTI_OAADTEn2>=Q67,Input_RTI_OAADTEn2<=R67) -> TRUE | V67: =AND(Input_RTI_DAADTIn2>=K67,Input_RTI_DAADTIn2<=L67,Input_RTI_DAADTOut2>=M67,Input_RTI_DAADTOut2<=N67,Input_RTI_DAADTEx2>=O67,Input_RTI_DAADTEx2<=P67,Input_RTI_DAADTEn2>=Q67,Input_RTI_DAADTEn2<=R67) -> FALSE | W67: TRUE | X67: FALSE
A68: 2-lane Roundabout | B68: Yes | D68: -- | E68: =IF(NOT(ISNUMBER(K68)),"No SPF Available",IF(OR(NOT(IsChecked_RTI_D4MS),W68),"","Opening Year AADT Outside of SPF Development Range")) ->  | G68: =IF(NOT(ISNUMBER(L68)),"No SPF Available",IF(OR(NOT(Input_AnalysisYearType=Label_AnalysisYearType_OpenAndDesign),NOT(IsChecked_RTI_D4MS),X68),"","Design Year AADT Outside of SPF Development Range")) -> Design Year AADT Outside of SPF Development Range | K68: =Definitions!$P$8 -> 1000 | L68: =Definitions!$Q$8 -> 28333 | M68: =Definitions!$P$8 -> 1000 | N68: =Definitions!$Q$8 -> 28333 | O68: =Definitions!$R$8 -> 390 | P68: =Definitions!$S$8 -> 19371 | Q68: =Definitions!$R$8 -> 390 | R68: =Definitions!$S$8 -> 19371 | S68: =AND(Input_RTI_OAADTIn1>=K68,Input_RTI_OAADTIn1<=L68,Input_RTI_OAADTOut1>=M68,Input_RTI_OAADTOut1<=N68,Input_RTI_OAADTEx1>=O68,Input_RTI_OAADTEx1<=P68,Input_RTI_OAADTEn1>=Q68,Input_RTI_OAADTEn1<=R68) -> TRUE | T68: =AND(Input_RTI_DAADTIn1>=K68,Input_RTI_DAADTIn1<=L68,Input_RTI_DAADTOut1>=M68,Input_RTI_DAADTOut1<=N68,Input_RTI_DAADTEx1>=O68,Input_RTI_DAADTEx1<=P68,Input_RTI_DAADTEn1>=Q68,Input_RTI_DAADTEn1<=R68) -> FALSE | U68: =AND(Input_RTI_OAADTIn2>=K68,Input_RTI_OAADTIn2<=L68,Input_RTI_OAADTOut2>=M68,Input_RTI_OAADTOut2<=N68,Input_RTI_OAADTEx2>=O68,Input_RTI_OAADTEx2<=P68,Input_RTI_OAADTEn2>=Q68,Input_RTI_OAADTEn2<=R68) -> TRUE | V68: =AND(Input_RTI_DAADTIn2>=K68,Input_RTI_DAADTIn2<=L68,Input_RTI_DAADTOut2>=M68,Input_RTI_DAADTOut2<=N68,Input_RTI_DAADTEx2>=O68,Input_RTI_DAADTEx2<=P68,Input_RTI_DAADTEn2>=Q68,Input_RTI_DAADTEn2<=R68) -> FALSE | W68: TRUE | X68: FALSE
A69: Signalized Tight Diamond Interchange | B69: Yes | D69: -- | K69: 14000 | L69: 51000 | M69: 14000 | N69: 51000 | O69: 14000 | P69: 74000 | Q69: 14000 | R69: 74000 | S69: *14k<=Xrd<=51k, 14k<=sum all ramp <=74k | W69: =AND(MAX(D54:E54) >= 14000, MAX(D54:E54) <= 51000, SUM(D55:E56)>=14000, SUM(D55:E56)<=74000) -> TRUE | X69: =AND(MAX(D59:E59) <= 51000,SUM(D60:E61)<=74000) -> TRUE
A70: Other 1 | B70: No | D70: =A62 -> Signalized Diamond | E70: *Please Select
A71: Other 2 | B71: No | D71: Unsignalized Diamond | E71: *Please Select

Sheet At-Grade Inputs
A1: At-Grade Intersection Inputs
A2: Provide inputs needed to compute and apply Part C CMFs.
D4: Control Strategy
A5: Input | D5: =Label_AGI_TrafficSignal -> Traffic Signal | F5: =Label_AGI_TrafficSignal&" (Alt)" -> Traffic Signal (Alt) | H5: =Label_AGI_MinorStop -> Minor Road Stop | J5: =Label_AGI_AllStop -> All Way Stop | L5: =Label_AGI_1LnRdbt -> 1-lane Roundabout | N5: =Label_AGI_2LnRdbt -> 2-lane Roundabout | P5: =Label_AGI_DLT -> Displaced Left Turn (DLT) | R5: =Label_AGI_MUT -> Median U-Turn (MUT) | T5: =Label_AGI_RCUTSig -> Signalized RCUT | V5: =Label_AGI_RCUTUnsig -> Unsignalized RCUT | X5: Signalized Thru-Cut | Z5: Unsignalized Thru-Cut | AB5: Bowtie | AD5: =Label_AGI_GreenT -> Continuous Green-T Intersection | AF5: =Label_AGI_Jughandle -> Jughandle
A7: Opening Year Major Road AADT | B7: Optional AADT Overrides | D7: =Input_Base_OAADTMajor -> 18000 | F7: =Input_Base_OAADTMajor -> 18000 | H7: =Input_Base_OAADTMajor -> 18000 | J7: =Input_Base_OAADTMajor -> 18000 | L7: =Input_Base_OAADTMajor -> 18000 | N7: =Input_Base_OAADTMajor -> 18000 | P7: =Input_Base_OAADTMajor -> 18000 | R7: =Input_Base_OAADTMajor -> 18000 | T7: =Input_Base_OAADTMajor -> 18000 | V7: =Input_Base_OAADTMajor -> 18000 | X7: =Input_Base_OAADTMajor -> 18000 | Z7: =Input_Base_OAADTMajor -> 18000 | AB7: =Input_Base_OAADTMajor -> 18000 | AD7: =Input_Base_OAADTMajor -> 18000 | AF7: =Input_Base_OAADTMajor -> 18000 | AH7: All strategies will have the same AADT as the Base Conditions unless overridden by user.
A8: Opening Year Minor Road AADT | D8: =Input_Base_OAADTMinor -> 8000 | F8: =Input_Base_OAADTMinor -> 8000 | H8: =Input_Base_OAADTMinor -> 8000 | J8: =Input_Base_OAADTMinor -> 8000 | L8: =Input_Base_OAADTMinor -> 8000 | N8: =Input_Base_OAADTMinor -> 8000 | P8: =Input_Base_OAADTMinor -> 8000 | R8: =Input_Base_OAADTMinor -> 8000 | T8: =Input_Base_OAADTMinor -> 8000 | V8: =Input_Base_OAADTMinor -> 8000 | X8: =Input_Base_OAADTMinor -> 8000 | Z8: =Input_Base_OAADTMinor -> 8000 | AB8: =Input_Base_OAADTMinor -> 8000 | AD8: =Input_Base_OAADTMinor -> 8000 | AF8: =Input_Base_OAADTMinor -> 8000
A9: Design Year Major Road AADT | D9: =Input_Base_DAADTMajor -> 20000 | F9: =Input_Base_DAADTMajor -> 20000 | H9: =Input_Base_DAADTMajor -> 20000 | J9: =Input_Base_DAADTMajor -> 20000 | L9: =Input_Base_DAADTMajor -> 20000 | N9: =Input_Base_DAADTMajor -> 20000 | P9: =Input_Base_DAADTMajor -> 20000 | R9: =Input_Base_DAADTMajor -> 20000 | T9: =Input_Base_DAADTMajor -> 20000 | V9: =Input_Base_DAADTMajor -> 20000 | X9: =Input_Base_DAADTMajor -> 20000 | Z9: =Input_Base_DAADTMajor -> 20000 | AB9: =Input_Base_DAADTMajor -> 20000 | AD9: =Input_Base_DAADTMajor -> 20000 | AF9: =Input_Base_DAADTMajor -> 20000
A10: Design Year Minor Road AADT | D10: =Input_Base_DAADTMinor -> 10000 | F10: =Input_Base_DAADTMinor -> 10000 | H10: =Input_Base_DAADTMinor -> 10000 | J10: =Input_Base_DAADTMinor -> 10000 | L10: =Input_Base_DAADTMinor -> 10000 | N10: =Input_Base_DAADTMinor -> 10000 | P10: =Input_Base_DAADTMinor -> 10000 | R10: =Input_Base_DAADTMinor -> 10000 | T10: =Input_Base_DAADTMinor -> 10000 | V10: =Input_Base_DAADTMinor -> 10000 | X10: =Input_Base_DAADTMinor -> 10000 | Z10: =Input_Base_DAADTMinor -> 10000 | AB10: =Input_Base_DAADTMinor -> 10000 | AD10: =Input_Base_DAADTMinor -> 10000 | AF10: =Input_Base_DAADTMinor -> 10000
A11: Number of Approaches with Left-Turn Lanes | B11: Additional Required Control Strategy Inputs | D11: 0 | F11: 4 | J11: 0 | AH11: Do not include stop controlled approaches for minor stop
A12: Number of Approaches with Right-Turn Lanes | D12: 0 | F12: 0 | J12: 0
A13: Number of Uncontrolled Approaches with Left-Turn Lanes | H13: 0
A14: Number of Uncontrolled Approaches with Right-Turn Lanes | H14: 0
A15: Keep default values below here for planning-level analysis, override with actual values for full HSM Analysis
B16: Part C CMFS Optional For Stage 1 ICE, Required for Stage 2 ICE
A17: Skew Angle | B17: A yellow cell indicates the value may be used in the SPF computation | D17: N/A | F17: N/A | H17: 0 | J17: N/A | L17: N/A | N17: N/A | P17: CMF - No Inputs Required | R17: CMF - No Inputs Required | T17: Scroll Down for Signalized RCUT SPF Inputs | V17: Scroll Down for Unsignalized RCUT SPF Inputs | X17: CMF - No Inputs Required | Z17: CMF - No Inputs Required | AB17: CMF - No Inputs Required | AD17: CMF - No Inputs Required | AF17: CMF - No Inputs Required | AH17: All yellow cells will be automatically populated by a macro. If users want to do a planning-level analysis, they can leave the automatic inputs as-is
A18: Lighting Present | D18: Yes | F18: Yes | H18: Yes | J18: Yes
A19: # of Approaches Permissive LT Signal Phasing | D19: 0 | F19: 0 | H19: N/A | J19: N/A | L19: N/A | N19: N/A
A20: # of Approaches Perm/Prot LT Signal Phasing | D20: 0 | F20: 0
A21: # of Approaches Protected LT Signal Phasing | D21: 0 | F21: 0
A22: Number of Approaches with Right-Turn-on-Red Prohibited | D22: 0 | F22: 0 | H22: N/A | J22: N/A | L22: N/A | N22: N/A
A23: Red Light Cameras Present | D23: No | F23: No | H23: N/A | J23: N/A | L23: N/A | N23: N/A
A24: Number of Major Street Through Lanes | D24: 0 | F24: 0 | H24: N/A | J24: N/A | L24: N/A | N24: N/A
A25: Number of Minor Street Lanes | D25: 0 | F25: 0
A26: # of Major St Approaches w/ Right-Turn Channelization | D26: 0 | F26: 0 | H26: N/A | J26: N/A | L26: N/A | N26: N/A
A27: Number of Approaches with U-Turn Prohibited | D27: 0 | F27: 0 | H27: N/A | J27: N/A | L27: N/A | N27: N/A
A28: Pedestrian Volume by Activity Level | D28: Low (50) | F28: Low (50)
A29: User Specified Sum of all daily pedestrian crossing volumes | D29: 50 | F29: 50 | H29: N/A | J29: N/A | L29: N/A | N29: N/A
A30: Max # of Lanes Crossed by Pedestrians | D30: 5 | F30: 5 | H30: N/A | J30: N/A | L30: N/A | N30: N/A
A31: Number of Bus Stops within 1000' of Intersection | D31: 0 | F31: 0 | H31: =Input_AGI_NumBusStops -> 0 | J31: =Input_AGI_NumBusStops -> 0 | L31: =Input_AGI_NumBusStops -> 0 | N31: =Input_AGI_NumBusStops -> 0
A32: Schools within 1000' of intersection | D32: No | F32: No | H32: =Input_AGI_HasSchool -> No | J32: =Input_AGI_HasSchool -> No | L32: =Input_AGI_HasSchool -> No | N32: =Input_AGI_HasSchool -> No
A33: Number of Alcohol Sales Establishments within 1000' of Intersection | D33: 0 | F33: 0 | H33: =Input_AGI_NumABC -> 0 | J33: =Input_AGI_NumABC -> 0 | L33: =Input_AGI_NumABC -> 0 | N33: =Input_AGI_NumABC -> 0
B34: Roundabout CMF Inputs
A35: Inscribed Circle Diameter (ft) | L35: 130 | N35: 125
A36: Leg 1 (Major Leg #1) | B36: Leg 1 (Major Leg #1)
A37: Opening Year Entering AADT | L37: =('Control Strategy Selection'!D13)*0.5 -> 9000 | N37: =('Control Strategy Selection'!D13)*0.5 -> 9000
A38: Leg has Right-Turn Bypass | L38: No | N38: No
A39: # of Access Points within 250' of Yield Line | L39: 0 | N39: 0
A40: Entering Width (ft) | L40: 29 | N40: 29
A41: # of Entering Lanes | L41: 2 | N41: 2
A42: # of Circulating Lanes | L42: 2 | N42: 2
A43: Leg 2 (Major Leg #2) | B43: Leg 2 (Major Leg #2)
A44: Opening Year Entering AADT | L44: =('Control Strategy Selection'!$D$13)-Input_AGI_R1_AADT_L1 -> 9000 | N44: =('Control Strategy Selection'!$D$13)-Input_AGI_R2_AADT_L1 -> 9000
A45: Leg has Right-Turn Bypass | L45: No | N45: No
A46: # of Access Points within 250' of Yield Line | L46: 0 | N46: 0
A47: Entering Width (ft) | L47: 29 | N47: 29
A48: # of Entering Lanes | L48: 2 | N48: 2
A49: # of Circulating Lanes | L49: 2 | N49: 2
A50: Leg 3 (Minor Leg #1) | B50: Leg 3 (Minor Leg #1)
A51: Opening Year Entering AADT | L51: =('Control Strategy Selection'!D14)*0.5 -> 4000 | N51: =('Control Strategy Selection'!D14)*0.5 -> 4000
A52: Leg has Right-Turn Bypass | L52: No | N52: No
A53: # of Access Points within 250' of Yield Line | L53: 0 | N53: 0
A54: Entering Width (ft) | L54: 29 | N54: 29
A55: # of Entering Lanes | L55: 2 | N55: 2
A56: # of Circulating Lanes | L56: 2 | N56: 2
A57: Leg 4 (Minor Leg #2) | B57: Leg 4 (Minor Leg #2)
A58: Opening Year Entering AADT | L58: =('Control Strategy Selection'!$D$14)-Input_AGI_R1_AADT_L3 -> 4000 | N58: =('Control Strategy Selection'!$D$14)-Input_AGI_R2_AADT_L3 -> 4000
A59: Leg has Right-Turn Bypass | L59: No | N59: No
A60: # of Access Points within 250' of Yield Line | L60: 0 | N60: 0
A61: Entering Width (ft) | L61: 29 | N61: 29
A62: # of Entering Lanes | L62: 2 | N62: 2
A63: # of Circulating Lanes | L63: 2 | N63: 2
T64: Restricted Crossing U-Turn (RCUT) CMF Inputs
A66: # U-Turns | T66: 2 | V66: 2
A67: # of Major Roadway Lanes | T67: 2
A68: # of Minor Roadway Lanes | T68: 2
A69: Total Offset Distance (ft) | T69: 1250 | V69: 1250
A70: Number of Driveways | T70: 4 | V70: 4
A71: Total Deceleration Lane Length (ft) | T71: 750 | V71: 750
A72: Total Acceleration Lane Length (ft) | V72: 750
A73: Number of Left-Turn Lanes From Major Road | T73: 1
A74: Major Road Speed Limit (mph) | T74: <=50
A75: Total Median Width (ft) | T75: 65
A76: Maximum Median Width (ft) | V76: 40

Sheet Ramp Terminal Inputs (hidden)
A1: Ramp Terminal Inputs
A2: Provide inputs needed to compute and apply Part C CMFs.
A3: Alternative | B3: Signalized Diamond | D3: Signalized Diamond (Alt) | F3: Unsignalized Diamond | H3: 1-lane Roundabout | J3: 2-lane Roundabout | L3: Single-Point Diamond | M3: Signalized Tight Diamond
B4: 4 Leg Terminal w/ Diagonal Ramps (D4) | D4: 4 Leg Terminal w/ Diagonal Ramps (D4) | F4: 4 Leg Terminal w/ Diagonal Ramps (D4) | H4: 4 Leg Terminal w/ Diagonal Ramps (D4) | J4: 4 Leg Terminal w/ Diagonal Ramps (D4)
A5: Ramp Terminal | B5: ='Control Strategy Selection'!$D$48 -> NB Ramp Terminal | C5: ='Control Strategy Selection'!$E$48 -> SB Ramp Terminal | D5: ='Control Strategy Selection'!$D$48 -> NB Ramp Terminal | E5: ='Control Strategy Selection'!$E$48 -> SB Ramp Terminal | F5: ='Control Strategy Selection'!$D$48 -> NB Ramp Terminal | G5: ='Control Strategy Selection'!$E$48 -> SB Ramp Terminal | H5: ='Control Strategy Selection'!$D$48 -> NB Ramp Terminal | I5: ='Control Strategy Selection'!$E$48 -> SB Ramp Terminal | J5: ='Control Strategy Selection'!$D$48 -> NB Ramp Terminal | K5: ='Control Strategy Selection'!$E$48 -> SB Ramp Terminal | L5: Both Ramps | M5: Both Ramps
A6: ='Control Strategy Selection'!$A$48:$C$48 & " " & 'Control Strategy Selection'!A49:C49 -> Opening Year AADT Crossroad - Inside Leg | B6: =Input_RTI_OAADTIn1 -> 12000 | C6: =Input_RTI_OAADTIn2 -> 15000 | D6: =Input_RTI_OAADTIn1 -> 12000 | E6: =Input_RTI_OAADTIn2 -> 15000 | F6: =Input_RTI_OAADTIn1 -> 12000 | G6: =Input_RTI_OAADTIn2 -> 15000 | H6: =Input_RTI_OAADTIn1 -> 12000 | I6: =Input_RTI_OAADTIn2 -> 15000 | J6: =Input_RTI_OAADTIn1 -> 12000 | K6: =Input_RTI_OAADTIn2 -> 15000 | L6: -- | M6: --
A7: ='Control Strategy Selection'!$A$48:$C$48 & " " & 'Control Strategy Selection'!A50:C50 -> Opening Year AADT Crossroad - Outside Leg | B7: =Input_RTI_OAADTOut1 -> 10000 | C7: =Input_RTI_OAADTOut2 -> 15000 | D7: =Input_RTI_OAADTOut1 -> 10000 | E7: =Input_RTI_OAADTOut2 -> 15000 | F7: =Input_RTI_OAADTOut1 -> 10000 | G7: =Input_RTI_OAADTOut2 -> 15000 | H7: =Input_RTI_OAADTOut1 -> 10000 | I7: =Input_RTI_OAADTOut2 -> 15000 | J7: =Input_RTI_OAADTOut1 -> 10000 | K7: =Input_RTI_OAADTOut2 -> 15000 | L7: =MAX(Input_RTI_OAADTOut1, Input_RTI_OAADTOut2) -> 15000 | M7: =MAX(Input_RTI_OAADTOut1, Input_RTI_OAADTOut2) -> 15000
A8: ='Control Strategy Selection'!$A$48:$C$48 & " " & 'Control Strategy Selection'!A51:C51 -> Opening Year AADT Exit Ramp | B8: =Input_RTI_OAADTEx1 -> 4500 | C8: =Input_RTI_OAADTEx2 -> 4500 | D8: =Input_RTI_OAADTEx1 -> 4500 | E8: =Input_RTI_OAADTEx2 -> 4500 | F8: =Input_RTI_OAADTEx1 -> 4500 | G8: =Input_RTI_OAADTEx2 -> 4500 | H8: =Input_RTI_OAADTEx1 -> 4500 | I8: =Input_RTI_OAADTEx2 -> 4500 | J8: =Input_RTI_OAADTEx1 -> 4500 | K8: =Input_RTI_OAADTEx2 -> 4500 | L8: =Input_RTI_OAADTEx1 + Input_RTI_OAADTEx2 -> 9000 | M8: =Input_RTI_OAADTEx1 + Input_RTI_OAADTEx2 -> 9000
A9: ='Control Strategy Selection'!$A$48:$C$48 & " " & 'Control Strategy Selection'!A52:C52 -> Opening Year AADT Entrance Ramp | B9: =Input_RTI_OAADTEn1 -> 3000 | C9: =Input_RTI_OAADTEn2 -> 3000 | D9: =Input_RTI_OAADTEn1 -> 3000 | E9: =Input_RTI_OAADTEn2 -> 3000 | F9: =Input_RTI_OAADTEn1 -> 3000 | G9: =Input_RTI_OAADTEn2 -> 3000 | H9: =Input_RTI_OAADTEn1 -> 3000 | I9: =Input_RTI_OAADTEn2 -> 3000 | J9: =Input_RTI_OAADTEn1 -> 3000 | K9: =Input_RTI_OAADTEn2 -> 3000 | L9: =Input_RTI_OAADTEn1 + Input_RTI_OAADTEn2 -> 6000 | M9: =Input_RTI_OAADTEn1 + Input_RTI_OAADTEn2 -> 6000
A10: ='Control Strategy Selection'!$A$53:$C$53 & " " & 'Control Strategy Selection'!A54:C54 -> Design Year AADT Crossroad - Inside Leg | B10: =Input_RTI_DAADTIn1 -> 30000 | C10: =Input_RTI_DAADTIn2 -> 30000 | D10: =Input_RTI_DAADTIn1 -> 30000 | E10: =Input_RTI_DAADTIn2 -> 30000 | F10: =Input_RTI_DAADTIn1 -> 30000 | G10: =Input_RTI_DAADTIn2 -> 30000 | H10: =Input_RTI_DAADTIn1 -> 30000 | I10: =Input_RTI_DAADTIn2 -> 30000 | J10: =Input_RTI_DAADTIn1 -> 30000 | K10: =Input_RTI_DAADTIn2 -> 30000 | L10: -- | M10: --
A11: ='Control Strategy Selection'!$A$53:$C$53 & " " & 'Control Strategy Selection'!A55:C55 -> Design Year AADT Crossroad - Outside Leg | B11: =Input_RTI_DAADTOut1 -> 31000 | C11: =Input_RTI_DAADTOut2 -> 29000 | D11: =Input_RTI_DAADTOut1 -> 31000 | E11: =Input_RTI_DAADTOut2 -> 29000 | F11: =Input_RTI_DAADTOut1 -> 31000 | G11: =Input_RTI_DAADTOut2 -> 29000 | H11: =Input_RTI_DAADTOut1 -> 31000 | I11: =Input_RTI_DAADTOut2 -> 29000 | J11: =Input_RTI_DAADTOut1 -> 31000 | K11: =Input_RTI_DAADTOut2 -> 29000 | L11: =MAX(Input_RTI_DAADTOut1, Input_RTI_DAADTOut2) -> 31000 | M11: =MAX(Input_RTI_DAADTOut1, Input_RTI_DAADTOut2) -> 31000
A12: ='Control Strategy Selection'!$A$53:$C$53 & " " & 'Control Strategy Selection'!A56:C56 -> Design Year AADT Exit Ramp | B12: =Input_RTI_DAADTEx1 -> 5000 | C12: =Input_RTI_DAADTEx2 -> 5000 | D12: =Input_RTI_DAADTEx1 -> 5000 | E12: =Input_RTI_DAADTEx2 -> 5000 | F12: =Input_RTI_DAADTEx1 -> 5000 | G12: =Input_RTI_DAADTEx2 -> 5000 | H12: =Input_RTI_DAADTEx1 -> 5000 | I12: =Input_RTI_DAADTEx2 -> 5000 | J12: =Input_RTI_DAADTEx1 -> 5000 | K12: =Input_RTI_DAADTEx2 -> 5000 | L12: =Input_RTI_DAADTEx1 + Input_RTI_DAADTEx2 -> 10000 | M12: =Input_RTI_DAADTEx1 + Input_RTI_DAADTEx2 -> 10000
A13: ='Control Strategy Selection'!$A$53:$C$53 & " " & 'Control Strategy Selection'!A57:C57 -> Design Year AADT Entrance Ramp | B13: =Input_RTI_DAADTEn1 -> 3250 | C13: =Input_RTI_DAADTEn2 -> 3250 | D13: =Input_RTI_DAADTEn1 -> 3250 | E13: =Input_RTI_DAADTEn2 -> 3250 | F13: =Input_RTI_DAADTEn1 -> 3250 | G13: =Input_RTI_DAADTEn2 -> 3250 | H13: =Input_RTI_DAADTEn1 -> 3250 | I13: =Input_RTI_DAADTEn2 -> 3250 | J13: =Input_RTI_DAADTEn1 -> 3250 | K13: =Input_RTI_DAADTEn2 -> 3250 | L13: =Input_RTI_DAADTEn1 + Input_RTI_DAADTEn2 -> 6500 | M13: =Input_RTI_DAADTEn1 + Input_RTI_DAADTEn2 -> 6500
A14: Area Type | B14: =Input_RTI_AreaType -> Urban | D14: =Input_RTI_AreaType -> Urban | F14: =Input_RTI_AreaType -> Urban | H14: =Input_RTI_AreaType -> Urban | J14: =Input_RTI_AreaType -> Urban | L14: =Input_RTI_AreaType -> Urban
A15: Number of Crossroad Lanes | B15: 4 | C15: 4 | D15: 4 | E15: 4 | F15: 4 | G15: 4 | H15: N/A | I15: N/A | J15: N/A | K15: N/A | L15: N/A | M15: N/A
A16: Number of through traffic lanes that oppose the left-turn movement on the inside crossroad leg | B16: 2 | C16: 2 | D16: 2 | E16: 2 | F16: N/A | G16: N/A | H16: N/A | I16: N/A | J16: N/A | K16: N/A | L16: N/A | M16: N/A
A17: Number of through traffic lanes that oppose the left-turn movement on the outside crossroad leg | B17: =Input_D4TS_NLxst1-Input_D4TS_NLTOIn1 -> 2 | C17: =Input_D4TS_NLxst2-Input_D4TS_NLTOIn2 -> 2 | D17: =Input_D4TSA_NLxst1-Input_D4TSA_NLTOIn1 -> 2 | E17: =Input_D4TSA_NLxst2-Input_D4TSA_NLTOIn2 -> 2 | F17: N/A | G17: N/A | H17: N/A | I17: N/A | J17: N/A | K17: N/A | L17: N/A | M17: N/A
A18: Number of free-flow right turns from exit ramp to crossroad | B18: N/A | C18: N/A | D18: N/A | E18: N/A | F18: N/A | G18: N/A | H18: N/A | I18: N/A | J18: N/A | K18: N/A | L18: 0 | M18: N/A
A24: CMF Inputs | B24: Part C CMFs Optional For Stage 1 ICE, Required for Stage 2 ICE
A25: Exit Ramp Skew Angle | B25: N/A | C25: N/A | D25: N/A | E25: N/A | F25: 0 | G25: 0
A26: Is a non-ramp public street leg present? | B26: No | C26: No | D26: No | E26: No | F26: N/A | G26: N/A
A27: Exit ramp right turn control | B27: Signal/Stop/yield-controlled | C27: Signal/Stop/yield-controlled | D27: Signal/Stop/yield-controlled | E27: Signal/Stop/yield-controlled | F27: Signal/Stop/yield-controlled | G27: Signal/Stop/yield-controlled
A28: Effective number of lanes serving exit ramp | B28: 1 | C28: 0.5 | D28: 0.5 | E28: 1.5 | F28: 2 | G28: 2.5
A29: Number of unsignalized driveways on the outside crossroad leg within 250' of the interchange | B29: 0 | C29: 0 | D29: 0 | E29: 0 | F29: N/A | G29: N/A
A30: Distance (mi) to the adjacent ramp terminal | B30: 0.1 | C30: 0.1 | D30: 0.1 | E30: 0.1 | F30: 0.1 | G30: 0.1
A31: Distance (mi) to the next public street intersection on the outside crossroad leg | B31: 0.15 | C31: 0.15 | D31: 0.15 | E31: 0.15 | F31: 0.15 | G31: 0.15
A32: # of unsignalized public street approaches on the outside crossroad leg within 250' (<0.05 mi) of the interchange | B32: 1 | C32: 1 | D32: 1 | E32: 1 | F32: 1 | G32: 1
A33: Median Width (ft) | B33: 12 | C33: 12 | D33: 12 | E33: 12 | F33: 12 | G33: 12
A34: Presence of right-turn lane/bay on "in" leg | B34: N/A | C34: N/A | D34: N/A | E34: N/A | F34: N/A | G34: N/A
A35: Presence of right-turn lane/bay on outside crossroad leg | B35: Yes | C35: Yes | D35: Yes | E35: Yes | F35: Yes | G35: Yes
A36: Presence of left-turn lane/bay on inside crossroad leg | B36: Yes | C36: Yes | D36: Yes | E36: Yes | F36: Yes | G36: Yes
A37: Left-turn lane/bay Width for inside crossroad leg | B37: 12 | C37: 12 | D37: 12 | E37: 12 | F37: 12 | G37: 12
A38: Presence of left-turn lane/bay on outside crossroad leg | B38: N/A | C38: N/A | D38: N/A | E38: N/A | F38: N/A | G38: N/A
A39: Left-turn lane/bay Width for outside crossroad leg | B39: 0 | C39: 0 | D39: 0 | E39: 0 | F39: 0 | G39: 0
A40: Protected Left-turn operation for inside crossroad leg | B40: No | C40: No | D40: No | E40: No | F40: N/A | G40: N/A
A41: Protected Left-turn operation for outside crossroad leg | B41: N/A | C41: N/A | D41: N/A | E41: N/A | F41: N/A | G41: N/A
A42: Right turn channelization for inside crossroad leg | B42: N/A | C42: N/A | D42: N/A | E42: N/A | F42: N/A | G42: N/A
A43: Right turn channelization for outside crossroad leg | B43: No | C43: No | D43: No | E43: No | F43: N/A | G43: N/A
A44: Right turn channelization for exit ramp | B44: No | C44: No | D44: No | E44: No | F44: N/A | G44: N/A
B45: Roundabout CMF Inputs
A46: Inscribed Circle Diameter (ft) | B46: N/A | C46: N/A | D46: N/A | E46: N/A | F46: N/A | G46: N/A | H46: 130 | I46: 130 | J46: 125 | K46: 125 | L46: N/A | M46: N/A
A47: Outbound Only Leg | H47: Yes | I47: Yes | J47: Yes | K47: Yes
A48: Leg 1 (Crossroad Leg - Inside) | H48: Leg 1 (Crossroad Leg - Inside)
A49: Opening Year Entering AADT | H49: ='Control Strategy Selection'!$D$49*0.5 -> 6000 | I49: ='Control Strategy Selection'!$E$49*0.5 -> 7500 | J49: ='Control Strategy Selection'!$D$49*0.5 -> 6000 | K49: ='Control Strategy Selection'!$E$49*0.5 -> 7500
A50: Leg has Right-Turn Bypass | H50: No | I50: No | J50: No | K50: No
A51: # of Access Points within 250' of Yield Line | H51: 0 | I51: 0 | J51: 0 | K51: 0
A52: Entering Width (ft) | H52: 29 | I52: 29 | J52: 29 | K52: 29
A53: # of Entering Lanes | H53: 2 | I53: 2 | J53: 2 | K53: 2
A54: # of Circulating Lanes | H54: 2 | I54: 2 | J54: 2 | K54: 2
A55: Leg 2 (Crossroad Leg - Outside) | H55: Leg 2 (Crossroad Leg - Outside)
A56: Opening Year Entering AADT | H56: ='Control Strategy Selection'!$D$50*0.5 -> 5000 | I56: ='Control Strategy Selection'!$E$50*0.5 -> 7500 | J56: ='Control Strategy Selection'!$D$50*0.5 -> 5000 | K56: ='Control Strategy Selection'!$E$50*0.5 -> 7500
A57: Leg has Right-Turn Bypass | H57: No | I57: No | J57: No | K57: No
A58: # of Access Points within 250' of Yield Line | H58: 0 | I58: 0 | J58: 0 | K58: 0
A59: Entering Width (ft) | H59: 29 | I59: 29 | J59: 29 | K59: 29
A60: # of Entering Lanes | H60: 2 | I60: 2 | J60: 2 | K60: 2
A61: # of Circulating Lanes | H61: 2 | I61: 2 | J61: 2 | K61: 2
A62: Leg 3 (Exit Ramp Inside) | H62: Leg 3 (Exit Ramp Leg)
A63: Opening Year Entering AADT | H63: =('Control Strategy Selection'!$D$51) -> 4500 | I63: =('Control Strategy Selection'!$E$51) -> 4500 | J63: =('Control Strategy Selection'!$D$51) -> 4500 | K63: =('Control Strategy Selection'!$E$51) -> 4500
A64: Leg has Right-Turn Bypass | H64: No | I64: No | J64: No | K64: No
A65: # of Access Points within 250' of Yield Line | H65: 0 | I65: 0 | J65: 0 | K65: 0
A66: Entering Width (ft) | H66: 29 | I66: 29 | J66: 29 | K66: 29
A67: # of Entering Lanes | H67: 2 | I67: 2 | J67: 2 | K67: 2
A68: # of Circulating Lanes | H68: 2 | I68: 2 | J68: 2 | K68: 2

Sheet RTI_Ranges (hidden)
A1: Ramp Terminal Inputs
A2: Provide inputs needed to compute and apply Part C CMFs.
A3: Alternative | B3: Traffic Signal | D3: Traffic Signal (Alt) | F3: Minor Road (Ramp) Stop
B4: 4 Leg Terminal w/ Diagonal Ramps (D4) | D4: 4 Leg Terminal w/ Diagonal Ramps (D4) | F4: 4 Leg Terminal w/ Diagonal Ramps (D4)
A5: Ramp Terminal | B5: NB | C5: SB | D5: NB | E5: SB | F5: NB | G5: SB
A6: Crossroad AADT | B6: 18000 | C6: 17000 | D6: =B6 -> 18000 | E6: =C6 -> 17000 | F6: =B6 -> 18000 | G6: =C6 -> 17000
A7: Ramp AADT | B7: 5000 | C7: 4500 | D7: =B7 -> 5000 | E7: =C7 -> 4500 | F7: =B7 -> 5000 | G7: =C7 -> 4500
A8: Area Type | B8: Urban | D8: =B8 -> Urban | F8: =B8 -> Urban
A9: # of Crossroad Lanes | B9: 2 | C9: 2 | D9: 2 | E9: 2 | F9: 2 | G9: 2 | H9: 2-6 (5,6 Urban only)
A18: Other CMF Inputs | B18: Part C CMFs Optional For Stage 1 ICE, Required for Stage 2 ICE
A19: Crossroad Left Turn Lane Present? | B19: Yes | C19: Yes | D19: Yes | E19: Yes | F19: Yes | G19: Yes
A20: Crossroad Right Turn Lane Present? | B20: Yes | C20: Yes | D20: Yes | E20: Yes | F20: Yes | G20: Yes
A21: Skew Angle | B21: skew | C21: Planning | D21: Double | E21: Not/ Applicable | F21: Include in MRS | G21: Include in MRS
A22: Exit ramp right turn control | B22: mergeRT | C22: Planning | D22: Merge/FF or Signal/Stop/yeild-controlled | E22: Include in TS | F22: Include in MRS | G22: Include in MRS
A23: Effective number of lanes serving exit ramp | B23: nex | C23: Planning | D23: 1-2, see graphic | E23: Include in TS | F23: Include in MRS | G23: Include in MRS
A24: Presence of left-turn bay on "in" leg | B24: i_LTBayIn | C24: Planning | D24: Yes/No (<100 ft?) | E24: Include in TS | F24: Include in MRS | G24: Include in MRS
A25: Presence of left-turn bay on "out" leg | B25: i_LTBayOut | C25: Planning | D25: Yes/No (<100 ft?) | E25: Include in TS | F25: Include in MRS | G25: Include in MRS
A26: Presence of right-turn bay on "in" leg | B26: i_RTBayIn | C26: Planning | D26: Yes/No (<100 ft?) | E26: Include in TS | F26: Include in MRS | G26: Include in MRS
A27: Presence of right-turn bay on "out" leg | B27: i_RTBayOut | C27: Planning | D27: Yes/No (<100 ft?) | E27: Include in TS | F27: Include in MRS | G27: Include in MRS
A28: Number of Stop-controlled public street approaches to the crossroad leg outside of the interchange and within 250 feet of the ramp terminal | B28: n_ps | C28: Planning | D28: Integer | E28: Include in TS | F28: Include in MRS | G28: Include in MRS
A29: Number of Stop-controlled driveways to the crossroad leg outside of the interchange and within 250 feet of the ramp terminal | B29: n_dw | C29: Planning | D29: Integer | E29: Include in TS | F29: Not Applicable | G29: Not Applicable
A30: Distance between subject ramp terminal and adjacent ramp terminal (from terminal center to terminal center) | B30: l_rmp | C30: Planning | D30: Double | E30: Include in TS | F30: Include in MRS | G30: Include in MRS
A31: distance between subject ramp terminal and nearest public road intersection in a direction away form the freeway | B31: l_str | C31: Planning | D31: Double | E31: Include in TS | F31: Include in MRS | G31: Include in MRS
A32: Width of median adjacent to turn lane for crossroad leg | B32: w_m | C32: Planning | D32: Double | E32: Include in TS | F32: Include in MRS | G32: Include in MRS
A33: Left-turn lane width for "in" crossroad leg | B33: w_bkIn | C33: Planning | D33: Double (0.0 if not present) | E33: Include in TS | F33: Include in MRS | G33: Include in MRS
A34: Left-turn lane width for "out" crossroad leg | B34: w_bkOut | C34: Planning | D34: Double (0.0 if not present) | E34: Include in TS | F34: Include in MRS | G34: Include in MRS
A35: Number of through traffic lanes that oppose the left-turn movement on the crossroad leg "in" | B35: n_oppLTIn | C35: Planning | D35: Integer | E35: Include in TS | F35: Not Applicable | G35: Not Applicable
A36: Number of through traffic lanes that oppose the left-turn movement on the crossroad leg "out" | B36: n_oppLTOut | C36: Planning | D36: Integer | E36: Include in TS | F36: Not Applicable | G36: Not Applicable
A37: Protected Left-turn operation indicator for crossroad leg "in" | B37: i_protLTIn | C37: Planning | D37: Boolean | E37: Include in TS | F37: Not Applicable | G37: Not Applicable
A38: Protected Left-turn operation indicator for crossroad leg "out" | B38: i_protLTOut | C38: Planning | D38: Boolean | E38: Include in TS | F38: Not Applicable | G38: Not Applicable
A39: Right turn channelization indicator for crossroad leg "in" | B39: i_crtIn | C39: Planning | D39: Boolean | E39: Include in TS | F39: Not Applicable | G39: Not Applicable
A40: Right turn channelization indicator for crossroad leg "out" | B40: i_crtOut | C40: Planning | D40: Boolean | E40: Include in TS | F40: Not Applicable | G40: Not Applicable
A41: Right turn channelization indicator for exit ramp | B41: i_crtEx | C41: Planning | D41: Boolean | E41: Include in TS | F41: Not Applicable | G41: Not Applicable
A42: Non-ramp public street leg indicator | B42: i_ps | C42: Planning | D42: Boolean | E42: Include in TS | F42: Not Applicable | G42: Not Applicable

Sheet SPUI (hidden)
T1: Conflicting Traffic Complexity | AE1: Pedestrian Complexity | BW1: *impact of median on complexity factors
J2: Exposure | N2: Severity | T2: Traffic Control | V2: Conflicting Lanes | AB2: Conflicting Speed | AE2: Indirect Paths Indicator | AF2: Non-intuitive movements indicator | AG2: Pedestrian Complexity factor | AI2: Total Complexity Multiplier | AK2: Exposure-Severity-Complexity Product | AN2: Included in Mvmt1 | BE2: Included in Mvmt2 | BY2: Cross-street: No, Ramps: Yes | CD2: Cross-street: Yes, Ramps: Yes
A3: # | B3: Conflict Type | C3: Mvmt1 | D3: Mvmt1_gen | E3: Mvmt1_SpeedCat | F3: Mvmt2 | G3: Mvmt2_gen | H3: Mvmt2_SpeedCat | J3: Q1 | K3: Q2 | L3: I | N3: Speed_V1 | O3: Speed_V2 | P3: Angle | Q3: delta_V | R3: P_FSI | V3: CrossC | W3: RampC | X3: CrossM/P | Y3: RampM/P | Z3: Score | AB3: Speed | AC3: Factor | AN3: CrossT1 | AO3: CrossL1 | AP3: CrossR1 | AQ3: CrossT2 | AR3: CrossL2 | AS3: CrossR2 | AT3: RampT1 | AU3: RampL1 | AV3: RampR1 | AW3: RampT2 | AX3: RampL2 | AY3: RampR2 | AZ3: CrossNM1 | BA3: CrossNM2 | BB3: RampNM1 | BC3: RampNM2 | BE3: CrossT1 | BF3: CrossL1 | BG3: CrossR1 | BH3: CrossT2 | BI3: CrossL2 | BJ3: CrossR2 | BK3: RampT1 | BL3: RampL1 | BM3: RampR1 | BN3: RampT2 | BO3: RampL2 | BP3: RampR2 | BQ3: CrossNM1 | BR3: CrossNM2 | BS3: RampNM1 | BT3: RampNM2 | BW3: # | BX3: Conflict Type | BY3: MajC | BZ3: MinC | CA3: MajM/P | CB3: MinM/P | CD3: MajC | CE3: MinC | CF3: MajM/P | CG3: MinM/P
A4: 1 | B4: Crossing - LT | C4: EBL | D4: CrossL1 | E4: Cross left | F4: NBL | G4: RampL1 | H4: Signal far | J4: =SUMPRODUCT($AN4:$BC4,$AN$40:$BC$40) -> 1875 | K4: =SUMPRODUCT($BE4:$BT4,$BE$40:$BT$40) -> 1125 | L4: =PRODUCT(J4:K4) -> 2109375 | N4: =VLOOKUP(E4,SSI_RTI_Range_VehSpeed,5,FALSE) -> 20 | O4: =VLOOKUP(H4,SSI_RTI_Range_VehSpeed,5,FALSE) -> 25 | P4: =IF(B4="Nonmotorized","",VLOOKUP(B4,SSI_RTI_Range_CollAngles,5,FALSE)) -> 230 | Q4: =IF(B4="Nonmotorized","",SQRT(N4^2+O4^2-2*N4*O4*COS(RADIANS(P4)))/2) -> 20.41927772 | R4: =IF(B4="Nonmotorized",1/(1+EXP(3.8432-0.1237*O4)),(Q4/SSI_RTI_RegAlpha)^SSI_RTI_RegK+(Q4/SSI_RTI_RegAlpha)^SSI_RTI_RegK-((Q4/SSI_RTI_RegAlpha)^SSI_RTI_RegK)*((Q4/SSI_RTI_RegAlpha)^SSI_RTI_RegK)) -> 0.02155528414 | T4: =SSI_RTI_ProtFactor -> 0.505 | V4: =IF(AND(SSI_RTI_CrossStMedian="No",SSI_RTI_RampMedian="Yes"),BY4,IF(AND(SSI_RTI_CrossStMedian="Yes",SSI_RTI_RampMedian="Yes"),CD4,0)) -> 0 | W4: =IF(AND(SSI_RTI_CrossStMedian="No",SSI_RTI_RampMedian="Yes"),BZ4,IF(AND(SSI_RTI_CrossStMedian="Yes",SSI_RTI_RampMedian="Yes"),CE4,0)) -> 0 | X4: =IF(AND(SSI_RTI_CrossStMedian="No",SSI_RTI_RampMedian="Yes"),CA4,IF(AND(SSI_RTI_CrossStMedian="Yes",SSI_RTI_RampMedian="Yes"),CF4,0)) -> 0 | Y4: =IF(AND(SSI_RTI_CrossStMedian="No",SSI_RTI_RampMedian="Yes"),CB4,IF(AND(SSI_RTI_CrossStMedian="Yes",SSI_RTI_RampMedian="Yes"),CG4,0)) -> 0 | Z4: =MAX(1,IF(B4<>"Pedestrian",V4*SSI_RTI_CrossThruLanes+W4*SSI_RTI_Ramp1ThruLanes+X4*IF(SSI_RTI_CrossThruLanes=1,SSI_RTI_MergeWeightL1,IF(SSI_RTI_CrossThruLanes=2,SSI_RTI_MergeWeightL1+SSI_RTI_MergeWeightL2,SSI_RTI_MergeWeightL1+SSI_RTI_MergeWeightL2+SSI_RTI_MergeWeightL3*(SSI_RTI_CrossThruLanes-2)))+Y4*IF(SSI_RTI_Ramp1ThruLanes=1,SSI_RTI_MergeWeightL1,IF(SSI_RTI_Ramp1ThruLanes=2,SSI_RTI_MergeWeightL1+SSI_RTI_MergeWeightL2,SSI_RTI_MergeWeightL1+SSI_RTI_MergeWeightL2+SSI_RTI_MergeWeightL3*(SSI_RTI_Ramp1ThruLanes-2))),V4*SSI_RTI_CrossThruLanes+W4*SSI_RTI_Ramp1ThruLanes+X4*IF(SSI_RTI_CrossThruLanes=1,SSI_RTI_NM_MergeWeightL1,IF(SSI_RTI_CrossThruLanes=2,SSI_RTI_NM_MergeWeightL1+SSI_RTI_NM_MergeWeightL2,SSI_RTI_NM_MergeWeightL1+SSI_RTI_NM_MergeWeightL2+SSI_RTI_NM_MergeWeightL3*(SSI_RTI_CrossThruLanes-2)))+Y4*IF(SSI_RTI_Ramp1ThruLanes=1,SSI_RTI_NM_MergeWeightL1,IF(SSI_RTI_Ramp1ThruLanes=2,SSI_RTI_NM_MergeWeightL1+SSI_RTI_NM_MergeWeightL2,SSI_RTI_NM_MergeWeightL1+SSI_RTI_NM_MergeWeightL2+SSI_RTI_NM_MergeWeightL3*(SSI_RTI_Ramp1ThruLanes-2))))) -> 1 | AB4: =IF(B4="Diverging","",SSI_RTI_VehSpeed_CrossThru) -> 40 | AC4: =IF(B4="Diverging",1,1-((60-AB4)/60*0.1/0.15)) -> 0.7777777778 | AG4: =IF(SSI_RTI_ConsiderNMComplexity="Yes",1+AE4+AF4,1) -> 1 | AI4: =PRODUCT(Z4,T4,AC4,AG4) -> 0.3927777778 | AK4: =L4*R4*AI4 -> 17858.88971 | AN4: =IF(ISNUMBER(SEARCH(AN$3,$D4)),1,"") ->  | AO4: =IF(ISNUMBER(SEARCH(AO$3,$D4)),1,"") -> 1 | BE4: =IF(ISNUMBER(SEARCH(BE$3,$G4)),1,"") ->  | BF4: =IF(ISNUMBER(SEARCH(BF$3,$G4)),1,"") ->  | BL4: 1 | BW4: 1 | BX4: Crossing - LT | BY4: 1 | BZ4: 0 | CA4: 1 | CB4: 0 | CD4: 1 | CE4: 0 | CF4: 0 | CG4: 0
A5: 2 | B5: Crossing - LT | C5: EBT | D5: CrossT1 | E5: Cross thru | F5: WBL | G5: CrossL2 | H5: Cross left | J5: =SUMPRODUCT($AN5:$BC5,$AN$40:$BC$40) -> 3750 | K5: =SUMPRODUCT($BE5:$BT5,$BE$40:$BT$40) -> 1875 | L5: =PRODUCT(J5:K5) -> 7031250 | N5: 40 | O5: 20 | P5: 230 | Q5: =IF(B5="Nonmotorized","",SQRT(N5^2+O5^2-2*N5*O5*COS(RADIANS(P5)))/2) -> 27.51572358 | R5: 0.06608384659 | T5: 0.505 | V5: 0 | W5: 0 | X5: 0 | Y5: 0 | Z5: 1 | AB5: 40 | AC5: 0.7777777778 | AG5: 1 | AI5: 0.3927777778 | AK5: =L5*R5*AI5 -> 182504.9982 | AN5: =IF(ISNUMBER(SEARCH(AN$3,$D5)),1,"") -> 1 | BE5: =IF(ISNUMBER(SEARCH(BE$3,$G5)),1,"") ->  | BI5: 1 | BW5: 2 | BX5: Crossing - LT | BY5: 1 | BZ5: 0 | CA5: 0 | CB5: 0 | CD5: 1 | CE5: 0 | CF5: 0 | CG5: 0
A6: 3 | B6: Crossing - LT | C6: WBL | D6: CrossL2 | E6: Cross left | F6: NBL | G6: RampL1 | H6: Signal near | J6: 1875 | K6: 1125 | L6: 2109375 | N6: 20 | O6: 15 | P6: 230 | Q6: 15.89553841 | R6: 0.00836167361 | T6: 0.505 | V6: 0 | W6: 0 | X6: 0 | Y6: 0 | Z6: 1 | AB6: 40 | AC6: 0.7777777778 | AG6: 1 | AI6: 0.3927777778 | AK6: 6927.777237 | AR6: 1 | BL6: 1 | BW6: 3 | BX6: Crossing - LT | BY6: 1 | BZ6: 0 | CA6: 1 | CB6: 0 | CD6: 1 | CE6: 0 | CF6: 0 | CG6: 0
A7: 4 | B7: Crossing - LT | C7: EBT | D7: CrossT1 | E7: Cross thru | F7: NBL | G7: RampL1 | H7: Signal near | J7: 3750 | K7: 1125 | L7: 4218750 | N7: 40 | O7: 15 | P7: 230 | Q7: 25.4771718 | R7: 0.04955895981 | T7: 0.505 | V7: 0 | W7: 0 | X7: 0 | Y7: 0 | Z7: 1 | AB7: 40 | AC7: 0.7777777778 | AG7: 1 | AI7: 0.3927777778 | AK7: 82120.74512 | AN7: 1 | BL7: 1 | BW7: 4 | BX7: Crossing - LT | BY7: 1 | BZ7: 0 | CA7: 1 | CB7: 0 | CD7: 1 | CE7: 0 | CF7: 0 | CG7: 0
A8: 5 | B8: Crossing - LT | C8: WBL | D8: CrossL2 | E8: Cross left | F8: SBL | G8: RampL2 | H8: Signal far | J8: 1875 | K8: 1125 | L8: 2109375 | N8: 20 | O8: 25 | P8: 230 | Q8: 20.41927772 | R8: 0.02155528414 | T8: 0.505 | V8: 0 | W8: 0 | X8: 0 | Y8: 0 | Z8: 1 | AB8: 40 | AC8: 0.7777777778 | AG8: 1 | AI8: 0.3927777778 | AK8: 17858.88971 | AR8: 1 | BO8: 1 | BW8: 5 | BX8: Crossing - LT | BY8: 1 | BZ8: 0 | CA8: 1 | CB8: 0 | CD8: 1 | CE8: 0 | CF8: 0 | CG8: 0
A9: 6 | B9: Crossing - LT | C9: WBT | D9: CrossT2 | E9: Cross thru | F9: EBL | G9: CrossL1 | H9: Cross left | J9: 3750 | K9: 1875 | L9: 7031250 | N9: 40 | O9: 20 | P9: 230 | Q9: 27.51572358 | R9: 0.06608384659 | T9: 0.505 | V9: 0 | W9: 0 | X9: 0 | Y9: 0 | Z9: 1 | AB9: 40 | AC9: 0.7777777778 | AG9: 1 | AI9: 0.3927777778 | AK9: 182504.9982 | AQ9: 1 | BF9: 1 | BW9: 6 | BX9: Crossing - LT | BY9: 1 | BZ9: 0 | CA9: 0 | CB9: 0 | CD9: 1 | CE9: 0 | CF9: 0 | CG9: 0
A10: 7 | B10: Crossing - LT | C10: EBL | D10: CrossL1 | E10: Cross left | F10: SBL | G10: RampL2 | H10: Signal near | J10: 1875 | K10: 1125 | L10: 2109375 | N10: 20 | O10: 15 | P10: 230 | Q10: 15.89553841 | R10: 0.00836167361 | T10: 0.505 | V10: 0 | W10: 0 | X10: 0 | Y10: 0 | Z10: 1 | AB10: 40 | AC10: 0.7777777778 | AG10: 1 | AI10: 0.3927777778 | AK10: 6927.777237 | AO10: 1 | BO10: 1 | BW10: 7 | BX10: Crossing - LT | BY10: 1 | BZ10: 0 | CA10: 1 | CB10: 0 | CD10: 1 | CE10: 0 | CF10: 0 | CG10: 0
A11: 8 | B11: Crossing - LT | C11: WBT | D11: CrossT2 | E11: Cross thru | F11: SBL | G11: RampL2 | H11: Signal near | J11: 3750 | K11: 1125 | L11: 4218750 | N11: 40 | O11: 15 | P11: 230 | Q11: 25.4771718 | R11: 0.04955895981 | T11: 0.505 | V11: 0 | W11: 0 | X11: 0 | Y11: 0 | Z11: 1 | AB11: 40 | AC11: 0.7777777778 | AG11: 1 | AI11: 0.3927777778 | AK11: 82120.74512 | AQ11: 1 | BO11: 1 | BW11: 8 | BX11: Crossing - LT | BY11: 1 | BZ11: 0 | CA11: 1 | CB11: 0 | CD11: 1 | CE11: 0 | CF11: 0 | CG11: 0
A12: 9 | B12: Merging | C12: WBT,NBL | D12: CrossT2,RampL1 | E12: Cross thru | F12: SBR | G12: RampR2 | H12: Signal near | J12: 4875 | K12: 1125 | L12: 5484375 | N12: 40 | O12: 15 | P12: 45 | Q12: 15.62427488 | R12: 0.007834035766 | T12: 0.505 | V12: 0 | W12: 0 | X12: 0 | Y12: 0 | Z12: 1 | AB12: 40 | AC12: 0.7777777778 | AG12: 1 | AI12: 0.3927777778 | AK12: 16875.6147 | AQ12: 1 | AU12: 1 | BP12: 1 | BW12: 9 | BX12: Merging | BY12: 0 | BZ12: 0 | CA12: 1 | CB12: 0 | CD12: 0 | CE12: 0 | CF12: 1 | CG12: 0
A13: 10 | B13: Merging | C13: EBR | D13: CrossR1 | E13: Cross right | F13: WBL | G13: CrossL2 | H13: Cross left | J13: 1875 | K13: 1875 | L13: 3515625 | N13: 15 | O13: 20 | P13: 45 | Q13: 7.084065416 | R13: 0.0003902292327 | T13: =SSI_RTI_PermFactor -> 1 | V13: 0 | W13: 0 | X13: 0 | Y13: 0 | Z13: 1 | AB13: 40 | AC13: 0.7777777778 | AG13: 1 | AI13: 0.7777777778 | AK13: 1067.033058 | AP13: 1 | BI13: 1 | BW13: 10 | BX13: Merging | BY13: 0 | BZ13: 0 | CA13: 0 | CB13: 1 | CD13: 0 | CE13: 0 | CF13: 0 | CG13: 1
A14: 11 | B14: Merging | C14: WBT | D14: CrossT2 | E14: Cross thru | F14: NBL | G14: RampL1 | H14: Signal far | J14: 3750 | K14: 1125 | L14: 4218750 | N14: 40 | O14: 25 | P14: 45 | Q14: 14.23715595 | R14: 0.005508459929 | T14: =SSI_RTI_ProtFactor -> 0.505 | V14: 0 | W14: 0 | X14: 0 | Y14: 0 | Z14: 1 | AB14: 40 | AC14: 0.7777777778 | AG14: 1 | AI14: 0.3927777778 | AK14: 9127.690242 | AQ14: 1 | BL14: 1 | BW14: 11 | BX14: Merging | BY14: 1 | BZ14: 0 | CA14: 1 | CB14: 0 | CD14: 0 | CE14: 0 | CF14: 1 | CG14: 0
A15: 12 | B15: Merging | C15: EBT | D15: CrossT1 | E15: Cross thru | F15: SBL | G15: RampL2 | H15: Signal far | J15: 3750 | K15: 1125 | L15: 4218750 | N15: 40 | O15: 25 | P15: 45 | Q15: 14.23715595 | R15: 0.005508459929 | T15: =SSI_RTI_ProtFactor -> 0.505 | V15: 0 | W15: 0 | X15: 0 | Y15: 0 | Z15: 1 | AB15: 40 | AC15: 0.7777777778 | AG15: 1 | AI15: 0.3927777778 | AK15: 9127.690242 | AN15: 1 | BO15: 1 | BW15: 12 | BX15: Merging | BY15: 1 | BZ15: 0 | CA15: 1 | CB15: 0 | CD15: 0 | CE15: 0 | CF15: 1 | CG15: 0
A16: 13 | B16: Merging | C16: EBT,SBL | D16: CrossT1,RampL2 | E16: Cross thru | F16: NBR | G16: RampR1 | H16: Signal near | J16: 4875 | K16: 1125 | L16: 5484375 | N16: 40 | O16: 15 | P16: 45 | Q16: 15.62427488 | R16: 0.007834035766 | T16: =SSI_RTI_ProtFactor -> 0.505 | V16: 0 | W16: 0 | X16: 0 | Y16: 0 | Z16: 1 | AB16: 40 | AC16: 0.7777777778 | AG16: 1 | AI16: 0.3927777778 | AK16: 16875.6147 | AN16: 1 | AX16: 1 | BM16: 1 | BW16: 13 | BX16: Merging | BY16: 0 | BZ16: 0 | CA16: 1 | CB16: 0 | CD16: 0 | CE16: 0 | CF16: 1 | CG16: 0
A17: 14 | B17: Merging | C17: WBR | D17: CrossR2 | E17: Cross right | F17: WBL | G17: CrossL2 | H17: Cross left | J17: 1875 | K17: 1875 | L17: 3515625 | N17: 15 | O17: 20 | P17: 45 | Q17: 7.084065416 | R17: 0.0003902292327 | T17: =SSI_RTI_PermFactor -> 1 | V17: 0 | W17: 0 | X17: 0 | Y17: 0 | Z17: 1 | AB17: 40 | AC17: 0.7777777778 | AG17: 1 | AI17: 0.7777777778 | AK17: 1067.033058 | AS17: 1 | BI17: 1 | BW17: 14 | BX17: Merging | BY17: 0 | BZ17: 0 | CA17: 0 | CB17: 1 | CD17: 0 | CE17: 0 | CF17: 0 | CG17: 1
A18: 15 | B18: Diverging | C18: SBR | D18: RampR2 | E18: Signal near | F18: SBL | G18: RampL2 | H18: Signal near | J18: 1125 | K18: 1125 | L18: 1265625 | N18: 15 | O18: 15 | P18: 10 | Q18: 1.307336141 | R18: 6.406138808e-07 | T18: 1 | V18: 0 | W18: 0 | X18: 0 | Y18: 0 | Z18: 1 | AC18: 1 | AG18: 1 | AI18: 1 | AK18: 0.8107769428 | AY18: 1 | BO18: 1 | BW18: 15 | BX18: Diverging | BY18: 0 | BZ18: 0 | CA18: 0 | CB18: 0 | CD18: 0 | CE18: 0 | CF18: 0 | CG18: 0
A19: 16 | B19: Diverging | C19: EBT | D19: CrossT1 | E19: Cross thru | F19: EBL | G19: CrossL1 | H19: Cross left | J19: 3750 | K19: 1875 | L19: 7031250 | N19: 40 | O19: 20 | P19: 10 | Q19: 10.299364 | R19: 0.00161398224 | T19: 1 | V19: 0 | W19: 0 | X19: 0 | Y19: 0 | Z19: 1 | AC19: 1 | AG19: 1 | AI19: 1 | AK19: 11348.31263 | AN19: 1 | BF19: 1 | BW19: 16 | BX19: Diverging | BY19: 0 | BZ19: 0 | CA19: 0 | CB19: 0 | CD19: 0 | CE19: 0 | CF19: 0 | CG19: 0
A20: 17 | B20: Diverging | C20: EBT | D20: CrossT1 | E20: Cross thru | F20: EBR | G20: CrossR1 | H20: Cross right | J20: 3750 | K20: 1875 | L20: 7031250 | N20: 40 | O20: 15 | P20: 10 | Q20: 12.68099657 | R20: 0.003552174922 | T20: 1 | V20: 0 | W20: 0 | X20: 0 | Y20: 0 | Z20: 1 | AC20: 1 | AG20: 1 | AI20: 1 | AK20: 24976.22992 | AN20: 1 | BG20: 1 | BW20: 17 | BX20: Diverging | BY20: 0 | BZ20: 0 | CA20: 0 | CB20: 0 | CD20: 0 | CE20: 0 | CF20: 0 | CG20: 0
A21: 18 | B21: Diverging | C21: NBR | D21: RampR1 | E21: Signal near | F21: NBL | G21: RampL1 | H21: Signal near | J21: 1125 | K21: 1125 | L21: 1265625 | N21: 15 | O21: 15 | P21: 10 | Q21: 1.307336141 | R21: 6.406138808e-07 | T21: 1 | V21: 0 | W21: 0 | X21: 0 | Y21: 0 | Z21: 1 | AC21: 1 | AG21: 1 | AI21: 1 | AK21: 0.8107769428 | AV21: 1 | BL21: 1 | BW21: 18 | BX21: Diverging | BY21: 0 | BZ21: 0 | CA21: 0 | CB21: 0 | CD21: 0 | CE21: 0 | CF21: 0 | CG21: 0
A22: 19 | B22: Diverging | C22: WBT | D22: CrossT2 | E22: Cross thru | F22: WBL | G22: CrossL2 | H22: Cross left | J22: 3750 | K22: 1875 | L22: 7031250 | N22: 40 | O22: 20 | P22: 10 | Q22: 10.299364 | R22: 0.00161398224 | T22: 1 | V22: 0 | W22: 0 | X22: 0 | Y22: 0 | Z22: 1 | AC22: 1 | AG22: 1 | AI22: 1 | AK22: 11348.31263 | AQ22: 1 | BI22: 1 | BW22: 19 | BX22: Diverging | BY22: 0 | BZ22: 0 | CA22: 0 | CB22: 0 | CD22: 0 | CE22: 0 | CF22: 0 | CG22: 0
A23: 20 | B23: Diverging | C23: WBT | D23: CrossT2 | E23: Cross thru | F23: WBR | G23: CrossR2 | H23: Cross right | J23: 3750 | K23: 1875 | L23: 7031250 | N23: 40 | O23: 15 | P23: 10 | Q23: 12.68099657 | R23: 0.003552174922 | T23: 1 | V23: 0 | W23: 0 | X23: 0 | Y23: 0 | Z23: 1 | AC23: 1 | AG23: 1 | AI23: 1 | AK23: 24976.22992 | AQ23: 1 | BJ23: 1 | BW23: 20 | BX23: Diverging | BY23: 0 | BZ23: 0 | CA23: 0 | CB23: 0 | CD23: 0 | CE23: 0 | CF23: 0 | CG23: 0
A24: 21 | B24: Nonmotorized | D24: RampNM2 | E24: Nonmotorized | F24: SBL | G24: RampL2 | H24: Signal near | J24: 375 | K24: 1125 | L24: 421875 | N24: 0 | O24: 15 | R24: 0.1205004039 | T24: =SSI_RTI_ProtFactor -> 0.505 | V24: 0 | W24: 0 | X24: 0 | Y24: 0 | Z24: 1 | AB24: =IF(B24="Diverging","",SSI_RTI_VehSpeed_SignalNear) -> 15 | AC24: 0.5 | AG24: 1 | AI24: 0.2525 | AK24: 12836.11725 | BC24: 1 | BO24: 1 | BW24: 21 | BX24: Nonmotorized | BY24: 0 | BZ24: 1 | CA24: 0 | CB24: 0 | CD24: 0 | CE24: 1 | CF24: 0 | CG24: 0
A25: 22 | B25: Nonmotorized | D25: RampNM2 | E25: Nonmotorized | F25: SBR | G25: RampR2 | H25: Signal near | J25: 375 | K25: 1125 | L25: 421875 | N25: 0 | O25: 15 | R25: 0.1205004039 | T25: 0.505 | V25: 0 | W25: 0 | X25: 0 | Y25: 0 | Z25: 1 | AB25: =IF(B25="Diverging","",SSI_RTI_VehSpeed_SignalNear) -> 15 | AC25: 0.5 | AG25: 1 | AI25: 0.2525 | AK25: =L25*R25*AI25 -> 12836.11725 | BC25: 1 | BP25: 1 | BW25: 22 | BX25: Nonmotorized | BY25: 0 | BZ25: 1 | CA25: 0 | CB25: 0 | CD25: 0 | CE25: 1 | CF25: 0 | CG25: 0
A26: 23 | B26: Nonmotorized | D26: CrossNM1 | E26: Nonmotorized | F26: WBT | G26: CrossT2 | H26: Cross thru | J26: 375 | K26: 3750 | L26: 1406250 | N26: 0 | O26: 40 | R26: 0.7511584002 | T26: 0.505 | V26: 0 | W26: 0 | X26: 0 | Y26: 0 | Z26: 1 | AB26: 40 | AC26: 0.7777777778 | AE26: 1 | AG26: 2 | AI26: 0.7855555556 | AK26: 829795.2952 | AZ26: 1 | BH26: 1 | BW26: 23 | BX26: Nonmotorized | BY26: 2 | BZ26: 0 | CA26: 0 | CB26: 1 | CD26: 1 | CE26: 0 | CF26: 0 | CG26: 1
A27: 24 | B27: Nonmotorized | D27: CrossNM1 | E27: Nonmotorized | F27: NBL | G27: RampL1 | H27: Signal far | J27: 375 | K27: 1125 | L27: 421875 | N27: 0 | O27: 25 | R27: 0.3206687935 | T27: =IF(SSI_RTI_PedExclusive="Yes",SSI_RTI_ProtFactor,SSI_RTI_ProtPermFactor) -> 0.925 | V27: 0 | W27: 0 | X27: 0 | Y27: 0 | Z27: 1 | AB27: 40 | AC27: 0.7777777778 | AE27: 1 | AG27: 2 | AI27: 1.438888889 | AK27: 194655.9785 | AZ27: 1 | BL27: 1 | BW27: 24 | BX27: Nonmotorized | BY27: 2 | BZ27: 0 | CA27: 0 | CB27: 1 | CD27: 1 | CE27: 0 | CF27: 0 | CG27: 1
A28: 25 | B28: Nonmotorized | D28: CrossNM1 | E28: Nonmotorized | F28: EBL | G28: CrossL1 | H28: Cross left | J28: 375 | K28: 1875 | L28: 703125 | N28: 0 | O28: 20 | R28: 0.2027491292 | T28: 0.505 | V28: 0 | W28: 0 | X28: 0 | Y28: 0 | Z28: 1 | AB28: 40 | AC28: 0.7777777778 | AE28: 1 | AG28: 2 | AI28: 0.7855555556 | AK28: 111987.2143 | AZ28: 1 | BF28: 1 | BW28: 25 | BX28: Nonmotorized | BY28: 2 | BZ28: 0 | CA28: 0 | CB28: 1 | CD28: 1 | CE28: 0 | CF28: 0 | CG28: 0
A29: 26 | B29: Nonmotorized | D29: CrossNM1 | E29: Nonmotorized | F29: EBT | G29: CrossT1 | H29: Cross thru | J29: 375 | K29: 3750 | L29: 1406250 | N29: 0 | O29: 40 | R29: 0.7511584002 | T29: 0.505 | V29: 0 | W29: 0 | X29: 0 | Y29: 0 | Z29: 1 | AB29: 40 | AC29: 0.7777777778 | AE29: 1 | AG29: 2 | AI29: 0.7855555556 | AK29: 829795.2952 | AZ29: 1 | BE29: 1 | BW29: 26 | BX29: Nonmotorized | BY29: 2 | BZ29: 0 | CA29: 0 | CB29: 1 | CD29: 1 | CE29: 0 | CF29: 0 | CG29: 0
A30: 27 | B30: Nonmotorized | D30: RampNM1 | E30: Nonmotorized | F30: EBR | G30: CrossR1 | H30: Cross right | J30: 375 | K30: 1875 | L30: 703125 | N30: 0 | O30: 15 | R30: 0.1205004039 | T30: =SSI_RTI_PermFactor -> 1 | V30: 0 | W30: 0 | X30: 0 | Y30: 0 | Z30: 1 | AB30: 40 | AC30: 0.7777777778 | AG30: 1 | AI30: 0.7777777778 | AK30: 65898.65839 | AN30: =IF(ISNUMBER(SEARCH(AN$3,$D30)),1,"") ->  | BB30: 1 | BE30: =IF(ISNUMBER(SEARCH(BE$3,$G30)),1,"") ->  | BG30: 1 | BW30: 27 | BX30: Nonmotorized | BY30: 0 | BZ30: 1 | CA30: 0 | CB30: 0 | CD30: 0 | CE30: 1 | CF30: 0 | CG30: 0
A31: 28 | B31: Nonmotorized | D31: RampNM1 | E31: Nonmotorized | F31: WBL | G31: CrossL2 | H31: Cross left | J31: 375 | K31: 1875 | L31: 703125 | N31: 0 | O31: 20 | R31: 0.2027491292 | T31: 0.505 | V31: 0 | W31: 0 | X31: 0 | Y31: 0 | Z31: 1 | AB31: 40 | AC31: 0.7777777778 | AG31: 1 | AI31: 0.3927777778 | AK31: 55993.60717 | BB31: 1 | BI31: 1 | BW31: 28 | BX31: Nonmotorized | BY31: 0 | BZ31: 1 | CA31: 0 | CB31: 0 | CD31: 0 | CE31: 1 | CF31: 0 | CG31: 0
A32: 29 | B32: Nonmotorized | D32: RampNM1 | E32: Nonmotorized | F32: NBL | G32: RampL1 | H32: Signal near | J32: 375 | K32: 1125 | L32: 421875 | N32: 0 | O32: 15 | R32: 0.1205004039 | T32: 0.505 | V32: 0 | W32: 0 | X32: 0 | Y32: 0 | Z32: 1 | AB32: =IF(B32="Diverging","",SSI_RTI_VehSpeed_SignalNear) -> 15 | AC32: 0.5 | AG32: 1 | AI32: 0.2525 | AK32: 12836.11725 | BB32: 1 | BL32: 1 | BW32: 29 | BX32: Nonmotorized | BY32: 0 | BZ32: 1 | CA32: 0 | CB32: 0 | CD32: 0 | CE32: 1 | CF32: 0 | CG32: 0
A33: 30 | B33: Nonmotorized | D33: RampNM1 | E33: Nonmotorized | F33: NBR | G33: RampR1 | H33: Signal near | J33: 375 | K33: 1125 | L33: 421875 | N33: 0 | O33: 15 | R33: 0.1205004039 | T33: 0.505 | V33: 0 | W33: 0 | X33: 0 | Y33: 0 | Z33: 1 | AB33: =IF(B33="Diverging","",SSI_RTI_VehSpeed_SignalNear) -> 15 | AC33: 0.5 | AG33: 1 | AI33: 0.2525 | AK33: 12836.11725 | BB33: 1 | BM33: 1 | BW33: 30 | BX33: Nonmotorized | BY33: 0 | BZ33: 1 | CA33: 0 | CB33: 0 | CD33: 0 | CE33: 1 | CF33: 0 | CG33: 0
A34: 31 | B34: Nonmotorized | D34: CrossNM2 | E34: Nonmotorized | F34: EBT | G34: CrossT1 | H34: Cross thru | J34: 375 | K34: 3750 | L34: 1406250 | N34: 0 | O34: 40 | R34: 0.7511584002 | T34: 0.505 | V34: 0 | W34: 0 | X34: 0 | Y34: 0 | Z34: 1 | AB34: 40 | AC34: 0.7777777778 | AE34: 1 | AG34: 2 | AI34: 0.7855555556 | AK34: 829795.2952 | BA34: 1 | BE34: 1 | BW34: 31 | BX34: Nonmotorized | BY34: 2 | BZ34: 0 | CA34: 0 | CB34: 1 | CD34: 1 | CE34: 0 | CF34: 0 | CG34: 1
A35: 32 | B35: Nonmotorized | D35: CrossNM2 | E35: Nonmotorized | F35: SBL | G35: RampL2 | H35: Signal far | J35: 375 | K35: 1125 | L35: 421875 | N35: 0 | O35: 25 | R35: 0.3206687935 | T35: =IF(SSI_RTI_PedExclusive="Yes",SSI_RTI_ProtPermFactor,SSI_RTI_ProtFactor) -> 0.505 | V35: 0 | W35: 0 | X35: 0 | Y35: 0 | Z35: 1 | AB35: 40 | AC35: 0.7777777778 | AE35: 1 | AG35: 2 | AI35: 0.7855555556 | AK35: 106271.6423 | BA35: 1 | BO35: 1 | BW35: 32 | BX35: Nonmotorized | BY35: 2 | BZ35: 0 | CA35: 0 | CB35: 1 | CD35: 1 | CE35: 0 | CF35: 0 | CG35: 1
A36: 33 | B36: Nonmotorized | D36: CrossNM2 | E36: Nonmotorized | F36: WBL | G36: CrossL2 | H36: Cross left | J36: 375 | K36: 1875 | L36: 703125 | N36: 0 | O36: 20 | R36: 0.2027491292 | T36: 0.505 | V36: 0 | W36: 0 | X36: 0 | Y36: 0 | Z36: 1 | AB36: 40 | AC36: 0.7777777778 | AE36: 1 | AG36: 2 | AI36: 0.7855555556 | AK36: 111987.2143 | BA36: 1 | BI36: 1 | BW36: 33 | BX36: Nonmotorized | BY36: 2 | BZ36: 0 | CA36: 0 | CB36: 1 | CD36: 1 | CE36: 0 | CF36: 0 | CG36: 0
A37: 34 | B37: Nonmotorized | D37: CrossNM2 | E37: Nonmotorized | F37: WBT | G37: CrossT2 | H37: Cross thru | J37: 375 | K37: 3750 | L37: 1406250 | N37: 0 | O37: 40 | R37: 0.7511584002 | T37: 0.505 | V37: 0 | W37: 0 | X37: 0 | Y37: 0 | Z37: 1 | AB37: 40 | AC37: 0.7777777778 | AE37: 1 | AG37: 2 | AI37: 0.7855555556 | AK37: 829795.2952 | BA37: 1 | BH37: 1 | BW37: 34 | BX37: Nonmotorized | BY37: 2 | BZ37: 0 | CA37: 0 | CB37: 1 | CD37: 1 | CE37: 0 | CF37: 0 | CG37: 0
A38: 35 | B38: Nonmotorized | D38: RampNM2 | E38: Nonmotorized | F38: EBL | G38: CrossL1 | H38: Cross left | J38: 375 | K38: 1875 | L38: 703125 | N38: 0 | O38: 20 | R38: 0.2027491292 | T38: 0.505 | V38: 0 | W38: 0 | X38: 0 | Y38: 0 | Z38: 1 | AB38: 40 | AC38: 0.7777777778 | AG38: 1 | AI38: 0.3927777778 | AK38: 55993.60717 | BC38: 1 | BF38: 1 | BW38: 35 | BX38: Nonmotorized | BY38: 0 | BZ38: 1 | CA38: 0 | CB38: 0 | CD38: 0 | CE38: 1 | CF38: 0 | CG38: 0
A39: 36 | B39: Nonmotorized | D39: RampNM2 | E39: Nonmotorized | F39: WBR | G39: CrossR2 | H39: Cross right | J39: 375 | K39: 1875 | L39: 703125 | N39: 0 | O39: 15 | R39: 0.1205004039 | T39: =SSI_RTI_PermFactor -> 1 | V39: 0 | W39: 0 | X39: 0 | Y39: 0 | Z39: 1 | AB39: 40 | AC39: 0.7777777778 | AG39: 1 | AI39: 0.7777777778 | AK39: 65898.65839 | BC39: 1 | BJ39: 1 | BW39: 36 | BX39: Nonmotorized | BY39: 0 | BZ39: 1 | CA39: 0 | CB39: 0 | CD39: 0 | CE39: 1 | CF39: 0 | CG39: 0
AM40: O | AN40: ='SSI Inputs RTI'!$D$28 -> 3750 | AO40: ='SSI Inputs RTI'!$D$29 -> 1875 | AP40: ='SSI Inputs RTI'!$D$30 -> 1875 | AQ40: ='SSI Inputs RTI'!$D$32 -> 3750 | AR40: ='SSI Inputs RTI'!$D$33 -> 1875 | AS40: ='SSI Inputs RTI'!$D$34 -> 1875 | AT40: ='SSI Inputs RTI'!$D$36 -> 2250 | AU40: ='SSI Inputs RTI'!$D$37 -> 1125 | AV40: ='SSI Inputs RTI'!$D$38 -> 1125 | AW40: ='SSI Inputs RTI'!$D$40 -> 2250 | AX40: ='SSI Inputs RTI'!$D$41 -> 1125 | AY40: ='SSI Inputs RTI'!$D$42 -> 1125 | AZ40: ='SSI Inputs RTI'!$Q$20 -> 375 | BA40: ='SSI Inputs RTI'!$Q$21 -> 375 | BB40: ='SSI Inputs RTI'!$Q$22 -> 375 | BC40: ='SSI Inputs RTI'!$Q$23 -> 375 | BD40: O | BE40: ='SSI Inputs RTI'!$D$28 -> 3750 | BF40: ='SSI Inputs RTI'!$D$29 -> 1875 | BG40: ='SSI Inputs RTI'!$D$30 -> 1875 | BH40: ='SSI Inputs RTI'!$D$32 -> 3750 | BI40: ='SSI Inputs RTI'!$D$33 -> 1875 | BJ40: ='SSI Inputs RTI'!$D$34 -> 1875 | BK40: ='SSI Inputs RTI'!$D$36 -> 2250 | BL40: ='SSI Inputs RTI'!$D$37 -> 1125 | BM40: ='SSI Inputs RTI'!$D$38 -> 1125 | BN40: ='SSI Inputs RTI'!$D$40 -> 2250 | BO40: ='SSI Inputs RTI'!$D$41 -> 1125 | BP40: ='SSI Inputs RTI'!$D$42 -> 1125 | BQ40: ='SSI Inputs RTI'!$Q$20 -> 375 | BR40: ='SSI Inputs RTI'!$Q$21 -> 375 | BS40: ='SSI Inputs RTI'!$Q$22 -> 375 | BT40: ='SSI Inputs RTI'!$Q$23 -> 375
AM41: D | AN41: ='SSI Inputs RTI'!$E$28 -> 7750 | AO41: ='SSI Inputs RTI'!$E$29 -> 3875 | AP41: ='SSI Inputs RTI'!$E$30 -> 3875 | AQ41: ='SSI Inputs RTI'!$E$32 -> 7750 | AR41: ='SSI Inputs RTI'!$E$33 -> 3875 | AS41: ='SSI Inputs RTI'!$E$34 -> 3875 | AT41: ='SSI Inputs RTI'!$E$36 -> 2500 | AU41: ='SSI Inputs RTI'!$E$37 -> 1250 | AV41: ='SSI Inputs RTI'!$E$38 -> 1250 | AW41: ='SSI Inputs RTI'!$E$40 -> 2500 | AX41: ='SSI Inputs RTI'!$E$41 -> 1250 | AY41: ='SSI Inputs RTI'!$E$42 -> 1250 | AZ41: ='SSI Inputs RTI'!$R$20 -> 425 | BA41: ='SSI Inputs RTI'!$R$21 -> 425 | BB41: ='SSI Inputs RTI'!$R$22 -> 425 | BC41: ='SSI Inputs RTI'!$R$23 -> 425 | BD41: D | BE41: ='SSI Inputs RTI'!$E$28 -> 7750 | BF41: ='SSI Inputs RTI'!$E$29 -> 3875 | BG41: ='SSI Inputs RTI'!$E$30 -> 3875 | BH41: ='SSI Inputs RTI'!$E$32 -> 7750 | BI41: ='SSI Inputs RTI'!$E$33 -> 3875 | BJ41: ='SSI Inputs RTI'!$E$34 -> 3875 | BK41: ='SSI Inputs RTI'!$E$36 -> 2500 | BL41: ='SSI Inputs RTI'!$E$37 -> 1250 | BM41: ='SSI Inputs RTI'!$E$38 -> 1250 | BN41: ='SSI Inputs RTI'!$E$40 -> 2500 | BO41: ='SSI Inputs RTI'!$E$41 -> 1250 | BP41: ='SSI Inputs RTI'!$E$42 -> 1250 | BQ41: ='SSI Inputs RTI'!$R$20 -> 425 | BR41: ='SSI Inputs RTI'!$R$21 -> 425 | BS41: ='SSI Inputs RTI'!$R$22 -> 425 | BT41: ='SSI Inputs RTI'!$R$23 -> 425
J101: Exposure | AK101: Exposure-Severity-Complexity Product
J102: Q1 | K102: Q2 | L102: I
J103: =SUMPRODUCT($AN4:$BC4,$AN$41:$BC$41) -> 3875 | K103: =SUMPRODUCT($BE4:$BT4,$BE$41:$BT$41) -> 1250 | L103: =PRODUCT(J103:K103) -> 4843750 | AK103: =L103*R4*AI4 -> 41009.3023
J104: =SUMPRODUCT($AN5:$BC5,$AN$41:$BC$41) -> 7750 | K104: =SUMPRODUCT($BE5:$BT5,$BE$41:$BT$41) -> 3875 | L104: =PRODUCT(J104:K104) -> 30031250 | AK104: =L104*R5*AI5 -> 779499.1257
J105: 3875 | K105: 1250 | L105: 4843750 | AK105: 15908.22921
J106: 7750 | K106: 1250 | L106: 9687500 | AK106: 188573.5629
J107: 3875 | K107: 1250 | L107: 4843750 | AK107: 41009.3023
J108: 7750 | K108: 3875 | L108: 30031250 | AK108: 779499.1257
J109: 3875 | K109: 1250 | L109: 4843750 | AK109: 15908.22921
J110: 7750 | K110: 1250 | L110: 9687500 | AK110: 188573.5629
J111: 9000 | K111: 1250 | L111: 11250000 | AK111: 34616.64554
J112: 3875 | K112: 3875 | L112: 15015625 | AK112: 4557.416751
J113: 7750 | K113: 1250 | L113: 9687500 | AK113: 20959.8813
J114: 7750 | K114: 1250 | L114: 9687500 | AK114: 20959.8813
J115: 9000 | K115: 1250 | L115: 11250000 | AK115: 34616.64554
J116: 3875 | K116: 3875 | L116: 15015625 | AK116: 4557.416751
J117: 1250 | K117: 1250 | L117: 1562500 | AK117: 1.000959189
J118: 7750 | K118: 3875 | L118: 30031250 | AK118: 48469.90415
J119: 7750 | K119: 3875 | L119: 30031250 | AK119: 106676.2531
J120: 1250 | K120: 1250 | L120: 1562500 | AK120: 1.000959189
J121: 7750 | K121: 3875 | L121: 30031250 | AK121: 48469.90415
J122: 7750 | K122: 3875 | L122: 30031250 | AK122: 106676.2531
J123: 425 | K123: 1250 | L123: 531250 | AK123: 16163.99949
J124: 425 | K124: 1250 | L124: 531250 | AK124: 16163.99949
J125: 425 | K125: 7750 | L125: 3293750 | AK125: 1943564.98
J126: 425 | K126: 1250 | L126: 531250 | AK126: 245122.3433
J127: 425 | K127: 3875 | L127: 1646875 | AK127: 262298.942
J128: 425 | K128: 7750 | L128: 3293750 | AK128: 1943564.98
J129: 425 | K129: 3875 | L129: 1646875 | AK129: 154349.3021
J130: 425 | K130: 3875 | L130: 1646875 | AK130: 131149.471
J131: 425 | K131: 1250 | L131: 531250 | AK131: 16163.99949
J132: 425 | K132: 1250 | L132: 531250 | AK132: 16163.99949
J133: 425 | K133: 7750 | L133: 3293750 | AK133: 1943564.98
J134: 425 | K134: 1250 | L134: 531250 | AK134: 133823.5496
J135: 425 | K135: 3875 | L135: 1646875 | AK135: 262298.942
J136: 425 | K136: 7750 | L136: 3293750 | AK136: 1943564.98
J137: =SUMPRODUCT($AN38:$BC38,$AN$41:$BC$41) -> 425 | K137: =SUMPRODUCT($BE38:$BT38,$BE$41:$BT$41) -> 3875 | L137: =PRODUCT(J137:K137) -> 1646875 | AK137: 131149.471
J138: 425 | K138: 3875 | L138: =PRODUCT(J138:K138) -> 1646875 | AK138: 154349.3021

Sheet DDI (hidden)
T1: Conflicting Traffic Complexity | AE1: Pedestrian Complexity
J2: Exposure | N2: Severity | T2: Traffic Control | V2: Conflicting Lanes | AB2: Conflicting Speed | AE2: Indirect Paths Indicator | AF2: Non-intuitive movements indicator | AG2: Pedestrian Complexity factor | AI2: Total Complexity Multiplier | AK2: Exposure-Severity-Complexity Product | AN2: Included in Mvmt1 | BE2: Included in Mvmt2
A3: # | B3: Conflict Type | C3: Mvmt1 | D3: Mvmt1_gen | E3: Mvmt1_SpeedCat | F3: Mvmt2 | G3: Mvmt2_gen | H3: Mvmt2_SpeedCat | J3: Q1 | K3: Q2 | L3: I | N3: Speed_V1 | O3: Speed_V2 | P3: Angle | Q3: delta_V | R3: P_FSI | V3: CrossC | W3: RampC | X3: CrossM/P | Y3: RampM/P | Z3: Score | AB3: Speed | AC3: Factor | AN3: CrossT1 | AO3: CrossL1 | AP3: CrossR1 | AQ3: CrossT2 | AR3: CrossL2 | AS3: CrossR2 | AT3: RampT1 | AU3: RampL1 | AV3: RampR1 | AW3: RampT2 | AX3: RampL2 | AY3: RampR2 | AZ3: CrossNM1 | BA3: CrossNM2 | BB3: RampNM1 | BC3: RampNM2 | BE3: CrossT1 | BF3: CrossL1 | BG3: CrossR1 | BH3: CrossT2 | BI3: CrossL2 | BJ3: CrossR2 | BK3: RampT1 | BL3: RampL1 | BM3: RampR1 | BN3: RampT2 | BO3: RampL2 | BP3: RampR2 | BQ3: CrossNM1 | BR3: CrossNM2 | BS3: RampNM1 | BT3: RampNM2
A4: 1 | B4: Crossing | C4: EBT,EBL | D4: CrossT1,CrossL1 | E4: Cross thru | F4: WBT,NBL | G4: CrossT2,RampL1 | H4: Signal far | J4: =SUMPRODUCT($AN4:$BC4,$AN$26:$BC$26) -> 5625 | K4: =SUMPRODUCT($BE4:$BT4,$BE$26:$BT$26) -> 4875 | L4: =PRODUCT(J4:K4) -> 27421875 | N4: =VLOOKUP(E4,SSI_RTI_Range_VehSpeed,5,FALSE) -> 40 | O4: =VLOOKUP(H4,SSI_RTI_Range_VehSpeed,5,FALSE) -> 25 | P4: =IF(B4="Nonmotorized","",VLOOKUP(B4,SSI_RTI_Range_CollAngles,5,FALSE)) -> 90 | Q4: =IF(B4="Nonmotorized","",SQRT(N4^2+O4^2-2*N4*O4*COS(RADIANS(P4)))/2) -> 23.58495283 | R4: =IF(B4="Nonmotorized",1/(1+EXP(3.8432-0.1237*O4)),(Q4/SSI_RTI_RegAlpha)^SSI_RTI_RegK+(Q4/SSI_RTI_RegAlpha)^SSI_RTI_RegK-((Q4/SSI_RTI_RegAlpha)^SSI_RTI_RegK)*((Q4/SSI_RTI_RegAlpha)^SSI_RTI_RegK)) -> 0.03709740831 | T4: =SSI_RTI_ProtFactor -> 0.505 | V4: 1 | Z4: =MAX(1,IF(B4<>"Pedestrian",V4*SSI_RTI_CrossThruLanes+W4*SSI_RTI_Ramp1ThruLanes+X4*IF(SSI_RTI_CrossThruLanes=1,SSI_RTI_MergeWeightL1,IF(SSI_RTI_CrossThruLanes=2,SSI_RTI_MergeWeightL1+SSI_RTI_MergeWeightL2,SSI_RTI_MergeWeightL1+SSI_RTI_MergeWeightL2+SSI_RTI_MergeWeightL3*(SSI_RTI_CrossThruLanes-2)))+Y4*IF(SSI_RTI_Ramp1ThruLanes=1,SSI_RTI_MergeWeightL1,IF(SSI_RTI_Ramp1ThruLanes=2,SSI_RTI_MergeWeightL1+SSI_RTI_MergeWeightL2,SSI_RTI_MergeWeightL1+SSI_RTI_MergeWeightL2+SSI_RTI_MergeWeightL3*(SSI_RTI_Ramp1ThruLanes-2))),V4*SSI_RTI_CrossThruLanes+W4*SSI_RTI_Ramp1ThruLanes+X4*IF(SSI_RTI_CrossThruLanes=1,SSI_RTI_NM_MergeWeightL1,IF(SSI_RTI_CrossThruLanes=2,SSI_RTI_NM_MergeWeightL1+SSI_RTI_NM_MergeWeightL2,SSI_RTI_NM_MergeWeightL1+SSI_RTI_NM_MergeWeightL2+SSI_RTI_NM_MergeWeightL3*(SSI_RTI_CrossThruLanes-2)))+Y4*IF(SSI_RTI_Ramp1ThruLanes=1,SSI_RTI_NM_MergeWeightL1,IF(SSI_RTI_Ramp1ThruLanes=2,SSI_RTI_NM_MergeWeightL1+SSI_RTI_NM_MergeWeightL2,SSI_RTI_NM_MergeWeightL1+SSI_RTI_NM_MergeWeightL2+SSI_RTI_NM_MergeWeightL3*(SSI_RTI_Ramp1ThruLanes-2))))) -> 2 | AB4: =IF(B4="Diverging","",SSI_RTI_VehSpeed_CrossThru) -> 40 | AC4: =IF(B4="Diverging",1,1-((60-AB4)/60*0.1/0.15)) -> 0.7777777778 | AG4: =IF(SSI_RTI_ConsiderNMComplexity="Yes",1+AE4+AF4,1) -> 1 | AI4: =PRODUCT(Z4,T4,AC4,AG4) -> 0.7855555556 | AK4: =L4*R4*AI4 -> 799130.3433 | AN4: =IF(ISNUMBER(SEARCH(AN$3,$D4)),1,"") -> 1 | AO4: =IF(ISNUMBER(SEARCH(AO$3,$D4)),1,"") -> 1 | BE4: =IF(ISNUMBER(SEARCH(BE$3,$G4)),1,"") ->  | BF4: =IF(ISNUMBER(SEARCH(BF$3,$G4)),1,"") ->  | BH4: 1 | BL4: 1
A5: 2 | B5: Crossing | C5: WBT,WBL | D5: CrossT2,CrossL2 | E5: Cross thru | F5: EBT,SBL | G5: CrossT1,RampL2 | H5: Signal far | J5: 5625 | K5: 4875 | L5: =PRODUCT(J5:K5) -> 27421875 | N5: 40 | O5: 25 | P5: 90 | Q5: =IF(B5="Nonmotorized","",SQRT(N5^2+O5^2-2*N5*O5*COS(RADIANS(P5)))/2) -> 23.58495283 | R5: 0.03709740831 | T5: 0.505 | V5: 1 | Z5: 2 | AB5: 40 | AC5: 0.7777777778 | AG5: 1 | AI5: 0.7855555556 | AK5: =L5*R5*AI5 -> 799130.3433 | AN5: =IF(ISNUMBER(SEARCH(AN$3,$D5)),1,"") ->  | AQ5: 1 | AR5: 1 | BE5: =IF(ISNUMBER(SEARCH(BE$3,$G5)),1,"") -> 1 | BO5: 1
A6: 3 | B6: Merging | C6: WBT,NBL | D6: CrossT2,RampL1 | E6: Signal far | F6: SBR | G6: RampR2 | H6: Signal near | J6: 4875 | K6: 1125 | L6: 5484375 | N6: 25 | O6: 15 | P6: 45 | Q6: 8.939657629 | R6: 0.0009432995959 | T6: 0.505 | X6: 1 | Z6: 1.75 | AB6: 40 | AC6: 0.7777777778 | AG6: 1 | AI6: 0.6873611111 | AK6: 3555.999967 | AQ6: 1 | AU6: 1 | BP6: 1
A7: 4 | B7: Merging | C7: EBR | D7: CrossR1 | E7: Cross right | F7: WBL | G7: CrossL2 | H7: Cross left | J7: 1875 | K7: 1875 | L7: 3515625 | N7: 15 | O7: 20 | P7: 45 | Q7: 7.084065416 | R7: 0.0003902292327 | T7: 0.505 | X7: 1 | Z7: 1.75 | AB7: 40 | AC7: 0.7777777778 | AG7: 1 | AI7: 0.6873611111 | AK7: 942.9904652 | AP7: 1 | BI7: 1
A8: 5 | B8: Merging | C8: WBT,WBL | D8: CrossT2,CrossL2 | E8: Cross thru | F8: NBL | G8: RampL1 | H8: Signal near | J8: 5625 | K8: 1125 | L8: 6328125 | N8: 40 | O8: 15 | P8: 45 | Q8: 15.62427488 | R8: 0.007834035766 | T8: 0.505 | X8: 1 | Z8: 1.75 | AB8: 40 | AC8: 0.7777777778 | AG8: 1 | AI8: 0.6873611111 | AK8: 34075.76045 | AQ8: 1 | AR8: 1 | BL8: 1
A9: 6 | B9: Merging | C9: EBT,SBL | D9: CrossT1,RampL2 | E9: Signal far | F9: NBR | G9: RampR1 | H9: Signal near | J9: 4875 | K9: 1125 | L9: 5484375 | N9: 25 | O9: 15 | P9: 45 | Q9: 8.939657629 | R9: 0.0009432995959 | T9: 0.505 | X9: 1 | Z9: 1.75 | AB9: 40 | AC9: 0.7777777778 | AG9: 1 | AI9: 0.6873611111 | AK9: 3555.999967 | AN9: 1 | AX9: 1 | BM9: 1
A10: 7 | B10: Merging | C10: WBR | D10: CrossR2 | E10: Cross right | F10: EBL | G10: CrossL1 | H10: Cross left | J10: 1875 | K10: 1875 | L10: 3515625 | N10: 15 | O10: 20 | P10: 45 | Q10: 7.084065416 | R10: 0.0003902292327 | T10: 0.505 | X10: 1 | Z10: 1.75 | AB10: 40 | AC10: 0.7777777778 | AG10: 1 | AI10: 0.6873611111 | AK10: 942.9904652 | AS10: 1 | BF10: 1
A11: 8 | B11: Merging | C11: EBT,EBL | D11: CrossT1,CrossL1 | E11: Cross thru | F11: SBL | G11: RampL1 | H11: Signal near | J11: 5625 | K11: 1125 | L11: 6328125 | N11: 40 | O11: 15 | P11: 45 | Q11: 15.62427488 | R11: 0.007834035766 | T11: 0.505 | X11: 1 | Z11: 1.75 | AB11: 40 | AC11: 0.7777777778 | AG11: 1 | AI11: 0.6873611111 | AK11: 34075.76045 | AN11: 1 | AO11: 1 | BL11: 1
A12: 9 | B12: Diverging | C12: SBR | D12: RampR2 | E12: Signal near | F12: SBL | G12: RampL1 | H12: Signal near | J12: 1125 | K12: 1125 | L12: 1265625 | N12: 15 | O12: 15 | P12: 10 | Q12: 1.307336141 | R12: 6.406138808e-07 | T12: =SSI_RTI_PermFactor -> 1 | Z12: 1 | AC12: 1 | AG12: 1 | AI12: 1 | AK12: 0.8107769428 | AY12: 1 | BL12: 1
A13: 10 | B13: Diverging | C13: EBT,EBL | D13: CrossT1,CrossL1 | E13: Cross thru | F13: EBR | G13: CrossR1 | H13: Cross right | J13: 5625 | K13: 1875 | L13: 10546875 | N13: 40 | O13: 15 | P13: 10 | Q13: 12.68099657 | R13: 0.003552174922 | T13: 1 | Z13: 1 | AC13: 1 | AG13: 1 | AI13: 1 | AK13: 37464.34488 | AN13: 1 | AO13: 1 | BG13: 1
A14: 11 | B14: Diverging | C14: WBT | D14: CrossT2 | E14: Cross thru | F14: WBL | G14: CrossL2 | H14: Cross left | J14: 3750 | K14: 1875 | L14: 7031250 | N14: 40 | O14: 20 | P14: 10 | Q14: 10.299364 | R14: 0.00161398224 | T14: 1 | Z14: 1 | AC14: 1 | AG14: 1 | AI14: 1 | AK14: 11348.31263 | AQ14: 1 | BI14: 1
A15: 12 | B15: Diverging | C15: NBR | D15: RampR1 | E15: Signal near | F15: NBL | G15: RampL1 | H15: Signal near | J15: 1125 | K15: 1125 | L15: 1265625 | N15: 15 | O15: 15 | P15: 10 | Q15: 1.307336141 | R15: 6.406138808e-07 | T15: 1 | Z15: 1 | AC15: 1 | AG15: 1 | AI15: 1 | AK15: 0.8107769428 | AV15: 1 | BL15: 1
A16: 13 | B16: Diverging | C16: WBT,WBL | D16: CrossT2,CrossL2 | E16: Cross thru | F16: WBR | G16: CrossR2 | H16: Cross right | J16: 5625 | K16: 1875 | L16: 10546875 | N16: 40 | O16: 15 | P16: 10 | Q16: 12.68099657 | R16: 0.003552174922 | T16: 1 | Z16: 1 | AC16: 1 | AG16: 1 | AI16: 1 | AK16: 37464.34488 | AQ16: 1 | AR16: 1 | BJ16: 1
A17: 14 | B17: Diverging | C17: EBT | D17: CrossT1 | E17: Cross thru | F17: EBL | G17: CrossL1 | H17: Cross left | J17: 3750 | K17: 1875 | L17: 7031250 | N17: 40 | O17: 20 | P17: 10 | Q17: 10.299364 | R17: 0.00161398224 | T17: 1 | Z17: 1 | AC17: 1 | AG17: 1 | AI17: 1 | AK17: 11348.31263 | AN17: 1 | BF17: 1
A18: 15 | B18: Nonmotorized | D18: CrossNM1 | E18: Nonmotorized | F18: EBT,EBL | G18: CrossT1,CrossL1 | H18: Cross thru | J18: 375 | K18: 5625 | L18: 2109375 | N18: 0 | O18: 40 | R18: 0.7511584002 | T18: =SSI_RTI_ProtFactor -> 0.505 | V18: 1 | Z18: 2 | AB18: 40 | AC18: 0.7777777778 | AE18: 1 | AF18: 1 | AG18: 3 | AI18: 2.356666667 | AK18: 3734078.829 | AZ18: 1 | BE18: 1 | BF18: 1
A19: 16 | B19: Nonmotorized | D19: RampNM2 | E19: Nonmotorized | F19: SBR | G19: RampR2 | H19: Signal near | J19: 375 | K19: 1125 | L19: 421875 | N19: 0 | O19: 15 | R19: 0.1205004039 | T19: 0.505 | W19: 1 | Z19: 1 | AB19: =IF(B19="Diverging","",SSI_RTI_VehSpeed_SignalNear) -> 15 | AC19: 0.5 | AE19: 1 | AF19: 1 | AG19: 3 | AI19: 0.7575 | AK19: 38508.35174 | BC19: 1 | BP19: 1
A20: 17 | B20: Nonmotorized | D20: RampNM1 | E20: Nonmotorized | F20: EBR | G20: CrossR2 | H20: Cross right | J20: 375 | K20: 1875 | L20: 703125 | N20: 0 | O20: 15 | R20: 0.1205004039 | T20: =SSI_RTI_PermFactor -> 1 | V20: 1 | Z20: 2 | AB20: 40 | AC20: 0.7777777778 | AE20: 1 | AF20: 1 | AG20: 3 | AI20: 4.666666667 | AK20: 395391.9503 | BB20: 1 | BJ20: 1
A21: 18 | B21: Nonmotorized | D21: CrossNM1 | E21: Nonmotorized | F21: WBT,NBL | G21: CrossT2,RampL1 | H21: Cross thru | J21: 375 | K21: 4875 | L21: 1828125 | N21: 0 | O21: 40 | R21: 0.7511584002 | T21: 0.505 | V21: 1 | Z21: 2 | AB21: 40 | AC21: 0.7777777778 | AE21: 1 | AF21: 1 | AG21: 3 | AI21: 2.356666667 | AK21: 3236201.651 | AZ21: 1 | BH21: 1 | BL21: 1 | BS21: =IF(ISNUMBER(SEARCH(BS$3,$G21)),1,"") -> 
A22: 19 | B22: Nonmotorized | D22: CrossNM2 | E22: Nonmotorized | F22: WBT,WBL | G22: CrossT2,CrossL2 | H22: Cross thru | J22: 375 | K22: 5625 | L22: 2109375 | N22: 0 | O22: 40 | R22: 0.7511584002 | T22: 0.505 | V22: 1 | Z22: 2 | AB22: 40 | AC22: 0.7777777778 | AE22: 1 | AF22: 1 | AG22: 3 | AI22: 2.356666667 | AK22: 3734078.829 | BA22: 1 | BE22: =IF(ISNUMBER(SEARCH(BE$3,$G22)),1,"") ->  | BH22: 1 | BI22: 1
A23: 20 | B23: Nonmotorized | D23: RampNM1 | E23: Nonmotorized | F23: NBR | G23: RampR1 | H23: Signal near | J23: 375 | K23: 1125 | L23: 421875 | N23: 0 | O23: 15 | R23: 0.1205004039 | T23: 0.505 | W23: 1 | Z23: 1 | AB23: =IF(B23="Diverging","",SSI_RTI_VehSpeed_SignalNear) -> 15 | AC23: 0.5 | AE23: 1 | AF23: 1 | AG23: 3 | AI23: 0.7575 | AK23: 38508.35174 | AZ23: =IF(ISNUMBER(SEARCH(AZ$3,$D23)),1,"") ->  | BB23: 1 | BM23: 1
A24: 21 | B24: Nonmotorized | D24: RampNM2 | E24: Nonmotorized | F24: WBR | G24: CrossR2 | H24: Cross right | J24: 375 | K24: 1875 | L24: 703125 | N24: 0 | O24: 15 | R24: 0.1205004039 | T24: =SSI_RTI_PermFactor -> 1 | V24: 1 | Z24: 2 | AB24: 40 | AC24: 0.7777777778 | AE24: 1 | AF24: 1 | AG24: 3 | AI24: 4.666666667 | AK24: 395391.9503 | AN24: =IF(ISNUMBER(SEARCH(AN$3,$D24)),1,"") ->  | BC24: 1 | BJ24: 1
A25: 22 | B25: Nonmotorized | D25: CrossNM2 | E25: Nonmotorized | F25: EBT,SBL | G25: CrossT1,RampL2 | H25: Cross thru | J25: 375 | K25: 4875 | L25: 1828125 | N25: 0 | O25: 40 | R25: 0.7511584002 | T25: 0.505 | V25: 1 | Z25: 2 | AB25: 40 | AC25: 0.7777777778 | AE25: 1 | AF25: 1 | AG25: 3 | AI25: 2.356666667 | AK25: =L25*R25*AI25 -> 3236201.651 | BA25: 1 | BE25: 1 | BO25: 1
AM26: O | AN26: ='SSI Inputs RTI'!$D$28 -> 3750 | AO26: ='SSI Inputs RTI'!$D$29 -> 1875 | AP26: ='SSI Inputs RTI'!$D$30 -> 1875 | AQ26: ='SSI Inputs RTI'!$D$32 -> 3750 | AR26: ='SSI Inputs RTI'!$D$33 -> 1875 | AS26: ='SSI Inputs RTI'!$D$34 -> 1875 | AT26: ='SSI Inputs RTI'!$D$36 -> 2250 | AU26: ='SSI Inputs RTI'!$D$37 -> 1125 | AV26: ='SSI Inputs RTI'!$D$38 -> 1125 | AW26: ='SSI Inputs RTI'!$D$40 -> 2250 | AX26: ='SSI Inputs RTI'!$D$41 -> 1125 | AY26: ='SSI Inputs RTI'!$D$42 -> 1125 | AZ26: ='SSI Inputs RTI'!$Q$20 -> 375 | BA26: ='SSI Inputs RTI'!$Q$21 -> 375 | BB26: ='SSI Inputs RTI'!$Q$22 -> 375 | BC26: ='SSI Inputs RTI'!$Q$23 -> 375 | BD26: O | BE26: ='SSI Inputs RTI'!$D$28 -> 3750 | BF26: ='SSI Inputs RTI'!$D$29 -> 1875 | BG26: ='SSI Inputs RTI'!$D$30 -> 1875 | BH26: ='SSI Inputs RTI'!$D$32 -> 3750 | BI26: ='SSI Inputs RTI'!$D$33 -> 1875 | BJ26: ='SSI Inputs RTI'!$D$34 -> 1875 | BK26: ='SSI Inputs RTI'!$D$36 -> 2250 | BL26: ='SSI Inputs RTI'!$D$37 -> 1125 | BM26: ='SSI Inputs RTI'!$D$38 -> 1125 | BN26: ='SSI Inputs RTI'!$D$40 -> 2250 | BO26: ='SSI Inputs RTI'!$D$41 -> 1125 | BP26: ='SSI Inputs RTI'!$D$42 -> 1125 | BQ26: ='SSI Inputs RTI'!$Q$20 -> 375 | BR26: ='SSI Inputs RTI'!$Q$21 -> 375 | BS26: ='SSI Inputs RTI'!$Q$22 -> 375 | BT26: ='SSI Inputs RTI'!$Q$23 -> 375
AM27: D | AN27: ='SSI Inputs RTI'!$E$28 -> 7750 | AO27: ='SSI Inputs RTI'!$E$29 -> 3875 | AP27: ='SSI Inputs RTI'!$E$30 -> 3875 | AQ27: ='SSI Inputs RTI'!$E$32 -> 7750 | AR27: ='SSI Inputs RTI'!$E$33 -> 3875 | AS27: ='SSI Inputs RTI'!$E$34 -> 3875 | AT27: ='SSI Inputs RTI'!$E$36 -> 2500 | AU27: ='SSI Inputs RTI'!$E$37 -> 1250 | AV27: ='SSI Inputs RTI'!$E$38 -> 1250 | AW27: ='SSI Inputs RTI'!$E$40 -> 2500 | AX27: ='SSI Inputs RTI'!$E$41 -> 1250 | AY27: ='SSI Inputs RTI'!$E$42 -> 1250 | AZ27: ='SSI Inputs RTI'!$R$20 -> 425 | BA27: ='SSI Inputs RTI'!$R$21 -> 425 | BB27: ='SSI Inputs RTI'!$R$22 -> 425 | BC27: ='SSI Inputs RTI'!$R$23 -> 425 | BD27: D | BE27: ='SSI Inputs RTI'!$E$28 -> 7750 | BF27: ='SSI Inputs RTI'!$E$29 -> 3875 | BG27: ='SSI Inputs RTI'!$E$30 -> 3875 | BH27: ='SSI Inputs RTI'!$E$32 -> 7750 | BI27: ='SSI Inputs RTI'!$E$33 -> 3875 | BJ27: ='SSI Inputs RTI'!$E$34 -> 3875 | BK27: ='SSI Inputs RTI'!$E$36 -> 2500 | BL27: ='SSI Inputs RTI'!$E$37 -> 1250 | BM27: ='SSI Inputs RTI'!$E$38 -> 1250 | BN27: ='SSI Inputs RTI'!$E$40 -> 2500 | BO27: ='SSI Inputs RTI'!$E$41 -> 1250 | BP27: ='SSI Inputs RTI'!$E$42 -> 1250 | BQ27: ='SSI Inputs RTI'!$R$20 -> 425 | BR27: ='SSI Inputs RTI'!$R$21 -> 425 | BS27: ='SSI Inputs RTI'!$R$22 -> 425 | BT27: ='SSI Inputs RTI'!$R$23 -> 425
J101: Exposure | AK101: Exposure-Severity-Complexity Product
J102: Q1 | K102: Q2 | L102: I
J103: =SUMPRODUCT($AN4:$BC4,$AN$27:$BC$27) -> 11625 | K103: =SUMPRODUCT($BE4:$BT4,$BE$27:$BT$27) -> 9000 | L103: =PRODUCT(J103:K103) -> 104625000 | AK103: =L103*R4*AI4 -> 3048989.617
J104: =SUMPRODUCT($AN5:$BC5,$AN$27:$BC$27) -> 11625 | K104: =SUMPRODUCT($BE5:$BT5,$BE$27:$BT$27) -> 9000 | L104: =PRODUCT(J104:K104) -> 104625000 | AK104: =L104*R5*AI5 -> 3048989.617
J105: 9000 | K105: 1250 | L105: 11250000 | AK105: 7294.358907
J106: 3875 | K106: 3875 | L106: 15015625 | AK106: 4027.617054
J107: 11625 | K107: 1250 | L107: 14531250 | AK107: 78248.04252
J108: 9000 | K108: 1250 | L108: 11250000 | AK108: 7294.358907
J109: 3875 | K109: 3875 | L109: 15015625 | AK109: 4027.617054
J110: 11625 | K110: 1250 | L110: 14531250 | AK110: 78248.04252
J111: 1250 | K111: 1250 | L111: 1562500 | AK111: 1.000959189
J112: 11625 | K112: 3875 | L112: 45046875 | AK112: 160014.3797
J113: 7750 | K113: 3875 | L113: 30031250 | AK113: 48469.90415
J114: 1250 | K114: 1250 | L114: 1562500 | AK114: 1.000959189
J115: 11625 | K115: 3875 | L115: 45046875 | AK115: 160014.3797
J116: 7750 | K116: 3875 | L116: 30031250 | AK116: 48469.90415
J117: 425 | K117: 11625 | L117: 4940625 | AK117: 8746042.412
J118: 425 | K118: 1250 | L118: 531250 | AK118: 48491.99848
J119: 425 | K119: 3875 | L119: 1646875 | AK119: 926095.8126
J120: 425 | K120: 9000 | L120: 3825000 | AK120: 6771129.609
J121: 425 | K121: 11625 | L121: 4940625 | AK121: 8746042.412
J122: 425 | K122: 1250 | L122: 531250 | AK122: 48491.99848
J123: 425 | K123: 3875 | L123: 1646875 | AK123: 926095.8126
J124: 425 | K124: 9000 | L124: 3825000 | AK124: 6771129.609

Sheet SSI Inputs
A1: Safe System Intersection (SSI) Inputs
A2: Specify the geomtric, exposure, severity, and conflicting traffic complexity inputs required for an SSI analysis. | U2: Is Design? | V2: =Input_AnalysisYearType=Notes!A12 -> TRUE
U3: Is 3-Leg? | V3: =Input_NumLegs=Notes!A48 -> FALSE
B4: 1. Roadway Geometry | F4: Lanes | H4: Optional Major Street Designation | N4: Required Inputs
B5: Major number thru lanes (one direction) | F5: 2 | H5: Select major street direction | K5: N-S | N5: Default Available, Override Optional
B6: Minor number thru lanes (one direction) | F6: 1 | H6: Median Presence on Major Road | K6: No | L6: =IF(K6="NO", "TRUE","FALSE") -> TRUE | N6: Planning-Level Default Input
H7: Median Presence on Minor Road | K7: No | L7: =IF(AND(L6="TRUE",'Control Strategy Selection'!C36="TRUE"),"TRUE","FALSE") -> TRUE | N7: Computed Value, Override Optional
B8: 2. Complete the "Exposure" inputs. These inputs will apply to all interesections selected for analysis. | N8: Computed Value - No Override
B9: 3. Complete the "Severity" inputs | N9: Disabled Cell (Often based on input selections)
B10: 4. Complete the "Conflicting Traffic Complexity" inputs
B12: 2. Exposure - All Intersections
B13: Average Daily Traffic (veh/day) | E13: Open | F13: Design | I13: ADT Directional Split | M13: Nonmotorized Total ADT (ped/day) | Q13: Activity Level | R13: ADT Value (ped/day)
B14: Major | E14: =IF(Input_Base_OAADTMajor>0,Input_Base_OAADTMajor,"--") -> 18000 | F14: =IF(Input_Base_DAADTMajor>0,Input_Base_DAADTMajor,"--") -> 20000 | I14: Major | J14: 0.5 | M14: Open Year Total Intersection NM | Q14: Medium (700) | R14: 700
B15: Minor | E15: =IF(Input_Base_OAADTMinor>0,Input_Base_OAADTMinor,"--") -> 8000 | F15: =IF(Input_Base_DAADTMinor>0,Input_Base_DAADTMinor,"--") -> 10000 | I15: Minor | J15: 0.5 | M15: Design Year Total Intersection NM | Q15: Medium (700) | R15: 700
M16: (or overwrite ped movement ADTs below)
B17: Are turning movement ADT values are available? | G17: No | H17: If "Yes", input values in Table 2-A | M17: Nonmotorized Movement ADT (ped/day) | Q17: Open | R17: Design
B18: Are peak hour turning movement counts available? | G18: No | H18: If "Yes", input values in Table 2-B | M18: Major NM 1 (NM mvmt crossing Maj1) | Q18: =$R$14/IF(IS_3LEG,3,4) -> 175 | R18: =$R$15/IF(IS_3LEG,3,4) -> 175
B19: If no turning movment volumes or counts are available, a user can optionally override the planning-level default turning movment proportions in Table 2-C | M19: Major NM 2 | Q19: =$R$14/IF(IS_3LEG,3,4) -> 175 | R19: =$R$15/IF(IS_3LEG,3,4) -> 175
M20: Minor NM 1 | Q20: =$R$14/IF(IS_3LEG,3,4) -> 175 | R20: =$R$15/IF(IS_3LEG,3,4) -> 175
M21: Minor NM 2 | Q21: =IF(IS_3LEG,0,$R$14/4) -> 175 | R21: =IF(IS_3LEG,0,$R$15/4) -> 175
B24: Table 2-A: Turning Movement (vol/day) | G24: Table 2-B: Turning Movement Counts (Optional) | P24: Table 2-C: Turning Proportions (optional) | T24: Turning movment proportions specified in Table 2-C (and by extension, the percentages determined in Table 2-B) are considered to be constant between the Open and Design years of the analysis.
D25: Open | E25: Design | I25: Mvmt | J25: AM Peak | K25: AM % | L25: PM Peak | M25: PM % | N25: Avg % | R25: Decimal
B26: Major Thru 1 | D26: =$E$14*$J$14*R26 -> 6543.956044 | E26: =$F$14*$J$14*R26 -> 7271.062271 | G26: Major Thru 1 | I26: =IF($K$5="N-S","NBT", "EBT") -> NBT | J26: 400 | K26: =J26/SUM(J$26:J$28) -> 0.7619047619 | L26: 450 | M26: =L26/SUM(L$26:L$28) -> 0.6923076923 | N26: =AVERAGE(K26,M26) -> 0.7271062271 | P26: Major Thru 1 | R26: =1-SUM(R27:R28) -> 0.7271062271
B27: Major Left Turn 1 | D27: =$E$14*$J$14*R27 -> 2068.681319 | E27: =$F$14*$J$14*R27 -> 2298.534799 | G27: Major Left Turn 1 | I27: =IF($K$5="N-S","NBL", "EBL") -> NBL | J27: 100 | K27: =J27/SUM(J$26:J$28) -> 0.1904761905 | L27: 175 | M27: =L27/SUM(L$26:L$28) -> 0.2692307692 | N27: =AVERAGE(K27,M27) -> 0.2298534799 | P27: Major Left Turn 1 | R27: =IF(IS_3LEG,0,IF(AND(J27<>0,L27<>0),N27,0.25)) -> 0.2298534799
B28: Major Right Turn 1 | D28: =$E$14*$J$14*R28 -> 387.3626374 | E28: =$F$14*$J$14*R28 -> 430.4029304 | G28: Major Right Turn 1 | I28: =IF($K$5="N-S","NBR", "EBR") -> NBR | J28: 25 | K28: =J28/SUM(J$26:J$28) -> 0.04761904762 | L28: 25 | M28: =L28/SUM(L$26:L$28) -> 0.03846153846 | N28: =AVERAGE(K28,M28) -> 0.04304029304 | P28: Major Right Turn 1 | R28: =IF(AND(J28<>0,L28<>0),N28,0.25) -> 0.04304029304
B30: Major Thru 2 | D30: =$E$14*$J$14*R30 -> 6502.747253 | E30: =$F$14*$J$14*R30 -> 7225.274725 | G30: Major Thru 2 | I30: =IF($K$5="N-S","SBT", "WBT") -> SBT | J30: 450 | K30: =J30/SUM(J$30:J$32) -> 0.6923076923 | L30: 400 | M30: =L30/SUM(L$30:L$32) -> 0.7619047619 | N30: =AVERAGE(K30,M30) -> 0.7271062271 | P30: Major Thru 2 | R30: =1-SUM(R31:R32) -> 0.7225274725
B31: Major Left Turn 2 | D31: =$E$14*$J$14*R31 -> 2068.681319 | E31: =$F$14*$J$14*R31 -> 2298.534799 | G31: Major Left Turn 2 | I31: =IF($K$5="N-S","SBL", "WBL") -> SBL | J31: 175 | K31: =J31/SUM(J$30:J$32) -> 0.2692307692 | L31: 100 | M31: =L31/SUM(L$30:L$32) -> 0.1904761905 | N31: =AVERAGE(K31,M31) -> 0.2298534799 | P31: Major Left Turn 2 | R31: =IF(AND(J31<>0,L31<>0),N31,0.25) -> 0.2298534799
B32: Major Right Turn 2 | D32: =$E$14*$J$14*R32 -> 428.5714286 | E32: =$F$14*$J$14*R32 -> 476.1904762 | G32: Major Right Turn 2 | I32: =IF($K$5="N-S","SBR", "WBR") -> SBR | J32: 25 | K32: =J32/SUM(J$30:J$32) -> 0.03846153846 | L32: 25 | M32: =L32/SUM(L$30:L$32) -> 0.04761904762 | N32: 0.04304029304 | P32: Major Right Turn 2 | R32: =IF(IS_3LEG,0,IF(AND(J32<>0,L32<>0),M32,0.25)) -> 0.04761904762
B34: Minor Thru 1 | D34: =$E$15*$J$15*R34 -> 1785.714286 | E34: =$F$15*$J$15*R34 -> 2232.142857 | G34: Minor Thru 1 | I34: =IF($K$5="N-S","EBT", "NBT") -> EBT | J34: 100 | K34: =J34/SUM(J$34:J$36) -> 0.5 | L34: 75 | M34: =L34/SUM(L$34:L$36) -> 0.4285714286 | N34: =AVERAGE(K34,M34) -> 0.4642857143 | P34: Minor Thru 1 | R34: =1-SUM(R35:R36) -> 0.4464285714
B35: Minor Left Turn 1 | D35: =$E$15*$J$15*R35 -> 1071.428571 | E35: =$F$15*$J$15*R35 -> 1339.285714 | G35: Minor Left Turn 1 | I35: =IF($K$5="N-S","EBL", "NBL") -> EBL | J35: 50 | K35: =J35/SUM(J$34:J$36) -> 0.25 | L35: 50 | M35: =L35/SUM(L$34:L$36) -> 0.2857142857 | N35: =AVERAGE(K35,M35) -> 0.2678571429 | P35: Minor Left Turn 1 | R35: =IF(AND(J35<>0,L35<>0),N35,IF(IS_3LEG,0.5,0.25)) -> 0.2678571429
B36: Minor Right Turn 1 | D36: =$E$15*$J$15*R36 -> 1142.857143 | E36: =$F$15*$J$15*R36 -> 1428.571429 | G36: Minor Right Turn 1 | I36: =IF($K$5="N-S","EBR", "NBR") -> EBR | J36: 50 | K36: =J36/SUM(J$34:J$36) -> 0.25 | L36: 50 | M36: =L36/SUM(L$34:L$36) -> 0.2857142857 | N36: 0.2678571429 | P36: Minor Right Turn 1 | R36: =IF(AND(J36<>0,L36<>0),M36,IF(IS_3LEG,0.5,0.25)) -> 0.2857142857
B38: Minor Thru 2 | D38: =$E$15*$J$15*R38 -> 1857.142857 | E38: =$F$15*$J$15*R38 -> 2321.428571 | G38: Minor Thru 2 | I38: =IF($K$5="N-S","WBT", "SBT") -> WBT | J38: 75 | K38: =J38/SUM(J$38:J$40) -> 0.4285714286 | L38: 100 | M38: =L38/SUM(L$38:L$40) -> 0.5 | N38: =AVERAGE(K38,M38) -> 0.4642857143 | P38: Minor Thru 2 | R38: =IF(IS_3LEG,0,1-SUM(R39:R40)) -> 0.4642857143
B39: Minor Left Turn 2 | D39: =$E$15*$J$15*R39 -> 1071.428571 | E39: =$F$15*$J$15*R39 -> 1339.285714 | G39: Minor Left Turn 2 | I39: =IF($K$5="N-S","WBL", "SBL") -> WBL | J39: 50 | K39: =J39/SUM(J$38:J$40) -> 0.2857142857 | L39: 50 | M39: =L39/SUM(L$38:L$40) -> 0.25 | N39: =AVERAGE(K39,M39) -> 0.2678571429 | P39: Minor Left Turn 2 | R39: =IF(IS_3LEG,0,IF(AND(J39<>0,L39<>0),N39,0.25)) -> 0.2678571429
B40: Minor Right Turn 2 | D40: =$E$15*$J$15*R40 -> 1071.428571 | E40: =$F$15*$J$15*R40 -> 1339.285714 | G40: Minor Right Turn 2 | I40: =IF($K$5="N-S","WBR", "SBR") -> WBR | J40: 50 | K40: =J40/SUM(J$38:J$40) -> 0.2857142857 | L40: 50 | M40: =L40/SUM(L$38:L$40) -> 0.25 | N40: 0.2678571429 | P40: Minor Right Turn 2 | R40: =IF(IS_3LEG,0,IF(AND(J39<>0,L39<>0),N39,0.25)) -> 0.2678571429
B43: 3. Severity | H43: 4. Conflicting Traffic Complexity
B45: Vehicle Speeds | F45: mph | H45: Traffic Control | M45: Decimal
B46: Major Posted Speed Limit | F46: 45 | H46: Base Traffic Control Adjustment Value (BTCAV) for permitted | M46: 1
B47: Minor Posted Speed Limit | F47: 35 | H47: Base Traffic Control Adjustment Value (BTCAV) for protected/permitted | M47: 0.85
H48: Base Traffic Control Adjustment Value (BTCAV) for protected | M48: 0.01
B49: Major thru | F49: =F46 -> 45 | H49: Base Traffic Control Adjustment Value (BTCAV) for stop-controlled | M49: 0.45
B50: Major left | F50: 20
B51: Major right | F51: 15 | H51: Weight, f, for permitted | M51: 0.5
B52: Minor thru | F52: =F47*0.85 -> 29.75 | H52: Weight, f, for protected/permitted | M52: 0.5
B53: Minor left | F53: 20 | H53: Weight, f, for protected | M53: 0.5
B54: Minor right | F54: 15 | H54: Weight, f, for stop-controlled | M54: 0.5
B55: Stop near | F55: 15
B56: Stop far | F56: 25 | H56: Major LT signal phasing (drop-down) | L56: Protected
B57: Signal near | F57: 15 | H57: Minor LT signal phasing (drop-down) | L57: Protected
B58: Signal far | F58: 25 | H58: Exclusive Pedestrian phasing (drop-down) | M58: No
B59: RAB entering | F59: 20
B60: RAB circulating | F60: 25 | H60: Traffic Control Parameter (a_traffic control)
B61: RAB exiting | F61: 30 | H61: Permitted | M61: =M46+(1-M51)*(1-M46) -> 1
B62: Nonmotorized | F62: 0 | H62: Protected/permitted | M62: =M47+(1-M52)*(1-M47) -> 0.925
H63: Protected | M63: =M48+(1-M53)*(1-M48) -> 0.505
B64: Collision Angles | F64: deg | H64: Stop-controlled | M64: =M49+(1-M54)*(1-M49) -> 0.725
B65: Crossing | F65: 90
B66: Crossing - LT | F66: 230 | H66: Driver Merging Weights (W)
B67: Crossing - RAB | F67: 60 | H67: Lane 1 (W1) | M67: 1
B68: Merging | F68: 45 | H68: Lane 2 (W2) | M68: 0.75
B69: Diverging | F69: 10 | H69: Lane 3+ (W3+) | M69: 0.5
B71: P(FSI) Regression Parameters
B72: alpha | F72: 67.28618811 | H72: Nonmotorized Complexity | O72: Yes
B73: k | F73: 3.794500084 | H73: Nonmotorized Turn Score Weights (W)
H74: Lane 1 (W1) | M74: 1
H75: Lane 2 (W2) | M75: 0.75
H76: Lane 3+ (W3) | M76: 0.5

Sheet SSI Inputs RTI (hidden)
A1: Safe System Intersection (SSI) Inputs
A2: Specify the geomtric, exposure, severity, and conflicting traffic complexity inputs required for an SSI analysis.
B4: 1. Roadway Geometry | F4: Lanes | H4: Optional Major Street Designation | N4: Required Inputs
B5: Cross-Street # of Thru Lanes (one direction) | F5: 2 | H5: Select major street direction | K5: N-S | N5: Default Available, Override Optional
B6: Ramp 1 # of Thru Lanes | F6: 1 | H6: Median Presence on Cross Street | K6: No | N6: Planning-Level Default Input
B7: Ramp 2 # of Thru Lanes | F7: 1 | H7: Median Presence on Ramps | K7: No | N7: Computed Value, Override Optional
N8: Computed Value - No Override
B9: 2. Complete the "Exposure" inputs. These inputs will apply to all interesections selected for analysis. | N9: Disabled Cell (Often based on input selections)
B10: 3. Complete the "Severity" inputs
B11: 4. Complete the "Conflicting Traffic Complexity" inputs
B13: 2. Exposure - All Intersections
B14: Average Daily Traffic (veh/day) | E14: Open | F14: Design | H14: ADT Directional Split | M14: Nonmotorized Total ADT (ped/day) | Q14: Activity Level | R14: ADT Value (ped/day)
B15: Cross-Street | E15: =IF(AND(Input_RTI_OAADTOut1 > 0, Input_RTI_OAADTOut2>0),MAX(Input_RTI_OAADTOut1, Input_RTI_OAADTOut2),"--") -> 15000 | F15: =IF(AND(Input_RTI_DAADTOut1 > 0, Input_RTI_DAADTOut2>0),MAX(Input_RTI_DAADTOut1, Input_RTI_DAADTOut2),"--") -> 31000 | H15: Cross-street Inner Leg | K15: 0.5 | M15: Open Year Total Intersection NM | Q15: Med High (1500) | R15: 1500
B16: Ramp 1 | E16: =IF(Input_RTI_OAADTEx1>0,Input_RTI_OAADTEx1,"--") -> 4500 | F16: =IF(Input_RTI_DAADTEx1>0,Input_RTI_DAADTEx1,"--") -> 5000 | H16: Cross-Street Outer Leg | K16: 0.5 | M16: Design Year Total Intersection NM | Q16: High (1700) | R16: 1700
B17: Ramp 2 | E17: =IF(Input_RTI_OAADTEx2>0,Input_RTI_OAADTEx2,"--") -> 4500 | F17: =IF(Input_RTI_DAADTEx2>0,Input_RTI_DAADTEx2,"--") -> 5000 | M17: (or overwrite ped movement ADTs below)
B19: Are turning movement ADT values are available? | G19: No | H19: If "Yes", input values in Table 2-A | M19: Nonmotorized Movement ADT (ped/day) | Q19: Open | R19: Design
B20: Are peak hour turning movement counts available? | G20: No | H20: If "Yes", input values in Table 2-B | M20: Major NM 1 (NM mvmt crossing Maj1) | Q20: =$R$15/4 -> 375 | R20: =$R$16/4 -> 425
B21: If no turning movment volumes or counts are available, a user can optionally override the planning-level default turning movment proportions in Table 2-C | M21: Major NM 2 | Q21: =$R$15/4 -> 375 | R21: =$R$16/4 -> 425
M22: Minor NM 1 | Q22: 375 | R22: 425
M23: Minor NM 2 | Q23: 375 | R23: 425
B26: Table 2-A: Turning Movement (vol/day) | G26: Table 2-B: Turning Movement Counts (Optional) | P26: Table 2-C: Turning Proportions (optional) | T26: Turning movment proportions specified in Table 2-C (and by extension, the percentages determined in Table 2-B) are considered to be constant between the Open and Design years of the analysis.
D27: Open | E27: Design | I27: Mvmt | J27: AM Peak | K27: AM % | L27: PM Peak | M27: PM % | N27: Avg % | R27: Decimal
B28: Cross-Street Thru 1 | D28: =$E$15*$K$15*R28 -> 3750 | E28: =$F$15*$K$15*R28 -> 7750 | G28: Cross-Street Thru 1 | I28: =IF('Control Strategy Selection'!$D$45=Notes!$J$26,"NB", "EB")&"T" -> NBT | P28: Cross-Street Thru 1 | R28: 0.5
B29: Cross-Street Left Turn 1 | D29: =$E$15*$K$15*R29 -> 1875 | E29: =$F$15*$K$15*R29 -> 3875 | G29: Cross-Street Left Turn 1 | I29: =IF('Control Strategy Selection'!$D$45=Notes!$J$26,"NB", "EB")&"L" -> NBL | P29: Cross-Street Left Turn 1 | R29: =IF(AND(J29<>0,L29<>0),N29,0.25) -> 0.25
B30: Cross-Street Right Turn 1 | D30: 1875 | E30: 3875 | G30: Cross-Street Right Turn 1 | I30: =IF('Control Strategy Selection'!$D$45=Notes!$J$26,"NB", "EB")&"R" -> NBR | P30: Cross-Street Right Turn 1 | R30: =IF(AND(J30<>0,L30<>0),N30,0.25) -> 0.25
B32: Cross-Street Thru 2 | D32: =$E$15*$K$15*R32 -> 3750 | E32: =$F$15*$K$15*R32 -> 7750 | G32: Cross-Street Thru 2 | I32: =IF('Control Strategy Selection'!$D$45=Notes!$J$26,"SB", "WB")&"T" -> SBT | P32: Cross-Street Thru 2 | R32: 0.5
B33: Cross-Street Left Turn 2 | D33: =$E$15*$K$15*R33 -> 1875 | E33: =$F$15*$K$15*R33 -> 3875 | G33: Cross-Street Left Turn 2 | I33: =IF('Control Strategy Selection'!$D$45=Notes!$J$26,"SB", "WB")&"L" -> SBL | P33: Cross-Street Left Turn 2 | R33: =IF(AND(J33<>0,L33<>0),N33,0.25) -> 0.25
B34: Cross-Street Right Turn 2 | D34: 1875 | E34: 3875 | G34: Cross-Street Right Turn 2 | I34: =IF('Control Strategy Selection'!$D$45=Notes!$J$26,"SB", "WB")&"R" -> SBR | P34: Cross-Street Right Turn 2 | R34: =IF(AND(J34<>0,L34<>0),N34,0.25) -> 0.25
B36: Ramp Thru 1 | D36: =$E$16*R36 -> 2250 | E36: =$F$16*R36 -> 2500 | G36: Ramp Thru 1 | I36: =IF('Control Strategy Selection'!$D$45=Notes!$J$26,"EB", "NB")&"T" -> EBT | P36: Ramp Thru 1 | R36: 0.5
B37: Ramp Left Turn 1 | D37: =$E$16*R37 -> 1125 | E37: =$F$16*R37 -> 1250 | G37: Ramp Left Turn 1 | I37: =IF('Control Strategy Selection'!$D$45=Notes!$J$26,"EB", "NB")&"L" -> EBL | P37: Ramp Left Turn 1 | R37: =IF(AND(J37<>0,L37<>0),N37,0.25) -> 0.25
B38: Ramp Right Turn 1 | D38: 1125 | E38: 1250 | G38: Ramp Right Turn 1 | I38: =IF('Control Strategy Selection'!$D$45=Notes!$J$26,"EB", "NB")&"R" -> EBR | P38: Ramp Right Turn 1 | R38: =IF(AND(J38<>0,L38<>0),N38,0.25) -> 0.25
B40: Ramp Thru 2 | D40: =$E$17*R40 -> 2250 | E40: =$F$17*R40 -> 2500 | G40: Ramp Thru 2 | I40: =IF('Control Strategy Selection'!$D$45=Notes!$J$26,"WB", "SB")&"T" -> WBT | P40: Ramp Thru 2 | R40: 0.5
B41: Ramp Left Turn 2 | D41: =$E$17*R41 -> 1125 | E41: =$F$17*R41 -> 1250 | G41: Ramp Left Turn 2 | I41: =IF('Control Strategy Selection'!$D$45=Notes!$J$26,"WB", "SB")&"L" -> WBL | P41: Ramp Left Turn 2 | R41: =IF(AND(J41<>0,L41<>0),N41,0.25) -> 0.25
B42: Ramp Right Turn 2 | D42: 1125 | E42: 1250 | G42: Ramp Right Turn 2 | I42: =IF('Control Strategy Selection'!$D$45=Notes!$J$26,"WB", "SB")&"R" -> WBR | P42: Ramp Right Turn 2 | R42: =IF(AND(J42<>0,L42<>0),N42,0.25) -> 0.25
B45: 3. Severity | H45: 4. Conflicting Traffic Complexity
B47: Vehicle Speeds | F47: mph | H47: Traffic Control | M47: Decimal
B48: Cross-Street Posted Speed Limit | F48: 40 | H48: Base Traffic Control Adjustment Value (BTCAV) for permitted | M48: 1
B49: Ramp Posted Speed Limit | F49: 30 | H49: Base Traffic Control Adjustment Value (BTCAV) for protected/permitted | M49: 0.85
H50: Base Traffic Control Adjustment Value (BTCAV) for protected | M50: 0.01
B51: Cross thru | F51: =$F$48 -> 40 | H51: Base Traffic Control Adjustment Value (BTCAV) for stop-controlled | M51: 0.45
B52: Cross left | F52: 20
B53: Cross right | F53: 15 | H53: Weight, f, for permitted | M53: 0.5
B54: Ramp thru | F54: =$F$49*0.85 -> 25.5 | H54: Weight, f, for protected/permitted | M54: 0.5
B55: Ramp left | F55: 20 | H55: Weight, f, for protected | M55: 0.5
B56: Ramp right | F56: 15 | H56: Weight, f, for stop-controlled | M56: 0.5
B57: Stop near | F57: 15
B58: Stop far | F58: 25 | H58: Cross-Street LT signal phasing (drop-down) | L58: Protected
B59: Signal near | F59: 15 | H59: Ramp LT signal phasing (drop-down) | L59: Protected
B60: Signal far | F60: 25 | H60: Exclusive Pedestrian Phasing (drop-down) | M60: No
B61: RAB entering | F61: 20
B62: RAB circulating | F62: 25 | H62: Traffic Control Parameter (a_traffic control)
B63: RAB exiting | F63: 30 | H63: Permitted | M63: =M48+(1-M53)*(1-M48) -> 1
B64: Nonmotorized | F64: 0 | H64: Protected/permitted | M64: =M49+(1-M54)*(1-M49) -> 0.925
H65: Protected | M65: =M50+(1-M55)*(1-M50) -> 0.505
B66: Collision Angles | F66: deg | H66: Stop-controlled | M66: =M51+(1-M56)*(1-M51) -> 0.725
B67: Crossing | F67: 90
B68: Crossing - LT | F68: 230 | H68: Driver Merging Weights (W)
B69: Crossing - RAB | F69: 60 | H69: Lane 1 (W1) | M69: 1
B70: Merging | F70: 45 | H70: Lane 2 (W2) | M70: 0.75
B71: Diverging | F71: 10 | H71: Lane 3+ (W3+) | M71: 0.5
B73: P(FSI) Regression Parameters | J73: Consider nonmotorized complexity factors (Y/N)
B74: alpha | F74: 67.28618811 | H74: Nonmotorized Complexity | O74: Yes
B75: k | F75: 3.794500084 | H75: Nonmotorized Turn Score Weights (W)
H76: Lane 1 (W1) | M76: 1
H77: Lane 2 (W2) | M77: 0.75
H78: Lane 3+ (W3) | M78: 0.5

Sheet Conv_Sig (hidden)
T1: Conflicting Traffic Complexity | AE1: Pedestrian Complexity | BW1: *impact of median on complexity factors
J2: Exposure | N2: Severity | T2: Traffic Control | V2: Conflicting Lanes | AB2: Conflicting Speed | AE2: Indirect Paths Indicator | AF2: Non-intuitive movements indicator | AG2: Pedestrian Complexity factor | AI2: Total Complexity Multiplier | AK2: Exposure-Severity-Complexity Product | AN2: Included in Mvmt1 | BE2: Included in Mvmt2 | BY2: Cross-street: No, Ramps: No | CD2: Cross-street: Yes, Ramps: No | CI2: Cross-street: No, Ramps: Yes | CN2: Cross-street: Yes, Ramps: Yes
A3: # | B3: Conflict Type | C3: Mvmt1 | D3: Mvmt1_gen | E3: Mvmt1_SpeedCat | F3: Mvmt2 | G3: Mvmt2_gen | H3: Mvmt2_SpeedCat | J3: Q1 | K3: Q2 | L3: I | N3: Speed_V1 | O3: Speed_V2 | P3: Angle | Q3: delta_V | R3: P_FSI | V3: CrossC | W3: RampC | X3: CrossM/P | Y3: RampM/P | Z3: Score | AB3: Speed | AC3: Factor | AN3: CrossT1 | AO3: CrossL1 | AP3: CrossR1 | AQ3: CrossT2 | AR3: CrossL2 | AS3: CrossR2 | AT3: RampT1 | AU3: RampL1 | AV3: RampR1 | AW3: RampT2 | AX3: RampL2 | AY3: RampR2 | AZ3: CrossNM1 | BA3: CrossNM2 | BB3: RampNM1 | BC3: RampNM2 | BE3: CrossT1 | BF3: CrossL1 | BG3: CrossR1 | BH3: CrossT2 | BI3: CrossL2 | BJ3: CrossR2 | BK3: RampT1 | BL3: RampL1 | BM3: RampR1 | BN3: RampT2 | BO3: RampL2 | BP3: RampR2 | BQ3: CrossNM1 | BR3: CrossNM2 | BS3: RampNM1 | BT3: RampNM2 | BW3: # | BX3: Conflict Type | BY3: MajC | BZ3: MinC | CA3: MajM/P | CB3: MinM/P | CD3: MajC | CE3: MinC | CF3: MajM/P | CG3: MinM/P | CI3: MajC | CJ3: MinC | CK3: MajM/P | CL3: MinM/P | CN3: MajC | CO3: MinC | CP3: MajM/P | CQ3: MinM/P
A4: 1 | B4: Crossing - LT | C4: WBL | D4: CrossL2 | E4: Cross left | F4: EBT,EBL | G4: CrossT1,CrossL1 | H4: Cross thru | J4: =SUMPRODUCT($AN4:$BC4,$AN$38:$BC$38) -> 1875 | K4: =SUMPRODUCT($BE4:$BT4,$BE$38:$BT$38) -> 5625 | L4: =PRODUCT(J4:K4) -> 10546875 | N4: =VLOOKUP(E4,SSI_RTI_Range_VehSpeed,5,FALSE) -> 20 | O4: =VLOOKUP(H4,SSI_RTI_Range_VehSpeed,5,FALSE) -> 40 | P4: =IF(B4="Nonmotorized","",VLOOKUP(B4,SSI_RTI_Range_CollAngles,5,FALSE)) -> 230 | Q4: =IF(B4="Nonmotorized","",SQRT(N4^2+O4^2-2*N4*O4*COS(RADIANS(P4)))/2) -> 27.51572358 | R4: =IF(B4="Nonmotorized",1/(1+EXP(3.8432-0.1237*O4)),(Q4/SSI_RTI_RegAlpha)^SSI_RTI_RegK+(Q4/SSI_RTI_RegAlpha)^SSI_RTI_RegK-((Q4/SSI_RTI_RegAlpha)^SSI_RTI_RegK)*((Q4/SSI_RTI_RegAlpha)^SSI_RTI_RegK)) -> 0.06608384659 | T4: =IF(SSI_RTI_CrossLTPhase="Protected/permitted",SSI_RTI_ProtPermFactor,IF(SSI_RTI_CrossLTPhase="Protected",SSI_RTI_ProtFactor,SSI_RTI_PermFactor)) -> 0.505 | V4: =IF(AND(SSI_RTI_CrossStMedian="No", SSI_RTI_RampMedian="No"),BY4,IF(AND(SSI_RTI_CrossStMedian="Yes",SSI_RTI_RampMedian="No"),CD4,IF(AND(SSI_RTI_CrossStMedian="No",SSI_RTI_RampMedian="Yes"),CI4,IF(AND(SSI_RTI_CrossStMedian="Yes",SSI_RTI_RampMedian="Yes"),CN4)))) -> 1 | W4: =IF(AND(SSI_RTI_CrossStMedian="No", SSI_RTI_RampMedian="No"),BZ4,IF(AND(SSI_RTI_CrossStMedian="Yes",SSI_RTI_RampMedian="No"),CE4,IF(AND(SSI_RTI_CrossStMedian="No",SSI_RTI_RampMedian="Yes"),CJ4,IF(AND(SSI_RTI_CrossStMedian="Yes",SSI_RTI_RampMedian="Yes"),CO4)))) -> 0 | X4: =IF(AND(SSI_RTI_CrossStMedian="No", SSI_RTI_RampMedian="No"),CA4,IF(AND(SSI_RTI_CrossStMedian="Yes",SSI_RTI_RampMedian="No"),CF4,IF(AND(SSI_RTI_CrossStMedian="No",SSI_RTI_RampMedian="Yes"),CK4,IF(AND(SSI_RTI_CrossStMedian="Yes",SSI_RTI_RampMedian="Yes"),CP4)))) -> 1 | Y4: =IF(AND(SSI_RTI_CrossStMedian="No", SSI_RTI_RampMedian="No"),CB4,IF(AND(SSI_RTI_CrossStMedian="Yes",SSI_RTI_RampMedian="No"),CG4,IF(AND(SSI_RTI_CrossStMedian="No",SSI_RTI_RampMedian="Yes"),CL4,IF(AND(SSI_RTI_CrossStMedian="Yes",SSI_RTI_RampMedian="Yes"),CQ4)))) -> 0 | Z4: =MAX(1,IF(B4<>"Pedestrian",V4*SSI_RTI_CrossThruLanes+W4*SSI_RTI_Ramp1ThruLanes+X4*IF(SSI_RTI_CrossThruLanes=1,SSI_RTI_MergeWeightL1,IF(SSI_RTI_CrossThruLanes=2,SSI_RTI_MergeWeightL1+SSI_RTI_MergeWeightL2,SSI_RTI_MergeWeightL1+SSI_RTI_MergeWeightL2+SSI_RTI_MergeWeightL3*(SSI_RTI_CrossThruLanes-2)))+Y4*IF(SSI_RTI_Ramp1ThruLanes=1,SSI_RTI_MergeWeightL1,IF(SSI_RTI_Ramp1ThruLanes=2,SSI_RTI_MergeWeightL1+SSI_RTI_MergeWeightL2,SSI_RTI_MergeWeightL1+SSI_RTI_MergeWeightL2+SSI_RTI_MergeWeightL3*(SSI_RTI_Ramp1ThruLanes-2))),V4*SSI_RTI_CrossThruLanes+W4*SSI_RTI_Ramp1ThruLanes+X4*IF(SSI_RTI_CrossThruLanes=1,SSI_RTI_NM_MergeWeightL1,IF(SSI_RTI_CrossThruLanes=2,SSI_RTI_NM_MergeWeightL1+SSI_RTI_NM_MergeWeightL2,SSI_RTI_NM_MergeWeightL1+SSI_RTI_NM_MergeWeightL2+SSI_RTI_NM_MergeWeightL3*(SSI_RTI_CrossThruLanes-2)))+Y4*IF(SSI_RTI_Ramp1ThruLanes=1,SSI_RTI_NM_MergeWeightL1,IF(SSI_RTI_Ramp1ThruLanes=2,SSI_RTI_NM_MergeWeightL1+SSI_RTI_NM_MergeWeightL2,SSI_RTI_NM_MergeWeightL1+SSI_RTI_NM_MergeWeightL2+SSI_RTI_NM_MergeWeightL3*(SSI_RTI_Ramp1ThruLanes-2))))) -> 3.75 | AB4: =IF(B4="Diverging","",SSI_RTI_VehSpeed_CrossThru) -> 40 | AC4: =IF(B4="Diverging",1,1-((60-AB4)/60*0.1/0.15)) -> 0.7777777778 | AG4: =IF(SSI_RTI_ConsiderNMComplexity="Yes",1+AE4+AF4,1) -> 1 | AI4: =PRODUCT(Z4,T4,AC4,AG4) -> 1.472916667 | AK4: =L4*R4*AI4 -> 1026590.615 | AN4: =IF(ISNUMBER(SEARCH(AN$3,$D4)),1,"") ->  | AO4: =IF(ISNUMBER(SEARCH(AO$3,$D4)),1,"") ->  | AR4: 1 | BE4: =IF(ISNUMBER(SEARCH(BE$3,$G4)),1,"") -> 1 | BF4: =IF(ISNUMBER(SEARCH(BF$3,$G4)),1,"") -> 1 | BW4: 1 | BX4: Crossing - LT | BY4: 1 | BZ4: 0 | CA4: 1 | CB4: 0 | CD4: 1 | CE4: 0 | CF4: 1 | CG4: 0 | CI4: 1 | CJ4: 0 | CK4: 1 | CL4: 0 | CN4: =IF(OR(CD4="",CI4=""),"",MIN(CD4,CI4)) -> 1 | CO4: =IF(OR(CE4="",CJ4=""),"",MIN(CE4,CJ4)) -> 0 | CP4: 1 | CQ4: 0
A5: 2 | B5: Crossing - LT | C5: SBL | D5: RampL2 | E5: Signal far | F5: WBL | G5: CrossL2 | H5: Cross left | J5: =SUMPRODUCT($AN5:$BC5,$AN$38:$BC$38) -> 1125 | K5: =SUMPRODUCT($BE5:$BT5,$BE$38:$BT$38) -> 1875 | L5: =PRODUCT(J5:K5) -> 2109375 | N5: 25 | O5: 20 | P5: 230 | Q5: =IF(B5="Nonmotorized","",SQRT(N5^2+O5^2-2*N5*O5*COS(RADIANS(P5)))/2) -> 20.41927772 | R5: 0.02155528414 | T5: =SSI_RTI_ProtFactor -> 0.505 | V5: 1 | W5: 0 | X5: 1 | Y5: 0 | Z5: 3.75 | AB5: 40 | AC5: 0.7777777778 | AG5: 1 | AI5: 1.472916667 | AK5: =L5*R5*AI5 -> 66970.83641 | AN5: =IF(ISNUMBER(SEARCH(AN$3,$D5)),1,"") ->  | AX5: 1 | BE5: =IF(ISNUMBER(SEARCH(BE$3,$G5)),1,"") ->  | BI5: 1 | BW5: 2 | BX5: Crossing - LT | BY5: 1 | BZ5: 0 | CA5: 1 | CB5: 0 | CD5: 1 | CE5: 0 | CF5: 0 | CG5: 0 | CI5: 1 | CJ5: 0 | CK5: 1 | CL5: 0 | CN5: =IF(OR(CD5="",CI5=""),"",MIN(CD5,CI5)) -> 1 | CO5: 0 | CP5: 0 | CQ5: 0
A6: 3 | B6: Crossing - LT | C6: SBL | D6: RampL2 | E6: Signal near | F6: WBT,NBL | G6: CrossT2,RampL1 | H6: Cross thru | J6: 1125 | K6: 4875 | L6: 5484375 | N6: 15 | O6: 40 | P6: 230 | Q6: 25.4771718 | R6: 0.04955895981 | T6: =SSI_RTI_ProtFactor -> 0.505 | V6: 1 | W6: 0 | X6: 1 | Y6: 0 | Z6: 3.75 | AB6: 40 | AC6: 0.7777777778 | AG6: 1 | AI6: 1.472916667 | AK6: 400338.6324 | AX6: 1 | BH6: 1 | BL6: 1 | BW6: 3 | BX6: Crossing - LT | BY6: 1 | BZ6: 0 | CA6: 1 | CB6: 0 | CD6: 1 | CE6: 0 | CF6: 0 | CG6: 0 | CI6: 1 | CJ6: 0 | CK6: 1 | CL6: 0 | CN6: 1 | CO6: 0 | CP6: 0 | CQ6: 0
A7: 4 | B7: Crossing - LT | C7: EBL | D7: CrossL1 | E7: Cross left | F7: WBT,WBL | G7: CrossT2,CrossL2 | H7: Cross thru | J7: 1875 | K7: 5625 | L7: 10546875 | N7: 20 | O7: 40 | P7: 230 | Q7: 27.51572358 | R7: 0.06608384659 | T7: =IF(SSI_RTI_CrossLTPhase="Protected/permitted",SSI_RTI_ProtPermFactor,IF(SSI_RTI_CrossLTPhase="Protected",SSI_RTI_ProtFactor,SSI_RTI_PermFactor)) -> 0.505 | V7: 1 | W7: 0 | X7: 1 | Y7: 0 | Z7: 3.75 | AB7: 40 | AC7: 0.7777777778 | AG7: 1 | AI7: 1.472916667 | AK7: 1026590.615 | AO7: 1 | BH7: 1 | BI7: 1 | BW7: 4 | BX7: Crossing - LT | BY7: 1 | BZ7: 0 | CA7: 1 | CB7: 0 | CD7: 1 | CE7: 0 | CF7: 1 | CG7: 0 | CI7: 1 | CJ7: 0 | CK7: 1 | CL7: 0 | CN7: 1 | CO7: 0 | CP7: 1 | CQ7: 0
A8: 5 | B8: Crossing - LT | C8: NBL | D8: RampL1 | E8: Signal far | F8: EBL | G8: CrossL1 | H8: Cross left | J8: 1125 | K8: 1875 | L8: 2109375 | N8: 25 | O8: 20 | P8: 230 | Q8: 20.41927772 | R8: 0.02155528414 | T8: =SSI_RTI_ProtFactor -> 0.505 | V8: 1 | W8: 0 | X8: 1 | Y8: 0 | Z8: 3.75 | AB8: 40 | AC8: 0.7777777778 | AG8: 1 | AI8: 1.472916667 | AK8: 66970.83641 | AU8: 1 | BF8: 1 | BW8: 5 | BX8: Crossing - LT | BY8: 1 | BZ8: 0 | CA8: 1 | CB8: 0 | CD8: 1 | CE8: 0 | CF8: 0 | CG8: 0 | CI8: 1 | CJ8: 0 | CK8: 1 | CL8: 0 | CN8: 1 | CO8: 0 | CP8: 0 | CQ8: 0
A9: 6 | B9: Crossing - LT | C9: NBL | D9: RampL1 | E9: Signal near | F9: EBT,SBL | G9: CrossT1,RampL2 | H9: Cross thru | J9: 1125 | K9: 4875 | L9: 5484375 | N9: 15 | O9: 40 | P9: 230 | Q9: 25.4771718 | R9: 0.04955895981 | T9: 0.505 | V9: 1 | W9: 0 | X9: 1 | Y9: 0 | Z9: 3.75 | AB9: 40 | AC9: 0.7777777778 | AG9: 1 | AI9: 1.472916667 | AK9: 400338.6324 | AU9: 1 | BE9: 1 | BO9: 1 | BW9: 6 | BX9: Crossing - LT | BY9: 1 | BZ9: 0 | CA9: 1 | CB9: 0 | CD9: 1 | CE9: 0 | CF9: 0 | CG9: 0 | CI9: 1 | CJ9: 0 | CK9: 1 | CL9: 0 | CN9: 1 | CO9: 0 | CP9: 0 | CQ9: 0
A10: 7 | B10: Merging | C10: SBR | D10: RampR2 | E10: Signal near | F10: WBT,NBL | G10: CrossT2,RampL1 | H10: Cross thru | J10: 1125 | K10: 4875 | L10: 5484375 | N10: 15 | O10: 40 | P10: 45 | Q10: 15.62427488 | R10: 0.007834035766 | T10: 0.505 | V10: 0 | W10: 0 | X10: 1 | Y10: 0 | Z10: 1.75 | AB10: 40 | AC10: 0.7777777778 | AG10: 1 | AI10: 0.6873611111 | AK10: 29532.32573 | AY10: 1 | BH10: 1 | BL10: 1 | BW10: 7 | BX10: Merging | BY10: 0 | BZ10: 0 | CA10: 1 | CB10: 0 | CD10: 0 | CE10: 0 | CF10: 1 | CG10: 0 | CI10: 0 | CJ10: 0 | CK10: 1 | CL10: 0 | CN10: 0 | CO10: 0 | CP10: 1 | CQ10: 0
A11: 8 | B11: Merging | C11: EBR | D11: CrossR1 | E11: Cross right | F11: WBL | G11: CrossL2 | H11: Cross left | J11: 1875 | K11: 1875 | L11: 3515625 | N11: 15 | O11: 20 | P11: 45 | Q11: 7.084065416 | R11: 0.0003902292327 | T11: 0.505 | V11: 1 | W11: 0 | X11: 1 | Y11: 0 | Z11: 3.75 | AB11: 40 | AC11: 0.7777777778 | AG11: 1 | AI11: 1.472916667 | AK11: 2020.693854 | AP11: 1 | BI11: 1 | BW11: 8 | BX11: Merging | BY11: 1 | BZ11: 0 | CA11: 1 | CB11: 0 | CD11: 1 | CE11: 0 | CF11: 1 | CG11: 0 | CI11: 1 | CJ11: 0 | CK11: 1 | CL11: 0 | CN11: 1 | CO11: 0 | CP11: 1 | CQ11: 0
A12: 9 | B12: Merging | C12: SBL | D12: RampL2 | E12: Signal far | F12: EBT,EBL | G12: CrossT1,CrossL1 | H12: Cross thru | J12: 1125 | K12: 5625 | L12: 6328125 | N12: 25 | O12: 40 | P12: 45 | Q12: 14.23715595 | R12: 0.005508459929 | T12: 0.505 | V12: 1 | W12: 0 | X12: 1 | Y12: 0 | Z12: 3.75 | AB12: 40 | AC12: 0.7777777778 | AG12: 1 | AI12: 1.472916667 | AK12: 51343.25761 | AX12: 1 | BE12: 1 | BF12: 1 | BW12: 9 | BX12: Merging | BY12: 1 | BZ12: 0 | CA12: 1 | CB12: 0 | CD12: 0 | CE12: 0 | CF12: 1 | CG12: 0 | CI12: 1 | CJ12: 0 | CK12: 1 | CL12: 0 | CN12: 0 | CO12: 0 | CP12: 1 | CQ12: 0
A13: 10 | B13: Merging | C13: NBR | D13: RampR1 | E13: Signal near | F13: EBT,SBL | G13: CrossT1,RampL2 | H13: Cross thru | J13: 1125 | K13: 4875 | L13: 5484375 | N13: 15 | O13: 40 | P13: 45 | Q13: 15.62427488 | R13: 0.007834035766 | T13: 0.505 | V13: 0 | W13: 0 | X13: 1 | Y13: 0 | Z13: 1.75 | AB13: 40 | AC13: 0.7777777778 | AG13: 1 | AI13: 0.6873611111 | AK13: 29532.32573 | AV13: 1 | BE13: 1 | BO13: 1 | BW13: 10 | BX13: Merging | BY13: 0 | BZ13: 0 | CA13: 1 | CB13: 0 | CD13: 0 | CE13: 0 | CF13: 1 | CG13: 0 | CI13: 0 | CJ13: 0 | CK13: 1 | CL13: 0 | CN13: 0 | CO13: 0 | CP13: 1 | CQ13: 0
A14: 11 | B14: Merging | C14: WBR | D14: CrossR2 | E14: Cross right | F14: EBL | G14: CrossL1 | H14: Cross left | J14: 1875 | K14: 1875 | L14: 3515625 | N14: 15 | O14: 20 | P14: 45 | Q14: 7.084065416 | R14: 0.0003902292327 | T14: 0.505 | V14: 1 | W14: 0 | X14: 1 | Y14: 0 | Z14: 3.75 | AB14: 40 | AC14: 0.7777777778 | AG14: 1 | AI14: 1.472916667 | AK14: 2020.693854 | AS14: 1 | BF14: 1 | BW14: 11 | BX14: Merging | BY14: 1 | BZ14: 0 | CA14: 1 | CB14: 0 | CD14: 1 | CE14: 0 | CF14: 1 | CG14: 0 | CI14: 1 | CJ14: 0 | CK14: 1 | CL14: 0 | CN14: 1 | CO14: 0 | CP14: 1 | CQ14: 0
A15: 12 | B15: Merging | C15: NBL | D15: RampL1 | E15: Signal far | F15: WBT,WBL | G15: CrossT2,CrossL2 | H15: Cross thru | J15: 1125 | K15: 5625 | L15: 6328125 | N15: 25 | O15: 40 | P15: 45 | Q15: 14.23715595 | R15: 0.005508459929 | T15: 0.505 | V15: 1 | W15: 0 | X15: 1 | Y15: 0 | Z15: 3.75 | AB15: 40 | AC15: 0.7777777778 | AG15: 1 | AI15: 1.472916667 | AK15: 51343.25761 | AU15: 1 | BH15: 1 | BI15: 1 | BW15: 12 | BX15: Merging | BY15: 1 | BZ15: 0 | CA15: 1 | CB15: 0 | CD15: 0 | CE15: 0 | CF15: 1 | CG15: 0 | CI15: 1 | CJ15: 0 | CK15: 1 | CL15: 0 | CN15: 0 | CO15: 0 | CP15: 1 | CQ15: 0
A16: 13 | B16: Diverging | C16: SBR | D16: RampR2 | E16: Signal near | F16: SBL | G16: RampL2 | H16: Signal near | J16: 1125 | K16: 1125 | L16: 1265625 | N16: 15 | O16: 15 | P16: 10 | Q16: 1.307336141 | R16: 6.406138808e-07 | T16: =SSI_RTI_PermFactor -> 1 | V16: 0 | W16: 0 | X16: 0 | Y16: 0 | Z16: 1 | AC16: 1 | AG16: 1 | AI16: 1 | AK16: 0.8107769428 | AY16: 1 | BO16: 1 | BW16: 13 | BX16: Diverging | BY16: 0 | BZ16: 0 | CA16: 0 | CB16: 0 | CD16: 0 | CE16: 0 | CF16: 0 | CG16: 0 | CI16: 0 | CJ16: 0 | CK16: 0 | CL16: 0 | CN16: 0 | CO16: 0 | CP16: 0 | CQ16: 0
A17: 14 | B17: Diverging | C17: EBT, EBL | D17: CrossT1, CrossL1 | E17: Cross thru | F17: EBR | G17: CrossR1 | H17: Cross right | J17: 5625 | K17: 1875 | L17: 10546875 | N17: 40 | O17: 15 | P17: 10 | Q17: 12.68099657 | R17: 0.003552174922 | T17: 1 | V17: 0 | W17: 0 | X17: 0 | Y17: 0 | Z17: 1 | AC17: 1 | AG17: 1 | AI17: 1 | AK17: 37464.34488 | AN17: 1 | AO17: 1 | BG17: 1 | BW17: 14 | BX17: Diverging | BY17: 0 | BZ17: 0 | CA17: 0 | CB17: 0 | CD17: 0 | CE17: 0 | CF17: 0 | CG17: 0 | CI17: 0 | CJ17: 0 | CK17: 0 | CL17: 0 | CN17: 0 | CO17: 0 | CP17: 0 | CQ17: 0
A18: 15 | B18: Diverging | C18: EBT, SBL | D18: CrossT1, RampL2 | E18: Cross thru | F18: EBL | G18: CrossL1 | H18: Cross left | J18: 4875 | K18: 1875 | L18: 9140625 | N18: 40 | O18: 20 | P18: 10 | Q18: 10.299364 | R18: 0.00161398224 | T18: 1 | V18: 0 | W18: 0 | X18: 0 | Y18: 0 | Z18: 1 | AC18: 1 | AG18: 1 | AI18: 1 | AK18: 14752.80641 | AN18: 1 | AX18: 1 | BF18: 1 | BW18: 15 | BX18: Diverging | BY18: 0 | BZ18: 0 | CA18: 0 | CB18: 0 | CD18: 0 | CE18: 0 | CF18: 0 | CG18: 0 | CI18: 0 | CJ18: 0 | CK18: 0 | CL18: 0 | CN18: 0 | CO18: 0 | CP18: 0 | CQ18: 0
A19: 16 | B19: Diverging | C19: NBR | D19: RampR1 | E19: Signal near | F19: NBL | G19: RampL1 | H19: Signal near | J19: 1125 | K19: 1125 | L19: 1265625 | N19: 15 | O19: 15 | P19: 10 | Q19: 1.307336141 | R19: 6.406138808e-07 | T19: 1 | V19: 0 | W19: 0 | X19: 0 | Y19: 0 | Z19: 1 | AC19: 1 | AG19: 1 | AI19: 1 | AK19: 0.8107769428 | AV19: 1 | BL19: 1 | BW19: 16 | BX19: Diverging | BY19: 0 | BZ19: 0 | CA19: 0 | CB19: 0 | CD19: 0 | CE19: 0 | CF19: 0 | CG19: 0 | CI19: 0 | CJ19: 0 | CK19: 0 | CL19: 0 | CN19: 0 | CO19: 0 | CP19: 0 | CQ19: 0
A20: 17 | B20: Diverging | C20: WBT, WBL | D20: CrossT2, CrossL2 | E20: Cross thru | F20: WBR | G20: CrossR2 | H20: Cross right | J20: 5625 | K20: 1875 | L20: 10546875 | N20: 40 | O20: 15 | P20: 10 | Q20: 12.68099657 | R20: 0.003552174922 | T20: 1 | V20: 0 | W20: 0 | X20: 0 | Y20: 0 | Z20: 1 | AC20: 1 | AG20: 1 | AI20: 1 | AK20: 37464.34488 | AQ20: 1 | AR20: 1 | BJ20: 1 | BW20: 17 | BX20: Diverging | BY20: 0 | BZ20: 0 | CA20: 0 | CB20: 0 | CD20: 0 | CE20: 0 | CF20: 0 | CG20: 0 | CI20: 0 | CJ20: 0 | CK20: 0 | CL20: 0 | CN20: 0 | CO20: 0 | CP20: 0 | CQ20: 0
A21: 18 | B21: Diverging | C21: WBT, NBL | D21: CrossT2, RampL1 | E21: Cross thru | F21: WBL | G21: CrossL2 | H21: Cross left | J21: 4875 | K21: 1875 | L21: 9140625 | N21: 40 | O21: 20 | P21: 10 | Q21: 10.299364 | R21: 0.00161398224 | T21: 1 | V21: 0 | W21: 0 | X21: 0 | Y21: 0 | Z21: 1 | AC21: 1 | AG21: 1 | AI21: 1 | AK21: 14752.80641 | AQ21: 1 | AU21: 1 | BI21: 1 | BW21: 18 | BX21: Diverging | BY21: 0 | BZ21: 0 | CA21: 0 | CB21: 0 | CD21: 0 | CE21: 0 | CF21: 0 | CG21: 0 | CI21: 0 | CJ21: 0 | CK21: 0 | CL21: 0 | CN21: 0 | CO21: 0 | CP21: 0 | CQ21: 0
A22: 19 | B22: Nonmotorized | D22: RampNM2 | E22: Nonmotorized | F22: SBL | G22: RampL2 | H22: Signal near | J22: 375 | K22: 1125 | L22: 421875 | N22: 0 | O22: 15 | R22: 0.1205004039 | T22: =SSI_RTI_ProtFactor -> 0.505 | V22: 0 | W22: 1 | X22: 0 | Y22: 0 | Z22: 1 | AB22: =IF(B22="Diverging","",SSI_RTI_VehSpeed_SignalNear) -> 15 | AC22: 0.5 | AG22: 1 | AI22: 0.2525 | AK22: 12836.11725 | BC22: 1 | BO22: 1 | BW22: 19 | BX22: Nonmotorized | BY22: 0 | BZ22: 1 | CA22: 0 | CB22: 0 | CD22: 0 | CE22: 1 | CF22: 0 | CG22: 0 | CI22: 0 | CJ22: 1 | CK22: 0 | CL22: 0 | CN22: 0 | CO22: 1 | CP22: 0 | CQ22: 0
A23: 20 | B23: Nonmotorized | D23: RampNM2 | E23: Nonmotorized | F23: SBR | G23: RampR2 | H23: Signal near | J23: 375 | K23: 1125 | L23: 421875 | N23: 0 | O23: 15 | R23: 0.1205004039 | T23: 0.505 | V23: 0 | W23: 1 | X23: 0 | Y23: 0 | Z23: 1 | AB23: =IF(B23="Diverging","",SSI_RTI_VehSpeed_SignalNear) -> 15 | AC23: 0.5 | AG23: 1 | AI23: 0.2525 | AK23: 12836.11725 | BC23: 1 | BP23: 1 | BW23: 20 | BX23: Nonmotorized | BY23: 0 | BZ23: 1 | CA23: 0 | CB23: 0 | CD23: 0 | CE23: 1 | CF23: 0 | CG23: 0 | CI23: 0 | CJ23: 1 | CK23: 0 | CL23: 0 | CN23: 0 | CO23: 1 | CP23: 0 | CQ23: 0
A24: 21 | B24: Nonmotorized | D24: CrossNM1 | E24: Nonmotorized | F24: SBR | G24: RampR2 | H24: Signal near | J24: 375 | K24: 1125 | L24: 421875 | N24: 0 | O24: 15 | R24: 0.1205004039 | T24: 0.505 | V24: 2 | W24: 0 | X24: 0 | Y24: 1 | Z24: 5 | AB24: 40 | AC24: 0.7777777778 | AG24: 1 | AI24: 1.963888889 | AK24: 99836.46746 | AZ24: 1 | BP24: 1 | BW24: 21 | BX24: Nonmotorized | BY24: 2 | BZ24: 0 | CA24: 0 | CB24: 1 | CD24: 1 | CE24: 0 | CF24: 0 | CG24: 1 | CI24: 2 | CJ24: 0 | CK24: 0 | CL24: 1 | CN24: 1 | CO24: 0 | CP24: 0 | CQ24: 1
A25: 22 | B25: Nonmotorized | D25: CrossNM1 | E25: Nonmotorized | F25: WBT,NBL | G25: CrossT2,RampL1 | H25: Cross thru | J25: 375 | K25: 4875 | L25: 1828125 | N25: 0 | O25: 40 | R25: 0.7511584002 | T25: 0.505 | V25: 2 | W25: 0 | X25: 0 | Y25: 1 | Z25: 5 | AB25: 40 | AC25: 0.7777777778 | AG25: 1 | AI25: 1.963888889 | AK25: =L25*R25*AI25 -> 2696834.71 | AZ25: 1 | BH25: 1 | BL25: 1 | BW25: 22 | BX25: Nonmotorized | BY25: 2 | BZ25: 0 | CA25: 0 | CB25: 1 | CD25: 1 | CE25: 0 | CF25: 0 | CG25: 1 | CI25: 2 | CJ25: 0 | CK25: 0 | CL25: 1 | CN25: 1 | CO25: 0 | CP25: 0 | CQ25: 1
A26: 23 | B26: Nonmotorized | D26: CrossNM1 | E26: Nonmotorized | F26: EBT,EBL | G26: CrossT1,CrossL1 | H26: Cross thru | J26: 375 | K26: 5625 | L26: 2109375 | N26: 0 | O26: 40 | R26: 0.7511584002 | T26: 0.505 | V26: 2 | W26: 0 | X26: 0 | Y26: 1 | Z26: 5 | AB26: 40 | AC26: 0.7777777778 | AG26: 1 | AI26: 1.963888889 | AK26: 3111732.357 | AZ26: 1 | BE26: 1 | BF26: 1 | BW26: 23 | BX26: Nonmotorized | BY26: 2 | BZ26: 0 | CA26: 0 | CB26: 1 | CD26: 1 | CE26: 0 | CF26: 0 | CG26: 0 | CI26: 2 | CJ26: 0 | CK26: 0 | CL26: 1 | CN26: 1 | CO26: 0 | CP26: 0 | CQ26: 0
A27: 24 | B27: Nonmotorized | D27: CrossNM1 | E27: Nonmotorized | F27: EBR | G27: CrossR1 | H27: Cross right | J27: 375 | K27: 1875 | L27: 703125 | N27: 0 | O27: 15 | R27: 0.1205004039 | T27: 0.505 | V27: 2 | W27: 0 | X27: 0 | Y27: 1 | Z27: 5 | AB27: 40 | AC27: 0.7777777778 | AG27: 1 | AI27: 1.963888889 | AK27: 166394.1124 | AZ27: 1 | BG27: 1 | BW27: 24 | BX27: Nonmotorized | BY27: 2 | BZ27: 0 | CA27: 0 | CB27: 1 | CD27: 1 | CE27: 0 | CF27: 0 | CG27: 0 | CI27: 2 | CJ27: 0 | CK27: 0 | CL27: 1 | CN27: 1 | CO27: 0 | CP27: 0 | CQ27: 0
A28: 25 | B28: Nonmotorized | D28: RampNM1 | E28: Nonmotorized | F28: EBR | G28: CrossR1 | H28: Cross right | J28: 375 | K28: 1875 | L28: 703125 | N28: 0 | O28: 15 | R28: 0.1205004039 | T28: 0.505 | V28: 0 | W28: 1 | X28: 2 | Y28: 0 | Z28: 4.5 | AB28: 40 | AC28: 0.7777777778 | AG28: 1 | AI28: 1.7675 | AK28: 149754.7012 | BB28: 1 | BG28: 1 | BW28: 25 | BX28: Nonmotorized | BY28: 0 | BZ28: 1 | CA28: 2 | CB28: 0 | CD28: 0 | CE28: 1 | CF28: 2 | CG28: 0 | CI28: 0 | CJ28: 1 | CK28: 1 | CL28: 0 | CN28: 0 | CO28: 1 | CP28: 1 | CQ28: 0
A29: 26 | B29: Nonmotorized | D29: RampNM1 | E29: Nonmotorized | F29: WBL | G29: CrossL2 | H29: Cross left | J29: 375 | K29: 1875 | L29: 703125 | N29: 0 | O29: 20 | R29: 0.2027491292 | T29: =IF(SSI_RTI_CrossLTPhase="Protected/permitted",SSI_RTI_ProtPermFactor,IF(SSI_RTI_CrossLTPhase="Protected",SSI_RTI_ProtFactor,SSI_RTI_PermFactor)) -> 0.505 | V29: 0 | W29: 1 | X29: 2 | Y29: 0 | Z29: 4.5 | AB29: 40 | AC29: 0.7777777778 | AG29: 1 | AI29: 1.7675 | AK29: 251971.2323 | BB29: 1 | BI29: 1 | BW29: 26 | BX29: Nonmotorized | BY29: 0 | BZ29: 1 | CA29: 2 | CB29: 0 | CD29: 0 | CE29: 1 | CF29: 2 | CG29: 0 | CI29: 0 | CJ29: 1 | CK29: 1 | CL29: 0 | CN29: 0 | CO29: 1 | CP29: 1 | CQ29: 0
A30: 27 | B30: Nonmotorized | D30: RampNM1 | E30: Nonmotorized | F30: NBL | G30: RampL1 | H30: Signal near | J30: 375 | K30: 1125 | L30: 421875 | N30: 0 | O30: 15 | R30: 0.1205004039 | T30: =SSI_RTI_ProtFactor -> 0.505 | V30: 0 | W30: 1 | X30: 0 | Y30: 0 | Z30: 1 | AB30: =IF(B30="Diverging","",SSI_RTI_VehSpeed_SignalNear) -> 15 | AC30: 0.5 | AG30: 1 | AI30: 0.2525 | AK30: 12836.11725 | BB30: 1 | BL30: 1 | BW30: 27 | BX30: Nonmotorized | BY30: 0 | BZ30: 1 | CA30: 0 | CB30: 0 | CD30: 0 | CE30: 1 | CF30: 0 | CG30: 0 | CI30: 0 | CJ30: 1 | CK30: 0 | CL30: 0 | CN30: 0 | CO30: 1 | CP30: 0 | CQ30: 0
A31: 28 | B31: Nonmotorized | D31: RampNM1 | E31: Nonmotorized | F31: NBR | G31: RampR1 | H31: Signal near | J31: 375 | K31: 1125 | L31: 421875 | N31: 0 | O31: 15 | R31: 0.1205004039 | T31: 0.505 | V31: 0 | W31: 1 | X31: 0 | Y31: 0 | Z31: 1 | AB31: =IF(B31="Diverging","",SSI_RTI_VehSpeed_SignalNear) -> 15 | AC31: 0.5 | AG31: 1 | AI31: 0.2525 | AK31: 12836.11725 | BB31: 1 | BM31: 1 | BW31: 28 | BX31: Nonmotorized | BY31: 0 | BZ31: 1 | CA31: 0 | CB31: 0 | CD31: 0 | CE31: 1 | CF31: 0 | CG31: 0 | CI31: 0 | CJ31: 1 | CK31: 0 | CL31: 0 | CN31: 0 | CO31: 1 | CP31: 0 | CQ31: 0
A32: 29 | B32: Nonmotorized | D32: CrossNM2 | E32: Nonmotorized | F32: NBR | G32: RampR1 | H32: Signal near | J32: 375 | K32: 1125 | L32: 421875 | N32: 0 | O32: 15 | R32: 0.1205004039 | T32: 0.505 | V32: 2 | W32: 0 | X32: 0 | Y32: 1 | Z32: 5 | AB32: 40 | AC32: 0.7777777778 | AG32: 1 | AI32: 1.963888889 | AK32: 99836.46746 | BA32: 1 | BM32: 1 | BW32: 29 | BX32: Nonmotorized | BY32: 2 | BZ32: 0 | CA32: 0 | CB32: 1 | CD32: 1 | CE32: 0 | CF32: 0 | CG32: 1 | CI32: 2 | CJ32: 0 | CK32: 0 | CL32: 1 | CN32: 1 | CO32: 0 | CP32: 0 | CQ32: 1
A33: 30 | B33: Nonmotorized | D33: CrossNM2 | E33: Nonmotorized | F33: EBT,SBL | G33: CrossT1,RampL2 | H33: Cross thru | J33: 375 | K33: 4875 | L33: 1828125 | N33: 0 | O33: 40 | R33: 0.7511584002 | T33: 0.505 | V33: 2 | W33: 0 | X33: 0 | Y33: 1 | Z33: 5 | AB33: 40 | AC33: 0.7777777778 | AG33: 1 | AI33: 1.963888889 | AK33: 2696834.71 | BA33: 1 | BE33: 1 | BO33: 1 | BW33: 30 | BX33: Nonmotorized | BY33: 2 | BZ33: 0 | CA33: 0 | CB33: 1 | CD33: 1 | CE33: 0 | CF33: 0 | CG33: 1 | CI33: 2 | CJ33: 0 | CK33: 0 | CL33: 1 | CN33: 1 | CO33: 0 | CP33: 0 | CQ33: 1
A34: 31 | B34: Nonmotorized | D34: CrossNM2 | E34: Nonmotorized | F34: WBT,WBL | G34: CrossT2,CrossL2 | H34: Cross thru | J34: 375 | K34: 5625 | L34: 2109375 | N34: 0 | O34: 40 | R34: 0.7511584002 | T34: 0.505 | V34: 2 | W34: 0 | X34: 0 | Y34: 1 | Z34: 5 | AB34: 40 | AC34: 0.7777777778 | AG34: 1 | AI34: 1.963888889 | AK34: 3111732.357 | BA34: 1 | BH34: 1 | BI34: 1 | BW34: 31 | BX34: Nonmotorized | BY34: 2 | BZ34: 0 | CA34: 0 | CB34: 1 | CD34: 1 | CE34: 0 | CF34: 0 | CG34: 0 | CI34: 2 | CJ34: 0 | CK34: 0 | CL34: 1 | CN34: 1 | CO34: 0 | CP34: 0 | CQ34: 0
A35: 32 | B35: Nonmotorized | D35: CrossNM2 | E35: Nonmotorized | F35: WBR | G35: CrossR2 | H35: Cross right | J35: 375 | K35: 1875 | L35: 703125 | N35: 0 | O35: 15 | R35: 0.1205004039 | T35: 0.505 | V35: 2 | W35: 0 | X35: 0 | Y35: 1 | Z35: 5 | AB35: 40 | AC35: 0.7777777778 | AG35: 1 | AI35: 1.963888889 | AK35: 166394.1124 | AN35: =IF(ISNUMBER(SEARCH(AN$3,$D35)),1,"") ->  | BA35: 1 | BE35: =IF(ISNUMBER(SEARCH(BE$3,$G35)),1,"") ->  | BJ35: 1 | BW35: 32 | BX35: Nonmotorized | BY35: 2 | BZ35: 0 | CA35: 0 | CB35: 1 | CD35: 1 | CE35: 0 | CF35: 0 | CG35: 0 | CI35: 2 | CJ35: 0 | CK35: 0 | CL35: 1 | CN35: 1 | CO35: 0 | CP35: 0 | CQ35: 0
A36: 33 | B36: Nonmotorized | D36: RampNM2 | E36: Nonmotorized | F36: WBR | G36: CrossR2 | H36: Cross right | J36: 375 | K36: 1875 | L36: 703125 | N36: 0 | O36: 15 | Q36: =IF(B36="Nonmotorized","",SQRT(N36^2+O36^2-2*N36*O36*COS(RADIANS(P36)))/2) ->  | R36: 0.1205004039 | T36: 0.505 | V36: 0 | W36: 1 | X36: 2 | Y36: 0 | Z36: 4.5 | AB36: 40 | AC36: 0.7777777778 | AG36: 1 | AI36: 1.7675 | AK36: 149754.7012 | BC36: 1 | BJ36: 1 | BW36: 33 | BX36: Nonmotorized | BY36: 0 | BZ36: 1 | CA36: 2 | CB36: 0 | CD36: 0 | CE36: 1 | CF36: 2 | CG36: 0 | CI36: 0 | CJ36: 1 | CK36: 1 | CL36: 0 | CN36: 0 | CO36: 1 | CP36: 1 | CQ36: 0
A37: 34 | B37: Nonmotorized | D37: RampNM2 | E37: Nonmotorized | F37: EBL | G37: CrossL1 | H37: Cross left | J37: 375 | K37: 1875 | L37: =PRODUCT(J37:K37) -> 703125 | N37: 0 | O37: 20 | R37: 0.2027491292 | T37: =IF(SSI_RTI_CrossLTPhase="Protected/permitted",SSI_RTI_ProtPermFactor,IF(SSI_RTI_CrossLTPhase="Protected",SSI_RTI_ProtFactor,SSI_RTI_PermFactor)) -> 0.505 | V37: 0 | W37: 1 | X37: 2 | Y37: 0 | Z37: 4.5 | AB37: 40 | AC37: 0.7777777778 | AG37: 1 | AI37: 1.7675 | AK37: 251971.2323 | BC37: 1 | BF37: 1 | BW37: 34 | BX37: Nonmotorized | BY37: 0 | BZ37: 1 | CA37: 2 | CB37: 0 | CD37: 0 | CE37: 1 | CF37: 2 | CG37: 0 | CI37: 0 | CJ37: 1 | CK37: 1 | CL37: 0 | CN37: 0 | CO37: 1 | CP37: 1 | CQ37: 0
AM38: O | AN38: ='SSI Inputs RTI'!$D$28 -> 3750 | AO38: ='SSI Inputs RTI'!$D$29 -> 1875 | AP38: ='SSI Inputs RTI'!$D$30 -> 1875 | AQ38: ='SSI Inputs RTI'!$D$32 -> 3750 | AR38: ='SSI Inputs RTI'!$D$33 -> 1875 | AS38: ='SSI Inputs RTI'!$D$34 -> 1875 | AT38: ='SSI Inputs RTI'!$D$36 -> 2250 | AU38: ='SSI Inputs RTI'!$D$37 -> 1125 | AV38: ='SSI Inputs RTI'!$D$38 -> 1125 | AW38: ='SSI Inputs RTI'!$D$40 -> 2250 | AX38: ='SSI Inputs RTI'!$D$41 -> 1125 | AY38: ='SSI Inputs RTI'!$D$42 -> 1125 | AZ38: ='SSI Inputs RTI'!$Q$20 -> 375 | BA38: ='SSI Inputs RTI'!$Q$21 -> 375 | BB38: ='SSI Inputs RTI'!$Q$22 -> 375 | BC38: ='SSI Inputs RTI'!$Q$23 -> 375 | BD38: O | BE38: ='SSI Inputs RTI'!$D$28 -> 3750 | BF38: ='SSI Inputs RTI'!$D$29 -> 1875 | BG38: ='SSI Inputs RTI'!$D$30 -> 1875 | BH38: ='SSI Inputs RTI'!$D$32 -> 3750 | BI38: ='SSI Inputs RTI'!$D$33 -> 1875 | BJ38: ='SSI Inputs RTI'!$D$34 -> 1875 | BK38: ='SSI Inputs RTI'!$D$36 -> 2250 | BL38: ='SSI Inputs RTI'!$D$37 -> 1125 | BM38: ='SSI Inputs RTI'!$D$38 -> 1125 | BN38: ='SSI Inputs RTI'!$D$40 -> 2250 | BO38: ='SSI Inputs RTI'!$D$41 -> 1125 | BP38: ='SSI Inputs RTI'!$D$42 -> 1125 | BQ38: ='SSI Inputs RTI'!$Q$20 -> 375 | BR38: ='SSI Inputs RTI'!$Q$21 -> 375 | BS38: ='SSI Inputs RTI'!$Q$22 -> 375 | BT38: ='SSI Inputs RTI'!$Q$23 -> 375
AM39: D | AN39: ='SSI Inputs RTI'!$E$28 -> 7750 | AO39: ='SSI Inputs RTI'!$E$29 -> 3875 | AP39: ='SSI Inputs RTI'!$E$30 -> 3875 | AQ39: ='SSI Inputs RTI'!$E$32 -> 7750 | AR39: ='SSI Inputs RTI'!$E$33 -> 3875 | AS39: ='SSI Inputs RTI'!$E$34 -> 3875 | AT39: ='SSI Inputs RTI'!$E$36 -> 2500 | AU39: ='SSI Inputs RTI'!$E$37 -> 1250 | AV39: ='SSI Inputs RTI'!$E$38 -> 1250 | AW39: ='SSI Inputs RTI'!$E$40 -> 2500 | AX39: ='SSI Inputs RTI'!$E$41 -> 1250 | AY39: ='SSI Inputs RTI'!$E$42 -> 1250 | AZ39: ='SSI Inputs RTI'!$R$20 -> 425 | BA39: ='SSI Inputs RTI'!$R$21 -> 425 | BB39: ='SSI Inputs RTI'!$R$22 -> 425 | BC39: ='SSI Inputs RTI'!$R$23 -> 425 | BD39: D | BE39: ='SSI Inputs RTI'!$E$28 -> 7750 | BF39: ='SSI Inputs RTI'!$E$29 -> 3875 | BG39: ='SSI Inputs RTI'!$E$30 -> 3875 | BH39: ='SSI Inputs RTI'!$E$32 -> 7750 | BI39: ='SSI Inputs RTI'!$E$33 -> 3875 | BJ39: ='SSI Inputs RTI'!$E$34 -> 3875 | BK39: ='SSI Inputs RTI'!$E$36 -> 2500 | BL39: ='SSI Inputs RTI'!$E$37 -> 1250 | BM39: ='SSI Inputs RTI'!$E$38 -> 1250 | BN39: ='SSI Inputs RTI'!$E$40 -> 2500 | BO39: ='SSI Inputs RTI'!$E$41 -> 1250 | BP39: ='SSI Inputs RTI'!$E$42 -> 1250 | BQ39: ='SSI Inputs RTI'!$R$20 -> 425 | BR39: ='SSI Inputs RTI'!$R$21 -> 425 | BS39: ='SSI Inputs RTI'!$R$22 -> 425 | BT39: ='SSI Inputs RTI'!$R$23 -> 425
J101: Exposure | AK101: Exposure-Severity-Complexity Product
J102: Q1 | K102: Q2 | L102: I
J103: =SUMPRODUCT($AN4:$BC4,$AN$39:$BC$39) -> 3875 | K103: =SUMPRODUCT($BE4:$BT4,$BE$39:$BT$39) -> 11625 | L103: =PRODUCT(J103:K103) -> 45046875 | AK103: =L103*R4*AI4 -> 4384682.582
J104: =SUMPRODUCT($AN5:$BC5,$AN$39:$BC$39) -> 1250 | K104: =SUMPRODUCT($BE5:$BT5,$BE$39:$BT$39) -> 3875 | L104: =PRODUCT(J104:K104) -> 4843750 | AK104: =L104*R5*AI5 -> 153784.8836
J105: 1250 | K105: 9000 | L105: 11250000 | AK105: 821207.4512
J106: 3875 | K106: 11625 | L106: 45046875 | AK106: 4384682.582
J107: 1250 | K107: 3875 | L107: 4843750 | AK107: 153784.8836
J108: 1250 | K108: 9000 | L108: 11250000 | AK108: 821207.4512
J109: 1250 | K109: 9000 | L109: 11250000 | AK109: 60579.1297
J110: 3875 | K110: 3875 | L110: 15015625 | AK110: 8630.607972
J111: 1250 | K111: 11625 | L111: 14531250 | AK111: 117899.3323
J112: 1250 | K112: 9000 | L112: 11250000 | AK112: 60579.1297
J113: 3875 | K113: 3875 | L113: 15015625 | AK113: 8630.607972
J114: 1250 | K114: 11625 | L114: 14531250 | AK114: 117899.3323
J115: 1250 | K115: 1250 | L115: 1562500 | AK115: 1.000959189
J116: 11625 | K116: 3875 | L116: 45046875 | AK116: 160014.3797
J117: 9000 | K117: 3875 | L117: 34875000 | AK117: 56287.63063
J118: 1250 | K118: 1250 | L118: 1562500 | AK118: 1.000959189
J119: 11625 | K119: 3875 | L119: 45046875 | AK119: 160014.3797
J120: 9000 | K120: 3875 | L120: 34875000 | AK120: 56287.63063
J121: 425 | K121: 1250 | L121: 531250 | AK121: 16163.99949
J122: 425 | K122: 1250 | L122: 531250 | AK122: 16163.99949
J123: 425 | K123: 1250 | L123: 531250 | AK123: 125719.9961
J124: 425 | K124: 9000 | L124: 3825000 | AK124: 5642608.008
J125: 425 | K125: 11625 | L125: 4940625 | AK125: 7288368.677
J126: 425 | K126: 3875 | L126: 1646875 | AK126: 389731.9878
J127: 425 | K127: 3875 | L127: 1646875 | AK127: 350758.789
J128: 425 | K128: 3875 | L128: 1646875 | AK128: 590172.6196
J129: 425 | K129: 1250 | L129: 531250 | AK129: 16163.99949
J130: 425 | K130: 1250 | L130: 531250 | AK130: 16163.99949
J131: 425 | K131: 1250 | L131: 531250 | AK131: 125719.9961
J132: 425 | K132: 9000 | L132: 3825000 | AK132: 5642608.008
J133: 425 | K133: 11625 | L133: 4940625 | AK133: 7288368.677
J134: 425 | K134: 3875 | L134: 1646875 | AK134: 389731.9878
J135: 425 | K135: 3875 | L135: 1646875 | AK135: 350758.789
J136: 425 | K136: 3875 | L136: 1646875 | AK136: 590172.6196

Sheet Conv_Ramp_Stop (hidden)
T1: Conflicting Traffic Complexity | AE1: Pedestrian Complexity
J2: Exposure | N2: Severity | T2: Traffic Control | V2: Conflicting Lanes | AB2: Conflicting Speed | AE2: Indirect Paths Indicator | AF2: Non-intuitive movements indicator | AG2: Pedestrian Complexity factor | AI2: Total Complexity Multiplier | AK2: Exposure-Severity-Complexity Product | AN2: Included in Mvmt1 | BE2: Included in Mvmt2
A3: # | B3: Conflict Type | C3: Mvmt1 | D3: Mvmt1_gen | E3: Mvmt1_SpeedCat | F3: Mvmt2 | G3: Mvmt2_gen | H3: Mvmt2_SpeedCat | J3: Q1 | K3: Q2 | L3: I | N3: Speed_V1 | O3: Speed_V2 | P3: Angle | Q3: delta_V | R3: P_FSI | V3: CrossC | W3: RampC | X3: CrossM/P | Y3: RampM/P | Z3: Score | AB3: Speed | AC3: Factor | AN3: CrossT1 | AO3: CrossL1 | AP3: CrossR1 | AQ3: CrossT2 | AR3: CrossL2 | AS3: CrossR2 | AT3: RampT1 | AU3: RampL1 | AV3: RampR1 | AW3: RampT2 | AX3: RampL2 | AY3: RampR2 | AZ3: CrossNM1 | BA3: CrossNM2 | BB3: RampNM1 | BC3: RampNM2 | BE3: CrossT1 | BF3: CrossL1 | BG3: CrossR1 | BH3: CrossT2 | BI3: CrossL2 | BJ3: CrossR2 | BK3: RampT1 | BL3: RampL1 | BM3: RampR1 | BN3: RampT2 | BO3: RampL2 | BP3: RampR2 | BQ3: CrossNM1 | BR3: CrossNM2 | BS3: RampNM1 | BT3: RampNM2
A4: 1 | B4: Crossing - LT | C4: WBL | D4: CrossL2 | E4: Cross left | F4: EBT,EBL | G4: CrossT1,CrossL1 | H4: Cross thru | J4: =SUMPRODUCT($AN4:$BC4,$AN$38:$BC$38) -> 1875 | K4: =SUMPRODUCT($BE4:$BT4,$BE$38:$BT$38) -> 5625 | L4: =PRODUCT(J4:K4) -> 10546875 | N4: =VLOOKUP(E4,SSI_RTI_Range_VehSpeed,5,FALSE) -> 20 | O4: =VLOOKUP(H4,SSI_RTI_Range_VehSpeed,5,FALSE) -> 40 | P4: =IF(B4="Nonmotorized","",VLOOKUP(B4,SSI_RTI_Range_CollAngles,5,FALSE)) -> 230 | Q4: =IF(B4="Nonmotorized","",SQRT(N4^2+O4^2-2*N4*O4*COS(RADIANS(P4)))/2) -> 27.51572358 | R4: =IF(B4="Nonmotorized",1/(1+EXP(3.8432-0.1237*O4)),(Q4/SSI_RTI_RegAlpha)^SSI_RTI_RegK+(Q4/SSI_RTI_RegAlpha)^SSI_RTI_RegK-((Q4/SSI_RTI_RegAlpha)^SSI_RTI_RegK)*((Q4/SSI_RTI_RegAlpha)^SSI_RTI_RegK)) -> 0.06608384659 | T4: =SSI_RTI_PermFactor -> 1 | V4: 1 | X4: 1 | Z4: =MAX(1,IF(B4<>"Pedestrian",V4*SSI_RTI_CrossThruLanes+W4*SSI_RTI_Ramp1ThruLanes+X4*IF(SSI_RTI_CrossThruLanes=1,SSI_RTI_MergeWeightL1,IF(SSI_RTI_CrossThruLanes=2,SSI_RTI_MergeWeightL1+SSI_RTI_MergeWeightL2,SSI_RTI_MergeWeightL1+SSI_RTI_MergeWeightL2+SSI_RTI_MergeWeightL3*(SSI_RTI_CrossThruLanes-2)))+Y4*IF(SSI_RTI_Ramp1ThruLanes=1,SSI_RTI_MergeWeightL1,IF(SSI_RTI_Ramp1ThruLanes=2,SSI_RTI_MergeWeightL1+SSI_RTI_MergeWeightL2,SSI_RTI_MergeWeightL1+SSI_RTI_MergeWeightL2+SSI_RTI_MergeWeightL3*(SSI_RTI_Ramp1ThruLanes-2))),V4*SSI_RTI_CrossThruLanes+W4*SSI_RTI_Ramp1ThruLanes+X4*IF(SSI_RTI_CrossThruLanes=1,SSI_RTI_NM_MergeWeightL1,IF(SSI_RTI_CrossThruLanes=2,SSI_RTI_NM_MergeWeightL1+SSI_RTI_NM_MergeWeightL2,SSI_RTI_NM_MergeWeightL1+SSI_RTI_NM_MergeWeightL2+SSI_RTI_NM_MergeWeightL3*(SSI_RTI_CrossThruLanes-2)))+Y4*IF(SSI_RTI_Ramp1ThruLanes=1,SSI_RTI_NM_MergeWeightL1,IF(SSI_RTI_Ramp1ThruLanes=2,SSI_RTI_NM_MergeWeightL1+SSI_RTI_NM_MergeWeightL2,SSI_RTI_NM_MergeWeightL1+SSI_RTI_NM_MergeWeightL2+SSI_RTI_NM_MergeWeightL3*(SSI_RTI_Ramp1ThruLanes-2))))) -> 3.75 | AB4: =IF(B4="Diverging","",SSI_RTI_VehSpeed_CrossThru) -> 40 | AC4: =IF(B4="Diverging",1,1-((60-AB4)/60*0.1/0.15)) -> 0.7777777778 | AG4: =IF(SSI_RTI_ConsiderNMComplexity="Yes",1+AE4+AF4,1) -> 1 | AI4: =PRODUCT(Z4,T4,AC4,AG4) -> 2.916666667 | AK4: =L4*R4*AI4 -> 2032852.703 | AN4: =IF(ISNUMBER(SEARCH(AN$3,$D4)),1,"") ->  | AO4: =IF(ISNUMBER(SEARCH(AO$3,$D4)),1,"") ->  | AR4: 1 | BE4: =IF(ISNUMBER(SEARCH(BE$3,$G4)),1,"") -> 1 | BF4: =IF(ISNUMBER(SEARCH(BF$3,$G4)),1,"") -> 1
A5: 2 | B5: Crossing - LT | C5: SBL | D5: RampL2 | E5: Signal far | F5: WBL | G5: CrossL2 | H5: Cross left | J5: =SUMPRODUCT($AN5:$BC5,$AN$38:$BC$38) -> 1125 | K5: =SUMPRODUCT($BE5:$BT5,$BE$38:$BT$38) -> 1875 | L5: =PRODUCT(J5:K5) -> 2109375 | N5: 25 | O5: 20 | P5: 230 | Q5: =IF(B5="Nonmotorized","",SQRT(N5^2+O5^2-2*N5*O5*COS(RADIANS(P5)))/2) -> 20.41927772 | R5: 0.02155528414 | T5: =SSI_RTI_StopFactor -> 0.725 | V5: 1 | X5: 1 | Z5: 3.75 | AB5: 40 | AC5: 0.7777777778 | AG5: 1 | AI5: 2.114583333 | AK5: =L5*R5*AI5 -> 96146.2503 | AN5: =IF(ISNUMBER(SEARCH(AN$3,$D5)),1,"") ->  | AX5: 1 | BE5: =IF(ISNUMBER(SEARCH(BE$3,$G5)),1,"") ->  | BI5: 1
A6: 3 | B6: Crossing - LT | C6: SBL | D6: RampL2 | E6: Signal near | F6: WBT,NBL | G6: CrossT2,RampL1 | H6: Cross thru | J6: 1125 | K6: 4875 | L6: 5484375 | N6: 15 | O6: 40 | P6: 230 | Q6: 25.4771718 | R6: 0.04955895981 | T6: =SSI_RTI_StopFactor -> 0.725 | V6: 1 | X6: 1 | Z6: 3.75 | AB6: 40 | AC6: 0.7777777778 | AG6: 1 | AI6: 2.114583333 | AK6: 574743.5812 | AX6: 1 | BH6: 1 | BL6: 1
A7: 4 | B7: Crossing - LT | C7: EBL | D7: CrossL1 | E7: Cross left | F7: WBT,WBL | G7: CrossT2,CrossL2 | H7: Cross thru | J7: 1875 | K7: 5625 | L7: 10546875 | N7: 20 | O7: 40 | P7: 230 | Q7: 27.51572358 | R7: 0.06608384659 | T7: =SSI_RTI_PermFactor -> 1 | V7: 1 | X7: 1 | Z7: 3.75 | AB7: 40 | AC7: 0.7777777778 | AG7: 1 | AI7: 2.916666667 | AK7: 2032852.703 | AO7: 1 | BH7: 1 | BI7: 1
A8: 5 | B8: Crossing - LT | C8: NBL | D8: RampL1 | E8: Signal far | F8: EBL | G8: CrossL1 | H8: Cross left | J8: 1125 | K8: 1875 | L8: 2109375 | N8: 25 | O8: 20 | P8: 230 | Q8: 20.41927772 | R8: 0.02155528414 | T8: =SSI_RTI_StopFactor -> 0.725 | V8: 1 | X8: 1 | Z8: 3.75 | AB8: 40 | AC8: 0.7777777778 | AG8: 1 | AI8: 2.114583333 | AK8: 96146.2503 | AU8: 1 | BF8: 1
A9: 6 | B9: Crossing - LT | C9: NBL | D9: RampL1 | E9: Signal near | F9: EBT,SBL | G9: CrossT1,RampL2 | H9: Cross thru | J9: 1125 | K9: 4875 | L9: 5484375 | N9: 15 | O9: 40 | P9: 230 | Q9: 25.4771718 | R9: 0.04955895981 | T9: =SSI_RTI_StopFactor -> 0.725 | V9: 1 | X9: 1 | Z9: 3.75 | AB9: 40 | AC9: 0.7777777778 | AG9: 1 | AI9: 2.114583333 | AK9: 574743.5812 | AU9: 1 | BE9: 1 | BO9: 1
A10: 7 | B10: Merging | C10: SBR | D10: RampR2 | E10: Signal near | F10: WBT,NBL | G10: CrossT2,RampL1 | H10: Cross thru | J10: 1125 | K10: 4875 | L10: 5484375 | N10: 15 | O10: 40 | P10: 45 | Q10: 15.62427488 | R10: 0.007834035766 | T10: =SSI_RTI_StopFactor -> 0.725 | X10: 1 | Z10: 1.75 | AB10: 40 | AC10: 0.7777777778 | AG10: 1 | AI10: 0.9868055556 | AK10: 42397.89337 | AY10: 1 | BH10: 1 | BL10: 1
A11: 8 | B11: Merging | C11: EBR | D11: CrossR1 | E11: Cross right | F11: WBL | G11: CrossL2 | H11: Cross left | J11: 1875 | K11: 1875 | L11: 3515625 | N11: 15 | O11: 20 | P11: 45 | Q11: 7.084065416 | R11: 0.0003902292327 | T11: =SSI_RTI_PermFactor -> 1 | V11: 1 | X11: 1 | Z11: 3.75 | AB11: 40 | AC11: 0.7777777778 | AG11: 1 | AI11: 2.916666667 | AK11: 4001.373968 | AP11: 1 | BI11: 1
A12: 9 | B12: Merging | C12: SBL | D12: RampL2 | E12: Signal far | F12: EBT,EBL | G12: CrossT1,CrossL1 | H12: Cross thru | J12: 1125 | K12: 5625 | L12: 6328125 | N12: 25 | O12: 40 | P12: 45 | Q12: 14.23715595 | R12: 0.005508459929 | T12: =SSI_RTI_StopFactor -> 0.725 | V12: 1 | X12: 1 | Z12: 3.75 | AB12: 40 | AC12: 0.7777777778 | AG12: 1 | AI12: 2.114583333 | AK12: 73710.61736 | AX12: 1 | BE12: 1 | BF12: 1
A13: 10 | B13: Merging | C13: NBR | D13: RampR1 | E13: Signal near | F13: EBT,SBL | G13: CrossT1,RampL2 | H13: Cross thru | J13: 1125 | K13: 4875 | L13: 5484375 | N13: 15 | O13: 40 | P13: 45 | Q13: 15.62427488 | R13: 0.007834035766 | T13: =SSI_RTI_StopFactor -> 0.725 | X13: 1 | Z13: 1.75 | AB13: 40 | AC13: 0.7777777778 | AG13: 1 | AI13: 0.9868055556 | AK13: 42397.89337 | AV13: 1 | BE13: 1 | BO13: 1
A14: 11 | B14: Merging | C14: WBR | D14: CrossR2 | E14: Cross right | F14: EBL | G14: CrossL1 | H14: Cross left | J14: 1875 | K14: 1875 | L14: 3515625 | N14: 15 | O14: 20 | P14: 45 | Q14: 7.084065416 | R14: 0.0003902292327 | T14: =SSI_RTI_PermFactor -> 1 | V14: 1 | X14: 1 | Z14: 3.75 | AB14: 40 | AC14: 0.7777777778 | AG14: 1 | AI14: 2.916666667 | AK14: 4001.373968 | AS14: 1 | BF14: 1
A15: 12 | B15: Merging | C15: NBL | D15: RampL1 | E15: Signal far | F15: WBT,WBL | G15: CrossT2,CrossL2 | H15: Cross thru | J15: 1125 | K15: 5625 | L15: 6328125 | N15: 25 | O15: 40 | P15: 45 | Q15: 14.23715595 | R15: 0.005508459929 | T15: =SSI_RTI_StopFactor -> 0.725 | V15: 1 | X15: 1 | Z15: 3.75 | AB15: 40 | AC15: 0.7777777778 | AG15: 1 | AI15: 2.114583333 | AK15: 73710.61736 | AU15: 1 | BH15: 1 | BI15: 1
A16: 13 | B16: Diverging | C16: SBR | D16: RampR2 | E16: Signal near | F16: SBL | G16: RampL2 | H16: Signal near | J16: 1125 | K16: 1125 | L16: 1265625 | N16: 15 | O16: 15 | P16: 10 | Q16: 1.307336141 | R16: 6.406138808e-07 | T16: =SSI_RTI_PermFactor -> 1 | Z16: 1 | AC16: 1 | AG16: 1 | AI16: 1 | AK16: 0.8107769428 | AY16: 1 | BO16: 1
A17: 14 | B17: Diverging | C17: EBT, EBL | D17: CrossT1, CrossL1 | E17: Cross thru | F17: EBR | G17: CrossR1 | H17: Cross right | J17: 5625 | K17: 1875 | L17: 10546875 | N17: 40 | O17: 15 | P17: 10 | Q17: 12.68099657 | R17: 0.003552174922 | T17: 1 | Z17: 1 | AC17: 1 | AG17: 1 | AI17: 1 | AK17: 37464.34488 | AN17: 1 | AO17: 1 | BG17: 1
A18: 15 | B18: Diverging | C18: EBT, SBL | D18: CrossT1, RampL2 | E18: Cross thru | F18: EBL | G18: CrossL1 | H18: Cross left | J18: 4875 | K18: 1875 | L18: 9140625 | N18: 40 | O18: 20 | P18: 10 | Q18: 10.299364 | R18: 0.00161398224 | T18: 1 | Z18: 1 | AC18: 1 | AG18: 1 | AI18: 1 | AK18: 14752.80641 | AN18: 1 | AX18: 1 | BF18: 1
A19: 16 | B19: Diverging | C19: NBR | D19: RampR1 | E19: Signal near | F19: NBL | G19: RampL1 | H19: Signal near | J19: 1125 | K19: 1125 | L19: 1265625 | N19: 15 | O19: 15 | P19: 10 | Q19: 1.307336141 | R19: 6.406138808e-07 | T19: 1 | Z19: 1 | AC19: 1 | AG19: 1 | AI19: 1 | AK19: 0.8107769428 | AV19: 1 | BL19: 1
A20: 17 | B20: Diverging | C20: WBT, WBL | D20: CrossT2, CrossL2 | E20: Cross thru | F20: WBR | G20: CrossR2 | H20: Cross right | J20: 5625 | K20: 1875 | L20: 10546875 | N20: 40 | O20: 15 | P20: 10 | Q20: 12.68099657 | R20: 0.003552174922 | T20: 1 | Z20: 1 | AC20: 1 | AG20: 1 | AI20: 1 | AK20: 37464.34488 | AQ20: 1 | AR20: 1 | BJ20: 1
A21: 18 | B21: Diverging | C21: WBT, NBL | D21: CrossT2, RampL1 | E21: Cross thru | F21: WBL | G21: CrossL2 | H21: Cross left | J21: 4875 | K21: 1875 | L21: 9140625 | N21: 40 | O21: 20 | P21: 10 | Q21: 10.299364 | R21: 0.00161398224 | T21: 1 | Z21: 1 | AC21: 1 | AG21: 1 | AI21: 1 | AK21: 14752.80641 | AQ21: 1 | AU21: 1 | BI21: 1
A22: 19 | B22: Nonmotorized | D22: RampNM2 | E22: Nonmotorized | F22: SBL | G22: RampL2 | H22: Signal near | J22: 375 | K22: 1125 | L22: 421875 | N22: 0 | O22: 15 | R22: 0.1205004039 | T22: =SSI_RTI_StopFactor -> 0.725 | W22: 1 | Z22: 1 | AB22: =IF(B22="Diverging","",SSI_RTI_VehSpeed_StopNear) -> 15 | AC22: 0.5 | AG22: 1 | AI22: 0.3625 | AK22: 18428.08911 | BC22: 1 | BO22: 1
A23: 20 | B23: Nonmotorized | D23: RampNM2 | E23: Nonmotorized | F23: SBR | G23: RampR2 | H23: Signal near | J23: 375 | K23: 1125 | L23: 421875 | N23: 0 | O23: 15 | R23: 0.1205004039 | T23: =SSI_RTI_StopFactor -> 0.725 | W23: 1 | Z23: 1 | AB23: =IF(B23="Diverging","",SSI_RTI_VehSpeed_StopNear) -> 15 | AC23: 0.5 | AG23: 1 | AI23: 0.3625 | AK23: 18428.08911 | BC23: 1 | BP23: 1
A24: 21 | B24: Nonmotorized | D24: CrossNM1 | E24: Nonmotorized | F24: SBR | G24: RampR2 | H24: Signal near | J24: 375 | K24: 1125 | L24: 421875 | N24: 0 | O24: 15 | R24: 0.1205004039 | T24: =SSI_RTI_StopFactor -> 0.725 | V24: 2 | Y24: 1 | Z24: 5 | AB24: 40 | AC24: 0.7777777778 | AG24: 1 | AI24: 2.819444444 | AK24: 143329.582 | AZ24: 1 | BP24: 1
A25: 22 | B25: Nonmotorized | D25: CrossNM1 | E25: Nonmotorized | F25: WBT,NBL | G25: CrossT2,RampL1 | H25: Cross thru | J25: 375 | K25: 4875 | L25: 1828125 | N25: 0 | O25: 40 | R25: 0.7511584002 | T25: =SSI_RTI_PermFactor -> 1 | V25: 2 | Y25: 1 | Z25: 5 | AB25: 40 | AC25: 0.7777777778 | AG25: 1 | AI25: 3.888888889 | AK25: =L25*R25*AI25 -> 5340266.752 | AZ25: 1 | BH25: 1 | BL25: 1
A26: 23 | B26: Nonmotorized | D26: CrossNM1 | E26: Nonmotorized | F26: EBT,EBL | G26: CrossT1,CrossL1 | H26: Cross thru | J26: 375 | K26: 5625 | L26: 2109375 | N26: 0 | O26: 40 | R26: 0.7511584002 | T26: =SSI_RTI_PermFactor -> 1 | V26: 2 | Y26: 1 | Z26: 5 | AB26: 40 | AC26: 0.7777777778 | AG26: 1 | AI26: 3.888888889 | AK26: 6161846.252 | AZ26: 1 | BE26: 1 | BF26: 1
A27: 24 | B27: Nonmotorized | D27: CrossNM1 | E27: Nonmotorized | F27: EBR | G27: CrossR1 | H27: Cross right | J27: 375 | K27: 1875 | L27: 703125 | N27: 0 | O27: 15 | R27: 0.1205004039 | T27: =SSI_RTI_PermFactor -> 1 | V27: 2 | Y27: 1 | Z27: 5 | AB27: 40 | AC27: 0.7777777778 | AG27: 1 | AI27: 3.888888889 | AK27: 329493.292 | AZ27: 1 | BG27: 1
A28: 25 | B28: Nonmotorized | D28: RampNM1 | E28: Nonmotorized | F28: EBR | G28: CrossR1 | H28: Cross right | J28: 375 | K28: 1875 | L28: 703125 | N28: 0 | O28: 15 | R28: 0.1205004039 | T28: =SSI_RTI_PermFactor -> 1 | W28: 1 | X28: 2 | Z28: 4.5 | AB28: =IF(B28="Diverging","",SSI_RTI_VehSpeed_StopNear) -> 15 | AC28: 0.5 | AG28: 1 | AI28: 2.25 | AK28: 190635.4046 | BB28: 1 | BG28: 1
A29: 26 | B29: Nonmotorized | D29: RampNM1 | E29: Nonmotorized | F29: WBL | G29: CrossL2 | H29: Cross left | J29: 375 | K29: 1875 | L29: 703125 | N29: 0 | O29: 20 | R29: 0.2027491292 | T29: =SSI_RTI_PermFactor -> 1 | W29: 1 | X29: 2 | Z29: 4.5 | AB29: =IF(B29="Diverging","",SSI_RTI_VehSpeed_StopNear) -> 15 | AC29: 0.5 | AG29: 1 | AI29: 2.25 | AK29: 320755.4583 | BB29: 1 | BI29: 1
A30: 27 | B30: Nonmotorized | D30: RampNM1 | E30: Nonmotorized | F30: NBL | G30: RampL1 | H30: Signal near | J30: 375 | K30: 1125 | L30: 421875 | N30: 0 | O30: 15 | R30: 0.1205004039 | T30: =SSI_RTI_StopFactor -> 0.725 | W30: 1 | Z30: 1 | AB30: 40 | AC30: 0.7777777778 | AG30: 1 | AI30: 0.5638888889 | AK30: 28665.9164 | BB30: 1 | BL30: 1
A31: 28 | B31: Nonmotorized | D31: RampNM1 | E31: Nonmotorized | F31: NBR | G31: RampR1 | H31: Signal near | J31: 375 | K31: 1125 | L31: 421875 | N31: 0 | O31: 15 | R31: 0.1205004039 | T31: =SSI_RTI_StopFactor -> 0.725 | W31: 1 | Z31: 1 | AB31: 40 | AC31: 0.7777777778 | AG31: 1 | AI31: 0.5638888889 | AK31: 28665.9164 | BB31: 1 | BM31: 1
A32: 29 | B32: Nonmotorized | D32: CrossNM2 | E32: Nonmotorized | F32: NBR | G32: RampR1 | H32: Signal near | J32: 375 | K32: 1125 | L32: 421875 | N32: 0 | O32: 15 | R32: 0.1205004039 | T32: =SSI_RTI_StopFactor -> 0.725 | V32: 2 | Y32: 1 | Z32: 5 | AB32: 40 | AC32: 0.7777777778 | AG32: 1 | AI32: 2.819444444 | AK32: 143329.582 | BA32: 1 | BM32: 1
A33: 30 | B33: Nonmotorized | D33: CrossNM2 | E33: Nonmotorized | F33: EBT,SBL | G33: CrossT1,RampL2 | H33: Cross thru | J33: 375 | K33: 4875 | L33: 1828125 | N33: 0 | O33: 40 | R33: 0.7511584002 | T33: =SSI_RTI_PermFactor -> 1 | V33: 2 | Y33: 1 | Z33: 5 | AB33: 40 | AC33: 0.7777777778 | AG33: 1 | AI33: 3.888888889 | AK33: 5340266.752 | BA33: 1 | BE33: 1 | BO33: 1
A34: 31 | B34: Nonmotorized | D34: CrossNM2 | E34: Nonmotorized | F34: WBT,WBL | G34: CrossT2,CrossL2 | H34: Cross thru | J34: 375 | K34: 5625 | L34: 2109375 | N34: 0 | O34: 40 | R34: 0.7511584002 | T34: =SSI_RTI_PermFactor -> 1 | V34: 2 | Y34: 1 | Z34: 5 | AB34: 40 | AC34: 0.7777777778 | AG34: 1 | AI34: 3.888888889 | AK34: 6161846.252 | BA34: 1 | BH34: 1 | BI34: 1
A35: 32 | B35: Nonmotorized | D35: CrossNM2 | E35: Nonmotorized | F35: WBR | G35: CrossR2 | H35: Cross right | J35: 375 | K35: 1875 | L35: 703125 | N35: 0 | O35: 15 | R35: 0.1205004039 | T35: =SSI_RTI_PermFactor -> 1 | V35: 2 | Y35: 1 | Z35: 5 | AB35: 40 | AC35: 0.7777777778 | AG35: 1 | AI35: 3.888888889 | AK35: 329493.292 | AN35: =IF(ISNUMBER(SEARCH(AN$3,$D35)),1,"") ->  | BA35: 1 | BE35: =IF(ISNUMBER(SEARCH(BE$3,$G35)),1,"") ->  | BJ35: 1
A36: 33 | B36: Nonmotorized | D36: RampNM2 | E36: Nonmotorized | F36: WBR | G36: CrossR2 | H36: Cross right | J36: 375 | K36: 1875 | L36: 703125 | N36: 0 | O36: 15 | Q36: =IF(B36="Nonmotorized","",SQRT(N36^2+O36^2-2*N36*O36*COS(RADIANS(P36)))/2) ->  | R36: 0.1205004039 | T36: =SSI_RTI_PermFactor -> 1 | W36: 1 | X36: 2 | Z36: 4.5 | AB36: 40 | AC36: 0.7777777778 | AG36: 1 | AI36: 3.5 | AK36: 296543.9628 | BC36: 1 | BJ36: 1
A37: 34 | B37: Nonmotorized | D37: RampNM2 | E37: Nonmotorized | F37: EBL | G37: CrossL1 | H37: Cross left | J37: 375 | K37: 1875 | L37: =PRODUCT(J37:K37) -> 703125 | N37: 0 | O37: 20 | R37: 0.2027491292 | T37: =SSI_RTI_PermFactor -> 1 | W37: 1 | X37: 2 | Z37: 4.5 | AB37: 40 | AC37: 0.7777777778 | AG37: 1 | AI37: 3.5 | AK37: 498952.9352 | BC37: 1 | BF37: 1
AM38: O | AN38: ='SSI Inputs RTI'!$D$28 -> 3750 | AO38: ='SSI Inputs RTI'!$D$29 -> 1875 | AP38: ='SSI Inputs RTI'!$D$30 -> 1875 | AQ38: ='SSI Inputs RTI'!$D$32 -> 3750 | AR38: ='SSI Inputs RTI'!$D$33 -> 1875 | AS38: ='SSI Inputs RTI'!$D$34 -> 1875 | AT38: ='SSI Inputs RTI'!$D$36 -> 2250 | AU38: ='SSI Inputs RTI'!$D$37 -> 1125 | AV38: ='SSI Inputs RTI'!$D$38 -> 1125 | AW38: ='SSI Inputs RTI'!$D$40 -> 2250 | AX38: ='SSI Inputs RTI'!$D$41 -> 1125 | AY38: ='SSI Inputs RTI'!$D$42 -> 1125 | AZ38: ='SSI Inputs RTI'!$Q$20 -> 375 | BA38: ='SSI Inputs RTI'!$Q$21 -> 375 | BB38: ='SSI Inputs RTI'!$Q$22 -> 375 | BC38: ='SSI Inputs RTI'!$Q$23 -> 375 | BD38: O | BE38: ='SSI Inputs RTI'!$D$28 -> 3750 | BF38: ='SSI Inputs RTI'!$D$29 -> 1875 | BG38: ='SSI Inputs RTI'!$D$30 -> 1875 | BH38: ='SSI Inputs RTI'!$D$32 -> 3750 | BI38: ='SSI Inputs RTI'!$D$33 -> 1875 | BJ38: ='SSI Inputs RTI'!$D$34 -> 1875 | BK38: ='SSI Inputs RTI'!$D$36 -> 2250 | BL38: ='SSI Inputs RTI'!$D$37 -> 1125 | BM38: ='SSI Inputs RTI'!$D$38 -> 1125 | BN38: ='SSI Inputs RTI'!$D$40 -> 2250 | BO38: ='SSI Inputs RTI'!$D$41 -> 1125 | BP38: ='SSI Inputs RTI'!$D$42 -> 1125 | BQ38: ='SSI Inputs RTI'!$Q$20 -> 375 | BR38: ='SSI Inputs RTI'!$Q$21 -> 375 | BS38: ='SSI Inputs RTI'!$Q$22 -> 375 | BT38: ='SSI Inputs RTI'!$Q$23 -> 375
AM39: D | AN39: ='SSI Inputs RTI'!$E$28 -> 7750 | AO39: ='SSI Inputs RTI'!$E$29 -> 3875 | AP39: ='SSI Inputs RTI'!$E$30 -> 3875 | AQ39: ='SSI Inputs RTI'!$E$32 -> 7750 | AR39: ='SSI Inputs RTI'!$E$33 -> 3875 | AS39: ='SSI Inputs RTI'!$E$34 -> 3875 | AT39: ='SSI Inputs RTI'!$E$36 -> 2500 | AU39: ='SSI Inputs RTI'!$E$37 -> 1250 | AV39: ='SSI Inputs RTI'!$E$38 -> 1250 | AW39: ='SSI Inputs RTI'!$E$40 -> 2500 | AX39: ='SSI Inputs RTI'!$E$41 -> 1250 | AY39: ='SSI Inputs RTI'!$E$42 -> 1250 | AZ39: ='SSI Inputs RTI'!$R$20 -> 425 | BA39: ='SSI Inputs RTI'!$R$21 -> 425 | BB39: ='SSI Inputs RTI'!$R$22 -> 425 | BC39: ='SSI Inputs RTI'!$R$23 -> 425 | BD39: D | BE39: ='SSI Inputs RTI'!$E$28 -> 7750 | BF39: ='SSI Inputs RTI'!$E$29 -> 3875 | BG39: ='SSI Inputs RTI'!$E$30 -> 3875 | BH39: ='SSI Inputs RTI'!$E$32 -> 7750 | BI39: ='SSI Inputs RTI'!$E$33 -> 3875 | BJ39: ='SSI Inputs RTI'!$E$34 -> 3875 | BK39: ='SSI Inputs RTI'!$E$36 -> 2500 | BL39: ='SSI Inputs RTI'!$E$37 -> 1250 | BM39: ='SSI Inputs RTI'!$E$38 -> 1250 | BN39: ='SSI Inputs RTI'!$E$40 -> 2500 | BO39: ='SSI Inputs RTI'!$E$41 -> 1250 | BP39: ='SSI Inputs RTI'!$E$42 -> 1250 | BQ39: ='SSI Inputs RTI'!$R$20 -> 425 | BR39: ='SSI Inputs RTI'!$R$21 -> 425 | BS39: ='SSI Inputs RTI'!$R$22 -> 425 | BT39: ='SSI Inputs RTI'!$R$23 -> 425
J101: Exposure | AK101: Exposure-Severity-Complexity Product
J102: Q1 | K102: Q2 | L102: I
J103: =SUMPRODUCT($AN4:$BC4,$AN$39:$BC$39) -> 3875 | K103: =SUMPRODUCT($BE4:$BT4,$BE$39:$BT$39) -> 11625 | L103: =PRODUCT(J103:K103) -> 45046875 | AK103: =L103*R4*AI4 -> 8682539.766
J104: =SUMPRODUCT($AN5:$BC5,$AN$39:$BC$39) -> 1250 | K104: =SUMPRODUCT($BE5:$BT5,$BE$39:$BT$39) -> 3875 | L104: =PRODUCT(J104:K104) -> 4843750 | AK104: =L104*R5*AI5 -> 220780.2785
J105: 1250 | K105: 9000 | L105: 11250000 | AK105: 1178961.192
J106: 3875 | K106: 11625 | L106: 45046875 | AK106: 8682539.766
J107: 1250 | K107: 3875 | L107: 4843750 | AK107: 220780.2785
J108: 1250 | K108: 9000 | L108: 11250000 | AK108: 1178961.192
J109: 1250 | K109: 9000 | L109: 11250000 | AK109: 86970.03768
J110: 3875 | K110: 3875 | L110: 15015625 | AK110: 17090.31282
J111: 1250 | K111: 11625 | L111: 14531250 | AK111: 169261.4176
J112: 1250 | K112: 9000 | L112: 11250000 | AK112: 86970.03768
J113: 3875 | K113: 3875 | L113: 15015625 | AK113: 17090.31282
J114: 1250 | K114: 11625 | L114: 14531250 | AK114: 169261.4176
J115: 1250 | K115: 1250 | L115: 1562500 | AK115: 1.000959189
J116: 11625 | K116: 3875 | L116: 45046875 | AK116: 160014.3797
J117: 9000 | K117: 3875 | L117: 34875000 | AK117: 56287.63063
J118: 1250 | K118: 1250 | L118: 1562500 | AK118: 1.000959189
J119: 11625 | K119: 3875 | L119: 45046875 | AK119: 160014.3797
J120: 9000 | K120: 3875 | L120: 34875000 | AK120: 56287.63063
J121: 425 | K121: 1250 | L121: 531250 | AK121: 23205.74185
J122: 425 | K122: 1250 | L122: 531250 | AK122: 23205.74185
J123: 425 | K123: 1250 | L123: 531250 | AK123: 180489.1033
J124: 425 | K124: 9000 | L124: 3825000 | AK124: 11173481.2
J125: 425 | K125: 11625 | L125: 4940625 | AK125: 14432413.22
J126: 425 | K126: 3875 | L126: 1646875 | AK126: 771746.5105
J127: 425 | K127: 3875 | L127: 1646875 | AK127: 446510.4811
J128: 425 | K128: 3875 | L128: 1646875 | AK128: 751280.5624
J129: 425 | K129: 1250 | L129: 531250 | AK129: 36097.82065
J130: 425 | K130: 1250 | L130: 531250 | AK130: 36097.82065
J131: 425 | K131: 1250 | L131: 531250 | AK131: 180489.1033
J132: 425 | K132: 9000 | L132: 3825000 | AK132: 11173481.2
J133: 425 | K133: 11625 | L133: 4940625 | AK133: 14432413.22
J134: 425 | K134: 3875 | L134: 1646875 | AK134: 771746.5105
J135: 425 | K135: 3875 | L135: 1646875 | AK135: 694571.8594
J136: 425 | K136: 3875 | L136: 1646875 | AK136: 1168658.653

Sheet RTI_RAB1x1 (hidden)
T1: Conflicting Traffic Complexity | AE1: Pedestrian Complexity
J2: Exposure | N2: Severity | T2: Traffic Control | V2: Conflicting Lanes | AB2: Conflicting Speed | AE2: Indirect Paths Indicator | AF2: Non-intuitive movements indicator | AG2: Pedestrian Complexity factor | AI2: Total Complexity Multiplier | AK2: Exposure-Severity-Complexity Product | AN2: Included in Mvmt1 | BE2: Included in Mvmt2
A3: # | B3: Conflict Type | C3: Mvmt1 | D3: Mvmt1_gen | E3: Mvmt1_SpeedCat | F3: Mvmt2 | G3: Mvmt2_gen | H3: Mvmt2_SpeedCat | J3: Q1 | K3: Q2 | L3: I | N3: Speed_V1 | O3: Speed_V2 | P3: Angle | Q3: delta_V | R3: P_FSI | V3: CrossC | W3: RampC | X3: CrossM/P | Y3: RampM/P | Z3: Score | AB3: Speed | AC3: Factor | AN3: CrossT1 | AO3: CrossL1 | AP3: CrossR1 | AQ3: CrossT2 | AR3: CrossL2 | AS3: CrossR2 | AT3: RampT1 | AU3: RampL1 | AV3: RampR1 | AW3: RampT2 | AX3: RampL2 | AY3: RampR2 | AZ3: CrossNM1 | BA3: CrossNM2 | BB3: RampNM1 | BC3: RampNM2 | BE3: CrossT1 | BF3: CrossL1 | BG3: CrossR1 | BH3: CrossT2 | BI3: CrossL2 | BJ3: CrossR2 | BK3: RampT1 | BL3: RampL1 | BM3: RampR1 | BN3: RampT2 | BO3: RampL2 | BP3: RampR2 | BQ3: CrossNM1 | BR3: CrossNM2 | BS3: RampNM1 | BT3: RampNM2
A4: 1 | B4: Crossing - RAB | C4: WBT,NBL | D4: CrossT2,RampL1 | E4: RAB exiting | F4: SBL | G4: RampL2 | H4: RAB entering | J4: =SUMPRODUCT($AN4:$BC4,$AN$26:$BC$26) -> 4875 | K4: =SUMPRODUCT($BE4:$BT4,$BE$26:$BT$26) -> 1125 | L4: =PRODUCT(J4:K4) -> 5484375 | N4: =VLOOKUP(E4,SSI_RTI_Range_VehSpeed,5,FALSE) -> 30 | O4: =VLOOKUP(H4,SSI_RTI_Range_VehSpeed,5,FALSE) -> 20 | P4: =IF(B4="Nonmotorized","",VLOOKUP(B4,SSI_RTI_Range_CollAngles,5,FALSE)) -> 60 | Q4: =IF(B4="Nonmotorized","",SQRT(N4^2+O4^2-2*N4*O4*COS(RADIANS(P4)))/2) -> 13.22875656 | R4: =IF(B4="Nonmotorized",1/(1+EXP(3.8432-0.1237*O4)),(Q4/SSI_RTI_RegAlpha)^SSI_RTI_RegK+(Q4/SSI_RTI_RegAlpha)^SSI_RTI_RegK-((Q4/SSI_RTI_RegAlpha)^SSI_RTI_RegK)*((Q4/SSI_RTI_RegAlpha)^SSI_RTI_RegK)) -> 0.004169802739 | T4: =SSI_RTI_PermFactor -> 1 | Z4: 1 | AB4: =IF(B4="Diverging","",SSI_RTI_VehSpeed_RABCirc) -> 25 | AC4: =IF(B4="Diverging",1,1-((60-AB4)/60*0.1/0.15)) -> 0.6111111111 | AG4: =IF(SSI_RTI_ConsiderNMComplexity="Yes",1+AE4+AF4,1) -> 1 | AI4: =PRODUCT(Z4,T4,AC4,AG4) -> 0.6111111111 | AK4: =L4*R4*AI4 -> 13975.35449 | AN4: =IF(ISNUMBER(SEARCH(AN$3,$D4)),1,"") ->  | AO4: =IF(ISNUMBER(SEARCH(AO$3,$D4)),1,"") ->  | AQ4: 1 | AU4: 1 | BE4: =IF(ISNUMBER(SEARCH(BE$3,$G4)),1,"") ->  | BF4: =IF(ISNUMBER(SEARCH(BF$3,$G4)),1,"") ->  | BO4: 1
A5: 2 | B5: Crossing - RAB | C5: EBT,SBL | D5: CrossT1,RampL2 | E5: RAB exiting | F5: NBL | G5: RampL1 | H5: RAB entering | J5: 4875 | K5: 1125 | L5: =PRODUCT(J5:K5) -> 5484375 | N5: 30 | O5: 20 | P5: 60 | Q5: =IF(B5="Nonmotorized","",SQRT(N5^2+O5^2-2*N5*O5*COS(RADIANS(P5)))/2) -> 13.22875656 | R5: 0.004169802739 | T5: 1 | Z5: 1 | AB5: 25 | AC5: 0.6111111111 | AG5: 1 | AI5: 0.6111111111 | AK5: =L5*R5*AI5 -> 13975.35449 | AN5: =IF(ISNUMBER(SEARCH(AN$3,$D5)),1,"") -> 1 | AX5: 1 | BE5: =IF(ISNUMBER(SEARCH(BE$3,$G5)),1,"") ->  | BL5: 1
A6: 3 | B6: Merging | C6: WBT,NBL | D6: CrossT2,RampL1 | E6: RAB exiting | F6: SBR | G6: RampR2 | H6: RAB entering | J6: 4875 | K6: 1125 | L6: 5484375 | N6: 30 | O6: 20 | P6: 45 | Q6: 10.62393362 | R6: 0.001815547037 | T6: 1 | Z6: 1 | AB6: 25 | AC6: 0.6111111111 | AG6: 1 | AI6: 0.6111111111 | AK6: 6084.919367 | AQ6: 1 | AU6: 1 | BP6: 1
A7: 4 | B7: Merging | C7: WBL | D7: CrossL2 | E7: RAB circulating | F7: SBL | G7: RampL2 | H7: RAB entering | J7: 1875 | K7: 1125 | L7: 2109375 | N7: 25 | O7: 20 | P7: 45 | Q7: 8.914780126 | R7: 0.0009333798723 | T7: 1 | Z7: 1 | AB7: 25 | AC7: 0.6111111111 | AG7: 1 | AI7: 0.6111111111 | AK7: 1203.184992 | AR7: 1 | BO7: 1
A8: 5 | B8: Merging | C8: EBT,EBL,EBR | D8: CrossT1,CrossL1,CrossR1 | E8: RAB entering | F8: WBL,SBL | G8: CrossL2,RampL2 | H8: RAB circulating | J8: 7500 | K8: 3000 | L8: 22500000 | N8: 20 | O8: 25 | P8: 45 | Q8: 8.914780126 | R8: 0.0009333798723 | T8: 1 | Z8: 1 | AB8: 25 | AC8: 0.6111111111 | AG8: 1 | AI8: 0.6111111111 | AK8: 12833.97324 | AN8: 1 | AO8: 1 | AP8: 1 | BI8: 1 | BO8: 1
A9: 6 | B9: Merging | C9: EBL | D9: CrossL1 | E9: RAB circulating | F9: NBL | G9: RampL1 | H9: RAB entering | J9: 1875 | K9: 1125 | L9: 2109375 | N9: 25 | O9: 20 | P9: 45 | Q9: 8.914780126 | R9: 0.0009333798723 | T9: 1 | Z9: 1 | AB9: 25 | AC9: 0.6111111111 | AG9: 1 | AI9: 0.6111111111 | AK9: 1203.184992 | AO9: 1 | BL9: 1
A10: 7 | B10: Merging | C10: EBT,SBL | D10: CrossT1,RampL2 | E10: RAB exiting | F10: NBR | G10: RampR1 | H10: RAB entering | J10: 4875 | K10: 1125 | L10: 5484375 | N10: 30 | O10: 20 | P10: 45 | Q10: 10.62393362 | R10: 0.001815547037 | T10: 1 | Z10: 1 | AB10: 25 | AC10: 0.6111111111 | AG10: 1 | AI10: 0.6111111111 | AK10: 6084.919367 | AN10: 1 | AX10: 1 | BM10: 1
A11: 8 | B11: Merging | C11: WBT,WBL,WBR | D11: CrossT2,CrossL2,CrossR2 | E11: RAB entering | F11: EBL,NBL | G11: CrossL1,RampL1 | H11: RAB circulating | J11: 7500 | K11: 3000 | L11: 22500000 | N11: 20 | O11: 25 | P11: 45 | Q11: 8.914780126 | R11: 0.0009333798723 | T11: 1 | Z11: 1 | AB11: 25 | AC11: 0.6111111111 | AG11: 1 | AI11: 0.6111111111 | AK11: 12833.97324 | AQ11: 1 | AR11: 1 | AS11: 1 | BF11: 1 | BL11: 1
A12: 9 | B12: Diverging | C12: SBL | D12: RampL2 | E12: RAB entering | F12: SBR | G12: RampR2 | H12: RAB circulating | J12: 1125 | K12: 1125 | L12: 1265625 | N12: 20 | O12: 25 | P12: 10 | Q12: 3.169867781 | R12: 1.845710535e-05 | T12: 1 | Z12: 1 | AB12: =IF(B12="Diverging","",SSI_RTI_VehSpeed_RABEnter) ->  | AC12: 1 | AG12: 1 | AI12: 1 | AK12: 23.35977396 | AX12: 1 | BP12: 1
A13: 10 | B13: Diverging | C13: WBT,NBL | D13: CrossT2,RampL1 | E13: RAB exiting | F13: WBL | G13: CrossL2 | H13: RAB circulating | J13: 4875 | K13: 1875 | L13: 9140625 | N13: 30 | O13: 25 | P13: 10 | Q13: 3.456456657 | R13: 2.563291206e-05 | T13: 1 | Z13: 1 | AC13: 1 | AG13: 1 | AI13: 1 | AK13: 234.3008368 | AQ13: 1 | AU13: 1 | BI13: 1
A14: 11 | B14: Diverging | C14: EBT,EBL,SBL | D14: CrossT1,CrossL1,RampL2 | E14: RAB circulating | F14: EBR,WBL | G14: CrossR1,CrossL2 | H14: RAB exiting | J14: 6750 | K14: 3750 | L14: 25312500 | N14: 25 | O14: 30 | P14: 10 | Q14: 3.456456657 | R14: 2.563291206e-05 | T14: 1 | Z14: 1 | AC14: 1 | AG14: 1 | AI14: 1 | AK14: 648.8330864 | AN14: 1 | AO14: 1 | AX14: 1 | BG14: 1 | BI14: 1
A15: 12 | B15: Diverging | C15: NBL | D15: RampL1 | E15: RAB entering | F15: NBR | G15: RampR1 | H15: RAB circulating | J15: 1125 | K15: 1125 | L15: 1265625 | N15: 20 | O15: 25 | P15: 10 | Q15: 3.169867781 | R15: 1.845710535e-05 | T15: 1 | Z15: 1 | AC15: 1 | AG15: 1 | AI15: 1 | AK15: 23.35977396 | AU15: 1 | BM15: 1
A16: 13 | B16: Diverging | C16: EBT,SBL | D16: CrossT1,RampL2 | E16: RAB exiting | F16: EBL | G16: CrossL1 | H16: RAB circulating | J16: 4875 | K16: 1875 | L16: 9140625 | N16: 30 | O16: 25 | P16: 10 | Q16: 3.456456657 | R16: 2.563291206e-05 | T16: 1 | Z16: 1 | AC16: 1 | AG16: 1 | AI16: 1 | AK16: 234.3008368 | AN16: 1 | AX16: 1 | BF16: 1
A17: 14 | B17: Diverging | C17: WBT,WBL,NBL | D17: CrossT2,CrossL2,RampL1 | E17: RAB circulating | F17: WBR,EBL | G17: CrossR2,CrossL1 | H17: RAB exiting | J17: 6750 | K17: 3750 | L17: 25312500 | N17: 25 | O17: 30 | P17: 10 | Q17: 3.456456657 | R17: 2.563291206e-05 | T17: 1 | Z17: 1 | AC17: 1 | AG17: 1 | AI17: 1 | AK17: 648.8330864 | AQ17: 1 | AR17: 1 | AU17: 1 | BF17: 1 | BJ17: 1
A18: 15 | B18: Nonmotorized | D18: RampNM2 | E18: Nonmotorized | F18: SBR,SBL | G18: RampR2,RampL2 | H18: RAB entering | J18: 375 | K18: 2250 | L18: 843750 | N18: 0 | O18: 20 | R18: 0.2027491292 | T18: 1 | Z18: 1 | AB18: 20 | AC18: 0.5555555556 | AE18: 1 | AG18: 2 | AI18: 1.111111111 | AK18: 190077.3086 | BC18: 1 | BO18: 1 | BP18: 1
A19: 16 | B19: Nonmotorized | D19: CrossNM1 | E19: Nonmotorized | F19: WBT,SBR,NBL | G19: CrossT2,RampR2,RampL1 | H19: RAB exiting | J19: 375 | K19: 6000 | L19: 2250000 | N19: 0 | O19: 30 | R19: 0.4669980502 | T19: 1 | Z19: 1 | AB19: =IF(B19="Diverging","",SSI_RTI_VehSpeed_RABExit) -> 30 | AC19: 0.6666666667 | AE19: 1 | AG19: 2 | AI19: 1.333333333 | AK19: 1400994.15 | AZ19: 1 | BH19: 1 | BL19: 1 | BP19: 1
A20: 17 | B20: Nonmotorized | D20: CrossNM1 | E20: Nonmotorized | F20: EBT,EBR,EBL | G20: CrossT1,CrossR1,CrossL1 | H20: RAB entering | J20: 375 | K20: 7500 | L20: 2812500 | N20: 0 | O20: 20 | R20: 0.2027491292 | T20: 1 | Z20: 1 | AB20: =IF(B20="Diverging","",SSI_RTI_VehSpeed_RABEnter) -> 20 | AC20: 0.5555555556 | AE20: 1 | AG20: 2 | AI20: 1.111111111 | AK20: 633591.0288 | AZ20: 1 | BE20: 1 | BF20: 1 | BG20: 1
A21: 18 | B21: Nonmotorized | D21: RampNM1 | E21: Nonmotorized | F21: EBR,WBL | G21: CrossR1,CrossL2 | H21: RAB exiting | J21: 375 | K21: 3750 | L21: 1406250 | N21: 0 | O21: 30 | R21: 0.4669980502 | T21: 1 | Z21: 1 | AB21: =IF(B21="Diverging","",SSI_RTI_VehSpeed_RABExit) -> 30 | AC21: 0.6666666667 | AE21: 1 | AG21: 2 | AI21: 1.333333333 | AK21: 875621.344 | BB21: 1 | BE21: =IF(ISNUMBER(SEARCH(BE$3,$G21)),1,"") ->  | BG21: 1 | BI21: 1
A22: 19 | B22: Nonmotorized | D22: RampNM1 | E22: Nonmotorized | F22: NBR,NBL | G22: RampR1,RampL1 | H22: RAB entering | J22: 375 | K22: 2250 | L22: 843750 | N22: 0 | O22: 20 | R22: 0.2027491292 | T22: 1 | Z22: 1 | AB22: =IF(B22="Diverging","",SSI_RTI_VehSpeed_RABEnter) -> 20 | AC22: 0.5555555556 | AE22: 1 | AG22: 2 | AI22: 1.111111111 | AK22: 190077.3086 | BB22: 1 | BL22: 1 | BM22: 1
A23: 20 | B23: Nonmotorized | D23: CrossNM2 | E23: Nonmotorized | F23: EBT,NBR,SBL | G23: CrossT1,RampR1,RampL2 | H23: RAB exiting | J23: 375 | K23: 6000 | L23: 2250000 | N23: 0 | O23: 30 | R23: 0.4669980502 | T23: 1 | Z23: 1 | AB23: =IF(B23="Diverging","",SSI_RTI_VehSpeed_RABExit) -> 30 | AC23: 0.6666666667 | AE23: 1 | AG23: 2 | AI23: 1.333333333 | AK23: 1400994.15 | AZ23: =IF(ISNUMBER(SEARCH(AZ$3,$D23)),1,"") ->  | BA23: 1 | BE23: 1 | BM23: 1 | BO23: 1
A24: 21 | B24: Nonmotorized | D24: CrossNM2 | E24: Nonmotorized | F24: WBT,WBR,WBL | G24: CrossT2,CrossR2,CrossL2 | H24: RAB entering | J24: 375 | K24: 7500 | L24: 2812500 | N24: 0 | O24: 20 | R24: 0.2027491292 | T24: 1 | Z24: 1 | AB24: =IF(B24="Diverging","",SSI_RTI_VehSpeed_RABEnter) -> 20 | AC24: 0.5555555556 | AE24: 1 | AG24: 2 | AI24: 1.111111111 | AK24: 633591.0288 | AN24: =IF(ISNUMBER(SEARCH(AN$3,$D24)),1,"") ->  | BA24: 1 | BH24: 1 | BI24: 1 | BJ24: 1
A25: 22 | B25: Nonmotorized | D25: RampNM2 | E25: Nonmotorized | F25: WBR,EBL | G25: CrossR2,CrossL1 | H25: RAB exiting | J25: 375 | K25: 3750 | L25: 1406250 | N25: 0 | O25: 30 | R25: 0.4669980502 | T25: 1 | Z25: 1 | AB25: =IF(B25="Diverging","",SSI_RTI_VehSpeed_RABExit) -> 30 | AC25: 0.6666666667 | AE25: 1 | AG25: 2 | AI25: 1.333333333 | AK25: =L25*R25*AI25 -> 875621.344 | BC25: 1 | BF25: 1 | BJ25: 1
AM26: O | AN26: ='SSI Inputs RTI'!$D$28 -> 3750 | AO26: ='SSI Inputs RTI'!$D$29 -> 1875 | AP26: ='SSI Inputs RTI'!$D$30 -> 1875 | AQ26: ='SSI Inputs RTI'!$D$32 -> 3750 | AR26: ='SSI Inputs RTI'!$D$33 -> 1875 | AS26: ='SSI Inputs RTI'!$D$34 -> 1875 | AT26: ='SSI Inputs RTI'!$D$36 -> 2250 | AU26: ='SSI Inputs RTI'!$D$37 -> 1125 | AV26: ='SSI Inputs RTI'!$D$38 -> 1125 | AW26: ='SSI Inputs RTI'!$D$40 -> 2250 | AX26: ='SSI Inputs RTI'!$D$41 -> 1125 | AY26: ='SSI Inputs RTI'!$D$42 -> 1125 | AZ26: ='SSI Inputs RTI'!$Q$20 -> 375 | BA26: ='SSI Inputs RTI'!$Q$21 -> 375 | BB26: ='SSI Inputs RTI'!$Q$22 -> 375 | BC26: ='SSI Inputs RTI'!$Q$23 -> 375 | BD26: O | BE26: ='SSI Inputs RTI'!$D$28 -> 3750 | BF26: ='SSI Inputs RTI'!$D$29 -> 1875 | BG26: ='SSI Inputs RTI'!$D$30 -> 1875 | BH26: ='SSI Inputs RTI'!$D$32 -> 3750 | BI26: ='SSI Inputs RTI'!$D$33 -> 1875 | BJ26: ='SSI Inputs RTI'!$D$34 -> 1875 | BK26: ='SSI Inputs RTI'!$D$36 -> 2250 | BL26: ='SSI Inputs RTI'!$D$37 -> 1125 | BM26: ='SSI Inputs RTI'!$D$38 -> 1125 | BN26: ='SSI Inputs RTI'!$D$40 -> 2250 | BO26: ='SSI Inputs RTI'!$D$41 -> 1125 | BP26: ='SSI Inputs RTI'!$D$42 -> 1125 | BQ26: ='SSI Inputs RTI'!$Q$20 -> 375 | BR26: ='SSI Inputs RTI'!$Q$21 -> 375 | BS26: ='SSI Inputs RTI'!$Q$22 -> 375 | BT26: ='SSI Inputs RTI'!$Q$23 -> 375
AM27: D | AN27: ='SSI Inputs RTI'!$E$28 -> 7750 | AO27: ='SSI Inputs RTI'!$E$29 -> 3875 | AP27: ='SSI Inputs RTI'!$E$30 -> 3875 | AQ27: ='SSI Inputs RTI'!$E$32 -> 7750 | AR27: ='SSI Inputs RTI'!$E$33 -> 3875 | AS27: ='SSI Inputs RTI'!$E$34 -> 3875 | AT27: ='SSI Inputs RTI'!$E$36 -> 2500 | AU27: ='SSI Inputs RTI'!$E$37 -> 1250 | AV27: ='SSI Inputs RTI'!$E$38 -> 1250 | AW27: ='SSI Inputs RTI'!$E$40 -> 2500 | AX27: ='SSI Inputs RTI'!$E$41 -> 1250 | AY27: ='SSI Inputs RTI'!$E$42 -> 1250 | AZ27: ='SSI Inputs RTI'!$R$20 -> 425 | BA27: ='SSI Inputs RTI'!$R$21 -> 425 | BB27: ='SSI Inputs RTI'!$R$22 -> 425 | BC27: ='SSI Inputs RTI'!$R$23 -> 425 | BD27: D | BE27: ='SSI Inputs RTI'!$E$28 -> 7750 | BF27: ='SSI Inputs RTI'!$E$29 -> 3875 | BG27: ='SSI Inputs RTI'!$E$30 -> 3875 | BH27: ='SSI Inputs RTI'!$E$32 -> 7750 | BI27: ='SSI Inputs RTI'!$E$33 -> 3875 | BJ27: ='SSI Inputs RTI'!$E$34 -> 3875 | BK27: ='SSI Inputs RTI'!$E$36 -> 2500 | BL27: ='SSI Inputs RTI'!$E$37 -> 1250 | BM27: ='SSI Inputs RTI'!$E$38 -> 1250 | BN27: ='SSI Inputs RTI'!$E$40 -> 2500 | BO27: ='SSI Inputs RTI'!$E$41 -> 1250 | BP27: ='SSI Inputs RTI'!$E$42 -> 1250 | BQ27: ='SSI Inputs RTI'!$R$20 -> 425 | BR27: ='SSI Inputs RTI'!$R$21 -> 425 | BS27: ='SSI Inputs RTI'!$R$22 -> 425 | BT27: ='SSI Inputs RTI'!$R$23 -> 425
J101: Exposure | AK101: Exposure-Severity-Complexity Product
J102: Q1 | K102: Q2 | L102: I
J103: =SUMPRODUCT($AN4:$BC4,$AN$27:$BC$27) -> 9000 | K103: =SUMPRODUCT($BE4:$BT4,$BE$27:$BT$27) -> 1250 | L103: =PRODUCT(J103:K103) -> 11250000 | AK103: =L103*R4*AI4 -> 28667.39383
J104: =SUMPRODUCT($AN5:$BC5,$AN$27:$BC$27) -> 9000 | K104: =SUMPRODUCT($BE5:$BT5,$BE$27:$BT$27) -> 1250 | L104: =PRODUCT(J104:K104) -> 11250000 | AK104: =L104*R5*AI5 -> 28667.39383
J105: 9000 | K105: 1250 | L105: 11250000 | AK105: 12481.88588
J106: 3875 | K106: 1250 | L106: 4843750 | AK106: 2762.86924
J107: 15500 | K107: 5125 | L107: 79437500 | AK107: 45311.05554
J108: 3875 | K108: 1250 | L108: 4843750 | AK108: 2762.86924
J109: 9000 | K109: 1250 | L109: 11250000 | AK109: 12481.88588
J110: 15500 | K110: 5125 | L110: 79437500 | AK110: 45311.05554
J111: 1250 | K111: 1250 | L111: 1562500 | AK111: 28.83922711
J112: 9000 | K112: 3875 | L112: 34875000 | AK112: 893.9478079
J113: 12875 | K113: 7750 | L113: 99781250 | AK113: 2557.684006
J114: 1250 | K114: 1250 | L114: 1562500 | AK114: 28.83922711
J115: 9000 | K115: 3875 | L115: 34875000 | AK115: 893.9478079
J116: 12875 | K116: 7750 | L116: 99781250 | AK116: 2557.684006
J117: 425 | K117: 2500 | L117: 1062500 | AK117: 239356.6109
J118: 425 | K118: 10250 | L118: 4356250 | AK118: 2712480.341
J119: 425 | K119: 15500 | L119: 6587500 | AK119: 1484010.987
J120: 425 | K120: 7750 | L120: 3293750 | AK120: 2050899.77
J121: 425 | K121: 2500 | L121: 1062500 | AK121: 239356.6109
J122: 425 | K122: 10250 | L122: 4356250 | AK122: 2712480.341
J123: 425 | K123: 15500 | L123: 6587500 | AK123: 1484010.987
J124: 425 | K124: 7750 | L124: 3293750 | AK124: 2050899.77

Sheet RTI_RAB2x1 (hidden)
T1: Conflicting Traffic Complexity | AE1: Pedestrian Complexity
J2: Exposure | N2: Severity | T2: Traffic Control | V2: Conflicting Lanes | AB2: Conflicting Speed | AE2: Indirect Paths Indicator | AF2: Non-intuitive movements indicator | AG2: Pedestrian Complexity factor | AI2: Total Complexity Multiplier | AK2: Exposure-Severity-Complexity Product | AN2: Included in Mvmt1 | BE2: Included in Mvmt2
A3: # | B3: Conflict Type | C3: Mvmt1 | D3: Mvmt1_gen | E3: Mvmt1_SpeedCat | F3: Mvmt2 | G3: Mvmt2_gen | H3: Mvmt2_SpeedCat | J3: Q1 | K3: Q2 | L3: I | N3: Speed_V1 | O3: Speed_V2 | P3: Angle | Q3: delta_V | R3: P_FSI | V3: CrossC | W3: RampC | X3: CrossM/P | Y3: RampM/P | Z3: Score | AB3: Speed | AC3: Factor | AN3: CrossT1 | AO3: CrossL1 | AP3: CrossR1 | AQ3: CrossT2 | AR3: CrossL2 | AS3: CrossR2 | AT3: RampT1 | AU3: RampL1 | AV3: RampR1 | AW3: RampT2 | AX3: RampL2 | AY3: RampR2 | AZ3: CrossNM1 | BA3: CrossNM2 | BB3: RampNM1 | BC3: RampNM2 | BE3: CrossT1 | BF3: CrossL1 | BG3: CrossR1 | BH3: CrossT2 | BI3: CrossL2 | BJ3: CrossR2 | BK3: RampT1 | BL3: RampL1 | BM3: RampR1 | BN3: RampT2 | BO3: RampL2 | BP3: RampR2 | BQ3: CrossNM1 | BR3: CrossNM2 | BS3: RampNM1 | BT3: RampNM2
A4: 1 | B4: Crossing - RAB | C4: WBT,NBL | D4: CrossT2,RampL1 | E4: RAB exiting | F4: SBL | G4: RampL2 | H4: RAB entering | J4: =SUMPRODUCT($AN4:$BC4,$AN$26:$BC$26) -> 4875 | K4: =SUMPRODUCT($BE4:$BT4,$BE$26:$BT$26) -> 1125 | L4: =PRODUCT(J4:K4) -> 5484375 | N4: =VLOOKUP(E4,SSI_RTI_Range_VehSpeed,5,FALSE) -> 30 | O4: =VLOOKUP(H4,SSI_RTI_Range_VehSpeed,5,FALSE) -> 20 | P4: =IF(B4="Nonmotorized","",VLOOKUP(B4,SSI_RTI_Range_CollAngles,5,FALSE)) -> 60 | Q4: =IF(B4="Nonmotorized","",SQRT(N4^2+O4^2-2*N4*O4*COS(RADIANS(P4)))/2) -> 13.22875656 | R4: =IF(B4="Nonmotorized",1/(1+EXP(3.8432-0.1237*O4)),(Q4/SSI_RTI_RegAlpha)^SSI_RTI_RegK+(Q4/SSI_RTI_RegAlpha)^SSI_RTI_RegK-((Q4/SSI_RTI_RegAlpha)^SSI_RTI_RegK)*((Q4/SSI_RTI_RegAlpha)^SSI_RTI_RegK)) -> 0.004169802739 | T4: =SSI_RTI_PermFactor -> 1 | Z4: 2 | AB4: =IF(B4="Diverging","",SSI_RTI_VehSpeed_RABCirc) -> 25 | AC4: =IF(B4="Diverging",1,1-((60-AB4)/60*0.1/0.15)) -> 0.6111111111 | AG4: =IF(SSI_RTI_ConsiderNMComplexity="Yes",1+AE4+AF4,1) -> 1 | AI4: =PRODUCT(Z4,T4,AC4,AG4) -> 1.222222222 | AK4: =L4*R4*AI4 -> 27950.70898 | AN4: =IF(ISNUMBER(SEARCH(AN$3,$D4)),1,"") ->  | AO4: =IF(ISNUMBER(SEARCH(AO$3,$D4)),1,"") ->  | AQ4: 1 | AU4: 1 | BE4: =IF(ISNUMBER(SEARCH(BE$3,$G4)),1,"") ->  | BF4: =IF(ISNUMBER(SEARCH(BF$3,$G4)),1,"") ->  | BO4: 1
A5: 2 | B5: Crossing - RAB | C5: EBT,SBL | D5: CrossT1,RampL2 | E5: RAB exiting | F5: NBL | G5: RampL1 | H5: RAB entering | J5: 4875 | K5: 1125 | L5: =PRODUCT(J5:K5) -> 5484375 | N5: 30 | O5: 20 | P5: 60 | Q5: =IF(B5="Nonmotorized","",SQRT(N5^2+O5^2-2*N5*O5*COS(RADIANS(P5)))/2) -> 13.22875656 | R5: 0.004169802739 | T5: 1 | Z5: 2 | AB5: 25 | AC5: 0.6111111111 | AG5: 1 | AI5: 1.222222222 | AK5: =L5*R5*AI5 -> 27950.70898 | AN5: =IF(ISNUMBER(SEARCH(AN$3,$D5)),1,"") -> 1 | AX5: 1 | BE5: =IF(ISNUMBER(SEARCH(BE$3,$G5)),1,"") ->  | BL5: 1
A6: 3 | B6: Merging | C6: WBT,NBL | D6: CrossT2,RampL1 | E6: RAB exiting | F6: SBR | G6: RampR2 | H6: RAB entering | J6: 4875 | K6: 1125 | L6: 5484375 | N6: 30 | O6: 20 | P6: 45 | Q6: 10.62393362 | R6: 0.001815547037 | T6: 1 | Z6: 1.75 | AB6: 25 | AC6: 0.6111111111 | AG6: 1 | AI6: 1.069444444 | AK6: 10648.60889 | AQ6: 1 | AU6: 1 | BP6: 1
A7: 4 | B7: Merging | C7: WBL | D7: CrossL2 | E7: RAB circulating | F7: SBL | G7: RampL2 | H7: RAB entering | J7: 1875 | K7: 1125 | L7: 2109375 | N7: 25 | O7: 20 | P7: 45 | Q7: 8.914780126 | R7: 0.0009333798723 | T7: 1 | Z7: 2 | AB7: 25 | AC7: 0.6111111111 | AG7: 1 | AI7: 1.222222222 | AK7: 2406.369983 | AR7: 1 | BO7: 1
A8: 5 | B8: Merging | C8: EBT,EBL,EBR | D8: CrossT1,CrossL1,CrossR1 | E8: RAB entering | F8: WBL,SBL | G8: CrossL2,RampL2 | H8: RAB circulating | J8: 7500 | K8: 3000 | L8: 22500000 | N8: 20 | O8: 25 | P8: 45 | Q8: 8.914780126 | R8: 0.0009333798723 | T8: 1 | Z8: 1 | AB8: 25 | AC8: 0.6111111111 | AG8: 1 | AI8: 0.6111111111 | AK8: 12833.97324 | AN8: 1 | AO8: 1 | AP8: 1 | BI8: 1 | BO8: 1
A9: 6 | B9: Merging | C9: EBL | D9: CrossL1 | E9: RAB circulating | F9: NBL | G9: RampL1 | H9: RAB entering | J9: 1875 | K9: 1125 | L9: 2109375 | N9: 25 | O9: 20 | P9: 45 | Q9: 8.914780126 | R9: 0.0009333798723 | T9: 1 | Z9: 2 | AB9: 25 | AC9: 0.6111111111 | AG9: 1 | AI9: 1.222222222 | AK9: 2406.369983 | AO9: 1 | BL9: 1
A10: 7 | B10: Merging | C10: EBT,SBL | D10: CrossT1,RampL2 | E10: RAB exiting | F10: NBR | G10: RampR1 | H10: RAB entering | J10: 4875 | K10: 1125 | L10: 5484375 | N10: 30 | O10: 20 | P10: 45 | Q10: 10.62393362 | R10: 0.001815547037 | T10: 1 | Z10: 1.75 | AB10: 25 | AC10: 0.6111111111 | AG10: 1 | AI10: 1.069444444 | AK10: 10648.60889 | AN10: 1 | AX10: 1 | BM10: 1
A11: 8 | B11: Merging | C11: WBT,WBL,WBR | D11: CrossT2,CrossL2,CrossR2 | E11: RAB entering | F11: EBL,NBL | G11: CrossL1,RampL1 | H11: RAB circulating | J11: 7500 | K11: 3000 | L11: 22500000 | N11: 20 | O11: 25 | P11: 45 | Q11: 8.914780126 | R11: 0.0009333798723 | T11: 1 | Z11: 1 | AB11: 25 | AC11: 0.6111111111 | AG11: 1 | AI11: 0.6111111111 | AK11: 12833.97324 | AQ11: 1 | AR11: 1 | AS11: 1 | BF11: 1 | BL11: 1
A12: 9 | B12: Diverging | C12: SBL | D12: RampL2 | E12: RAB entering | F12: SBR | G12: RampR2 | H12: RAB circulating | J12: 1125 | K12: 1125 | L12: 1265625 | N12: 20 | O12: 25 | P12: 10 | Q12: 3.169867781 | R12: 1.845710535e-05 | T12: 1 | Z12: 1 | AB12: =IF(B12="Diverging","",SSI_RTI_VehSpeed_RABEnter) ->  | AC12: 1 | AG12: 1 | AI12: 1 | AK12: 23.35977396 | AX12: 1 | BP12: 1
A13: 10 | B13: Diverging | C13: WBT,NBL | D13: CrossT2,RampL1 | E13: RAB exiting | F13: WBL | G13: CrossL2 | H13: RAB circulating | J13: 4875 | K13: 1875 | L13: 9140625 | N13: 30 | O13: 25 | P13: 10 | Q13: 3.456456657 | R13: 2.563291206e-05 | T13: 1 | Z13: 1 | AC13: 1 | AG13: 1 | AI13: 1 | AK13: 234.3008368 | AQ13: 1 | AU13: 1 | BI13: 1
A14: 11 | B14: Diverging | C14: EBT,EBL,SBL | D14: CrossT1,CrossL1,RampL2 | E14: RAB circulating | F14: EBR,WBL | G14: CrossR1,CrossL2 | H14: RAB exiting | J14: 6750 | K14: 3750 | L14: 25312500 | N14: 25 | O14: 30 | P14: 10 | Q14: 3.456456657 | R14: 2.563291206e-05 | T14: 1 | Z14: 1 | AC14: 1 | AG14: 1 | AI14: 1 | AK14: 648.8330864 | AN14: 1 | AO14: 1 | AX14: 1 | BG14: 1 | BI14: 1
A15: 12 | B15: Diverging | C15: NBL | D15: RampL1 | E15: RAB entering | F15: NBR | G15: RampR1 | H15: RAB circulating | J15: 1125 | K15: 1125 | L15: 1265625 | N15: 20 | O15: 25 | P15: 10 | Q15: 3.169867781 | R15: 1.845710535e-05 | T15: 1 | Z15: 1 | AC15: 1 | AG15: 1 | AI15: 1 | AK15: 23.35977396 | AU15: 1 | BM15: 1
A16: 13 | B16: Diverging | C16: EBT,SBL | D16: CrossT1,RampL2 | E16: RAB exiting | F16: EBL | G16: CrossL1 | H16: RAB circulating | J16: 4875 | K16: 1875 | L16: 9140625 | N16: 30 | O16: 25 | P16: 10 | Q16: 3.456456657 | R16: 2.563291206e-05 | T16: 1 | Z16: 1 | AC16: 1 | AG16: 1 | AI16: 1 | AK16: 234.3008368 | AN16: 1 | AX16: 1 | BF16: 1
A17: 14 | B17: Diverging | C17: WBT,WBL,NBL | D17: CrossT2,CrossL2,RampL1 | E17: RAB circulating | F17: WBR,EBL | G17: CrossR2,CrossL1 | H17: RAB exiting | J17: 6750 | K17: 3750 | L17: 25312500 | N17: 25 | O17: 30 | P17: 10 | Q17: 3.456456657 | R17: 2.563291206e-05 | T17: 1 | Z17: 1 | AC17: 1 | AG17: 1 | AI17: 1 | AK17: 648.8330864 | AQ17: 1 | AR17: 1 | AU17: 1 | BF17: 1 | BJ17: 1
A18: 15 | B18: Nonmotorized | D18: RampNM2 | E18: Nonmotorized | F18: SBR,SBL | G18: RampR2,RampL2 | H18: RAB entering | J18: 375 | K18: 2250 | L18: 843750 | N18: 0 | O18: 20 | R18: 0.2027491292 | T18: 1 | Z18: 1 | AB18: 20 | AC18: 0.5555555556 | AE18: 1 | AG18: 2 | AI18: 1.111111111 | AK18: 190077.3086 | BC18: 1 | BO18: 1 | BP18: 1
A19: 16 | B19: Nonmotorized | D19: CrossNM1 | E19: Nonmotorized | F19: WBT,SBR,NBL | G19: CrossT2,RampR2,RampL1 | H19: RAB exiting | J19: 375 | K19: 6000 | L19: 2250000 | N19: 0 | O19: 30 | R19: 0.4669980502 | T19: 1 | Z19: 2 | AB19: =IF(B19="Diverging","",SSI_RTI_VehSpeed_RABExit) -> 30 | AC19: 0.6666666667 | AE19: 1 | AG19: 2 | AI19: 2.666666667 | AK19: 2801988.301 | AZ19: 1 | BH19: 1 | BL19: 1 | BP19: 1
A20: 17 | B20: Nonmotorized | D20: CrossNM1 | E20: Nonmotorized | F20: EBT,EBR,EBL | G20: CrossT1,CrossR1,CrossL1 | H20: RAB entering | J20: 375 | K20: 7500 | L20: 2812500 | N20: 0 | O20: 20 | R20: 0.2027491292 | T20: 1 | Z20: 2 | AB20: =IF(B20="Diverging","",SSI_RTI_VehSpeed_RABEnter) -> 20 | AC20: 0.5555555556 | AE20: 1 | AG20: 2 | AI20: 2.222222222 | AK20: 1267182.058 | AZ20: 1 | BE20: 1 | BF20: 1 | BG20: 1
A21: 18 | B21: Nonmotorized | D21: RampNM1 | E21: Nonmotorized | F21: EBR,WBL | G21: CrossR1,CrossL2 | H21: RAB exiting | J21: 375 | K21: 3750 | L21: 1406250 | N21: 0 | O21: 30 | R21: 0.4669980502 | T21: 1 | Z21: 1 | AB21: =IF(B21="Diverging","",SSI_RTI_VehSpeed_RABExit) -> 30 | AC21: 0.6666666667 | AE21: 1 | AG21: 2 | AI21: 1.333333333 | AK21: 875621.344 | BB21: 1 | BG21: 1 | BI21: 1 | BS21: =IF(ISNUMBER(SEARCH(BS$3,$G21)),1,"") -> 
A22: 19 | B22: Nonmotorized | D22: RampNM1 | E22: Nonmotorized | F22: NBR,NBL | G22: RampR1,RampL1 | H22: RAB entering | J22: 375 | K22: 2250 | L22: 843750 | N22: 0 | O22: 20 | R22: 0.2027491292 | T22: 1 | Z22: 1 | AB22: =IF(B22="Diverging","",SSI_RTI_VehSpeed_RABEnter) -> 20 | AC22: 0.5555555556 | AE22: 1 | AG22: 2 | AI22: 1.111111111 | AK22: 190077.3086 | BB22: 1 | BE22: =IF(ISNUMBER(SEARCH(BE$3,$G22)),1,"") ->  | BL22: 1 | BM22: 1
A23: 20 | B23: Nonmotorized | D23: CrossNM2 | E23: Nonmotorized | F23: EBT,NBR,SBL | G23: CrossT1,RampR1,RampL2 | H23: RAB exiting | J23: 375 | K23: 6000 | L23: 2250000 | N23: 0 | O23: 30 | R23: 0.4669980502 | T23: 1 | Z23: 2 | AB23: =IF(B23="Diverging","",SSI_RTI_VehSpeed_RABExit) -> 30 | AC23: 0.6666666667 | AE23: 1 | AG23: 2 | AI23: 2.666666667 | AK23: 2801988.301 | AZ23: =IF(ISNUMBER(SEARCH(AZ$3,$D23)),1,"") ->  | BA23: 1 | BE23: 1 | BM23: 1 | BO23: 1
A24: 21 | B24: Nonmotorized | D24: CrossNM2 | E24: Nonmotorized | F24: WBT,WBR,WBL | G24: CrossT2,CrossR2,CrossL2 | H24: RAB entering | J24: 375 | K24: 7500 | L24: 2812500 | N24: 0 | O24: 20 | R24: 0.2027491292 | T24: 1 | Z24: 2 | AB24: =IF(B24="Diverging","",SSI_RTI_VehSpeed_RABEnter) -> 20 | AC24: 0.5555555556 | AE24: 1 | AG24: 2 | AI24: 2.222222222 | AK24: 1267182.058 | AN24: =IF(ISNUMBER(SEARCH(AN$3,$D24)),1,"") ->  | BA24: 1 | BH24: 1 | BI24: 1 | BJ24: 1
A25: 22 | B25: Nonmotorized | D25: RampNM2 | E25: Nonmotorized | F25: WBR,EBL | G25: CrossR2,CrossL1 | H25: RAB exiting | J25: 375 | K25: 3750 | L25: 1406250 | N25: 0 | O25: 30 | R25: 0.4669980502 | T25: 1 | Z25: 1 | AB25: =IF(B25="Diverging","",SSI_RTI_VehSpeed_RABExit) -> 30 | AC25: 0.6666666667 | AE25: 1 | AG25: 2 | AI25: 1.333333333 | AK25: =L25*R25*AI25 -> 875621.344 | BC25: 1 | BF25: 1 | BJ25: 1
AM26: O | AN26: ='SSI Inputs RTI'!$D$28 -> 3750 | AO26: ='SSI Inputs RTI'!$D$29 -> 1875 | AP26: ='SSI Inputs RTI'!$D$30 -> 1875 | AQ26: ='SSI Inputs RTI'!$D$32 -> 3750 | AR26: ='SSI Inputs RTI'!$D$33 -> 1875 | AS26: ='SSI Inputs RTI'!$D$34 -> 1875 | AT26: ='SSI Inputs RTI'!$D$36 -> 2250 | AU26: ='SSI Inputs RTI'!$D$37 -> 1125 | AV26: ='SSI Inputs RTI'!$D$38 -> 1125 | AW26: ='SSI Inputs RTI'!$D$40 -> 2250 | AX26: ='SSI Inputs RTI'!$D$41 -> 1125 | AY26: ='SSI Inputs RTI'!$D$42 -> 1125 | AZ26: ='SSI Inputs RTI'!$Q$20 -> 375 | BA26: ='SSI Inputs RTI'!$Q$21 -> 375 | BB26: ='SSI Inputs RTI'!$Q$22 -> 375 | BC26: ='SSI Inputs RTI'!$Q$23 -> 375 | BD26: O | BE26: ='SSI Inputs RTI'!$D$28 -> 3750 | BF26: ='SSI Inputs RTI'!$D$29 -> 1875 | BG26: ='SSI Inputs RTI'!$D$30 -> 1875 | BH26: ='SSI Inputs RTI'!$D$32 -> 3750 | BI26: ='SSI Inputs RTI'!$D$33 -> 1875 | BJ26: ='SSI Inputs RTI'!$D$34 -> 1875 | BK26: ='SSI Inputs RTI'!$D$36 -> 2250 | BL26: ='SSI Inputs RTI'!$D$37 -> 1125 | BM26: ='SSI Inputs RTI'!$D$38 -> 1125 | BN26: ='SSI Inputs RTI'!$D$40 -> 2250 | BO26: ='SSI Inputs RTI'!$D$41 -> 1125 | BP26: ='SSI Inputs RTI'!$D$42 -> 1125 | BQ26: ='SSI Inputs RTI'!$Q$20 -> 375 | BR26: ='SSI Inputs RTI'!$Q$21 -> 375 | BS26: ='SSI Inputs RTI'!$Q$22 -> 375 | BT26: ='SSI Inputs RTI'!$Q$23 -> 375
AM27: D | AN27: ='SSI Inputs RTI'!$E$28 -> 7750 | AO27: ='SSI Inputs RTI'!$E$29 -> 3875 | AP27: ='SSI Inputs RTI'!$E$30 -> 3875 | AQ27: ='SSI Inputs RTI'!$E$32 -> 7750 | AR27: ='SSI Inputs RTI'!$E$33 -> 3875 | AS27: ='SSI Inputs RTI'!$E$34 -> 3875 | AT27: ='SSI Inputs RTI'!$E$36 -> 2500 | AU27: ='SSI Inputs RTI'!$E$37 -> 1250 | AV27: ='SSI Inputs RTI'!$E$38 -> 1250 | AW27: ='SSI Inputs RTI'!$E$40 -> 2500 | AX27: ='SSI Inputs RTI'!$E$41 -> 1250 | AY27: ='SSI Inputs RTI'!$E$42 -> 1250 | AZ27: ='SSI Inputs RTI'!$R$20 -> 425 | BA27: ='SSI Inputs RTI'!$R$21 -> 425 | BB27: ='SSI Inputs RTI'!$R$22 -> 425 | BC27: ='SSI Inputs RTI'!$R$23 -> 425 | BD27: D | BE27: ='SSI Inputs RTI'!$E$28 -> 7750 | BF27: ='SSI Inputs RTI'!$E$29 -> 3875 | BG27: ='SSI Inputs RTI'!$E$30 -> 3875 | BH27: ='SSI Inputs RTI'!$E$32 -> 7750 | BI27: ='SSI Inputs RTI'!$E$33 -> 3875 | BJ27: ='SSI Inputs RTI'!$E$34 -> 3875 | BK27: ='SSI Inputs RTI'!$E$36 -> 2500 | BL27: ='SSI Inputs RTI'!$E$37 -> 1250 | BM27: ='SSI Inputs RTI'!$E$38 -> 1250 | BN27: ='SSI Inputs RTI'!$E$40 -> 2500 | BO27: ='SSI Inputs RTI'!$E$41 -> 1250 | BP27: ='SSI Inputs RTI'!$E$42 -> 1250 | BQ27: ='SSI Inputs RTI'!$R$20 -> 425 | BR27: ='SSI Inputs RTI'!$R$21 -> 425 | BS27: ='SSI Inputs RTI'!$R$22 -> 425 | BT27: ='SSI Inputs RTI'!$R$23 -> 425
J101: Exposure | AK101: Exposure-Severity-Complexity Product
J102: Q1 | K102: Q2 | L102: I
J103: =SUMPRODUCT($AN4:$BC4,$AN$27:$BC$27) -> 9000 | K103: =SUMPRODUCT($BE4:$BT4,$BE$27:$BT$27) -> 1250 | L103: =PRODUCT(J103:K103) -> 11250000 | AK103: =L103*R4*AI4 -> 57334.78766
J104: =SUMPRODUCT($AN5:$BC5,$AN$27:$BC$27) -> 9000 | K104: =SUMPRODUCT($BE5:$BT5,$BE$27:$BT$27) -> 1250 | L104: =PRODUCT(J104:K104) -> 11250000 | AK104: =L104*R5*AI5 -> 57334.78766
J105: 9000 | K105: 1250 | L105: 11250000 | AK105: 21843.30029
J106: 3875 | K106: 1250 | L106: 4843750 | AK106: 5525.73848
J107: 15500 | K107: 5125 | L107: 79437500 | AK107: 45311.05554
J108: 3875 | K108: 1250 | L108: 4843750 | AK108: 5525.73848
J109: 9000 | K109: 1250 | L109: 11250000 | AK109: 21843.30029
J110: 15500 | K110: 5125 | L110: 79437500 | AK110: 45311.05554
J111: 1250 | K111: 1250 | L111: 1562500 | AK111: 28.83922711
J112: 9000 | K112: 3875 | L112: 34875000 | AK112: 893.9478079
J113: 12875 | K113: 7750 | L113: 99781250 | AK113: 2557.684006
J114: 1250 | K114: 1250 | L114: 1562500 | AK114: 28.83922711
J115: 9000 | K115: 3875 | L115: 34875000 | AK115: 893.9478079
J116: 12875 | K116: 7750 | L116: 99781250 | AK116: 2557.684006
J117: 425 | K117: 2500 | L117: 1062500 | AK117: 239356.6109
J118: 425 | K118: 10250 | L118: 4356250 | AK118: 5424960.683
J119: 425 | K119: 15500 | L119: 6587500 | AK119: 2968021.975
J120: 425 | K120: 7750 | L120: 3293750 | AK120: 2050899.77
J121: 425 | K121: 2500 | L121: 1062500 | AK121: 239356.6109
J122: 425 | K122: 10250 | L122: 4356250 | AK122: 5424960.683
J123: 425 | K123: 15500 | L123: 6587500 | AK123: 2968021.975
J124: 425 | K124: 7750 | L124: 3293750 | AK124: 2050899.77

Sheet RTI_RAB2x2 (hidden)
T1: Conflicting Traffic Complexity | AE1: Pedestrian Complexity
J2: Exposure | N2: Severity | T2: Traffic Control | V2: Conflicting Lanes | AB2: Conflicting Speed | AE2: Indirect Paths Indicator | AF2: Non-intuitive movements indicator | AG2: Pedestrian Complexity factor | AI2: Total Complexity Multiplier | AK2: Exposure-Severity-Complexity Product | AN2: Included in Mvmt1 | BE2: Included in Mvmt2
A3: # | B3: Conflict Type | C3: Mvmt1 | D3: Mvmt1_gen | E3: Mvmt1_SpeedCat | F3: Mvmt2 | G3: Mvmt2_gen | H3: Mvmt2_SpeedCat | J3: Q1 | K3: Q2 | L3: I | N3: Speed_V1 | O3: Speed_V2 | P3: Angle | Q3: delta_V | R3: P_FSI | V3: CrossC | W3: RampC | X3: CrossM/P | Y3: RampM/P | Z3: Score | AB3: Speed | AC3: Factor | AN3: CrossT1 | AO3: CrossL1 | AP3: CrossR1 | AQ3: CrossT2 | AR3: CrossL2 | AS3: CrossR2 | AT3: RampT1 | AU3: RampL1 | AV3: RampR1 | AW3: RampT2 | AX3: RampL2 | AY3: RampR2 | AZ3: CrossNM1 | BA3: CrossNM2 | BB3: RampNM1 | BC3: RampNM2 | BE3: CrossT1 | BF3: CrossL1 | BG3: CrossR1 | BH3: CrossT2 | BI3: CrossL2 | BJ3: CrossR2 | BK3: RampT1 | BL3: RampL1 | BM3: RampR1 | BN3: RampT2 | BO3: RampL2 | BP3: RampR2 | BQ3: CrossNM1 | BR3: CrossNM2 | BS3: RampNM1 | BT3: RampNM2
A4: 1 | B4: Crossing - RAB | C4: WBT,NBL | D4: CrossT2,RampL1 | E4: RAB exiting | F4: SBL | G4: RampL2 | H4: RAB entering | J4: =SUMPRODUCT($AN4:$BC4,$AN$26:$BC$26) -> 4875 | K4: =SUMPRODUCT($BE4:$BT4,$BE$26:$BT$26) -> 1125 | L4: =PRODUCT(J4:K4) -> 5484375 | N4: =VLOOKUP(E4,SSI_RTI_Range_VehSpeed,5,FALSE) -> 30 | O4: =VLOOKUP(H4,SSI_RTI_Range_VehSpeed,5,FALSE) -> 20 | P4: =IF(B4="Nonmotorized","",VLOOKUP(B4,SSI_RTI_Range_CollAngles,5,FALSE)) -> 60 | Q4: =IF(B4="Nonmotorized","",SQRT(N4^2+O4^2-2*N4*O4*COS(RADIANS(P4)))/2) -> 13.22875656 | R4: =IF(B4="Nonmotorized",1/(1+EXP(3.8432-0.1237*O4)),(Q4/SSI_RTI_RegAlpha)^SSI_RTI_RegK+(Q4/SSI_RTI_RegAlpha)^SSI_RTI_RegK-((Q4/SSI_RTI_RegAlpha)^SSI_RTI_RegK)*((Q4/SSI_RTI_RegAlpha)^SSI_RTI_RegK)) -> 0.004169802739 | T4: =SSI_RTI_PermFactor -> 1 | Z4: 2 | AB4: =IF(B4="Diverging","",SSI_RTI_VehSpeed_RABCirc) -> 25 | AC4: =IF(B4="Diverging",1,1-((60-AB4)/60*0.1/0.15)) -> 0.6111111111 | AG4: =IF(SSI_RTI_ConsiderNMComplexity="Yes",1+AE4+AF4,1) -> 1 | AI4: =PRODUCT(Z4,T4,AC4,AG4) -> 1.222222222 | AK4: =L4*R4*AI4 -> 27950.70898 | AN4: =IF(ISNUMBER(SEARCH(AN$3,$D4)),1,"") ->  | AO4: =IF(ISNUMBER(SEARCH(AO$3,$D4)),1,"") ->  | AQ4: 1 | AU4: 1 | BE4: =IF(ISNUMBER(SEARCH(BE$3,$G4)),1,"") ->  | BF4: =IF(ISNUMBER(SEARCH(BF$3,$G4)),1,"") ->  | BO4: 1
A5: 2 | B5: Crossing - RAB | C5: EBT,SBL | D5: CrossT1,RampL2 | E5: RAB exiting | F5: NBL | G5: RampL1 | H5: RAB entering | J5: 4875 | K5: 1125 | L5: =PRODUCT(J5:K5) -> 5484375 | N5: 30 | O5: 20 | P5: 60 | Q5: =IF(B5="Nonmotorized","",SQRT(N5^2+O5^2-2*N5*O5*COS(RADIANS(P5)))/2) -> 13.22875656 | R5: 0.004169802739 | T5: 1 | Z5: 2 | AB5: 25 | AC5: 0.6111111111 | AG5: 1 | AI5: 1.222222222 | AK5: =L5*R5*AI5 -> 27950.70898 | AN5: =IF(ISNUMBER(SEARCH(AN$3,$D5)),1,"") -> 1 | AX5: 1 | BE5: =IF(ISNUMBER(SEARCH(BE$3,$G5)),1,"") ->  | BL5: 1
A6: 3 | B6: Merging | C6: WBT,NBL | D6: CrossT2,RampL1 | E6: RAB exiting | F6: SBR | G6: RampR2 | H6: RAB entering | J6: 4875 | K6: 1125 | L6: 5484375 | N6: 30 | O6: 20 | P6: 45 | Q6: 10.62393362 | R6: 0.001815547037 | T6: 1 | Z6: 1.75 | AB6: 25 | AC6: 0.6111111111 | AG6: 1 | AI6: 1.069444444 | AK6: 10648.60889 | AQ6: 1 | AU6: 1 | BP6: 1
A7: 4 | B7: Merging | C7: WBL | D7: CrossL2 | E7: RAB circulating | F7: SBL | G7: RampL2 | H7: RAB entering | J7: 1875 | K7: 1125 | L7: 2109375 | N7: 25 | O7: 20 | P7: 45 | Q7: 8.914780126 | R7: 0.0009333798723 | T7: 1 | Z7: 2 | AB7: 25 | AC7: 0.6111111111 | AG7: 1 | AI7: 1.222222222 | AK7: 2406.369983 | AR7: 1 | BO7: 1
A8: 5 | B8: Merging | C8: EBT,EBL,EBR | D8: CrossT1,CrossL1,CrossR1 | E8: RAB entering | F8: WBL,SBL | G8: CrossL2,RampL2 | H8: RAB circulating | J8: 7500 | K8: 3000 | L8: 22500000 | N8: 20 | O8: 25 | P8: 45 | Q8: 8.914780126 | R8: 0.0009333798723 | T8: 1 | Z8: 2 | AB8: 25 | AC8: 0.6111111111 | AG8: 1 | AI8: 1.222222222 | AK8: 25667.94649 | AN8: 1 | AO8: 1 | AP8: 1 | BI8: 1 | BO8: 1
A9: 6 | B9: Merging | C9: EBL | D9: CrossL1 | E9: RAB circulating | F9: NBL | G9: RampL1 | H9: RAB entering | J9: 1875 | K9: 1125 | L9: 2109375 | N9: 25 | O9: 20 | P9: 45 | Q9: 8.914780126 | R9: 0.0009333798723 | T9: 1 | Z9: 2 | AB9: 25 | AC9: 0.6111111111 | AG9: 1 | AI9: 1.222222222 | AK9: 2406.369983 | AO9: 1 | BL9: 1
A10: 7 | B10: Merging | C10: EBT,SBL | D10: CrossT1,RampL2 | E10: RAB exiting | F10: NBR | G10: RampR1 | H10: RAB entering | J10: 4875 | K10: 1125 | L10: 5484375 | N10: 30 | O10: 20 | P10: 45 | Q10: 10.62393362 | R10: 0.001815547037 | T10: 1 | Z10: 1.75 | AB10: 25 | AC10: 0.6111111111 | AG10: 1 | AI10: 1.069444444 | AK10: 10648.60889 | AN10: 1 | AX10: 1 | BM10: 1
A11: 8 | B11: Merging | C11: WBT,WBL,WBR | D11: CrossT2,CrossL2,CrossR2 | E11: RAB entering | F11: EBL,NBL | G11: CrossL1,RampL1 | H11: RAB circulating | J11: 7500 | K11: 3000 | L11: 22500000 | N11: 20 | O11: 25 | P11: 45 | Q11: 8.914780126 | R11: 0.0009333798723 | T11: 1 | Z11: 2 | AB11: 25 | AC11: 0.6111111111 | AG11: 1 | AI11: 1.222222222 | AK11: 25667.94649 | AQ11: 1 | AR11: 1 | AS11: 1 | BF11: 1 | BL11: 1
A12: 9 | B12: Diverging | C12: SBL | D12: RampL2 | E12: RAB entering | F12: SBR | G12: RampR2 | H12: RAB circulating | J12: 1125 | K12: 1125 | L12: 1265625 | N12: 20 | O12: 25 | P12: 10 | Q12: 3.169867781 | R12: 1.845710535e-05 | T12: 1 | Z12: 1 | AB12: =IF(B12="Diverging","",SSI_RTI_VehSpeed_RABEnter) ->  | AC12: 1 | AG12: 1 | AI12: 1 | AK12: 23.35977396 | AX12: 1 | BP12: 1
A13: 10 | B13: Diverging | C13: WBT,NBL | D13: CrossT2,RampL1 | E13: RAB exiting | F13: WBL | G13: CrossL2 | H13: RAB circulating | J13: 4875 | K13: 1875 | L13: 9140625 | N13: 30 | O13: 25 | P13: 10 | Q13: 3.456456657 | R13: 2.563291206e-05 | T13: 1 | Z13: 1 | AC13: 1 | AG13: 1 | AI13: 1 | AK13: 234.3008368 | AQ13: 1 | AU13: 1 | BI13: 1
A14: 11 | B14: Diverging | C14: EBT,EBL,SBL | D14: CrossT1,CrossL1,RampL2 | E14: RAB circulating | F14: EBR,WBL | G14: CrossR1,CrossL2 | H14: RAB exiting | J14: 6750 | K14: 3750 | L14: 25312500 | N14: 25 | O14: 30 | P14: 10 | Q14: 3.456456657 | R14: 2.563291206e-05 | T14: 1 | Z14: 1 | AC14: 1 | AG14: 1 | AI14: 1 | AK14: 648.8330864 | AN14: 1 | AO14: 1 | AX14: 1 | BG14: 1 | BI14: 1
A15: 12 | B15: Diverging | C15: NBL | D15: RampL1 | E15: RAB entering | F15: NBR | G15: RampR1 | H15: RAB circulating | J15: 1125 | K15: 1125 | L15: 1265625 | N15: 20 | O15: 25 | P15: 10 | Q15: 3.169867781 | R15: 1.845710535e-05 | T15: 1 | Z15: 1 | AC15: 1 | AG15: 1 | AI15: 1 | AK15: 23.35977396 | AU15: 1 | BM15: 1
A16: 13 | B16: Diverging | C16: EBT,SBL | D16: CrossT1,RampL2 | E16: RAB exiting | F16: EBL | G16: CrossL1 | H16: RAB circulating | J16: 4875 | K16: 1875 | L16: 9140625 | N16: 30 | O16: 25 | P16: 10 | Q16: 3.456456657 | R16: 2.563291206e-05 | T16: 1 | Z16: 1 | AC16: 1 | AG16: 1 | AI16: 1 | AK16: 234.3008368 | AN16: 1 | AX16: 1 | BF16: 1
A17: 14 | B17: Diverging | C17: WBT,WBL,NBL | D17: CrossT2,CrossL2,RampL1 | E17: RAB circulating | F17: WBR,EBL | G17: CrossR2,CrossL1 | H17: RAB exiting | J17: 6750 | K17: 3750 | L17: 25312500 | N17: 25 | O17: 30 | P17: 10 | Q17: 3.456456657 | R17: 2.563291206e-05 | T17: 1 | Z17: 1 | AC17: 1 | AG17: 1 | AI17: 1 | AK17: 648.8330864 | AQ17: 1 | AR17: 1 | AU17: 1 | BF17: 1 | BJ17: 1
A18: 15 | B18: Nonmotorized | D18: RampNM2 | E18: Nonmotorized | F18: SBR,SBL | G18: RampR2,RampL2 | H18: RAB entering | J18: 375 | K18: 2250 | L18: 843750 | N18: 0 | O18: 20 | R18: 0.2027491292 | T18: 1 | Z18: 2 | AB18: 20 | AC18: 0.5555555556 | AE18: 1 | AG18: 2 | AI18: 2.222222222 | AK18: 380154.6173 | BC18: 1 | BO18: 1 | BP18: 1
A19: 16 | B19: Nonmotorized | D19: CrossNM1 | E19: Nonmotorized | F19: WBT,SBR,NBL | G19: CrossT2,RampR2,RampL1 | H19: RAB exiting | J19: 375 | K19: 6000 | L19: 2250000 | N19: 0 | O19: 30 | R19: 0.4669980502 | T19: 1 | Z19: 2 | AB19: =IF(B19="Diverging","",SSI_RTI_VehSpeed_RABExit) -> 30 | AC19: 0.6666666667 | AE19: 1 | AG19: 2 | AI19: 2.666666667 | AK19: 2801988.301 | AZ19: 1 | BH19: 1 | BL19: 1 | BP19: 1
A20: 17 | B20: Nonmotorized | D20: CrossNM1 | E20: Nonmotorized | F20: EBT,EBR,EBL | G20: CrossT1,CrossR1,CrossL1 | H20: RAB entering | J20: 375 | K20: 7500 | L20: 2812500 | N20: 0 | O20: 20 | R20: 0.2027491292 | T20: 1 | Z20: 2 | AB20: =IF(B20="Diverging","",SSI_RTI_VehSpeed_RABEnter) -> 20 | AC20: 0.5555555556 | AE20: 1 | AG20: 2 | AI20: 2.222222222 | AK20: 1267182.058 | AZ20: 1 | BE20: 1 | BF20: 1 | BG20: 1
A21: 18 | B21: Nonmotorized | D21: RampNM1 | E21: Nonmotorized | F21: EBR,WBL | G21: CrossR1,CrossL2 | H21: RAB exiting | J21: 375 | K21: 3750 | L21: 1406250 | N21: 0 | O21: 30 | R21: 0.4669980502 | T21: 1 | Z21: 2 | AB21: =IF(B21="Diverging","",SSI_RTI_VehSpeed_RABExit) -> 30 | AC21: 0.6666666667 | AE21: 1 | AG21: 2 | AI21: 2.666666667 | AK21: 1751242.688 | BB21: 1 | BG21: 1 | BI21: 1 | BS21: =IF(ISNUMBER(SEARCH(BS$3,$G21)),1,"") -> 
A22: 19 | B22: Nonmotorized | D22: RampNM1 | E22: Nonmotorized | F22: NBR,NBL | G22: RampR1,RampL1 | H22: RAB entering | J22: 375 | K22: 2250 | L22: 843750 | N22: 0 | O22: 20 | R22: 0.2027491292 | T22: 1 | Z22: 2 | AB22: =IF(B22="Diverging","",SSI_RTI_VehSpeed_RABEnter) -> 20 | AC22: 0.5555555556 | AE22: 1 | AG22: 2 | AI22: 2.222222222 | AK22: 380154.6173 | BB22: 1 | BE22: =IF(ISNUMBER(SEARCH(BE$3,$G22)),1,"") ->  | BL22: 1 | BM22: 1
A23: 20 | B23: Nonmotorized | D23: CrossNM2 | E23: Nonmotorized | F23: EBT,NBR,SBL | G23: CrossT1,RampR1,RampL2 | H23: RAB exiting | J23: 375 | K23: 6000 | L23: 2250000 | N23: 0 | O23: 30 | R23: 0.4669980502 | T23: 1 | Z23: 2 | AB23: =IF(B23="Diverging","",SSI_RTI_VehSpeed_RABExit) -> 30 | AC23: 0.6666666667 | AE23: 1 | AG23: 2 | AI23: 2.666666667 | AK23: 2801988.301 | AZ23: =IF(ISNUMBER(SEARCH(AZ$3,$D23)),1,"") ->  | BA23: 1 | BE23: 1 | BM23: 1 | BO23: 1
A24: 21 | B24: Nonmotorized | D24: CrossNM2 | E24: Nonmotorized | F24: WBT,WBR,WBL | G24: CrossT2,CrossR2,CrossL2 | H24: RAB entering | J24: 375 | K24: 7500 | L24: 2812500 | N24: 0 | O24: 20 | R24: 0.2027491292 | T24: 1 | Z24: 2 | AB24: =IF(B24="Diverging","",SSI_RTI_VehSpeed_RABEnter) -> 20 | AC24: 0.5555555556 | AE24: 1 | AG24: 2 | AI24: 2.222222222 | AK24: 1267182.058 | AN24: =IF(ISNUMBER(SEARCH(AN$3,$D24)),1,"") ->  | BA24: 1 | BH24: 1 | BI24: 1 | BJ24: 1
A25: 22 | B25: Nonmotorized | D25: RampNM2 | E25: Nonmotorized | F25: WBR,EBL | G25: CrossR2,CrossL1 | H25: RAB exiting | J25: 375 | K25: 3750 | L25: 1406250 | N25: 0 | O25: 30 | R25: 0.4669980502 | T25: 1 | Z25: 2 | AB25: =IF(B25="Diverging","",SSI_RTI_VehSpeed_RABExit) -> 30 | AC25: 0.6666666667 | AE25: 1 | AG25: 2 | AI25: 2.666666667 | AK25: =L25*R25*AI25 -> 1751242.688 | BC25: 1 | BF25: 1 | BJ25: 1
AM26: O | AN26: ='SSI Inputs RTI'!$D$28 -> 3750 | AO26: ='SSI Inputs RTI'!$D$29 -> 1875 | AP26: ='SSI Inputs RTI'!$D$30 -> 1875 | AQ26: ='SSI Inputs RTI'!$D$32 -> 3750 | AR26: ='SSI Inputs RTI'!$D$33 -> 1875 | AS26: ='SSI Inputs RTI'!$D$34 -> 1875 | AT26: ='SSI Inputs RTI'!$D$36 -> 2250 | AU26: ='SSI Inputs RTI'!$D$37 -> 1125 | AV26: ='SSI Inputs RTI'!$D$38 -> 1125 | AW26: ='SSI Inputs RTI'!$D$40 -> 2250 | AX26: ='SSI Inputs RTI'!$D$41 -> 1125 | AY26: ='SSI Inputs RTI'!$D$42 -> 1125 | AZ26: ='SSI Inputs RTI'!$Q$20 -> 375 | BA26: ='SSI Inputs RTI'!$Q$21 -> 375 | BB26: ='SSI Inputs RTI'!$Q$22 -> 375 | BC26: ='SSI Inputs RTI'!$Q$23 -> 375 | BD26: O | BE26: ='SSI Inputs RTI'!$D$28 -> 3750 | BF26: ='SSI Inputs RTI'!$D$29 -> 1875 | BG26: ='SSI Inputs RTI'!$D$30 -> 1875 | BH26: ='SSI Inputs RTI'!$D$32 -> 3750 | BI26: ='SSI Inputs RTI'!$D$33 -> 1875 | BJ26: ='SSI Inputs RTI'!$D$34 -> 1875 | BK26: ='SSI Inputs RTI'!$D$36 -> 2250 | BL26: ='SSI Inputs RTI'!$D$37 -> 1125 | BM26: ='SSI Inputs RTI'!$D$38 -> 1125 | BN26: ='SSI Inputs RTI'!$D$40 -> 2250 | BO26: ='SSI Inputs RTI'!$D$41 -> 1125 | BP26: ='SSI Inputs RTI'!$D$42 -> 1125 | BQ26: ='SSI Inputs RTI'!$Q$20 -> 375 | BR26: ='SSI Inputs RTI'!$Q$21 -> 375 | BS26: ='SSI Inputs RTI'!$Q$22 -> 375 | BT26: ='SSI Inputs RTI'!$Q$23 -> 375
AM27: D | AN27: ='SSI Inputs RTI'!$E$28 -> 7750 | AO27: ='SSI Inputs RTI'!$E$29 -> 3875 | AP27: ='SSI Inputs RTI'!$E$30 -> 3875 | AQ27: ='SSI Inputs RTI'!$E$32 -> 7750 | AR27: ='SSI Inputs RTI'!$E$33 -> 3875 | AS27: ='SSI Inputs RTI'!$E$34 -> 3875 | AT27: ='SSI Inputs RTI'!$E$36 -> 2500 | AU27: ='SSI Inputs RTI'!$E$37 -> 1250 | AV27: ='SSI Inputs RTI'!$E$38 -> 1250 | AW27: ='SSI Inputs RTI'!$E$40 -> 2500 | AX27: ='SSI Inputs RTI'!$E$41 -> 1250 | AY27: ='SSI Inputs RTI'!$E$42 -> 1250 | AZ27: ='SSI Inputs RTI'!$R$20 -> 425 | BA27: ='SSI Inputs RTI'!$R$21 -> 425 | BB27: ='SSI Inputs RTI'!$R$22 -> 425 | BC27: ='SSI Inputs RTI'!$R$23 -> 425 | BD27: D | BE27: ='SSI Inputs RTI'!$E$28 -> 7750 | BF27: ='SSI Inputs RTI'!$E$29 -> 3875 | BG27: ='SSI Inputs RTI'!$E$30 -> 3875 | BH27: ='SSI Inputs RTI'!$E$32 -> 7750 | BI27: ='SSI Inputs RTI'!$E$33 -> 3875 | BJ27: ='SSI Inputs RTI'!$E$34 -> 3875 | BK27: ='SSI Inputs RTI'!$E$36 -> 2500 | BL27: ='SSI Inputs RTI'!$E$37 -> 1250 | BM27: ='SSI Inputs RTI'!$E$38 -> 1250 | BN27: ='SSI Inputs RTI'!$E$40 -> 2500 | BO27: ='SSI Inputs RTI'!$E$41 -> 1250 | BP27: ='SSI Inputs RTI'!$E$42 -> 1250 | BQ27: ='SSI Inputs RTI'!$R$20 -> 425 | BR27: ='SSI Inputs RTI'!$R$21 -> 425 | BS27: ='SSI Inputs RTI'!$R$22 -> 425 | BT27: ='SSI Inputs RTI'!$R$23 -> 425
J101: Exposure | AK101: Exposure-Severity-Complexity Product
J102: Q1 | K102: Q2 | L102: I
J103: =SUMPRODUCT($AN4:$BC4,$AN$27:$BC$27) -> 9000 | K103: =SUMPRODUCT($BE4:$BT4,$BE$27:$BT$27) -> 1250 | L103: =PRODUCT(J103:K103) -> 11250000 | AK103: =L103*R4*AI4 -> 57334.78766
J104: =SUMPRODUCT($AN5:$BC5,$AN$27:$BC$27) -> 9000 | K104: =SUMPRODUCT($BE5:$BT5,$BE$27:$BT$27) -> 1250 | L104: =PRODUCT(J104:K104) -> 11250000 | AK104: =L104*R5*AI5 -> 57334.78766
J105: 9000 | K105: 1250 | L105: 11250000 | AK105: 21843.30029
J106: 3875 | K106: 1250 | L106: 4843750 | AK106: 5525.73848
J107: 15500 | K107: 5125 | L107: 79437500 | AK107: 90622.11107
J108: 3875 | K108: 1250 | L108: 4843750 | AK108: 5525.73848
J109: 9000 | K109: 1250 | L109: 11250000 | AK109: 21843.30029
J110: 15500 | K110: 5125 | L110: 79437500 | AK110: 90622.11107
J111: 1250 | K111: 1250 | L111: 1562500 | AK111: 28.83922711
J112: 9000 | K112: 3875 | L112: 34875000 | AK112: 893.9478079
J113: 12875 | K113: 7750 | L113: 99781250 | AK113: 2557.684006
J114: 1250 | K114: 1250 | L114: 1562500 | AK114: 28.83922711
J115: 9000 | K115: 3875 | L115: 34875000 | AK115: 893.9478079
J116: 12875 | K116: 7750 | L116: 99781250 | AK116: 2557.684006
J117: 425 | K117: 2500 | L117: 1062500 | AK117: 478713.2218
J118: 425 | K118: 10250 | L118: 4356250 | AK118: 5424960.683
J119: 425 | K119: 15500 | L119: 6587500 | AK119: 2968021.975
J120: 425 | K120: 7750 | L120: 3293750 | AK120: 4101799.541
J121: 425 | K121: 2500 | L121: 1062500 | AK121: 478713.2218
J122: 425 | K122: 10250 | L122: 4356250 | AK122: 5424960.683
J123: 425 | K123: 15500 | L123: 6587500 | AK123: 2968021.975
J124: 425 | K124: 7750 | L124: 3293750 | AK124: 4101799.541

Sheet TUDI (hidden)
T1: Conflicting Traffic Complexity | AE1: Pedestrian Complexity | BW1: * median impacts traffic complexity score
J2: Exposure | N2: Severity | T2: Traffic Control | V2: Conflicting Lanes | AB2: Conflicting Speed | AE2: Indirect Paths Indicator | AF2: Non-intuitive movements indicator | AG2: Pedestrian Complexity factor | AI2: Total Complexity Multiplier | AK2: Exposure-Severity-Complexity Product | AN2: Included in Mvmt1 | BE2: Included in Mvmt2 | BY2: Cross-street: No, Ramps: No | CD2: Cross-street: Yes, Ramps: No | CI2: Cross-street: No, Ramps: Yes | CN2: Cross-street: Yes, Ramps: Yes
A3: # | B3: Conflict Type | C3: Mvmt1 | D3: Mvmt1_gen | E3: Mvmt1_SpeedCat | F3: Mvmt2 | G3: Mvmt2_gen | H3: Mvmt2_SpeedCat | J3: Q1 | K3: Q2 | L3: I | N3: Speed_V1 | O3: Speed_V2 | P3: Angle | Q3: delta_V | R3: P_FSI | V3: CrossC | W3: RampC | X3: CrossM/P | Y3: RampM/P | Z3: Score | AB3: Speed | AC3: Factor | AN3: CrossT1 | AO3: CrossL1 | AP3: CrossR1 | AQ3: CrossT2 | AR3: CrossL2 | AS3: CrossR2 | AT3: RampT1 | AU3: RampL1 | AV3: RampR1 | AW3: RampT2 | AX3: RampL2 | AY3: RampR2 | AZ3: CrossNM1 | BA3: CrossNM2 | BB3: RampNM1 | BC3: RampNM2 | BE3: CrossT1 | BF3: CrossL1 | BG3: CrossR1 | BH3: CrossT2 | BI3: CrossL2 | BJ3: CrossR2 | BK3: RampT1 | BL3: RampL1 | BM3: RampR1 | BN3: RampT2 | BO3: RampL2 | BP3: RampR2 | BQ3: CrossNM1 | BR3: CrossNM2 | BS3: RampNM1 | BT3: RampNM2 | BW3: # | BX3: Conflict Type | BY3: MajC | BZ3: MinC | CA3: MajM/P | CB3: MinM/P | CD3: MajC | CE3: MinC | CF3: MajM/P | CG3: MinM/P | CI3: MajC | CJ3: MinC | CK3: MajM/P | CL3: MinM/P | CN3: MajC | CO3: MinC | CP3: MajM/P | CQ3: MinM/P
A4: 1 | B4: Crossing - LT | C4: WBT, NBL | D4: CrossT2, RampL1 | E4: Cross thru | F4: SBL | G4: RampL2 | H4: Signal near | J4: =SUMPRODUCT($AN4:$BC4,$AN$44:$BC$44) -> 4875 | K4: =SUMPRODUCT($BE4:$BT4,$BE$44:$BT$44) -> 1125 | L4: =PRODUCT(J4:K4) -> 5484375 | N4: =VLOOKUP(E4,SSI_RTI_Range_VehSpeed,5,FALSE) -> 40 | O4: =VLOOKUP(H4,SSI_RTI_Range_VehSpeed,5,FALSE) -> 15 | P4: =IF(B4="Nonmotorized","",VLOOKUP(B4,SSI_RTI_Range_CollAngles,5,FALSE)) -> 230 | Q4: =IF(B4="Nonmotorized","",SQRT(N4^2+O4^2-2*N4*O4*COS(RADIANS(P4)))/2) -> 25.4771718 | R4: =IF(B4="Nonmotorized",1/(1+EXP(3.8432-0.1237*O4)),(Q4/SSI_RTI_RegAlpha)^SSI_RTI_RegK+(Q4/SSI_RTI_RegAlpha)^SSI_RTI_RegK-((Q4/SSI_RTI_RegAlpha)^SSI_RTI_RegK)*((Q4/SSI_RTI_RegAlpha)^SSI_RTI_RegK)) -> 0.04955895981 | T4: =SSI_RTI_ProtFactor -> 0.505 | V4: =IF(AND(SSI_RTI_CrossStMedian="No", SSI_RTI_RampMedian="No"),BY4,IF(AND(SSI_RTI_CrossStMedian="Yes",SSI_RTI_RampMedian="No"),CD4,IF(AND(SSI_RTI_CrossStMedian="No",SSI_RTI_RampMedian="Yes"),CI4,IF(AND(SSI_RTI_CrossStMedian="Yes",SSI_RTI_RampMedian="Yes"),CN4)))) -> 1 | W4: =IF(AND(SSI_RTI_CrossStMedian="No", SSI_RTI_RampMedian="No"),BZ4,IF(AND(SSI_RTI_CrossStMedian="Yes",SSI_RTI_RampMedian="No"),CE4,IF(AND(SSI_RTI_CrossStMedian="No",SSI_RTI_RampMedian="Yes"),CJ4,IF(AND(SSI_RTI_CrossStMedian="Yes",SSI_RTI_RampMedian="Yes"),CO4)))) -> 0 | X4: =IF(AND(SSI_RTI_CrossStMedian="No", SSI_RTI_RampMedian="No"),CA4,IF(AND(SSI_RTI_CrossStMedian="Yes",SSI_RTI_RampMedian="No"),CF4,IF(AND(SSI_RTI_CrossStMedian="No",SSI_RTI_RampMedian="Yes"),CK4,IF(AND(SSI_RTI_CrossStMedian="Yes",SSI_RTI_RampMedian="Yes"),CP4)))) -> 1 | Y4: =IF(AND(SSI_RTI_CrossStMedian="No", SSI_RTI_RampMedian="No"),CB4,IF(AND(SSI_RTI_CrossStMedian="Yes",SSI_RTI_RampMedian="No"),CG4,IF(AND(SSI_RTI_CrossStMedian="No",SSI_RTI_RampMedian="Yes"),CL4,IF(AND(SSI_RTI_CrossStMedian="Yes",SSI_RTI_RampMedian="Yes"),CQ4)))) -> 0 | Z4: =MAX(1,IF(B4<>"Pedestrian",V4*SSI_RTI_CrossThruLanes+W4*SSI_RTI_Ramp1ThruLanes+X4*IF(SSI_RTI_CrossThruLanes=1,SSI_RTI_MergeWeightL1,IF(SSI_RTI_CrossThruLanes=2,SSI_RTI_MergeWeightL1+SSI_RTI_MergeWeightL2,SSI_RTI_MergeWeightL1+SSI_RTI_MergeWeightL2+SSI_RTI_MergeWeightL3*(SSI_RTI_CrossThruLanes-2)))+Y4*IF(SSI_RTI_Ramp1ThruLanes=1,SSI_RTI_MergeWeightL1,IF(SSI_RTI_Ramp1ThruLanes=2,SSI_RTI_MergeWeightL1+SSI_RTI_MergeWeightL2,SSI_RTI_MergeWeightL1+SSI_RTI_MergeWeightL2+SSI_RTI_MergeWeightL3*(SSI_RTI_Ramp1ThruLanes-2))),V4*SSI_RTI_CrossThruLanes+W4*SSI_RTI_Ramp1ThruLanes+X4*IF(SSI_RTI_CrossThruLanes=1,SSI_RTI_NM_MergeWeightL1,IF(SSI_RTI_CrossThruLanes=2,SSI_RTI_NM_MergeWeightL1+SSI_RTI_NM_MergeWeightL2,SSI_RTI_NM_MergeWeightL1+SSI_RTI_NM_MergeWeightL2+SSI_RTI_NM_MergeWeightL3*(SSI_RTI_CrossThruLanes-2)))+Y4*IF(SSI_RTI_Ramp1ThruLanes=1,SSI_RTI_NM_MergeWeightL1,IF(SSI_RTI_Ramp1ThruLanes=2,SSI_RTI_NM_MergeWeightL1+SSI_RTI_NM_MergeWeightL2,SSI_RTI_NM_MergeWeightL1+SSI_RTI_NM_MergeWeightL2+SSI_RTI_NM_MergeWeightL3*(SSI_RTI_Ramp1ThruLanes-2))))) -> 3.75 | AB4: =IF(B4="Diverging","",SSI_RTI_VehSpeed_CrossThru) -> 40 | AC4: =IF(B4="Diverging",1,1-((60-AB4)/60*0.1/0.15)) -> 0.7777777778 | AG4: =IF(SSI_RTI_ConsiderNMComplexity="Yes",1+AE4+AF4,1) -> 1 | AI4: =PRODUCT(Z4,T4,AC4,AG4) -> 1.472916667 | AK4: =L4*R4*AI4 -> 400338.6324 | AN4: =IF(ISNUMBER(SEARCH(AN$3,$D4)),1,"") ->  | AO4: =IF(ISNUMBER(SEARCH(AO$3,$D4)),1,"") ->  | AQ4: 1 | AU4: 1 | BE4: =IF(ISNUMBER(SEARCH(BE$3,$G4)),1,"") ->  | BF4: =IF(ISNUMBER(SEARCH(BF$3,$G4)),1,"") ->  | BO4: 1 | BW4: 1 | BX4: Crossing - LT | BY4: 1 | BZ4: 0 | CA4: 1 | CB4: 0 | CD4: 1 | CE4: 0 | CF4: 0 | CG4: 0 | CI4: 1 | CJ4: 0 | CK4: 1 | CL4: 0 | CN4: =IF(OR(CD4="",CI4=""),"",MIN(CD4,CI4)) -> 1 | CO4: =IF(OR(CE4="",CJ4=""),"",MIN(CE4,CJ4)) -> 0 | CP4: 0 | CQ4: 0
A5: 2 | B5: Crossing - LT | C5: WBL | D5: CrossL2 | E5: Cross left | F5: SBL | G5: RampL2 | H5: Signal far | J5: =SUMPRODUCT($AN5:$BC5,$AN$44:$BC$44) -> 1875 | K5: =SUMPRODUCT($BE5:$BT5,$BE$44:$BT$44) -> 1125 | L5: =PRODUCT(J5:K5) -> 2109375 | N5: 20 | O5: 25 | P5: 230 | Q5: =IF(B5="Nonmotorized","",SQRT(N5^2+O5^2-2*N5*O5*COS(RADIANS(P5)))/2) -> 20.41927772 | R5: 0.02155528414 | T5: 0.505 | V5: 1 | W5: 0 | X5: 1 | Y5: 0 | Z5: 3.75 | AB5: 40 | AC5: 0.7777777778 | AG5: 1 | AI5: 1.472916667 | AK5: =L5*R5*AI5 -> 66970.83641 | AN5: =IF(ISNUMBER(SEARCH(AN$3,$D5)),1,"") ->  | AR5: 1 | BE5: =IF(ISNUMBER(SEARCH(BE$3,$G5)),1,"") ->  | BO5: 1 | BW5: 2 | BX5: Crossing - LT | BY5: 1 | BZ5: 0 | CA5: 1 | CB5: 0 | CD5: 1 | CE5: 0 | CF5: 0 | CG5: 0 | CI5: 1 | CJ5: 0 | CK5: 1 | CL5: 0 | CN5: =IF(OR(CD5="",CI5=""),"",MIN(CD5,CI5)) -> 1 | CO5: 0 | CP5: 0 | CQ5: 0
A6: 3 | B6: Crossing - LT | C6: EBL | D6: CrossL1 | E6: Cross left | F6: WBL | G6: CrossL2 | H6: Cross left | J6: 1875 | K6: 1875 | L6: 3515625 | N6: 20 | O6: 20 | P6: 230 | Q6: 18.12615574 | R6: 0.013743776 | T6: =IF(SSI_RTI_CrossLTPhase ="Protected/permitted",SSI_RTI_ProtPermFactor,IF(SSI_RTI_CrossLTPhase="Protected",SSI_RTI_ProtFactor,SSI_RTI_PermFactor)) -> 0.505 | V6: 1 | W6: 0 | X6: 1 | Y6: 0 | Z6: 3.75 | AB6: 40 | AC6: 0.7777777778 | AG6: 1 | AI6: 1.472916667 | AK6: 71168.33226 | AO6: 1 | BI6: 1 | BW6: 3 | BX6: Crossing - LT | BY6: 1 | BZ6: 0 | CA6: 1 | CB6: 0 | CD6: 1 | CE6: 0 | CF6: 1 | CG6: 0 | CI6: 1 | CJ6: 0 | CK6: 1 | CL6: 0 | CN6: 1 | CO6: 0 | CP6: 1 | CQ6: 0
A7: 4 | B7: Crossing - LT | C7: EBL | D7: CrossL1 | E7: Cross left | F7: SBL | G7: RampL2 | H7: Signal far | J7: 1875 | K7: 1125 | L7: 2109375 | N7: 20 | O7: 25 | P7: 230 | Q7: 20.41927772 | R7: 0.02155528414 | T7: 0.505 | V7: 1 | W7: 0 | X7: 1 | Y7: 0 | Z7: 3.75 | AB7: 40 | AC7: 0.7777777778 | AG7: 1 | AI7: 1.472916667 | AK7: 66970.83641 | AO7: 1 | BO7: 1 | BW7: 4 | BX7: Crossing - LT | BY7: 1 | BZ7: 0 | CA7: 1 | CB7: 0 | CD7: 1 | CE7: 0 | CF7: 1 | CG7: 0 | CI7: 1 | CJ7: 0 | CK7: 1 | CL7: 0 | CN7: 1 | CO7: 0 | CP7: 1 | CQ7: 0
A8: 5 | B8: Crossing - LT | C8: EBT | D8: CrossT1 | E8: Cross thru | F8: WBL | G8: CrossL2 | H8: Cross left | J8: 3750 | K8: 1875 | L8: 7031250 | N8: 40 | O8: 20 | P8: 230 | Q8: 27.51572358 | R8: 0.06608384659 | T8: =IF(SSI_RTI_CrossLTPhase ="Protected/permitted",SSI_RTI_ProtPermFactor,IF(SSI_RTI_CrossLTPhase="Protected",SSI_RTI_ProtFactor,SSI_RTI_PermFactor)) -> 0.505 | V8: 1 | W8: 0 | X8: 1 | Y8: 0 | Z8: 3.75 | AB8: 40 | AC8: 0.7777777778 | AG8: 1 | AI8: 1.472916667 | AK8: 684393.7433 | AN8: 1 | BI8: 1 | BW8: 5 | BX8: Crossing - LT | BY8: 1 | BZ8: 0 | CA8: 1 | CB8: 0 | CD8: 1 | CE8: 0 | CF8: 1 | CG8: 0 | CI8: 1 | CJ8: 0 | CK8: 1 | CL8: 0 | CN8: 1 | CO8: 0 | CP8: 1 | CQ8: 0
A9: 6 | B9: Crossing - LT | C9: EBT, SBL | D9: CrossT1, RampL2 | E9: Cross thru | F9: NBL | G9: RampL1 | H9: Signal near | J9: 4875 | K9: 1125 | L9: 5484375 | N9: 40 | O9: 15 | P9: 230 | Q9: 25.4771718 | R9: 0.04955895981 | T9: 0.505 | V9: 1 | W9: 0 | X9: 1 | Y9: 0 | Z9: 3.75 | AB9: 40 | AC9: 0.7777777778 | AG9: 1 | AI9: 1.472916667 | AK9: 400338.6324 | AN9: =IF(ISNUMBER(SEARCH(AN$3,$D9)),1,"") -> 1 | AX9: 1 | BL9: 1 | BW9: 6 | BX9: Crossing - LT | BY9: 1 | BZ9: 0 | CA9: 1 | CB9: 0 | CD9: 1 | CE9: 0 | CF9: 0 | CG9: 0 | CI9: 1 | CJ9: 0 | CK9: 1 | CL9: 0 | CN9: 1 | CO9: 0 | CP9: 0 | CQ9: 0
A10: 7 | B10: Crossing - LT | C10: EBL | D10: CrossL1 | E10: Cross left | F10: NBL | G10: RampL1 | H10: Signal far | J10: 1875 | K10: 1125 | L10: 2109375 | N10: 20 | O10: 25 | P10: 230 | Q10: 20.41927772 | R10: 0.02155528414 | T10: 0.505 | V10: 1 | W10: 0 | X10: 1 | Y10: 0 | Z10: 3.75 | AB10: 40 | AC10: 0.7777777778 | AG10: 1 | AI10: 1.472916667 | AK10: 66970.83641 | AN10: =IF(ISNUMBER(SEARCH(AN$3,$D10)),1,"") ->  | AO10: 1 | BL10: 1 | BW10: 7 | BX10: Crossing - LT | BY10: 1 | BZ10: 0 | CA10: 1 | CB10: 0 | CD10: 1 | CE10: 0 | CF10: 0 | CG10: 0 | CI10: 1 | CJ10: 0 | CK10: 1 | CL10: 0 | CN10: 1 | CO10: 0 | CP10: 0 | CQ10: 0
A11: 8 | B11: Crossing - LT | C11: WBL | D11: CrossL2 | E11: Cross left | F11: EBL | G11: CrossL1 | H11: Cross left | J11: 1875 | K11: 1875 | L11: 3515625 | N11: 20 | O11: 20 | P11: 230 | Q11: 18.12615574 | R11: 0.013743776 | T11: =IF(SSI_RTI_CrossLTPhase ="Protected/permitted",SSI_RTI_ProtPermFactor,IF(SSI_RTI_CrossLTPhase="Protected",SSI_RTI_ProtFactor,SSI_RTI_PermFactor)) -> 0.505 | V11: 1 | W11: 0 | X11: 1 | Y11: 0 | Z11: 3.75 | AB11: 40 | AC11: 0.7777777778 | AG11: 1 | AI11: 1.472916667 | AK11: 71168.33226 | AR11: 1 | BF11: 1 | BW11: 8 | BX11: Crossing - LT | BY11: 1 | BZ11: 0 | CA11: 1 | CB11: 0 | CD11: 1 | CE11: 0 | CF11: 1 | CG11: 0 | CI11: 1 | CJ11: 0 | CK11: 1 | CL11: 0 | CN11: 1 | CO11: 0 | CP11: 1 | CQ11: 0
A12: 9 | B12: Crossing - LT | C12: WBL | D12: CrossL2 | E12: Cross left | F12: NBL | G12: RampL1 | H12: Signal far | J12: 1875 | K12: 1125 | L12: 2109375 | N12: 20 | O12: 25 | P12: 230 | Q12: 20.41927772 | R12: 0.02155528414 | T12: 0.505 | V12: 1 | W12: 0 | X12: 1 | Y12: 0 | Z12: 3.75 | AB12: 40 | AC12: 0.7777777778 | AG12: 1 | AI12: 1.472916667 | AK12: 66970.83641 | AR12: 1 | BL12: 1 | BW12: 9 | BX12: Crossing - LT | BY12: 1 | BZ12: 0 | CA12: 1 | CB12: 0 | CD12: 1 | CE12: 0 | CF12: 1 | CG12: 0 | CI12: 1 | CJ12: 0 | CK12: 1 | CL12: 0 | CN12: 1 | CO12: 0 | CP12: 1 | CQ12: 0
A13: 10 | B13: Crossing - LT | C13: WBT | D13: CrossT2 | E13: Cross thru | F13: EBL | G13: CrossL1 | H13: Cross left | J13: 3750 | K13: 1875 | L13: 7031250 | N13: 40 | O13: 20 | P13: 230 | Q13: 27.51572358 | R13: 0.06608384659 | T13: =IF(SSI_RTI_CrossLTPhase ="Protected/permitted",SSI_RTI_ProtPermFactor,IF(SSI_RTI_CrossLTPhase="Protected",SSI_RTI_ProtFactor,SSI_RTI_PermFactor)) -> 0.505 | V13: 1 | W13: 0 | X13: 1 | Y13: 0 | Z13: 3.75 | AB13: 40 | AC13: 0.7777777778 | AG13: 1 | AI13: 1.472916667 | AK13: 684393.7433 | AQ13: 1 | BF13: 1 | BW13: 10 | BX13: Crossing - LT | BY13: 1 | BZ13: 0 | CA13: 1 | CB13: 0 | CD13: 1 | CE13: 0 | CF13: 1 | CG13: 0 | CI13: 1 | CJ13: 0 | CK13: 1 | CL13: 0 | CN13: 1 | CO13: 0 | CP13: 1 | CQ13: 0
A14: 11 | B14: Merging | C14: WBT, NBL | D14: CrossT2, RampL1 | E14: Cross thru | F14: SBR | G14: RampR2 | H14: Signal near | J14: 4875 | K14: 1125 | L14: 5484375 | N14: 40 | O14: 15 | P14: 45 | Q14: 15.62427488 | R14: 0.007834035766 | T14: 0.505 | V14: 0 | W14: 0 | X14: 1 | Y14: 0 | Z14: 1.75 | AB14: 40 | AC14: 0.7777777778 | AG14: 1 | AI14: 0.6873611111 | AK14: 29532.32573 | AQ14: 1 | AU14: 1 | BP14: 1 | BW14: 11 | BX14: Merging | BY14: 0 | BZ14: 0 | CA14: 1 | CB14: 0 | CD14: 0 | CE14: 0 | CF14: 1 | CG14: 0 | CI14: 0 | CJ14: 0 | CK14: 1 | CL14: 0 | CN14: 0 | CO14: 0 | CP14: 1 | CQ14: 0
A15: 12 | B15: Merging | C15: EBR | D15: CrossR1 | E15: Cross right | F15: WBL | G15: CrossL2 | H15: Cross left | J15: 1875 | K15: 1875 | L15: 3515625 | N15: 15 | O15: 20 | P15: 45 | Q15: 7.084065416 | R15: 0.0003902292327 | T15: 0.505 | V15: 1 | W15: 0 | X15: 1 | Y15: 0 | Z15: 3.75 | AB15: 40 | AC15: 0.7777777778 | AG15: 1 | AI15: 1.472916667 | AK15: 2020.693854 | AP15: 1 | BI15: 1 | BW15: 12 | BX15: Merging | BY15: 1 | BZ15: 0 | CA15: 1 | CB15: 0 | CD15: 1 | CE15: 0 | CF15: 1 | CG15: 0 | CI15: 1 | CJ15: 0 | CK15: 1 | CL15: 0 | CN15: 1 | CO15: 0 | CP15: 1 | CQ15: 0
A16: 13 | B16: Merging | C16: EBT | D16: CrossT1 | E16: Cross thru | F16: SBL | G16: RampL2 | H16: Signal far | J16: 3750 | K16: 1125 | L16: 4218750 | N16: 40 | O16: 25 | P16: 45 | Q16: 14.23715595 | R16: 0.005508459929 | T16: 0.505 | V16: 1 | W16: 0 | X16: 1 | Y16: 0 | Z16: 3.75 | AB16: 40 | AC16: 0.7777777778 | AG16: 1 | AI16: 1.472916667 | AK16: 34228.83841 | AN16: 1 | BO16: 1 | BW16: 13 | BX16: Merging | BY16: 1 | BZ16: 0 | CA16: 1 | CB16: 0 | CD16: 1 | CE16: 0 | CF16: 1 | CG16: 0 | CI16: 1 | CJ16: 0 | CK16: 1 | CL16: 0 | CN16: 1 | CO16: 0 | CP16: 1 | CQ16: 0
A17: 14 | B17: Merging | C17: EBT, SBL | D17: CrossT1, RampL2 | E17: Cross thru | F17: NBR | G17: RampR1 | H17: Signal near | J17: 4875 | K17: 1125 | L17: 5484375 | N17: 40 | O17: 15 | P17: 45 | Q17: 15.62427488 | R17: 0.007834035766 | T17: 0.505 | V17: 0 | W17: 0 | X17: 1 | Y17: 0 | Z17: 1.75 | AB17: 40 | AC17: 0.7777777778 | AG17: 1 | AI17: 0.6873611111 | AK17: 29532.32573 | AN17: 1 | AX17: 1 | BM17: 1 | BW17: 14 | BX17: Merging | BY17: 0 | BZ17: 0 | CA17: 1 | CB17: 0 | CD17: 0 | CE17: 0 | CF17: 1 | CG17: 0 | CI17: 0 | CJ17: 0 | CK17: 1 | CL17: 0 | CN17: 0 | CO17: 0 | CP17: 1 | CQ17: 0
A18: 15 | B18: Merging | C18: WBR | D18: CrossR2 | E18: Cross right | F18: EBL | G18: CrossL1 | H18: Cross left | J18: 1875 | K18: 1875 | L18: 3515625 | N18: 15 | O18: 20 | P18: 45 | Q18: 7.084065416 | R18: 0.0003902292327 | T18: 0.505 | V18: 1 | W18: 0 | X18: 1 | Y18: 0 | Z18: 3.75 | AB18: 40 | AC18: 0.7777777778 | AG18: 1 | AI18: 1.472916667 | AK18: 2020.693854 | AS18: 1 | BF18: 1 | BW18: 15 | BX18: Merging | BY18: 1 | BZ18: 0 | CA18: 1 | CB18: 0 | CD18: 1 | CE18: 0 | CF18: 1 | CG18: 0 | CI18: 1 | CJ18: 0 | CK18: 1 | CL18: 0 | CN18: 1 | CO18: 0 | CP18: 1 | CQ18: 0
A19: 16 | B19: Merging | C19: WBT | D19: CrossT2 | E19: Cross thru | F19: NBL | G19: RampL1 | H19: Signal far | J19: 3750 | K19: 1125 | L19: 4218750 | N19: 40 | O19: 25 | P19: 45 | Q19: 14.23715595 | R19: 0.005508459929 | T19: 0.505 | V19: 1 | W19: 0 | X19: 1 | Y19: 0 | Z19: 3.75 | AB19: 40 | AC19: 0.7777777778 | AG19: 1 | AI19: 1.472916667 | AK19: 34228.83841 | AQ19: 1 | BL19: 1 | BW19: 16 | BX19: Merging | BY19: 1 | BZ19: 0 | CA19: 1 | CB19: 0 | CD19: 1 | CE19: 0 | CF19: 1 | CG19: 0 | CI19: 1 | CJ19: 0 | CK19: 1 | CL19: 0 | CN19: 1 | CO19: 0 | CP19: 1 | CQ19: 0
A20: 17 | B20: Diverging | C20: SBR | D20: RampR2 | E20: Signal near | F20: SBL | G20: RampL2 | H20: Signal near | J20: 1125 | K20: 1125 | L20: 1265625 | N20: 15 | O20: 15 | P20: 10 | Q20: 1.307336141 | R20: 6.406138808e-07 | T20: =SSI_RTI_PermFactor -> 1 | V20: 0 | W20: 0 | X20: 0 | Y20: 0 | Z20: 1 | AC20: 1 | AG20: 1 | AI20: 1 | AK20: 0.8107769428 | AY20: 1 | BO20: 1 | BW20: 17 | BX20: Diverging | BY20: 0 | BZ20: 0 | CA20: 0 | CB20: 0 | CD20: 0 | CE20: 0 | CF20: 0 | CG20: 0 | CI20: 0 | CJ20: 0 | CK20: 0 | CL20: 0 | CN20: 0 | CO20: 0 | CP20: 0 | CQ20: 0
A21: 18 | B21: Diverging | C21: EBT, EBR | D21: CrossT1, CrossR1 | E21: Cross thru | F21: EBL | G21: CrossL1 | H21: Cross left | J21: 5625 | K21: 1875 | L21: 10546875 | N21: 40 | O21: 20 | P21: 10 | Q21: 10.299364 | R21: 0.00161398224 | T21: 1 | V21: 0 | W21: 0 | X21: 0 | Y21: 0 | Z21: 1 | AC21: 1 | AG21: 1 | AI21: 1 | AK21: 17022.46894 | AN21: 1 | AP21: 1 | BF21: 1 | BW21: 18 | BX21: Diverging | BY21: 0 | BZ21: 0 | CA21: 0 | CB21: 0 | CD21: 0 | CE21: 0 | CF21: 0 | CG21: 0 | CI21: 0 | CJ21: 0 | CK21: 0 | CL21: 0 | CN21: 0 | CO21: 0 | CP21: 0 | CQ21: 0
A22: 19 | B22: Diverging | C22: EBT | D22: CrossT1 | E22: Cross thru | F22: EBR | G22: CrossR1 | H22: Cross right | J22: 3750 | K22: 1875 | L22: 7031250 | N22: 40 | O22: 15 | P22: 10 | Q22: 12.68099657 | R22: 0.003552174922 | T22: 1 | V22: 0 | W22: 0 | X22: 0 | Y22: 0 | Z22: 1 | AC22: 1 | AG22: 1 | AI22: 1 | AK22: 24976.22992 | AN22: 1 | BG22: 1 | BW22: 19 | BX22: Diverging | BY22: 0 | BZ22: 0 | CA22: 0 | CB22: 0 | CD22: 0 | CE22: 0 | CF22: 0 | CG22: 0 | CI22: 0 | CJ22: 0 | CK22: 0 | CL22: 0 | CN22: 0 | CO22: 0 | CP22: 0 | CQ22: 0
A23: 20 | B23: Diverging | C23: NBR | D23: RampR1 | E23: Signal near | F23: NBL | G23: RampL1 | H23: Signal near | J23: 1125 | K23: 1125 | L23: 1265625 | N23: 15 | O23: 15 | P23: 10 | Q23: 1.307336141 | R23: 6.406138808e-07 | T23: 1 | V23: 0 | W23: 0 | X23: 0 | Y23: 0 | Z23: 1 | AC23: 1 | AG23: 1 | AI23: 1 | AK23: 0.8107769428 | AV23: 1 | BL23: 1 | BW23: 20 | BX23: Diverging | BY23: 0 | BZ23: 0 | CA23: 0 | CB23: 0 | CD23: 0 | CE23: 0 | CF23: 0 | CG23: 0 | CI23: 0 | CJ23: 0 | CK23: 0 | CL23: 0 | CN23: 0 | CO23: 0 | CP23: 0 | CQ23: 0
A24: 21 | B24: Diverging | C24: WBT, WBR | D24: CrossT2, CrossR2 | E24: Cross thru | F24: WBL | G24: CrossL2 | H24: Cross left | J24: 5625 | K24: 1875 | L24: 10546875 | N24: 40 | O24: 20 | P24: 10 | Q24: 10.299364 | R24: 0.00161398224 | T24: 1 | V24: 0 | W24: 0 | X24: 0 | Y24: 0 | Z24: 1 | AC24: 1 | AG24: 1 | AI24: 1 | AK24: 17022.46894 | AQ24: 1 | AS24: 1 | BI24: 1 | BW24: 21 | BX24: Diverging | BY24: 0 | BZ24: 0 | CA24: 0 | CB24: 0 | CD24: 0 | CE24: 0 | CF24: 0 | CG24: 0 | CI24: 0 | CJ24: 0 | CK24: 0 | CL24: 0 | CN24: 0 | CO24: 0 | CP24: 0 | CQ24: 0
A25: 22 | B25: Diverging | C25: WBT | D25: CrossT2 | E25: Cross thru | F25: WBR | G25: CrossR2 | H25: Cross right | J25: 3750 | K25: 1875 | L25: 7031250 | N25: 40 | O25: 15 | P25: 10 | Q25: 12.68099657 | R25: 0.003552174922 | T25: 1 | V25: 0 | W25: 0 | X25: 0 | Y25: 0 | Z25: 1 | AC25: 1 | AG25: 1 | AI25: 1 | AK25: 24976.22992 | AQ25: 1 | BJ25: 1 | BW25: 22 | BX25: Diverging | BY25: 0 | BZ25: 0 | CA25: 0 | CB25: 0 | CD25: 0 | CE25: 0 | CF25: 0 | CG25: 0 | CI25: 0 | CJ25: 0 | CK25: 0 | CL25: 0 | CN25: 0 | CO25: 0 | CP25: 0 | CQ25: 0
A26: 23 | B26: Nonmotorized | D26: RampNM2 | E26: Nonmotorized | F26: SBL | G26: RampL2 | H26: Signal near | J26: 375 | K26: 1125 | L26: 421875 | N26: 0 | O26: 15 | R26: 0.1205004039 | T26: =SSI_RTI_ProtFactor -> 0.505 | V26: 0 | W26: 1 | X26: 0 | Y26: 0 | Z26: 1 | AB26: =IF(B26="Diverging","",SSI_RTI_VehSpeed_SignalNear) -> 15 | AC26: 0.5 | AG26: 1 | AI26: 0.2525 | AK26: 12836.11725 | BC26: 1 | BO26: 1 | BW26: 23 | BX26: Nonmotorized | BY26: 0 | BZ26: 1 | CA26: 0 | CB26: 0 | CD26: 0 | CE26: 1 | CF26: 0 | CG26: 0 | CI26: 0 | CJ26: 1 | CK26: 0 | CL26: 0 | CN26: 0 | CO26: 1 | CP26: 0 | CQ26: 0
A27: 24 | B27: Nonmotorized | D27: RampNM2 | E27: Nonmotorized | F27: SBR | G27: RampR2 | H27: Signal near | J27: 375 | K27: 1125 | L27: 421875 | N27: 0 | O27: 15 | R27: 0.1205004039 | T27: 0.505 | V27: 0 | W27: 1 | X27: 0 | Y27: 0 | Z27: 1 | AB27: =IF(B27="Diverging","",SSI_RTI_VehSpeed_SignalNear) -> 15 | AC27: 0.5 | AG27: 1 | AI27: 0.2525 | AK27: 12836.11725 | BC27: 1 | BP27: 1 | BW27: 24 | BX27: Nonmotorized | BY27: 0 | BZ27: 1 | CA27: 0 | CB27: 0 | CD27: 0 | CE27: 1 | CF27: 0 | CG27: 0 | CI27: 0 | CJ27: 1 | CK27: 0 | CL27: 0 | CN27: 0 | CO27: 1 | CP27: 0 | CQ27: 0
A28: 25 | B28: Nonmotorized | D28: CrossNM1 | E28: Nonmotorized | F28: SBR | G28: RampR2 | H28: Signal near | J28: 375 | K28: 1125 | L28: 421875 | N28: 0 | O28: 15 | R28: 0.1205004039 | T28: 0.505 | V28: 2 | W28: 0 | X28: 0 | Y28: 1 | Z28: 5 | AB28: =IF(B28="Diverging","",SSI_RTI_VehSpeed_CrossThru) -> 40 | AC28: 0.7777777778 | AG28: 1 | AI28: 1.963888889 | AK28: 99836.46746 | AZ28: 1 | BP28: 1 | BW28: 25 | BX28: Nonmotorized | BY28: 2 | BZ28: 0 | CA28: 0 | CB28: 1 | CD28: 1 | CE28: 0 | CF28: 0 | CG28: 1 | CI28: 2 | CJ28: 0 | CK28: 0 | CL28: 1 | CN28: 1 | CO28: 0 | CP28: 0 | CQ28: 1
A29: 26 | B29: Nonmotorized | D29: CrossNM1 | E29: Nonmotorized | F29: WBT, NBL | G29: CrossT2, RampL1 | H29: Cross thru | J29: 375 | K29: 4875 | L29: 1828125 | N29: 0 | O29: 40 | R29: 0.7511584002 | T29: 0.505 | V29: 2 | W29: 0 | X29: 0 | Y29: 1 | Z29: 5 | AB29: 40 | AC29: 0.7777777778 | AG29: 1 | AI29: 1.963888889 | AK29: 2696834.71 | AZ29: 1 | BH29: 1 | BL29: 1 | BW29: 26 | BX29: Nonmotorized | BY29: 2 | BZ29: 0 | CA29: 0 | CB29: 1 | CD29: 1 | CE29: 0 | CF29: 0 | CG29: 1 | CI29: 2 | CJ29: 0 | CK29: 0 | CL29: 1 | CN29: 1 | CO29: 0 | CP29: 0 | CQ29: 1
A30: 27 | B30: Nonmotorized | D30: CrossNM1 | E30: Nonmotorized | F30: EBL | G30: CrossL1 | H30: Cross left | J30: 375 | K30: 1875 | L30: 703125 | N30: 0 | O30: 20 | R30: 0.2027491292 | T30: 0.505 | V30: 2 | W30: 0 | X30: 0 | Y30: 1 | Z30: 5 | AB30: 40 | AC30: 0.7777777778 | AG30: 1 | AI30: 1.963888889 | AK30: 279968.0359 | AZ30: 1 | BF30: 1 | BW30: 27 | BX30: Nonmotorized | BY30: 2 | BZ30: 0 | CA30: 0 | CB30: 1 | CD30: 1 | CE30: 0 | CF30: 0 | CG30: 0 | CI30: 2 | CJ30: 0 | CK30: 0 | CL30: 1 | CN30: 1 | CO30: 0 | CP30: 0 | CQ30: 0
A31: 28 | B31: Nonmotorized | D31: CrossNM1 | E31: Nonmotorized | F31: EBT | G31: CrossT1 | H31: Cross thru | J31: 375 | K31: 3750 | L31: 1406250 | N31: 0 | O31: 40 | R31: 0.7511584002 | T31: 0.505 | V31: 2 | W31: 0 | X31: 0 | Y31: 1 | Z31: 5 | AB31: 40 | AC31: 0.7777777778 | AG31: 1 | AI31: 1.963888889 | AK31: =L31*R31*AI31 -> 2074488.238 | AZ31: 1 | BE31: 1 | BW31: 28 | BX31: Nonmotorized | BY31: 2 | BZ31: 0 | CA31: 0 | CB31: 1 | CD31: 1 | CE31: 0 | CF31: 0 | CG31: 0 | CI31: 2 | CJ31: 0 | CK31: 0 | CL31: 1 | CN31: 1 | CO31: 0 | CP31: 0 | CQ31: 0
A32: 29 | B32: Nonmotorized | D32: CrossNM1 | E32: Nonmotorized | F32: EBR | G32: CrossR1 | H32: Cross right | J32: 375 | K32: 1875 | L32: 703125 | N32: 0 | O32: 15 | R32: 0.1205004039 | T32: 0.505 | V32: 2 | W32: 0 | X32: 0 | Y32: 1 | Z32: 5 | AB32: 40 | AC32: 0.7777777778 | AG32: 1 | AI32: 1.963888889 | AK32: 166394.1124 | AZ32: 1 | BG32: 1 | BW32: 29 | BX32: Nonmotorized | BY32: 2 | BZ32: 0 | CA32: 0 | CB32: 1 | CD32: 1 | CE32: 0 | CF32: 0 | CG32: 0 | CI32: 2 | CJ32: 0 | CK32: 0 | CL32: 1 | CN32: 1 | CO32: 0 | CP32: 0 | CQ32: 0
A33: 30 | B33: Nonmotorized | D33: RampNM1 | E33: Nonmotorized | F33: EBR | G33: CrossR1 | H33: Cross right | J33: 375 | K33: 1875 | L33: 703125 | N33: 0 | O33: 15 | R33: 0.1205004039 | T33: 0.505 | V33: 0 | W33: 1 | X33: 2 | Y33: 0 | Z33: 4.5 | AB33: 40 | AC33: 0.7777777778 | AG33: 1 | AI33: 1.7675 | AK33: 149754.7012 | BB33: 1 | BG33: =IF(ISNUMBER(SEARCH(BG$3,$G33)),1,"") -> 1 | BW33: 30 | BX33: Nonmotorized | BY33: 0 | BZ33: 1 | CA33: 2 | CB33: 0 | CD33: 0 | CE33: 1 | CF33: 2 | CG33: 0 | CI33: 0 | CJ33: 1 | CK33: 1 | CL33: 0 | CN33: 0 | CO33: 1 | CP33: 1 | CQ33: 0
A34: 31 | B34: Nonmotorized | D34: RampNM1 | E34: Nonmotorized | F34: WBL | G34: CrossL2 | H34: Cross left | J34: 375 | K34: 1875 | L34: 703125 | N34: 0 | O34: 20 | R34: 0.2027491292 | T34: 0.505 | V34: 0 | W34: 1 | X34: 2 | Y34: 0 | Z34: 4.5 | AB34: 40 | AC34: 0.7777777778 | AG34: 1 | AI34: 1.7675 | AK34: 251971.2323 | BB34: 1 | BE34: =IF(ISNUMBER(SEARCH(BE$3,$G34)),1,"") ->  | BI34: 1 | BW34: 31 | BX34: Nonmotorized | BY34: 0 | BZ34: 1 | CA34: 2 | CB34: 0 | CD34: 0 | CE34: 1 | CF34: 2 | CG34: 0 | CI34: 0 | CJ34: 1 | CK34: 1 | CL34: 0 | CN34: 0 | CO34: 1 | CP34: 1 | CQ34: 0
A35: 32 | B35: Nonmotorized | D35: RampNM1 | E35: Nonmotorized | F35: NBL | G35: RampL1 | H35: Signal near | J35: 375 | K35: 1125 | L35: 421875 | N35: 0 | O35: 15 | R35: 0.1205004039 | T35: 0.505 | V35: 0 | W35: 1 | X35: 0 | Y35: 0 | Z35: 1 | AB35: =IF(B35="Diverging","",SSI_RTI_VehSpeed_SignalNear) -> 15 | AC35: 0.5 | AG35: 1 | AI35: 0.2525 | AK35: 12836.11725 | BB35: 1 | BL35: 1 | BW35: 32 | BX35: Nonmotorized | BY35: 0 | BZ35: 1 | CA35: 0 | CB35: 0 | CD35: 0 | CE35: 1 | CF35: 0 | CG35: 0 | CI35: 0 | CJ35: 1 | CK35: 0 | CL35: 0 | CN35: 0 | CO35: 1 | CP35: 0 | CQ35: 0
A36: 33 | B36: Nonmotorized | D36: RampNM1 | E36: Nonmotorized | F36: NBR | G36: RampR1 | H36: Signal near | J36: 375 | K36: 1125 | L36: 421875 | N36: 0 | O36: 15 | R36: 0.1205004039 | T36: 0.505 | V36: 0 | W36: 1 | X36: 0 | Y36: 0 | Z36: 1 | AB36: =IF(B36="Diverging","",SSI_RTI_VehSpeed_SignalNear) -> 15 | AC36: 0.5 | AG36: 1 | AI36: 0.2525 | AK36: 12836.11725 | BB36: 1 | BM36: 1 | BW36: 33 | BX36: Nonmotorized | BY36: 0 | BZ36: 1 | CA36: 0 | CB36: 0 | CD36: 0 | CE36: 1 | CF36: 0 | CG36: 0 | CI36: 0 | CJ36: 1 | CK36: 0 | CL36: 0 | CN36: 0 | CO36: 1 | CP36: 0 | CQ36: 0
A37: 34 | B37: Nonmotorized | D37: CrossNM2 | E37: Nonmotorized | F37: NBR | G37: RampR1 | H37: Signal near | J37: 375 | K37: 1125 | L37: 421875 | N37: 0 | O37: 15 | R37: 0.1205004039 | T37: 0.505 | V37: 2 | W37: 0 | X37: 0 | Y37: 1 | Z37: 5 | AB37: =IF(B37="Diverging","",SSI_RTI_VehSpeed_CrossThru) -> 40 | AC37: 0.7777777778 | AG37: 1 | AI37: 1.963888889 | AK37: 99836.46746 | BA37: 1 | BM37: 1 | BW37: 34 | BX37: Nonmotorized | BY37: 2 | BZ37: 0 | CA37: 0 | CB37: 1 | CD37: 1 | CE37: 0 | CF37: 0 | CG37: 1 | CI37: 2 | CJ37: 0 | CK37: 0 | CL37: 1 | CN37: 1 | CO37: 0 | CP37: 0 | CQ37: 1
A38: 35 | B38: Nonmotorized | D38: CrossNM2 | E38: Nonmotorized | F38: EBT, SBL | G38: CrossT1, RampL2 | H38: Cross thru | J38: 375 | K38: 4875 | L38: 1828125 | N38: 0 | O38: 40 | R38: 0.7511584002 | T38: 0.505 | V38: 2 | W38: 0 | X38: 0 | Y38: 1 | Z38: 5 | AB38: 40 | AC38: 0.7777777778 | AG38: 1 | AI38: 1.963888889 | AK38: 2696834.71 | BA38: 1 | BE38: 1 | BO38: 1 | BW38: 35 | BX38: Nonmotorized | BY38: 2 | BZ38: 0 | CA38: 0 | CB38: 1 | CD38: 1 | CE38: 0 | CF38: 0 | CG38: 1 | CI38: 2 | CJ38: 0 | CK38: 0 | CL38: 1 | CN38: 1 | CO38: 0 | CP38: 0 | CQ38: 1
A39: 36 | B39: Nonmotorized | D39: CrossNM2 | E39: Nonmotorized | F39: WBL | G39: CrossL2 | H39: Cross left | J39: 375 | K39: 1875 | L39: 703125 | N39: 0 | O39: 20 | R39: 0.2027491292 | T39: 0.505 | V39: 2 | W39: 0 | X39: 0 | Y39: 1 | Z39: 5 | AB39: 40 | AC39: 0.7777777778 | AG39: 1 | AI39: 1.963888889 | AK39: 279968.0359 | AP39: =IF(ISNUMBER(SEARCH(AP$3,$D39)),1,"") ->  | BA39: 1 | BI39: 1 | BW39: 36 | BX39: Nonmotorized | BY39: 2 | BZ39: 0 | CA39: 0 | CB39: 1 | CD39: 1 | CE39: 0 | CF39: 0 | CG39: 0 | CI39: 2 | CJ39: 0 | CK39: 0 | CL39: 1 | CN39: 1 | CO39: 0 | CP39: 0 | CQ39: 0
A40: 37 | B40: Nonmotorized | D40: CrossNM2 | E40: Nonmotorized | F40: WBT | G40: CrossT2 | H40: Cross thru | J40: 375 | K40: 3750 | L40: 1406250 | N40: 0 | O40: 40 | R40: 0.7511584002 | T40: 0.505 | V40: 2 | W40: 0 | X40: 0 | Y40: 1 | Z40: 5 | AB40: 40 | AC40: 0.7777777778 | AG40: 1 | AI40: 1.963888889 | AK40: 2074488.238 | AN40: =IF(ISNUMBER(SEARCH(AN$3,$D40)),1,"") ->  | BA40: 1 | BH40: 1 | BW40: 37 | BX40: Nonmotorized | BY40: 2 | BZ40: 0 | CA40: 0 | CB40: 1 | CD40: 1 | CE40: 0 | CF40: 0 | CG40: 0 | CI40: 2 | CJ40: 0 | CK40: 0 | CL40: 1 | CN40: 1 | CO40: 0 | CP40: 0 | CQ40: 0
A41: 38 | B41: Nonmotorized | D41: CrossNM2 | E41: Nonmotorized | F41: WBR | G41: CrossR2 | H41: Cross right | J41: 375 | K41: 1875 | L41: 703125 | N41: 0 | O41: 15 | R41: 0.1205004039 | T41: 0.505 | V41: 2 | W41: 0 | X41: 0 | Y41: 1 | Z41: 5 | AB41: 40 | AC41: 0.7777777778 | AG41: 1 | AI41: 1.963888889 | AK41: 166394.1124 | BA41: 1 | BJ41: 1 | BW41: 38 | BX41: Nonmotorized | BY41: 2 | BZ41: 0 | CA41: 0 | CB41: 1 | CD41: 1 | CE41: 0 | CF41: 0 | CG41: 0 | CI41: 2 | CJ41: 0 | CK41: 0 | CL41: 1 | CN41: 1 | CO41: 0 | CP41: 0 | CQ41: 0
A42: 39 | B42: Nonmotorized | D42: RampNM2 | E42: Nonmotorized | F42: WBR | G42: CrossR2 | H42: Cross right | J42: 375 | K42: 1875 | L42: 703125 | N42: 0 | O42: 15 | Q42: =IF(B42="Nonmotorized","",SQRT(N42^2+O42^2-2*N42*O42*COS(RADIANS(P42)))/2) ->  | R42: 0.1205004039 | T42: 0.505 | V42: 0 | W42: 1 | X42: 2 | Y42: 0 | Z42: 4.5 | AB42: 40 | AC42: 0.7777777778 | AG42: 1 | AI42: 1.7675 | AK42: 149754.7012 | BC42: 1 | BJ42: 1 | BW42: 39 | BX42: Nonmotorized | BY42: 0 | BZ42: 1 | CA42: 2 | CB42: 0 | CD42: 0 | CE42: 1 | CF42: 2 | CG42: 0 | CI42: 0 | CJ42: 1 | CK42: 1 | CL42: 0 | CN42: 0 | CO42: 1 | CP42: 1 | CQ42: 0
A43: 40 | B43: Nonmotorized | D43: RampNM2 | E43: Nonmotorized | F43: EBL | G43: CrossL1 | H43: Cross left | J43: 375 | K43: 1875 | L43: =PRODUCT(J43:K43) -> 703125 | N43: 0 | O43: 20 | R43: 0.2027491292 | T43: 0.505 | V43: 0 | W43: 1 | X43: 2 | Y43: 0 | Z43: 4.5 | AB43: 40 | AC43: 0.7777777778 | AG43: 1 | AI43: 1.7675 | AK43: 251971.2323 | BC43: 1 | BF43: 1 | BW43: 40 | BX43: Nonmotorized | BY43: 0 | BZ43: 1 | CA43: 2 | CB43: 0 | CD43: 0 | CE43: 1 | CF43: 2 | CG43: 0 | CI43: 0 | CJ43: 1 | CK43: 1 | CL43: 0 | CN43: 0 | CO43: 1 | CP43: 1 | CQ43: 0
AM44: O | AN44: ='SSI Inputs RTI'!$D$28 -> 3750 | AO44: ='SSI Inputs RTI'!$D$29 -> 1875 | AP44: ='SSI Inputs RTI'!$D$30 -> 1875 | AQ44: ='SSI Inputs RTI'!$D$32 -> 3750 | AR44: ='SSI Inputs RTI'!$D$33 -> 1875 | AS44: ='SSI Inputs RTI'!$D$34 -> 1875 | AT44: ='SSI Inputs RTI'!$D$36 -> 2250 | AU44: ='SSI Inputs RTI'!$D$37 -> 1125 | AV44: ='SSI Inputs RTI'!$D$38 -> 1125 | AW44: ='SSI Inputs RTI'!$D$40 -> 2250 | AX44: ='SSI Inputs RTI'!$D$41 -> 1125 | AY44: ='SSI Inputs RTI'!$D$42 -> 1125 | AZ44: ='SSI Inputs RTI'!$Q$20 -> 375 | BA44: ='SSI Inputs RTI'!$Q$21 -> 375 | BB44: ='SSI Inputs RTI'!$Q$22 -> 375 | BC44: ='SSI Inputs RTI'!$Q$23 -> 375 | BD44: O | BE44: ='SSI Inputs RTI'!$D$28 -> 3750 | BF44: ='SSI Inputs RTI'!$D$29 -> 1875 | BG44: ='SSI Inputs RTI'!$D$30 -> 1875 | BH44: ='SSI Inputs RTI'!$D$32 -> 3750 | BI44: ='SSI Inputs RTI'!$D$33 -> 1875 | BJ44: ='SSI Inputs RTI'!$D$34 -> 1875 | BK44: ='SSI Inputs RTI'!$D$36 -> 2250 | BL44: ='SSI Inputs RTI'!$D$37 -> 1125 | BM44: ='SSI Inputs RTI'!$D$38 -> 1125 | BN44: ='SSI Inputs RTI'!$D$40 -> 2250 | BO44: ='SSI Inputs RTI'!$D$41 -> 1125 | BP44: ='SSI Inputs RTI'!$D$42 -> 1125 | BQ44: ='SSI Inputs RTI'!$Q$20 -> 375 | BR44: ='SSI Inputs RTI'!$Q$21 -> 375 | BS44: ='SSI Inputs RTI'!$Q$22 -> 375 | BT44: ='SSI Inputs RTI'!$Q$23 -> 375
AM45: D | AN45: ='SSI Inputs RTI'!$E$28 -> 7750 | AO45: ='SSI Inputs RTI'!$E$29 -> 3875 | AP45: ='SSI Inputs RTI'!$E$30 -> 3875 | AQ45: ='SSI Inputs RTI'!$E$32 -> 7750 | AR45: ='SSI Inputs RTI'!$E$33 -> 3875 | AS45: ='SSI Inputs RTI'!$E$34 -> 3875 | AT45: ='SSI Inputs RTI'!$E$36 -> 2500 | AU45: ='SSI Inputs RTI'!$E$37 -> 1250 | AV45: ='SSI Inputs RTI'!$E$38 -> 1250 | AW45: ='SSI Inputs RTI'!$E$40 -> 2500 | AX45: ='SSI Inputs RTI'!$E$41 -> 1250 | AY45: ='SSI Inputs RTI'!$E$42 -> 1250 | AZ45: ='SSI Inputs RTI'!$R$20 -> 425 | BA45: ='SSI Inputs RTI'!$R$21 -> 425 | BB45: ='SSI Inputs RTI'!$R$22 -> 425 | BC45: ='SSI Inputs RTI'!$R$23 -> 425 | BD45: D | BE45: ='SSI Inputs RTI'!$E$28 -> 7750 | BF45: ='SSI Inputs RTI'!$E$29 -> 3875 | BG45: ='SSI Inputs RTI'!$E$30 -> 3875 | BH45: ='SSI Inputs RTI'!$E$32 -> 7750 | BI45: ='SSI Inputs RTI'!$E$33 -> 3875 | BJ45: ='SSI Inputs RTI'!$E$34 -> 3875 | BK45: ='SSI Inputs RTI'!$E$36 -> 2500 | BL45: ='SSI Inputs RTI'!$E$37 -> 1250 | BM45: ='SSI Inputs RTI'!$E$38 -> 1250 | BN45: ='SSI Inputs RTI'!$E$40 -> 2500 | BO45: ='SSI Inputs RTI'!$E$41 -> 1250 | BP45: ='SSI Inputs RTI'!$E$42 -> 1250 | BQ45: ='SSI Inputs RTI'!$R$20 -> 425 | BR45: ='SSI Inputs RTI'!$R$21 -> 425 | BS45: ='SSI Inputs RTI'!$R$22 -> 425 | BT45: ='SSI Inputs RTI'!$R$23 -> 425
J101: Exposure | AK101: Exposure-Severity-Complexity Product
J102: Q1 | K102: Q2 | L102: I
J103: =SUMPRODUCT($AN4:$BC4,$AN$45:$BC$45) -> 9000 | K103: =SUMPRODUCT($BE4:$BT4,$BE$45:$BT$45) -> 1250 | L103: =PRODUCT(J103:K103) -> 11250000 | AK103: =L103*R4*AI4 -> 821207.4512
J104: =SUMPRODUCT($AN5:$BC5,$AN$45:$BC$45) -> 3875 | K104: =SUMPRODUCT($BE5:$BT5,$BE$45:$BT$45) -> 1250 | L104: =PRODUCT(J104:K104) -> 4843750 | AK104: =L104*R5*AI5 -> 153784.8836
J105: 3875 | K105: 3875 | L105: 15015625 | AK105: 303967.8547
J106: 3875 | K106: 1250 | L106: 4843750 | AK106: 153784.8836
J107: 7750 | K107: 3875 | L107: 30031250 | AK107: 2923121.721
J108: 9000 | K108: 1250 | L108: 11250000 | AK108: 821207.4512
J109: 3875 | K109: 1250 | L109: 4843750 | AK109: 153784.8836
J110: 3875 | K110: 3875 | L110: 15015625 | AK110: 303967.8547
J111: 3875 | K111: 1250 | L111: 4843750 | AK111: 153784.8836
J112: 7750 | K112: 3875 | L112: 30031250 | AK112: 2923121.721
J113: 9000 | K113: 1250 | L113: 11250000 | AK113: 60579.1297
J114: 3875 | K114: 3875 | L114: 15015625 | AK114: 8630.607972
J115: 7750 | K115: 1250 | L115: 9687500 | AK115: 78599.55486
J116: 9000 | K116: 1250 | L116: 11250000 | AK116: 60579.1297
J117: 3875 | K117: 3875 | L117: 15015625 | AK117: 8630.607972
J118: 7750 | K118: 1250 | L118: 9687500 | AK118: 78599.55486
J119: 1250 | K119: 1250 | L119: 1562500 | AK119: 1.000959189
J120: 11625 | K120: 3875 | L120: 45046875 | AK120: 72704.85623
J121: 7750 | K121: 3875 | L121: 30031250 | AK121: 106676.2531
J122: 1250 | K122: 1250 | L122: 1562500 | AK122: 1.000959189
J123: 11625 | K123: 3875 | L123: 45046875 | AK123: 72704.85623
J124: 7750 | K124: 3875 | L124: 30031250 | AK124: 106676.2531
J125: 425 | K125: 1250 | L125: 531250 | AK125: 16163.99949
J126: 425 | K126: 1250 | L126: 531250 | AK126: 16163.99949
J127: 425 | K127: 1250 | L127: 531250 | AK127: 125719.9961
J128: 425 | K128: 9000 | L128: 3825000 | AK128: 5642608.008
J129: 425 | K129: 3875 | L129: 1646875 | AK129: 655747.3551
J130: 425 | K130: 7750 | L130: 3293750 | AK130: 4858912.451
J131: 425 | K131: 3875 | L131: 1646875 | AK131: 389731.9878
J132: 425 | K132: 3875 | L132: 1646875 | AK132: 350758.789
J133: 425 | K133: 3875 | L133: 1646875 | AK133: 590172.6196
J134: 425 | K134: 1250 | L134: 531250 | AK134: 16163.99949
J135: 425 | K135: 1250 | L135: 531250 | AK135: 16163.99949
J136: 425 | K136: 1250 | L136: 531250 | AK136: 125719.9961
J137: 425 | K137: 9000 | L137: 3825000 | AK137: 5642608.008
J138: 425 | K138: 3875 | L138: 1646875 | AK138: 655747.3551
J139: 425 | K139: 7750 | L139: 3293750 | AK139: 4858912.451
J140: 425 | K140: 3875 | L140: 1646875 | AK140: 389731.9878
J141: 425 | K141: 3875 | L141: 1646875 | AK141: 350758.789
J142: 425 | K142: 3875 | L142: 1646875 | AK142: 590172.6196

Sheet Calibration
A1: Calibration
A2: Optional - Input locally-developed calibration factors for SPFs.
A3: At-Grade Intersection SPFs
A4: Traffic Control | B4: Facility Type | C4: # legs | D4: 1 way/ 2 way | E4: # of lanes on arterial | F4: Default Calibration Factor | G4: Optional User Override | I4: Use Value
A6: Traffic Signal (For more information on determining signal type, refer to the "Definitions" worksheet) | B6: On Rural Two Lane Highway | C6: 3 leg | D6: - | E6: - | F6: =CalibrationDefaults!F6 -> 1 | I6: =IF(ISNUMBER(G6),G6,F6) -> 1
C7: 4 leg | D7: - | E7: - | F7: =CalibrationDefaults!F7 -> 0.92 | I7: =IF(ISNUMBER(G7),G7,F7) -> 0.92
B8: On Rural Multilane Highway | C8: 3 leg | D8: - | E8: - | F8: =CalibrationDefaults!F8 -> 1 | I8: 1
C9: 4 leg | D9: - | E9: - | F9: =CalibrationDefaults!F9 -> 0.45 | I9: 0.45
B10: On Urban and Suburban Arterial | C10: 3 leg | D10: 2x2 | E10: 5 or fewer | F10: =CalibrationDefaults!F10 -> 2.5 | I10: 2.5
C11: 4 leg | D11: 2x2 | E11: 5 or fewer | F11: =CalibrationDefaults!F11 -> 2.27 | I11: 2.27
C12: 3 leg | D12: 2x2 | E12: 6 or more | F12: =CalibrationDefaults!F12 -> 1 | I12: 1
C13: 4 leg | D13: 2x2 | E13: 6 or more | F13: =CalibrationDefaults!F13 -> 1 | I13: 1
C14: 3 leg | D14: 1x2 | E14: - | F14: =CalibrationDefaults!F14 -> 1 | I14: 1
C15: 4 leg | D15: 1x2 | E15: - | F15: =CalibrationDefaults!F15 -> 1 | I15: 1
C16: 3 leg | D16: 1x1 | E16: - | F16: =CalibrationDefaults!F16 -> 1 | I16: 1
C17: 4 leg | D17: 1x1 | E17: - | F17: =CalibrationDefaults!F17 -> 1 | I17: 1
B18: On High Speed (50+ MPH) Urban and Suburban Arterial | C18: 3 leg | D18: - | E18: - | F18: =CalibrationDefaults!F18 -> 1 | I18: 1
C19: 4 leg | D19: - | E19: - | F19: =CalibrationDefaults!F19 -> 1 | I19: 1
A20: Minor Road Stop | B20: On Rural Two Lane Highway | C20: 3 leg | D20: - | E20: - | F20: =CalibrationDefaults!F20 -> 1.27 | I20: 1.27
C21: 4 leg | D21: - | E21: - | F21: =CalibrationDefaults!F21 -> 0.74 | I21: 0.74
B22: On Rural Multilane Highway | C22: 3 leg | D22: - | E22: - | F22: =CalibrationDefaults!F22 -> 2.2 | I22: 2.2
C23: 4 leg | D23: - | E23: - | F23: =CalibrationDefaults!F23 -> 1.64 | I23: 1.64
B24: On Urban and Suburban Arterial | C24: 3 leg | D24: 2x2 | E24: 5 or fewer | F24: =CalibrationDefaults!F24 -> 1.14 | I24: 1.14
C25: 4 leg | D25: 2x2 | E25: 5 or fewer | F25: =CalibrationDefaults!F25 -> 1.87 | I25: 1.87
C26: 3 leg | D26: 2x2 | E26: 6 or more | F26: =CalibrationDefaults!F26 -> 1 | I26: 1
C27: 4 leg | D27: 2x2 | E27: 6 or more | F27: =CalibrationDefaults!F27 -> 1 | I27: 1
C28: 3 leg | D28: 1x2 | E28: - | F28: =CalibrationDefaults!F28 -> 1 | I28: 1
C29: 4 leg | D29: 1x2 | E29: - | F29: =CalibrationDefaults!F29 -> 1 | I29: 1
C30: 3 leg | D30: 1x1 | E30: - | F30: =CalibrationDefaults!F30 -> 1 | I30: 1
C31: 4 leg | D31: 1x1 | E31: - | F31: =CalibrationDefaults!F31 -> 1 | I31: 1
B32: On High Speed (50+ MPH) Urban and Suburban Arterial | C32: 3 leg | D32: - | E32: - | F32: =CalibrationDefaults!F32 -> 1 | I32: 1
C33: 4 leg | D33: - | E33: - | F33: =CalibrationDefaults!F33 -> 1 | I33: 1
A34: All-Way Stop | B34: On Rural Two Lane Highway | C34: 3 leg | D34: - | E34: - | F34: =CalibrationDefaults!F34 -> 1 | I34: 1
C35: 4 leg | D35: - | E35: - | F35: =CalibrationDefaults!F35 -> 1 | I35: 1
B36: On Rural Multilane Highway | C36: 3 leg | D36: - | E36: - | F36: =CalibrationDefaults!F36 -> 1 | I36: 1
C37: 4 leg | D37: - | E37: - | F37: =CalibrationDefaults!F37 -> 1 | I37: 1
B38: On Urban and Suburban Arterial | C38: 3 leg | D38: - | E38: - | F38: =CalibrationDefaults!F38 -> 1 | I38: 1
C39: 4 leg | D39: - | E39: - | F39: =CalibrationDefaults!F39 -> 1 | I39: 1
A40: Roundabout | B40: 1-lane roundabout | C40: 3 leg | D40: - | E40: - | F40: =CalibrationDefaults!F40 -> 1 | I40: 1
C41: 4 leg | D41: - | E41: - | F41: =CalibrationDefaults!F41 -> 1 | I41: 1
B42: 2-lane roundabout | C42: 3 leg | D42: - | E42: - | F42: =CalibrationDefaults!F42 -> 1 | I42: 1
C43: 4 leg | D43: - | E43: - | F43: =CalibrationDefaults!F43 -> 1 | I43: 1
A44: Signalized Restricted Crossing U-Turn (RCUT), also known Superstreet | C44: 3 leg | D44: - | E44: - | F44: =CalibrationDefaults!F44 -> 1 | I44: =IF(ISNUMBER(G44),G44,F44) -> 1
C45: 4 leg | D45: - | E45: - | F45: =CalibrationDefaults!F45 -> 1 | I45: 1
A46: Unsignalized Restricted Crossing U-Turn (RCUT), also known as J-Turn | C46: 3 leg | D46: - | E46: - | F46: =CalibrationDefaults!F46 -> 1 | I46: 1
C47: 4 leg | D47: - | E47: - | F47: =CalibrationDefaults!F47 -> 1 | I47: 1
A48: Ramp Terminal Intersection SPFs
A49: Control | B49: Ramp and Intersection Type | F49: SPF Calibration Factor | G49: Optional User Override | I49: Use Value
A51: Signalized Diamond | B51: Four-leg terminals with diagonal ramps (D4) | F51: 1 | I51: 1
A52: Diverging Diamond | B52: All types | F52: 1 | I52: =IF(ISNUMBER(G52),G52,F52) -> 1
A53: Single-Point Diamond | B53: All types | F53: 1 | I53: 1
A54: Unsignalized Diamond | B54: Four-leg terminals with diagonal ramps (D4) | F54: 1 | I54: 1
A55: Roundabout | B55: 1-lane roundabout with 4 legs | F55: 1 | I55: 1
B56: 2-lane roundabout with 4 legs | F56: 1 | I56: 1
A57: Signalized Tight Diamond | F57: 1 | I57: =IF(ISNUMBER(G57),G57,F57) -> 1
A58: Local CMFs
A59: Optional - Override default CMFs with locally-developed or new CMFs
A60: Control | C60: Default Base Intersection | E60: Type of Crashes | F60: Default CMF | G60: Optional User Override | I60: Use Value
A61: Displaced Left Turn (DLT) | C61: Traffic Signal | E61: Total | F61: 0.88 | I61: =IF(ISNUMBER(G61),G61,F61) -> 0.88
E62: Fatal-Injury | F62: 0.88 | I62: =IF(ISNUMBER(G62),G62,F62) -> 0.88
A63: Median U-Turn (MUT) | C63: Traffic Signal | E63: Total | F63: 0.85 | I63: 0.85
E64: Fatal-Injury | F64: 0.7 | I64: 0.7
A65: Signalized Restricted Crossing U-Turn (RCUT), also known Superstreet | C65: Traffic Signal | E65: Total | F65: 0.85 | I65: 0.85
E66: Fatal-Injury | F66: 0.78 | I66: 0.78
A67: Unsignalized Restricted Crossing U-Turn (RCUT), also known as J-Turn | C67: Minor Road Stop (TWSC) | E67: Total | F67: 0.65 | I67: 0.65
E68: Fatal-Injury | F68: 0.46 | I68: 0.46
A69: Signalized Thru-Cut | C69: Traffic Signal | E69: Total | F69: 1 | I69: =IF(ISNUMBER(G69),G69,F69) -> 1
E70: Fatal-Injury | F70: 1 | I70: =IF(ISNUMBER(G70),G70,F70) -> 1
A71: Unsignalized Thru-Cut | C71: Minor Road Stop (TWSC) | E71: Total | F71: 1 | I71: =IF(ISNUMBER(G71),G71,F71) -> 1
E72: Fatal-Injury | F72: 1 | I72: =IF(ISNUMBER(G72),G72,F72) -> 1
A73: Bowtie | C73: Taffic Signal | E73: Total | F73: 1 | I73: 1
E74: Fatal-Injury | F74: 1 | I74: =IF(ISNUMBER(G74),G74,F74) -> 1
A75: Continuous Green-T Intersection | C75: Traffic Signal | E75: Total | F75: 0.96 | I75: =IF(ISNUMBER(G75),G75,F75) -> 0.96
E76: Fatal-Injury | F76: 0.85 | I76: =IF(ISNUMBER(G76),G76,F76) -> 0.85
A77: Jughandles | C77: Traffic Signal | E77: Total | F77: 0.74 | I77: =IF(ISNUMBER(G77),G77,F77) -> 0.74
E78: Fatal-Injury | F78: 0.74 | I78: =IF(ISNUMBER(G78),G78,F78) -> 0.74
A79: =Label_AGI_Other1 -> Other 1* | C79: User Selection | E79: Total | F79: 1 | I79: =IF(ISNUMBER(G79),G79,F79) -> 1
E80: Fatal-Injury | F80: 1 | I80: 1
A81: =Label_AGI_Other2 -> Other 2* | C81: User Selection | E81: Total | F81: 1 | I81: 1
E82: Fatal-Injury | F82: 1 | I82: 1
A83: Crossover Traffic Signal (of Diverging Diamond Interchange) | C83: Traffic Signal | E83: Total | F83: 0.67 | I83: =IF(ISNUMBER(G83),G83,F83) -> 0.67
E84: Fatal-Injury | F84: 0.59 | I84: =IF(ISNUMBER(G84),G84,F84) -> 0.59

Sheet Historical
A1: Historical Crash Data Input
A2: Note: In order to use Empirical Bayes (EB), the historical intersection type must be a traffic signal or a minor road stop. Additionally, this alternative must be selected to be included in the analysis, and the historical intersection specified below. Up to 10 years of historical data can be used to perform the EB adjustment.
B5: Is historical crash data available? | D5: Yes
B7: Number of years available: | D7: 5 | F7: (Up to 10) | H7: First Year Data is available: | K7: 2016
B8: Historical Intx Type: | D8: 4ST
B9: Facility Type | D9: =IF(Input_FacilityType=FacilityType_Label_Rural2Ln,1,IF(Input_FacilityType=FacilityType_Label_RuralMultiLn,2,IF(Input_FacilityType=FacilityType_Label_Urban,IF(Input_1Way2Way=Notes!$A$54,IF(Input_MajorApproachSpeed=Notes!$A$67,7,IF(Input_NumMajorLanes=Notes!$A$60,3,4)),IF(Input_1Way2Way=Notes!$A$55,5,6))))) -> 3
B11: Historical Crash Counts | D11: Year
D12: =IF($D$7>0,$K$7,"--") -> 2016 | E12: =IF($D$7>1,$K$7+1,"--") -> 2017 | F12: =IF($D$7>2,$K$7+2,"--") -> 2018 | G12: =IF($D$7>3,$K$7+3,"--") -> 2019 | H12: =IF($D$7>4,$K$7+4,"--") -> 2020 | I12: =IF($D$7>5,$K$7+5,"--") -> -- | J12: =IF($D$7>6,$K$7+6,"--") -> -- | K12: =IF($D$7>7,$K$7+7,"--") -> -- | L12: =IF($D$7>8,$K$7+8,"--") -> -- | M12: =IF($D$7>9,$K$7+9,"--") -> -- | N12: Total
A13: =OR(AND(EB_Facility_Type<>3,EB_Facility_Type<>7),EB_Intx_Type=Notes!J69,EB_Intx_Type=Notes!J70) -> FALSE | B13: Combined | C13: Total | D13: =IF(ISNUMBER(D$12),SUM(D14:D15),"--") -> 0 | E13: =IF(ISNUMBER(E12),SUM(E14:E15),"--") -> 0 | F13: 0 | G13: 0 | H13: 0 | I13: -- | J13: -- | K13: -- | L13: -- | M13: -- | N13: =IF(ISNUMBER(D13),SUM(D13:M13),"--") -> 0 | O13: =IF(AND(A13,COUNTIF(D13:M13,"=0")>0),"One or more years has 0 total crashes.","") -> 
C14: Fatal/Injury | N14: =SUMPRODUCT(D14:M14,--(ISNUMBER($D$12:$M$12))) -> 0
C15: PDO | N15: 0
A16: =AND(OR(EB_Facility_Type=3,EB_Facility_Type=7),EB_Intx_Type<>Notes!J69,EB_Intx_Type<>Notes!J70) -> TRUE | B16: Single-Vehicle | C16: Total | D16: =IF(ISNUMBER(D$12),SUM(D17:D18),"--") -> 0 | E16: =IF(ISNUMBER(E$12),SUM(E17:E18),"--") -> 0 | F16: 0 | G16: 0 | H16: 0 | I16: -- | J16: -- | K16: -- | L16: -- | M16: -- | N16: 0 | O16: =IF(AND(A16,COUNTIF(D16:M16,"=0")>0),"One or more years has 0 total crashes.","") -> One or more years has 0 total crashes.
C17: Fatal/Injury | N17: 0
C18: PDO | N18: 0
A19: =AND(OR(EB_Facility_Type=3,EB_Facility_Type=7),EB_Intx_Type<>Notes!J69,EB_Intx_Type<>Notes!J70) -> TRUE | B19: Multiple-Vehicle | C19: Total | D19: =IF(ISNUMBER(D$12),SUM(D20:D21),"--") -> 0 | E19: =IF(ISNUMBER(E$12),SUM(E20:E21),"--") -> 0 | F19: 0 | G19: 0 | H19: 0 | I19: -- | J19: -- | K19: -- | L19: -- | M19: -- | N19: 0 | O19: =IF(AND(A19,COUNTIF(D19:M19,"=0")>0),"One or more years has 0 total crashes.","") -> One or more years has 0 total crashes.
C20: Fatal/Injury | N20: 0
C21: PDO | N21: 0
A22: TRUE | B22: Veh-Ped | C22: Fatal/Injury | N22: 0
A23: =TRUE -> TRUE | B23: Veh-Bike | C23: Fatal/Injury | N23: 0
B24: Total | C24: All | D24: =IF($A$13,SUM(D14:D15),0)+IF($A$16,SUM(D20:D21),0)+IF($A$16,SUM(D17:D18),0)+IF($A$22,D22,0)+IF($A$23,D23,0) -> 0 | E24: =IF(ISNUMBER(E12),IF($A$13,SUM(E14:E15),0)+IF($A$16,SUM(E20:E21),0)+IF($A$16,SUM(E17:E18),0)+IF($A$22,E22,0)+IF($A$23,E23,0),"--") -> 0 | F24: 0 | G24: 0 | H24: 0 | I24: -- | J24: -- | K24: -- | L24: -- | M24: -- | N24: =IF($A$13,SUM(N14:N15),0)+IF($A$16,SUM(N20:N21),0)+IF($A$16,SUM(N17:N18),0)+IF($A$22,N22,0)+IF($A$23,N23,0) -> 0
B30: Computations Only Below This Point
B39: Empirical Bayes Computations (No Data Entry) | S39: Dispersion Parameters | V39: At-Grade Intersection Facility Type | AD39: AWSC Dispersion Parameters 17-68 Report Update | AG39: Intersection Facility Type
B40: =IF(AND($D$9<>3,EB_Facility_Type<>7),"Combined Collisions","Single-Vehicle Only") -> Single-Vehicle Only | C40: Year | E40: =D$12 -> 2016 | F40: 2017 | G40: 2018 | H40: 2019 | I40: 2020 | J40: -- | K40: -- | L40: -- | M40: -- | N40: -- | O40: Total | V40: Rural Two-Lane Highways | W40: Rural Multilane Highways | X40: Urban/Suburban Arterials w/ 5 or Fewer Lanes | Y40: Urban/Suburban Arterials w/ 6 or More Lanes | AB40: High Speed | AG40: Rural Two-Lane Highways | AH40: Rural Multilane Highways | AI40: Urban/Suburban Arterials w/ 5 or Fewer Lanes
C41: Npredicted | D41: Total | E41: 0.6167710874 | F41: =IF(AND(ISNUMBER(E$12),ISNUMBER(NPred_Total)),NPred_Total,"--") -> 0.6167710874 | G41: 0.6167710874 | H41: 0.6167710874 | I41: 0.6167710874 | J41: -- | K41: -- | L41: -- | M41: -- | N41: -- | O41: =IF(ISNUMBER(E44),SUM(E41:N41),"--") -> 3.083855437
D42: Fatal/Injury | E42: 0.1628318744 | F42: =IF(AND(ISNUMBER(E$12),ISNUMBER(NPred_FI)),NPred_FI,"--") -> 0.1628318744 | G42: 0.1628318744 | H42: 0.1628318744 | I42: 0.1628318744 | J42: -- | K42: -- | L42: -- | M42: -- | N42: -- | O42: =IF(ISNUMBER(E45),SUM(E42:N42),"--") -> --
D43: PDO | E43: 0.453939213 | F43: =IF(AND(ISNUMBER(E$12),ISNUMBER(NPred_PDO)),NPred_PDO,"--") -> 0.453939213 | G43: 0.453939213 | H43: 0.453939213 | I43: 0.453939213 | J43: -- | K43: -- | L43: -- | M43: -- | N43: -- | O43: =IF(ISNUMBER(E46),SUM(E43:N43),"--") -> 2.269696065 | S43: Combined Multi and Single Vehicle | T43: Total | U43: Intx | V43: R2L | W43: RML | X43: U/S Art. | Y43: 2x2 | Z43: 1x2 | AA43: 1x1 | AB43: U/S Art. | AD43: Combined Multi and Single Vehicle | AE43: Total | AF43: Intx | AG43: R2L | AH43: RML | AI43: U/S Art.
C44: Dispersion Parameter (k) | D44: Total | E44: =IF(OR(EB_Intx_Type=Notes!J69,EB_Intx_Type=Notes!J70),IF(OR(EB_Facility_Type=1, EB_Facility_Type=2), VLOOKUP(EB_Intx_Type,$AF$44:$AI$45,EB_Facility_Type + 1,FALSE),VLOOKUP(EB_Intx_Type,$AF$44:$AI$45,4,FALSE)),IF(AND($D$9<>3,EB_Facility_Type<>7),VLOOKUP(EB_Intx_Type,U44:AB47,EB_Facility_Type+1,FALSE),VLOOKUP(EB_Intx_Type,U59:AB62,EB_Facility_Type+1,FALSE))) -> 0.65 | F44: =IF(AND(ISNUMBER(E$12),ISNUMBER(E44)),E44,"--") -> 0.65 | G44: 0.65 | H44: 0.65 | I44: 0.65 | J44: -- | K44: -- | L44: -- | M44: -- | N44: -- | O44: -- | U44: 3ST | V44: 0.54 | W44: 0.46 | X44: -- | Y44: -- | Z44: -- | AA44: -- | AB44: -- | AF44: 3AWSC | AG44: -- | AH44: -- | AI44: --
D45: Fatal/Injury | E45: =IF(OR(EB_Intx_Type=Notes!J69,EB_Intx_Type=Notes!J70),VLOOKUP(EB_Intx_Type,$AF$47:$AI$48,MIN(EB_Facility_Type,3)+1,FALSE),IF(AND($D$9<>3,EB_Facility_Type<>7),VLOOKUP(EB_Intx_Type,U49:AB52,EB_Facility_Type+1,FALSE),VLOOKUP(EB_Intx_Type,U64:AB67,EB_Facility_Type+1,FALSE))) -> -- | F45: -- | G45: -- | H45: -- | I45: -- | J45: -- | K45: -- | L45: -- | M45: -- | N45: -- | O45: -- | U45: 3SG | V45: 0.31 | W45: 0.4 | X45: -- | Y45: -- | Z45: -- | AA45: -- | AB45: -- | AF45: 4AWSC | AG45: 0.39 | AH45: -- | AI45: --
D46: PDO | E46: =IF(OR(EB_Intx_Type=Notes!J69,EB_Intx_Type=Notes!J70),VLOOKUP(EB_Intx_Type,$AF$50:$AI$51,MIN(EB_Facility_Type,3)+1,FALSE),IF(AND($D$9<>3,EB_Facility_Type<>7),VLOOKUP(EB_Intx_Type,U54:AB57,EB_Facility_Type+1,FALSE),VLOOKUP(EB_Intx_Type,U69:AB72,EB_Facility_Type+1,FALSE))) -> 0.54 | F46: 0.54 | G46: 0.54 | H46: 0.54 | I46: 0.54 | J46: -- | K46: -- | L46: -- | M46: -- | N46: -- | O46: -- | U46: 4ST | V46: 0.24 | W46: 0.494 | X46: -- | Y46: -- | Z46: -- | AA46: -- | AB46: -- | AE46: Fatal / Injury | AF46: Intx | AG46: R2L | AH46: RML | AI46: U/S Art.
C47: Weighted Adjustment (w) | D47: Total | E47: =IF(ISNUMBER(E44),1/(1+E44*E41),"--") -> 0.7138262107 | F47: 0.7138262107 | G47: 0.7138262107 | H47: 0.7138262107 | I47: 0.7138262107 | J47: =IF(ISNUMBER(J44),1/(1+J44*J41),"--") -> -- | K47: =IF(ISNUMBER(K44),1/(1+K44*K41),"--") -> -- | L47: -- | M47: -- | N47: -- | O47: -- | U47: 4SG | V47: 0.11 | W47: 0.277 | X47: -- | Y47: -- | Z47: -- | AA47: -- | AB47: -- | AF47: 3AWSC | AG47: -- | AH47: -- | AI47: 0.07
D48: Fatal/Injury | E48: -- | F48: -- | G48: -- | H48: -- | I48: -- | J48: -- | K48: -- | L48: -- | M48: -- | N48: -- | O48: -- | T48: Fatal / Injury | U48: Intx | V48: R2L | W48: RML | X48: U/S Art. | Y48: 2x2 | Z48: 1x2 | AA48: 1x1 | AB48: U/S Art. | AF48: 4AWSC | AG48: -- | AH48: -- | AI48: 0.66
D49: PDO | E49: 0.8031308127 | F49: 0.8031308127 | G49: 0.8031308127 | H49: 0.8031308127 | I49: 0.8031308127 | J49: -- | K49: -- | L49: -- | M49: -- | N49: -- | O49: -- | U49: 3ST | V49: -- | W49: 0.569 | X49: -- | Y49: 0.6493506494 | Z49: 2 | AA49: 2 | AB49: -- | AE49: PDO | AF49: Intx | AG49: R2L | AH49: RML | AI49: U/S Art.
C50: Nexpected | D50: Total | E50: =IF(ISNUMBER(E44),E47*E41+(1-E47)*IF($A$13,D13,D16),IF(ISNUMBER(E51),SUM(E51:E52),"--")) -> 0.4402673682 | F50: 0.4402673682 | G50: 0.4402673682 | H50: 0.4402673682 | I50: 0.4402673682 | J50: -- | K50: -- | L50: -- | M50: -- | N50: -- | O50: =IF(ISNUMBER(E44),SUM(E50:N50),"--") -> 2.201336841 | U50: 3SG | V50: -- | W50: 1.15 | X50: -- | Y50: 0.518134715 | Z50: 0.9523809524 | AA50: 0.9523809524 | AB50: -- | AF50: 3AWSC | AG50: -- | AH50: -- | AI50: 0.37
D51: Fatal/Injury | E51: =IF(ISNUMBER(E45),E48*E42+(1-E48)*IF($A$13,D14,D17),"--") -> -- | F51: -- | G51: -- | H51: -- | I51: -- | J51: -- | K51: -- | L51: -- | M51: -- | N51: -- | O51: =IF(ISNUMBER(E45),SUM(E51:N51),"--") -> -- | U51: 4ST | V51: -- | W51: 0.742 | X51: -- | Y51: 0.5988023952 | Z51: 0.5319148936 | AA51: 0.5319148936 | AB51: -- | AF51: 4AWSC | AG51: -- | AH51: -- | AI51: 0.78
D52: PDO | E52: =IF(ISNUMBER(E46),E49*E43+(1-E49)*IF($A$13,D15,D18),"--") -> 0.3645725691 | F52: 0.3645725691 | G52: 0.3645725691 | H52: 0.3645725691 | I52: 0.3645725691 | J52: -- | K52: -- | L52: -- | M52: -- | N52: -- | O52: =IF(ISNUMBER(E46),SUM(E52:N52),"--") -> 1.822862845 | U52: 4SG | V52: -- | W52: 0.218 | X52: -- | Y52: 0.5649717514 | Z52: 1.333333333 | AA52: 1.333333333 | AB52: --
C53: Nexpected / Npredicted | N53: Total | O53: =IF(AND(ISNUMBER(E41),ISNUMBER(E44)),O50/O41,1) -> 0.7138262107 | T53: PDO | U53: Intx | V53: R2L | W53: RML | X53: U/S Art. | Y53: 2x2 | Z53: 1x2 | AA53: 1x1 | AB53: U/S Art.
N54: F/I | O54: =IF(AND(ISNUMBER(E42),ISNUMBER(E45)),O51/O42,1) -> 1 | U54: 3ST | V54: -- | W54: -- | X54: -- | Y54: 0.7462686567 | Z54: 1.030927835 | AA54: 1.030927835 | AB54: --
N55: PDO | O55: =IF(AND(ISNUMBER(E43),ISNUMBER(E46)),O52/O43,1) -> 0.8031308127 | U55: 3SG | V55: -- | W55: -- | X55: -- | Y55: 1 | Z55: 0.9009009009 | AA55: 0.9009009009 | AB55: --
B56: Multiple-Vehicle Only (When Applicable) | C56: Year | E56: =D$12 -> 2016 | F56: 2017 | G56: 2018 | H56: 2019 | I56: 2020 | J56: -- | K56: -- | L56: -- | M56: -- | N56: -- | O56: Total | U56: 4ST | V56: -- | W56: -- | X56: -- | Y56: 1.136363636 | Z56: 0.9615384615 | AA56: 0.9615384615 | AB56: --
C57: Npredicted | D57: Total | E57: 6.794819624 | F57: =IF(AND(ISNUMBER(E$12),ISNUMBER(E57)),E57,"--") -> 6.794819624 | G57: 6.794819624 | H57: 6.794819624 | I57: 6.794819624 | J57: -- | K57: -- | L57: -- | M57: -- | N57: -- | O57: =IF(ISNUMBER(E60),SUM(E57:N57),"--") -> 33.97409812 | U57: 4SG | V57: -- | W57: -- | X57: -- | Y57: 0.9900990099 | Z57: 2 | AA57: 2 | AB57: --
D58: Fatal/Injury | E58: 2.771137034 | F58: 2.771137034 | G58: 2.771137034 | H58: 2.771137034 | I58: 2.771137034 | J58: -- | K58: -- | L58: -- | M58: -- | N58: -- | O58: =IF(ISNUMBER(E61),SUM(E58:N58),"--") -> 13.85568517 | S58: Single-Vehicle | T58: Total | U58: Intx | V58: R2L | W58: RML | X58: U/S Art. | Y58: 2x2 | Z58: 1x2 | AA58: 1x1 | AB58: U/S Art.
D59: PDO | E59: 4.02368259 | F59: 4.02368259 | G59: 4.02368259 | H59: 4.02368259 | I59: 4.02368259 | J59: -- | K59: -- | L59: -- | M59: -- | N59: -- | O59: =IF(ISNUMBER(E62),SUM(E59:N59),"--") -> 20.11841295 | U59: 3ST | V59: -- | W59: -- | X59: 1.14 | Y59: -- | Z59: -- | AA59: -- | AB59: 0.69
C60: Dispersion Parameter (k) | D60: Total | E60: =IF(OR(EB_Facility_Type=3,EB_Facility_Type=7),VLOOKUP(EB_Intx_Type,U74:AB77,EB_Facility_Type+1,FALSE),"--") -> 0.4 | F60: 0.4 | G60: 0.4 | H60: 0.4 | I60: 0.4 | J60: -- | K60: -- | L60: -- | M60: -- | N60: -- | O60: -- | U60: 3SG | V60: -- | W60: -- | X60: 0.36 | Y60: -- | Z60: -- | AA60: -- | AB60: 0.57
D61: Fatal/Injury | E61: =IF(OR(EB_Facility_Type=3,EB_Facility_Type=7),VLOOKUP(EB_Intx_Type,U79:AB82,EB_Facility_Type+1,FALSE),"--") -> 0.48 | F61: 0.48 | G61: 0.48 | H61: 0.48 | I61: 0.48 | J61: -- | K61: -- | L61: -- | M61: -- | N61: -- | O61: -- | U61: 4ST | V61: -- | W61: -- | X61: 0.65 | Y61: -- | Z61: -- | AA61: -- | AB61: 1.12
D62: PDO | E62: =IF(OR(EB_Facility_Type=3,EB_Facility_Type=7),VLOOKUP(EB_Intx_Type,U84:AB87,EB_Facility_Type+1,FALSE),"--") -> 0.4 | F62: 0.4 | G62: 0.4 | H62: 0.4 | I62: 0.4 | J62: -- | K62: -- | L62: -- | M62: -- | N62: -- | O62: -- | U62: 4SG | V62: -- | W62: -- | X62: 0.36 | Y62: -- | Z62: -- | AA62: -- | AB62: 0.55
C63: Weighted Adjustment (w) | D63: Total | E63: =IF(ISNUMBER(E60),1/(1+E60*E57),"--") -> 0.2689670269 | F63: =IF(ISNUMBER(F60),1/(1+F60*F57),"--") -> 0.2689670269 | G63: 0.2689670269 | H63: 0.2689670269 | I63: 0.2689670269 | J63: -- | K63: -- | L63: -- | M63: -- | N63: -- | O63: -- | T63: Fatal / Injury | U63: Intx | V63: R2L | W63: RML | X63: U/S Art. | Y63: 2x2 | Z63: 1x2 | AA63: 1x1 | AB63: U/S Art.
D64: Fatal/Injury | E64: =IF(ISNUMBER(E61),1/(1+E61*E58),"--") -> 0.4291576992 | F64: 0.4291576992 | G64: 0.4291576992 | H64: 0.4291576992 | I64: 0.4291576992 | J64: -- | K64: -- | L64: -- | M64: -- | N64: -- | O64: -- | U64: 3ST | V64: -- | W64: -- | X64: -- | Y64: -- | Z64: -- | AA64: -- | AB64: 2.1
D65: PDO | E65: =IF(ISNUMBER(E62),1/(1+E62*E59),"--") -> 0.3832191351 | F65: 0.3832191351 | G65: 0.3832191351 | H65: 0.3832191351 | I65: 0.3832191351 | J65: -- | K65: -- | L65: -- | M65: -- | N65: -- | O65: -- | U65: 3SG | V65: -- | W65: -- | X65: 0.24 | Y65: -- | Z65: -- | AA65: -- | AB65: 1.04
C66: Nexpected | D66: Total | E66: =IF(ISNUMBER(E60),E63*E57+(1-E63)*D19,IF(ISNUMBER(E67),SUM(E67:E68),"--")) -> 1.827582433 | F66: 1.827582433 | G66: 1.827582433 | H66: 1.827582433 | I66: 1.827582433 | J66: -- | K66: -- | L66: -- | M66: -- | N66: -- | O66: =IF(ISNUMBER(E60),SUM(E66:N66),"--") -> 9.137912164 | U66: 4ST | V66: -- | W66: -- | X66: -- | Y66: -- | Z66: -- | AA66: -- | AB66: 1.64
D67: Fatal/Injury | E67: =IF(ISNUMBER(E61),E64*E58+(1-E64)*D20,"--") -> 1.189254793 | F67: 1.189254793 | G67: 1.189254793 | H67: 1.189254793 | I67: 1.189254793 | J67: -- | K67: -- | L67: -- | M67: -- | N67: -- | O67: =IF(ISNUMBER(E61),SUM(E67:N67),"--") -> 5.946273967 | U67: 4SG | V67: -- | W67: -- | X67: 0.09 | Y67: -- | Z67: -- | AA67: -- | AB67: 0.98
D68: PDO | E68: 1.541952162 | F68: 1.541952162 | G68: 1.541952162 | H68: 1.541952162 | I68: 1.541952162 | J68: -- | K68: -- | L68: -- | M68: -- | N68: -- | O68: =IF(ISNUMBER(E62),SUM(E68:N68),"--") -> 7.709760811 | T68: PDO | U68: Intx | V68: R2L | W68: RML | X68: U/S Art. | Y68: 2x2 | Z68: 1x2 | AA68: 1x1 | AB68: U/S Art.
C69: Nexpected / Npredicted | N69: Total | O69: =IF(AND(ISNUMBER(E57),ISNUMBER(E60)),O66/O57,1) -> 0.2689670269 | U69: 3ST | V69: -- | W69: -- | X69: 0.29 | Y69: -- | Z69: -- | AA69: -- | AB69: 0.75
N70: F/I | O70: =IF(AND(ISNUMBER(E58),ISNUMBER(E61)),O67/O58,1) -> 0.4291576992 | U70: 3SG | V70: -- | W70: -- | X70: 0.53 | Y70: -- | Z70: -- | AA70: -- | AB70: 0.74
N71: PDO | O71: =IF(AND(ISNUMBER(E59),ISNUMBER(E62)),O68/O59,1) -> 0.3832191351 | U71: 4ST | V71: -- | W71: -- | X71: 0.54 | Y71: -- | Z71: -- | AA71: -- | AB71: 1.4
B72: Vehicle-Pedestrian | C72: Year | E72: =D$12 -> 2016 | F72: 2017 | G72: 2018 | H72: 2019 | I72: 2020 | J72: -- | K72: -- | L72: -- | M72: -- | N72: -- | O72: Total | U72: 4SG | V72: -- | W72: -- | X72: 0.44 | Y72: -- | Z72: -- | AA72: -- | AB72: 0.84
C73: Npredicted | D73: Fatal/Injury | F73: =IF(AND(ISNUMBER(E$12),ISNUMBER(E73)),E73,"--") -> -- | G73: -- | H73: -- | I73: -- | J73: -- | K73: -- | L73: -- | M73: -- | N73: -- | O73: =IF(ISNUMBER(E76),SUM(E73:N73),"--") -> -- | S73: Multiple-Vehicle | T73: Total | U73: Intx | V73: R2L | W73: RML | X73: U/S Art. | Y73: 2x2 | Z73: 1x2 | AA73: 1x1 | AB73: U/S Art.
C74: Disp. (k) | D74: Fatal/Injury | E74: =IF(AND(EB_Facility_Type>=3,EB_Facility_Type<7),VLOOKUP(EB_Intx_Type,U89:AB92,EB_Facility_Type+1,FALSE),"--") -> -- | F74: -- | G74: -- | H74: -- | I74: -- | J74: -- | K74: -- | L74: -- | M74: -- | N74: -- | O74: -- | U74: 3ST | V74: -- | W74: -- | X74: 0.8 | Y74: -- | Z74: -- | AA74: -- | AB74: 0.85
C75: Weight (w) | D75: Fatal/Injury | E75: =IF(ISNUMBER(E74),1/(1+E74*E73),"--") -> -- | F75: -- | G75: -- | H75: -- | I75: -- | J75: -- | K75: -- | L75: -- | M75: -- | N75: -- | O75: -- | U75: 3SG | V75: -- | W75: -- | X75: 0.33 | Y75: -- | Z75: -- | AA75: -- | AB75: 0.21
C76: Nexpected | D76: Fatal/Injury | E76: =IF(ISNUMBER(E74),E75*E73+(1-E75)*D22,"--") -> -- | F76: -- | G76: -- | H76: -- | I76: -- | J76: -- | K76: -- | L76: -- | M76: -- | N76: -- | O76: =IF(AND(ISNUMBER(NPred_Ped),ISNUMBER(E74)),SUM(E76:N76),"--") -> -- | U76: 4ST | V76: -- | W76: -- | X76: 0.4 | Y76: -- | Z76: -- | AA76: -- | AB76: 0.91
C77: Nexpected / Npredicted | N77: F/I | O77: =IF(AND(ISNUMBER(E73),ISNUMBER(E74)),O76/O73,1) -> 1 | U77: 4SG | V77: -- | W77: -- | X77: 0.39 | Y77: -- | Z77: -- | AA77: -- | AB77: 0.39
B78: Vehicle-Bicylce | C78: Year | E78: =D$12 -> 2016 | F78: 2017 | G78: 2018 | H78: 2019 | I78: 2020 | J78: -- | K78: -- | L78: -- | M78: -- | N78: -- | O78: Total | T78: Fatal / Injury | U78: Intx | V78: R2L | W78: RML | X78: U/S Art. | Y78: 2x2 | Z78: 1x2 | AA78: 1x1 | AB78: U/S Art.
C79: Npredicted | D79: Fatal/Injury | E79: 0 | F79: =IF(AND(ISNUMBER(E$12),ISNUMBER(E79)),E79,"--") -> 0 | G79: 0 | H79: 0 | I79: 0 | J79: -- | K79: -- | L79: -- | M79: -- | N79: -- | O79: =IF(ISNUMBER(E82),SUM(E79:N79),"--") -> -- | U79: 3ST | V79: -- | W79: -- | X79: 0.69 | Y79: -- | Z79: -- | AA79: -- | AB79: 0.76
C80: Disp. (k) | D80: Fatal/Injury | E80: -- | F80: -- | G80: -- | H80: -- | I80: -- | J80: -- | K80: -- | L80: -- | M80: -- | N80: -- | O80: -- | U80: 3SG | V80: -- | W80: -- | X80: 0.3 | Y80: -- | Z80: -- | AA80: -- | AB80: 0.09
C81: Weight (w) | D81: Fatal/Injury | E81: =IF(ISNUMBER(E80),1/(1+E80*E79),"--") -> -- | F81: -- | G81: -- | H81: -- | I81: -- | J81: -- | K81: -- | L81: -- | M81: -- | N81: -- | O81: -- | U81: 4ST | V81: -- | W81: -- | X81: 0.48 | Y81: -- | Z81: -- | AA81: -- | AB81: 0.89
C82: Nexpected | D82: Fatal/Injury | E82: =IF(ISNUMBER(E80),E81*E79+(1-E81)*E41,"--") -> -- | F82: -- | G82: -- | H82: -- | I82: -- | J82: -- | K82: -- | L82: -- | M82: -- | N82: -- | O82: =IF(ISNUMBER(E80),SUM(E82:N82),"--") -> -- | U82: 4SG | V82: -- | W82: -- | X82: 0.33 | Y82: -- | Z82: -- | AA82: -- | AB82: 0.31
C83: Nexpected / Npredicted | N83: F/I | O83: =IF(AND(ISNUMBER(E79),ISNUMBER(E80)),O82/O79,1) -> 1 | T83: PDO | U83: Intx | V83: R2L | W83: RML | X83: U/S Art. | Y83: 2x2 | Z83: 1x2 | AA83: 1x1 | AB83: U/S Art.
U84: 3ST | V84: -- | W84: -- | X84: 0.77 | Y84: -- | Z84: -- | AA84: -- | AB84: 1.11
U85: 3SG | V85: -- | W85: -- | X85: 0.36 | Y85: -- | Z85: -- | AA85: -- | AB85: 0.34
U86: 4ST | V86: -- | W86: -- | X86: 0.4 | Y86: -- | Z86: -- | AA86: -- | AB86: 0.94
U87: 4SG | V87: -- | W87: -- | X87: 0.44 | Y87: -- | Z87: -- | AA87: -- | AB87: 0.38
S88: Veh-Pedestrian | T88: Fatal / Injury | U88: Intx | V88: R2L | W88: RML | X88: U/S Art. | Y88: 2x2 | Z88: 1x2 | AA88: 1x1 | AB88: U/S Art.
U89: 3ST | V89: -- | W89: -- | X89: -- | Y89: -- | Z89: -- | AA89: -- | AB89: --
U90: 3SG | V90: -- | W90: -- | X90: 0.52 | Y90: 0.52 | Z90: 0.52 | AA90: 0.52 | AB90: --
U91: 4ST | V91: -- | W91: -- | X91: -- | Y91: -- | Z91: -- | AA91: -- | AB91: --
U92: 4SG | V92: -- | W92: -- | X92: 0.24 | Y92: 0.24 | Z92: 0.24 | AA92: 0.24 | AB92: --

Sheet Results
A1: Federal Highway Administration (FHWA)
A2: Safety Performance for Intersection Control Evaluation Tool
A3: Results | L3: =IF(OR(OR(ISBLANK('Control Strategy Selection'!D5),ISBLANK('Control Strategy Selection'!D13),ISBLANK('Control Strategy Selection'!D14)),IF('Control Strategy Selection'!D4=Label_AnalysisYearType_OpenAndDesign,OR(ISBLANK('Control Strategy Selection'!D6),ISBLANK('Control Strategy Selection'!D15),ISBLANK('Control Strategy Selection'!D16)),FALSE)),"Please complete the Opening/Design Year Inputs and AADTs Before Viewing Results","") -> 
A4: Summary of crash prediction results for each alternative
A5: Project Information
A6: Project Name: | B6: =IF(ISBLANK('Project Information'!B3:C3),"",'Project Information'!B3:C3) ->  | E6: Intersection Type | I6: ='Control Strategy Selection'!D3 -> At-Grade Intersection
A7: Intersection: | B7: =IF(ISBLANK('Project Information'!B4:C4),"",'Project Information'!B4:C4) ->  | E7: Opening Year | I7: ='Control Strategy Selection'!D5 -> 2025
A8: Agency: | B8: =IF(ISBLANK('Project Information'!B5:C5),"",'Project Information'!B5:C5) ->  | E8: Design Year | I8: ='Control Strategy Selection'!D6 -> 2045
A9: Project Reference: | B9: =IF(ISBLANK('Project Information'!B6:C6),"",'Project Information'!B6:C6) ->  | E9: Facility Type | I9: ='Control Strategy Selection'!D8 -> On Urban and Suburban Arterial
A10: City: | B10: =IF(ISBLANK('Project Information'!B7:C7),"",'Project Information'!B7:C7) ->  | E10: Number of Legs | I10: ='Control Strategy Selection'!D9 -> 4-leg
A11: State: | B11: =IF(ISBLANK('Project Information'!B8:C8),"",'Project Information'!B8:C8) ->  | E11: 1-Way/2-Way | I11: ='Control Strategy Selection'!D10 -> 2-way Intersecting 2-way
A12: Date: | B12: =IF(ISBLANK('Project Information'!B9:C9),"",'Project Information'!B9:C9) ->  | E12: # of Major Street Lanes (both directions) | I12: ='Control Strategy Selection'!D11 -> 5 or fewer
A13: Analyst: | B13: =IF(ISBLANK('Project Information'!B10:C10),"",'Project Information'!B10:C10) ->  | E13: Major Street Approach Speed | I13: ='Control Strategy Selection'!D12 -> Less than 55 mph
A14: Crash Prediction Summary
A15: Control Strategy | B15: Crash Type | C15: Opening Year | D15: Design Year | E15: Total Project Life Cycle | F15: Crash Prediction Rank | G15: AADT Within SPF Prediction Range? | H15: Source of Prediction | I15: SSI Score | S15: Use Val (open vs design) | U15: Included | V15: Total | W15: FI | X15: FALSE
I16: Opening Year | J16: Design Year | K16: Rank
A17: =Label_AGI_TrafficSignal -> Traffic Signal | B17: Total | C17: 10.73539845 | D17: 12.61904432 | E17: 245.162215 | F17: =IF(OR(AND(ISNUMBER(C17),C17>0),AND(ISNUMBER(E17),E17>0)),AA17,"--") -> 10 | G17: =IF(AND('Control Strategy Selection'!O19:P19),"Yes","No") -> Yes | H17: Calibrated SPF | I17: =IF(IsChecked_AGI_TrafficSignal,'SSI Results'!C13,"") -> 68.62313051 | J17: =IF(IsChecked_AGI_TrafficSignal,'SSI Results'!C54,"") -> 63.11010081 | K17: =IF(ISNUMBER(J17),_xlfn.RANK.EQ(J17,$J$17:$J$50),IF(ISNUMBER(I17),_xlfn.RANK.EQ(I17,$I$17:$I$50),"--")) -> 6 | S17: =IF(Input_AnalysisYearType=Notes!$A$11,Results!C17,Results!E17) -> 245.162215 | T17: =IF(Input_AnalysisYearType=Notes!$A$11,Results!C18,Results!E18) -> 82.36126567 | U17: =AND(IsChecked_AGI_TrafficSignal,ISNUMBER(S17)) -> TRUE | V17: =IF(AND(S17>0,U17),S17,99999999999) -> 245.162215 | W17: =IF(AND(T17>0,U17),T17,99999999999) -> 82.36126567 | X17: =RANK(V17,$V$17:$V$32,1) -> 9 | Y17: =RANK(W17,$W$17:$W$32,1) -> 10 | Z17: =IF($X$15,X17+0.01*Y17,Y17+0.01*X17) -> 10.09 | AA17: =RANK(Z17,$Z$17:$Z$32,1) -> 10
B18: Fatal & Injury | C18: 3.595294519 | D18: 4.251624724 | E18: 82.36126567 | S18: =IF(Input_AnalysisYearType=Notes!$A$11,Results!C19,Results!E19) -> 162.2206563 | T18: =IF(Input_AnalysisYearType=Notes!$A$11,Results!C20,Results!E20) -> 54.77202979 | U18: =AND(IsChecked_AGI_TrafficSignal2,ISNUMBER(S18)) -> FALSE | V18: 99999999999 | W18: 99999999999 | X18: 11 | Y18: 11 | Z18: 11.11 | AA18: 11
A19: =Label_AGI_TrafficSignal&" (Alt)" -> Traffic Signal (Alt) | B19: Total | C19: 7.104177603 | D19: 8.349111806 | E19: 162.2206563 | F19: =IF(OR(AND(ISNUMBER(C19),C19>0),AND(ISNUMBER(E19),E19>0)),AA18,"--") -> 11 | G19: =IF(AND('Control Strategy Selection'!O20:P20),"Yes","No") -> Yes | H19: Calibrated SPF | I19: =IF(IsChecked_AGI_TrafficSignal2,'SSI Results'!C14,"") ->  | J19: =IF(IsChecked_AGI_TrafficSignal2,'SSI Results'!C55,"") ->  | K19: =IF(ISNUMBER(J19),_xlfn.RANK.EQ(J19,$J$17:$J$50),IF(ISNUMBER(I19),_xlfn.RANK.EQ(I19,$I$17:$I$50),"--")) -> -- | S19: =IF(Input_AnalysisYearType=Notes!$A$11,Results!C21,Results!E21) -> 50.85895225 | T19: =IF(Input_AnalysisYearType=Notes!$A$11,Results!C22,Results!E22) -> 30.60584106 | U19: =AND(IsChecked_AGI_MinorStop,ISNUMBER(S19)) -> TRUE | V19: 50.85895225 | W19: 30.60584106 | X19: 1 | Y19: 4 | Z19: 4.01 | AA19: 4
B20: Fatal & Injury | C20: 2.391709011 | D20: 2.826614873 | E20: 54.77202979 | S20: =IF(Input_AnalysisYearType=Notes!$A$11,Results!C23,Results!E23) -> 80.13210036 | T20: =IF(Input_AnalysisYearType=Notes!$A$11,Results!C24,Results!E24) -> 28.90072034 | U20: =AND(IsChecked_AGI_AllStop,ISNUMBER(S20)) -> TRUE | V20: 80.13210036 | W20: 28.90072034 | X20: 3 | Y20: 3 | Z20: 3.03 | AA20: 3
A21: =Label_AGI_MinorStop -> Minor Road Stop | B21: Total | C21: 2.267849801 | D21: 2.575026585 | E21: 50.85895225 | F21: =IF(OR(AND(ISNUMBER(C21),C21>0),AND(ISNUMBER(E21),E21>0)),AA19,"--") -> 4 | G21: =IF(AND('Control Strategy Selection'!O21:P21),"Yes","No") -> No | H21: Calibrated SPF w/ EB | I21: =IF(IsChecked_AGI_MinorStop,'SSI Results'!C15,"") -> 51.58562476 | J21: =IF(IsChecked_AGI_MinorStop,'SSI Results'!C56,"") -> 45.05996855 | K21: =IF(ISNUMBER(J21),_xlfn.RANK.EQ(J21,$J$17:$J$50),IF(ISNUMBER(I21),_xlfn.RANK.EQ(I21,$I$17:$I$50),"--")) -> 10 | S21: =IF(Input_AnalysisYearType=Notes!$A$11,Results!C25,Results!E25) -> 62.75348943 | T21: =IF(Input_AnalysisYearType=Notes!$A$11,Results!C26,Results!E26) -> 12.92762852 | U21: =AND(IsChecked_AGI_Rdbt1Ln,ISNUMBER(S21)) -> TRUE | V21: 62.75348943 | W21: 12.92762852 | X21: 2 | Y21: 1 | Z21: 1.02 | AA21: 1
B22: Fatal & Injury | C22: 1.352086668 | D22: 1.562856632 | E22: 30.60584106 | S22: =IF(Input_AnalysisYearType=Notes!$A$11,Results!C27,Results!E27) -> 238.880348 | T22: =IF(Input_AnalysisYearType=Notes!$A$11,Results!C28,Results!E28) -> 43.02343081 | U22: =AND(IsChecked_AGI_Rdbt2Ln,ISNUMBER(S22)) -> TRUE | V22: 238.880348 | W22: 43.02343081 | X22: 8 | Y22: 5 | Z22: 5.08 | AA22: 5
A23: =Label_AGI_AllStop -> All Way Stop | B23: Total | C23: 3.520612743 | D23: 4.110211136 | E23: 80.13210036 | F23: =IF(OR(AND(ISNUMBER(C23),C23>0),AND(ISNUMBER(E23),E23>0)),AA20,"--") -> 3 | G23: =IF(AND('Control Strategy Selection'!O22:P22),"Yes","No") -> No | H23: =IF(AND(ISNUMBER(Historical!N13), Historical!N13 > 0), "Uncalibrated SPF w/ EB", "Uncalibrated SPF") -> Uncalibrated SPF | I23: =IF(IsChecked_AGI_AllStop,'SSI Results'!C16,"") -> 84.60256084 | J23: =IF(IsChecked_AGI_AllStop,'SSI Results'!C57,"") -> 81.69878429 | K23: =IF(ISNUMBER(J23),_xlfn.RANK.EQ(J23,$J$17:$J$50),IF(ISNUMBER(I23),_xlfn.RANK.EQ(I23,$I$17:$I$50),"--")) -> 3 | S23: =IF(Input_AnalysisYearType=Notes!$A$11,Results!C29,Results!E29) -> 215.7427492 | T23: =IF(Input_AnalysisYearType=Notes!$A$11,Results!C30,Results!E30) -> 72.47791379 | U23: =AND(IsChecked_AGI_DLT,ISNUMBER(S23)) -> TRUE | V23: 215.7427492 | W23: 72.47791379 | X23: 6 | Y23: 9 | Z23: 9.06 | AA23: 9
B24: Fatal & Injury | C24: 1.261504725 | D24: 1.491368543 | E24: 28.90072034 | S24: =IF(Input_AnalysisYearType=Notes!$A$11,Results!C31,Results!E31) -> 208.3878827 | T24: =IF(Input_AnalysisYearType=Notes!$A$11,Results!C32,Results!E32) -> 57.65288597 | U24: =AND(IsChecked_AGI_MUT,ISNUMBER(S24)) -> TRUE | V24: 208.3878827 | W24: 57.65288597 | X24: 5 | Y24: 6 | Z24: 6.05 | AA24: 6
A25: =Label_AGI_1LnRdbt -> 1-lane Roundabout | B25: Total | C25: 2.828106137 | D25: 3.146655154 | E25: 62.75348943 | F25: =IF(OR(AND(ISNUMBER(C25),C25>0),AND(ISNUMBER(E25),E25>0)),AA21,"--") -> 1 | G25: =IF(AND('Control Strategy Selection'!O23:P23),"Yes","No") -> No | H25: Uncalibrated SPF | I25: =IF(IsChecked_AGI_Rdbt1Ln,'SSI Results'!C17,"") -> 92.65385251 | J25: =IF(IsChecked_AGI_Rdbt1Ln,'SSI Results'!C58,"") -> 91.46441274 | K25: =IF(ISNUMBER(J25),_xlfn.RANK.EQ(J25,$J$17:$J$50),IF(ISNUMBER(I25),_xlfn.RANK.EQ(I25,$I$17:$I$50),"--")) -> 1 | S25: =IF(Input_AnalysisYearType=Notes!$A$11,Results!C33,Results!E33) -> 258.912024 | T25: =IF(Input_AnalysisYearType=Notes!$A$11,Results!C34,Results!E34) -> 59.88526706 | U25: =AND(IsChecked_AGI_RCUTSig,ISNUMBER(S25)) -> TRUE | V25: 258.912024 | W25: 59.88526706 | X25: 10 | Y25: 7 | Z25: 7.1 | AA25: 7
B26: Fatal & Injury | C26: 0.5752838731 | D26: 0.6557639443 | E26: 12.92762852 | S26: =IF(Input_AnalysisYearType=Notes!$A$11,Results!C35,Results!E35) -> 100.7156257 | T26: =IF(Input_AnalysisYearType=Notes!$A$11,Results!C36,Results!E36) -> 20.72099543 | U26: =AND(IsChecked_AGI_RCUTUnsig,ISNUMBER(S26)) -> TRUE | V26: 100.7156257 | W26: 20.72099543 | X26: 4 | Y26: 2 | Z26: 2.04 | AA26: 2
A27: =Label_AGI_2LnRdbt -> 2-lane Roundabout | B27: Total | C27: 10.43874845 | D27: 12.31856119 | E27: 238.880348 | F27: =IF(OR(AND(ISNUMBER(C27),C27>0),AND(ISNUMBER(E27),E27>0)),AA22,"--") -> 5 | G27: =IF(AND('Control Strategy Selection'!O24:P24),"Yes","No") -> Yes | H27: Uncalibrated SPF | I27: =IF(IsChecked_AGI_Rdbt2Ln,'SSI Results'!C19,"") -> 85.85803545 | J27: =IF(IsChecked_AGI_Rdbt2Ln,'SSI Results'!C60,"") -> 83.67176038 | K27: =IF(ISNUMBER(J27),_xlfn.RANK.EQ(J27,$J$17:$J$50),IF(ISNUMBER(I27),_xlfn.RANK.EQ(I27,$I$17:$I$50),"--")) -> 2 | L27: =IF(AND('Control Strategy Selection'!B24="Yes",'SSI Inputs'!$K$6="No"),"Warning--Major road median presence set to NO in SSI Input tab Sheet, but design requires median presence. Analysis assumes Median present.","") -> Warning--Major road median presence set to NO in SSI Input tab Sheet, but design requires median presence. Analysis assumes Median present. | S27: =IF(Input_AnalysisYearType=Notes!$A$11,Results!C37,Results!E37) -> 0 | T27: =IF(Input_AnalysisYearType=Notes!$A$11,Results!C38,Results!E38) -> 0 | U27: =AND(IsChecked_AGI_SigThruCut,ISNUMBER(S27)) -> FALSE | V27: 99999999999 | W27: 99999999999 | X27: 11 | Y27: 11 | Z27: 11.11 | AA27: 11
B28: Fatal & Injury | C28: 1.863266597 | D28: 2.236535147 | E28: 43.02343081 | S28: =IF(Input_AnalysisYearType=Notes!$A$11,Results!C39,Results!E39) -> 0 | T28: =IF(Input_AnalysisYearType=Notes!$A$11,Results!C40,Results!E40) -> 0 | U28: =AND(IsChecked_AGI_UnsigThruCut,ISNUMBER(S28)) -> FALSE | V28: 99999999999 | W28: 99999999999 | X28: 11 | Y28: 11 | Z28: 11.11 | AA28: 11
A29: =Label_AGI_DLT -> Displaced Left Turn (DLT) | B29: Total | C29: 9.447150632 | D29: 11.104759 | E29: 215.7427492 | F29: =IF(OR(AND(ISNUMBER(C29),C29>0),AND(ISNUMBER(E29),E29>0)),AA23,"--") -> 9 | G29: N/A | H29: CMF | I29: =IF(IsChecked_AGI_DLT,'SSI Results'!C21,"") -> 51.01175673 | J29: =IF(IsChecked_AGI_DLT,'SSI Results'!C62,"") -> 45.27885476 | K29: =IF(ISNUMBER(J29),_xlfn.RANK.EQ(J29,$J$17:$J$50),IF(ISNUMBER(I29),_xlfn.RANK.EQ(I29,$I$17:$I$50),"--")) -> 9 | L29: =IF(AND('Control Strategy Selection'!B25="Yes",'SSI Inputs'!$K$6="No"),"Warning--Major road median presence set to NO in SSI Input tab Sheet, but design requires median presence. Analysis assumes Median present.","") -> Warning--Major road median presence set to NO in SSI Input tab Sheet, but design requires median presence. Analysis assumes Median present. | S29: =IF(Input_AnalysisYearType=Notes!$A$11,Results!C41,Results!E41) -> 0 | T29: =IF(Input_AnalysisYearType=Notes!$A$11,Results!C42,Results!E42) -> 0 | U29: =AND(IsChecked_AGI_GreenT,ISNUMBER(S29)) -> FALSE | V29: =IF(AND(S29>0,U29),S29,99999999999) -> 99999999999 | W29: =IF(AND(T29>0,U29),T29,99999999999) -> 99999999999 | X29: 11 | Y29: 11 | Z29: =IF($X$15,X29+0.01*Y29,Y29+0.01*X29) -> 11.11 | AA29: 11
B30: Fatal & Injury | C30: 3.163859177 | D30: 3.741429757 | E30: 72.47791379 | S30: =IF(Input_AnalysisYearType=Notes!$A$11,Results!C43,Results!E43) -> 235.3557264 | T30: =IF(Input_AnalysisYearType=Notes!$A$11,Results!C44,Results!E44) -> 70.00707582 | U30: =AND(IsChecked_AGI_Jughandle,ISNUMBER(S30)) -> TRUE | V30: =IF(AND(S30>0,U30),S30,99999999999) -> 235.3557264 | W30: =IF(AND(T30>0,U30),T30,99999999999) -> 70.00707582 | X30: 7 | Y30: 8 | Z30: =IF($X$15,X30+0.01*Y30,Y30+0.01*X30) -> 8.07 | AA30: 8
A31: =Label_AGI_MUT -> Median U-Turn (MUT) | B31: Total | C31: 9.125088679 | D31: 10.72618767 | E31: 208.3878827 | F31: =IF(OR(AND(ISNUMBER(C31),C31>0),AND(ISNUMBER(E31),E31>0)),AA24,"--") -> 6 | G31: N/A | H31: CMF | I31: =IF(IsChecked_AGI_MUT,'SSI Results'!C22,"") -> 82.04708739 | J31: =IF(IsChecked_AGI_MUT,'SSI Results'!C63,"") -> 78.40441447 | K31: =IF(ISNUMBER(J31),_xlfn.RANK.EQ(J31,$J$17:$J$50),IF(ISNUMBER(I31),_xlfn.RANK.EQ(I31,$I$17:$I$50),"--")) -> 4 | L31: =IF(AND('Control Strategy Selection'!B26="Yes",'SSI Inputs'!$K$6="No"),"Warning--Major road median presence set to NO in SSI Input tab Sheet, but design requires median presence. Analysis assumes Median present.","") -> Warning--Major road median presence set to NO in SSI Input tab Sheet, but design requires median presence. Analysis assumes Median present. | S31: =IF(Input_AnalysisYearType=Notes!$A$11,Results!C45,Results!E45) -> 181.4200391 | T31: =IF(Input_AnalysisYearType=Notes!$A$11,Results!C46,Results!E46) -> 60.94733659 | U31: =AND(IsChecked_AGI_Other1,ISNUMBER(S31)) -> FALSE | V31: =IF(AND(S31>0,U31),S31,99999999999) -> 99999999999 | W31: =IF(AND(T31>0,U31),T31,99999999999) -> 99999999999 | X31: 11 | Y31: 11 | Z31: =IF($X$15,X31+0.01*Y31,Y31+0.01*X31) -> 11.11 | AA31: 11
B32: Fatal & Injury | C32: 2.516706164 | D32: 2.976137307 | E32: 57.65288597 | S32: =IF(Input_AnalysisYearType=Notes!$A$11,Results!C47,Results!E47) -> 0 | T32: =IF(Input_AnalysisYearType=Notes!$A$11,Results!C48,Results!E48) -> 0 | U32: =AND(IsChecked_AGI_Other2,ISNUMBER(S32)) -> FALSE | V32: =IF(AND(S32>0,U32),S32,99999999999) -> 99999999999 | W32: =IF(AND(T32>0,U32),T32,99999999999) -> 99999999999 | X32: 11 | Y32: 11 | Z32: 11.11 | AA32: 11
A33: =Label_AGI_RCUTSig -> Signalized RCUT | B33: Total | C33: 11.03143001 | D33: 13.64929182 | E33: 258.912024 | F33: =IF(OR(AND(ISNUMBER(C33),C33>0),AND(ISNUMBER(E33),E33>0)),AA25,"--") -> 7 | G33: =IF(OR(NOT(AND('Control Strategy Selection'!O27:P27)),NOT(AND(Range_SRCUT_OAADT_Ratio,Range_SRCUT_DAADT_Ratio))),"No","Yes") -> Yes | H33: Uncalibrated SPF | I33: =IF(IsChecked_AGI_RCUTSig,'SSI Results'!C23,"") -> 79.61247603 | J33: =IF(IsChecked_AGI_RCUTSig,'SSI Results'!C64,"") -> 76.17205026 | K33: =IF(ISNUMBER(J33),_xlfn.RANK.EQ(J33,$J$17:$J$50),IF(ISNUMBER(I33),_xlfn.RANK.EQ(I33,$I$17:$I$50),"--")) -> 5 | L33: =IF(AND('Control Strategy Selection'!B27="Yes",'SSI Inputs'!$K$6="No"),"Warning--Major road median presence set to NO in SSI Input tab Sheet, but design requires median presence. Analysis assumes Median present.","") -> Warning--Major road median presence set to NO in SSI Input tab Sheet, but design requires median presence. Analysis assumes Median present.
B34: Fatal & Injury | C34: 2.509755033 | D34: 3.201783088 | E34: 59.88526706
A35: =Label_AGI_RCUTUnsig -> Unsignalized RCUT | B35: Total | C35: 4.507724321 | D35: 5.081937995 | E35: 100.7156257 | F35: =IF(OR(AND(ISNUMBER(C35),C35>0),AND(ISNUMBER(E35),E35>0)),AA26,"--") -> 2 | G35: =IF(AND('Control Strategy Selection'!O28:P28),"Yes","No") -> Yes | H35: Uncalibrated SPF | I35: =IF(IsChecked_AGI_RCUTUnsig,'SSI Results'!C24,"") -> 66.81937384 | J35: =IF(IsChecked_AGI_RCUTUnsig,'SSI Results'!C65,"") -> 62.13389008 | K35: =IF(ISNUMBER(J35),_xlfn.RANK.EQ(J35,$J$17:$J$50),IF(ISNUMBER(I35),_xlfn.RANK.EQ(I35,$I$17:$I$50),"--")) -> 7 | L35: =IF(AND('Control Strategy Selection'!B28="Yes",'SSI Inputs'!$K$6="No"),"Warning--Major road median presence set to NO in SSI Input tab Sheet, but design requires median presence. Analysis assumes Median present.","") -> Warning--Major road median presence set to NO in SSI Input tab Sheet, but design requires median presence. Analysis assumes Median present.
B36: Fatal & Injury | C36: 0.9384153297 | D36: 1.034263176 | E36: 20.72099543
A37: Signalized Thru-Cut | B37: Total | C37: 0 | D37: 0 | E37: 0 | F37: =IF(OR(AND(ISNUMBER(C37),C37>0),AND(ISNUMBER(E37),E37>0)),AA27,"--") -> -- | G37: N/A | H37: N/A | I37: =IF(IsChecked_AGI_SigThruCut,'SSI Results'!C25,"") ->  | J37: =IF(IsChecked_AGI_SigThruCut,'SSI Results'!C66,"") ->  | K37: =IF(ISNUMBER(J37),_xlfn.RANK.EQ(J37,$J$17:$J$50),IF(ISNUMBER(I37),_xlfn.RANK.EQ(I37,$I$17:$I$50),"--")) -> -- | L37: =IF(AND('Control Strategy Selection'!B29="Yes",'SSI Inputs'!$K$6="No"),"Warning--Major road median presence set to NO in SSI Input tab Sheet, but design requires median presence. Analysis assumes Median present.","") -> 
B38: Fatal & Injury | C38: 0 | D38: 0 | E38: 0
A39: Unsignalized Thru-Cut | B39: Total | C39: 0 | D39: 0 | E39: 0 | F39: =IF(OR(AND(ISNUMBER(C39),C39>0),AND(ISNUMBER(E39),E39>0)),AA28,"--") -> -- | G39: N/A | H39: N/A | I39: =IF(IsChecked_AGI_UnsigThruCut,'SSI Results'!C26,"") ->  | J39: =IF(IsChecked_AGI_UnsigThruCut,'SSI Results'!C67,"") ->  | K39: =IF(ISNUMBER(J39),_xlfn.RANK.EQ(J39,$J$17:$J$50),IF(ISNUMBER(I39),_xlfn.RANK.EQ(I39,$I$17:$I$50),"--")) -> -- | L39: =IF(AND('Control Strategy Selection'!B30="Yes",'SSI Inputs'!$K$6="No"),"Warning--Major road median presence set to NO in SSI Input tab Sheet, but design requires median presence. Analysis assumes Median present.","") -> 
B40: Fatal & Injury | C40: 0 | D40: 0 | E40: 0
A41: Bowtie | B41: Total | C41: 0 | D41: 0 | E41: 0 | F41: =IF(OR(AND(ISNUMBER(C41),C41>0),AND(ISNUMBER(E41),E41>0)),AA30,"--") -> -- | G41: N/A | H41: N/A | I41: =IF(IsChecked_AGI_Bowtie,'SSI Results'!C29,"") ->  | J41: =IF(IsChecked_AGI_Bowtie,'SSI Results'!C70,"") ->  | K41: --
B42: Fatal & Injury | C42: 0 | D42: 0 | E42: 0
A43: =Label_AGI_GreenT -> Continuous Green-T Intersection | B43: Total | C43: 10.30598251 | D43: 12.11428255 | E43: 235.3557264 | F43: =IF(OR(AND(ISNUMBER(C43),C43>0),AND(ISNUMBER(E43),E43>0)),AA29,"--") -> 11 | G43: N/A | H43: CMF | I43: =IF(IsChecked_AGI_GreenT,'SSI Results'!C27,"") ->  | J43: =IF(IsChecked_AGI_GreenT,'SSI Results'!C68,"") ->  | K43: =IF(ISNUMBER(J43),_xlfn.RANK.EQ(J43,$J$17:$J$50),IF(ISNUMBER(I43),_xlfn.RANK.EQ(I43,$I$17:$I$50),"--")) -> --
B44: Fatal & Injury | C44: 3.056000341 | D44: 3.613881016 | E44: 70.00707582
A45: =Label_AGI_Jughandle -> Jughandle | B45: Total | C45: 7.94419485 | D45: 9.338092797 | E45: 181.4200391 | F45: =IF(OR(AND(ISNUMBER(C45),C45>0),AND(ISNUMBER(E45),E45>0)),AA30,"--") -> 8 | G45: N/A | H45: CMF | I45: =IF(IsChecked_AGI_Jughandle,'SSI Results'!C28,"") -> 67.47425835 | J45: =IF(IsChecked_AGI_Jughandle,'SSI Results'!C69,"") -> 61.82769223 | K45: =IF(ISNUMBER(J45),_xlfn.RANK.EQ(J45,$J$17:$J$50),IF(ISNUMBER(I45),_xlfn.RANK.EQ(I45,$I$17:$I$50),"--")) -> 8
B46: Fatal & Injury | C46: 2.660517944 | D46: 3.146202296 | E46: 60.94733659
